Workbook

Sheet AER Changes
A2: Issues | B2: Location | C2: Comment
B5: Final Decision
A6: 1 | B6: DNSP Inputs General'!N9 | C6: Actual 2019 capex data inputs amended to reconile to Table "8.2.3 - CAPEX OTHER" in file "[Ausnet (D) 2019 - Annual - RIN Response - 28 May 2020 - PUBLIC (#11009434.2)_0.xlsx]8.2 Capex"
A8: =A6+1 -> 2 | B8: DNSP Inputs General'!B26:F26 | C8: Update for AER Draft Decision Real Pre Tax WACC
A10: =A8+1 -> 3 | B10: DNSP Inputs General'!D31:D35 | C10: Update for AER Final Decision CPI Forecast
A12: =A10+1 -> 4 | B12: DNSP Inputs General'!C31 | C12: CPI to escalate prices in 2021-22 is Forecast CPI
B13: WACC!C14
A16: =A12+1 -> 5 | B16: DNSP Inputs General'!M42:U130 | C16: Updated Quantities
A18: =A16+1 -> 6 | B18: DNSP Inputs General'!Q134:U134 | C18: AER Final Decision Real Labour Escalator
A21: =A18+1 -> 7 | B21: DNSP Inputs O & M'!D384:H386 | C21: Update for AER Final Decision - Number of Repairs in 1 day
B22: DNSP Inputs O & M'!D430:H432
B23: DNSP Inputs O & M'!D476:H478
B26: Revised Proposal Model
B27: [ASD - EDPR 2022-26 Revised proposal - Public Lighting Model - 20210303 - PUBLIC.xlsm]Report|Charges Summary'!$B$25:$K$25
B28: Formula should refer to Opening RAB of current year not average RAB of previous year. Note average RAB of previous year includes half year depreciation which already has been recovered by the business

Sheet Instructions
A1: ='DNSP Inputs O & M'!$A$3 -> AusNet
A3: Instructions
A5: This model is to be used for the setting of Public Lighting Tariffs for the Regulatory Period 2021-22 to 2025-26 based on forecast inflation rates, Real Pre Tax WACC and Nominal vanilla WACC.
A7: Distributor data input fields are shaded | C7: and located in tabs "DNSP Inputs General" , "DNSP Inputs O & M" and "DNSP Inputs Capex"
A10: This model will also to be used for the annual Public Lighting Tariff Approvals in the Regulatory Period 2021-22 to 2025-26 based on actual inflation rates and Real Pre Tax WACC.
H68: =G68 -> 0 | I68: =H68 -> 0 | J68: =I68 -> 0 | K68: =J68 -> 0 | L68: =K68 -> 0

Sheet DNSP Inputs General
A1: ='DNSP Inputs O & M'!$A$3 -> AusNet
D2: 2009 | E2: 2010 | F2: 2011 | G2: 2012 | H2: 2013 | I2: 2014 | J2: 2015 | K2: 2016 | L2: 2017 | M2: 2018 | N2: 2019 | O2: 2020 | P2: HY2021 | Q2: 2022-06-30 | R2: 2023-06-30 | S2: 2024-06-30 | T2: 2025-06-30 | U2: 2026-06-30
A3: Capital Expenditure | D3: Nominal $ - Actual | J3: Nominal $ | P3: Real 2021 $ - Forecast
A4: (Net of customer contributions)
O5: 2137492.959
A6: Poles and Brackets | D6: 945891.2356 | E6: 957809.4651 | F6: 880178.8893 | G6: 925158.8499 | H6: 998447.2314 | I6: 775787.6177 | J6: 1086336.971 | K6: 1960186 | L6: 3550606.606 | M6: 4528111 | N6: 1787545 | O6: =O5*M$31 -> 2317131.178 | P6: 1181527.829 | Q6: ='Capex 2022-2026'!B31 -> 2313667.698 | R6: ='Capex 2022-2026'!C31 -> 2319279.858 | S6: ='Capex 2022-2026'!D31 -> 2324499.225 | T6: ='Capex 2022-2026'!E31 -> 2330741.437 | U6: ='Capex 2022-2026'!F31 -> 2338792.171
A8: Existing Lights | O8: 407937.556
A9: Luminaires | D9: 448491.4405 | E9: 418018.4138 | F9: -892269.5328 | G9: 258757.3149 | H9: 398955.5693 | I9: 829176.3823 | J9: 1161608.129 | K9: 3323078 | L9: 3418777 | M9: 1644455 | N9: 1417144.999 | O9: =O8*M$31 -> 442221.2599 | P9: 0 | Q9: ='Capex 2022-2026'!B13-'Capex 2022-2026'!B45 -> 0 | R9: ='Capex 2022-2026'!C13-'Capex 2022-2026'!C45 -> 0 | S9: ='Capex 2022-2026'!D13-'Capex 2022-2026'!D45 -> 0 | T9: ='Capex 2022-2026'!E13-'Capex 2022-2026'!E45 -> 0 | U9: ='Capex 2022-2026'!F13-'Capex 2022-2026'!F45 -> 0
A11: Energy Efficient Lights | O11: 590393.0975
A12: Luminaires | D12: 0 | E12: 1941138.457 | F12: 0 | G12: 0 | H12: 0 | I12: 0 | J12: 0 | K12: 0 | L12: 0 | M12: 483844 | N12: 638979 | O12: =O11*M$31 -> 640010.6477 | P12: 2682244.406 | Q12: ='Capex 2022-2026'!B26 -> 2764823.627 | R12: ='Capex 2022-2026'!C26 -> 2960549.71 | S12: ='Capex 2022-2026'!D26 -> 2919928.875 | T12: ='Capex 2022-2026'!E26 -> 2878251.352 | U12: ='Capex 2022-2026'!F26 -> 1181793.24
A14: Total Net Capex | D14: =SUM(D6,D9,D12) -> 1394382.676 | E14: 3316966.336 | F14: -12090.64345 | G14: 1183916.165 | H14: 1397402.801 | I14: 1604964 | J14: 2247945.101 | K14: 5283264 | L14: 6969383.606 | M14: 6656410 | N14: 3843668.999 | O14: 3399363.086 | P14: 3863772.235 | Q14: 5078491.325 | R14: 5279829.569 | S14: 5244428.1 | T14: 5208992.79 | U14: 3520585.411
F17: 2011 | G17: 2012 | H17: 2013 | I17: 2014 | J17: 2015 | K17: 2016 | L17: 2017 | M17: 2018 | N17: 2019 | O17: 2020 | P17: 2015 | Q17: 2016 | R17: 2017 | S17: 2018 | T17: 2019 | U17: 2020
A18: Operating and Maintenance Expenditure | F18: Nominal $ - Actual | J18: Nominal $ | P18: =P3 -> Real 2021 $ - Forecast
O19: 7852450.941
A20: Total O & M | F20: 2283204.04 | G20: 2209782.26 | H20: 2391738.64 | I20: 1580678 | J20: 1063000 | K20: 1946538.303 | L20: 2338331 | M20: 2966870.86 | N20: 2955471.78 | O20: =O19*M$31 -> 8512383.079 | P20: 3926225.471 | Q20: ='Cashflow Summary'!K13 -> 5565079.858 | R20: ='Cashflow Summary'!L13 -> 5507355.188 | S20: ='Cashflow Summary'!M13 -> 5455320.874 | T20: ='Cashflow Summary'!N13 -> 5410627.117 | U20: ='Cashflow Summary'!O13 -> 5493856.139
A24: WACC
A25: Regulatory Period | B25: =Q2 -> 2022-06-30 | C25: =R2 -> 2023-06-30 | D25: 2024-06-30 | E25: 2025-06-30 | F25: 2026-06-30
A26: Real Pre Tax WACC | B26: 0.02989238903 | C26: 0.02989238903 | D26: 0.02989238903 | E26: 0.02989238903 | F26: 0.02989238903
A29: CPI Index | B29: CPI Index | C29: Actual CPI | D29: F'cast CPI | H29: =J2 -> 2015 | I29: 2016 | J29: 2017 | K29: 2018 | L29: 2019 | M29: 2020
H30: Actual CPI | I30: 0.01510859301 | J30: 0.01023255814 | K30: 0.01933701657 | L30: 0.02077687444 | M30: 0.01592920354
A31: 2020-12-31 | B31: 117.2 | C31: =D31 -> 0.0199938725 | D31: 0.0199938725 | H31: 1 | I31: =H31*(1+I30) -> 1.015108593 | J31: =I31*(1+J30) -> 1.025495751 | K31: 1.045325779 | L31: 1.067044381 | M31: 1.084041549
A32: 2021-12-31 | C32: =IF(B32="","",B32/B31-1) ->  | D32: 0.0199938725
A33: 2022-12-31 | C33: =IF(B33="","",B33/B32-1) ->  | D33: 0.0199938725
A34: 2023-12-31 | D34: 0.0199938725
A35: 2024-12-31 | D35: 0.0199938725
A39: Number Of Lights | B39: Central | E39: =P$2 -> HY2021 | F39: =F$2 -> 2011 | G39: 2012 | H39: 2013 | I39: 2014 | J39: =J$2 -> 2015 | K39: =K$2 -> 2016 | L39: 2017 | M39: 2018 | N39: 2019 | O39: 2020 | P39: HY2021 | Q39: 2022-06-30 | R39: 2023-06-30 | S39: 2024-06-30 | T39: 2025-06-30 | U39: 2026-06-30
E40: Actual Prices | F40: Actual Volumes | P40: Forecast Volumes
A41: Existing Lights | B41: Reference Light | D41: Price Factor
A42: Mercury Vapour 80W | B42: =A$42 -> Mercury Vapour 80W | D42: 1 | E42: 43.97 | F42: 59322.5 | G42: 58866.85 | H42: 58715.36667 | I42: 56826.28333 | J42: 48843.3699 | K42: 33071 | L42: 19501 | M42: 20899 | N42: 20183 | O42: 19640 | P42: 19640 | Q42: 14785.8132 | R42: 9857.208798 | S42: 4928.604399 | T42: 1 | U42: 1
A43: HP Sodium 150W | B43: =A$43 -> HP Sodium 150W | D43: 1 | E43: 104.07 | F43: 12679.83333 | G43: 13325.13333 | H43: 13781.75 | I43: 14149.8 | J43: 14308.29031 | K43: 15306 | L43: 14457 | M43: 16891 | N43: 15334 | O43: 14783 | P43: 14783 | Q43: 14443.46329 | R43: 13972.76507 | S43: 13511.18723 | T43: 13058.48121 | U43: 12614.40141
A44: HP Sodium 250W | B44: =A$44 -> HP Sodium 250W | D44: 1 | E44: 105.12 | F44: 6080.266667 | G44: 6156.533333 | H44: 6248.633333 | I44: 6374.183333 | J44: 6445.579842 | K44: 6810 | L44: 7048 | M44: 7381 | N44: 6784 | O44: 6880 | P44: 6880 | Q44: 6758.215629 | R44: 6503.841241 | S44: 6255.56366 | T44: 6013.165333 | U44: 5776.520109
A45: Mercury Vapour 50W | B45: =A$42 -> Mercury Vapour 80W | D45: 1.53 | E45: 67.27 | F45: 324 | G45: 322.3333333 | H45: 319.5833333 | I45: 270.1666667 | J45: 273.192773 | K45: 75 | L45: 71 | M45: 71 | N45: 25 | O45: 71 | P45: 70.37165 | Q45: 54.814856 | R45: 36.54323733 | S45: 18.27161867 | T45: 0 | U45: 0
A46: Mercury Vapour 125W | B46: =A$42 -> Mercury Vapour 80W | D46: 1.47 | E46: 64.63 | F46: 855.25 | G46: 848.0833333 | H46: 839.5 | I46: 803.65 | J46: 812.651593 | K46: 425 | L46: 332 | M46: 289 | N46: 297 | O46: 284 | P46: 281.4866 | Q46: 211.11495 | R46: 140.7433 | S46: 70.37165 | T46: 0 | U46: 0
A47: Mercury Vapour 250W | B47: =A$44 -> HP Sodium 250W | D47: 1.05 | E47: 110.37 | F47: 875.8666667 | G47: 850.0833333 | H47: 817.7833333 | I47: 791.6 | J47: 800.4666223 | K47: 702 | L47: 668 | M47: 655 | N47: 1036 | O47: 611 | P47: 605.59265 | Q47: 460.8580933 | R47: 307.2387289 | S47: 153.6193644 | T47: 0 | U47: 0
A48: Mercury Vapour 400W | B48: =A$44 -> HP Sodium 250W | D48: 1.09 | E48: 114.58 | F48: 151.1666667 | G48: 146.8666667 | H48: 148 | I48: 147.9166667 | J48: 149.5734646 | K48: 143 | L48: 141 | M48: 146 | N48: 206 | O48: 116 | P48: 114.9734 | Q48: 87 | R48: 58 | S48: 29 | T48: 0 | U48: 0
A49: HP Sodium 100W | B49: =A$43 -> HP Sodium 150W | D49: 1.07 | E49: 111.36 | F49: 2304.166667 | G49: 2478.2 | H49: 2612.416667 | I49: 2729.483333 | J49: 2760.055968 | K49: 2851 | L49: 2465 | M49: 3109 | N49: 2948 | O49: 2497 | P49: 2481.458941 | Q49: 2465.677637 | R49: 2434.595519 | S49: 2403.513401 | T49: 2372.431283 | U49: 2341.349165
A50: HP Sodium 400W | B50: =A$44 -> HP Sodium 250W | D50: 1.42 | E50: 149.26 | F50: 289.5 | G50: 283.55 | H50: 275.25 | I50: 267.9166667 | J50: 270.917571 | K50: 282 | L50: 281 | M50: 297 | N50: 443 | O50: 212 | P50: 212 | Q50: 215.7035154 | R50: 212.3867827 | S50: 209.0042199 | T50: 205.5546766 | U50: 202.0369716
A51: Metal Halide 70W | B51: =A$42 -> Mercury Vapour 80W | D51: 4.365105678 | E51: 191.93 | F51: 31 | G51: 31 | H51: 31 | I51: 31 | J51: 31.3472275 | K51: 31 | L51: 31 | M51: 31 | N51: 31 | O51: 31 | P51: 27.125 | Q51: 19.375 | R51: 11.625 | S51: 3.875 | T51: 0 | U51: 0
A52: Metal Halide 100W | B52: HP Sodium 150W | D52: 2.387689088 | E52: 248.49 | F52: 34 | G52: 34 | H52: 34 | I52: 34 | J52: 34.38083016 | K52: 34 | L52: 34 | M52: 34 | N52: 34 | O52: 34 | P52: 29.75 | Q52: 21.25 | R52: 12.75 | S52: 4.25 | T52: 0 | U52: 0
A53: Metal Halide 150W | B53: HP Sodium 150W | D53: 2.712586814 | E53: 282.31 | F53: 32 | G53: 32 | H53: 32 | I53: 32.16666667 | J53: 32.52696187 | K53: 33 | L53: 33 | M53: 33 | N53: 33 | O53: 33 | P53: 28.875 | Q53: 20.625 | R53: 12.375 | S53: 4.125 | T53: 0 | U53: 0
A54: HP Sodium 50W | B54: =A$43 -> HP Sodium 150W | D54: 0.4433450671 | E54: 46.14 | F54: 94 | G54: 95 | H54: 95 | I54: 95 | J54: 96.06408428 | K54: 0 | L54: 0 | M54: 0 | N54: 0 | O54: 0 | P54: 0 | Q54: 0 | R54: 0 | S54: 0 | T54: 0 | U54: 0
A66: Total Existing Lights | F66: =SUM(F42:F65) -> 83073.55 | G66: 83469.63333 | H66: 83950.28333 | I66: 82553.16667 | J66: 74858.41715 | K66: 59763 | L66: 45062 | M66: 49836 | N66: 47354 | O66: 45192 | P66: 45154.63324 | Q66: 39543.91117 | R66: 33560.07267 | S66: 27591.38554 | T66: 21650.63251 | U66: 20935.30765
A68: Energy Efficient Lights | B68: Reference Light | D68: Price Factor
A69: T5 2X14W | B69: =A$69 -> T5 2X14W | D69: 1 | E69: 35.6 | F69: 3208.75 | G69: 5202.25 | H69: 6045.833333 | I69: 8439.583333 | J69: 11516.80288 | K69: 21929 | L69: 21271 | M69: 22991 | N69: 22499 | O69: 22518 | P69: 22518 | Q69: 22528.43237 | R69: 22528.43237 | S69: 22528.43237 | T69: 22528.43237 | U69: 22528.43237
A70: T5 2X24W | B70: =A$70 -> T5 2X24W | D70: 1 | E70: 42.08 | F70: 105.1666667 | G70: 277 | H70: 352.4166667 | I70: 542.9166667 | J70: 932.7493248 | K70: 1690 | L70: 1584 | M70: 2040 | N70: 1780 | O70: 1649 | P70: 1781 | Q70: 1781 | R70: 1781 | S70: 1781 | T70: 1781 | U70: 1781
A71: LED 18W | B71: =A$71 -> LED 18W | D71: 1 | E71: 16.27 | F71: 0 | G71: 0 | H71: 0 | I71: 0 | J71: 2982.688731 | K71: 12368 | L71: 23946 | M71: 30035 | N71: 30436 | O71: 30959 | P71: 32106.50385 | Q71: 38758.36993 | R71: 46086.98203 | S71: 53479.67485 | T71: 60938.23764 | U71: 63479.09114
A72: LED 14W | B72: =A72 -> LED 14W | D72: 1 | E72: 16.27 | K72: 0 | L72: 0 | M72: 307 | N72: 1726 | O72: 2673 | P72: 2673 | Q72: 2732.116782 | R72: 2732.116782 | S72: 2732.116782 | T72: 2732.116782 | U72: 2732.116782
A73: LED 70W-125W (L1) | B73: =A73 -> LED 70W-125W (L1) | D73: 1 | E73: 23.59 | K73: 0 | L73: 0 | M73: 417 | N73: 1259 | O73: 1833.421779 | P73: 2118.198557 | Q73: 2465.3301 | R73: 2476.904084 | S73: 2852.484927 | T73: 2843.245405 | U73: 2683.195334
A74: LED 155W-250W (L2) | B74: LED 155W-250W (L2) | D74: 1 | E74: 24.3 | K74: 0 | L74: 0 | M74: 273 | N74: 901 | O74: 1227 | P74: 1434.175143 | Q74: 2465.205716 | R74: 2936.240365 | S74: 3385.715584 | T74: 3577.629642 | U74: 3525.593456
A75: LED 275W-400W (L4) | B75: LED 275W-400W (L4) | D75: 1 | E75: 25.83 | K75: 0 | L75: 0 | M75: 0 | N75: 50 | O75: 68 | P75: 77.83661336 | Q75: 119.3902363 | R75: 137.1041566 | S75: 156.7897079 | T75: 166.3332169 | U75: 151.0536683
A76: Compact Fluorescent 32W | B76: =A$69 -> T5 2X14W | D76: 0.8796098925 | E76: 31.59 | F76: 1978.933333 | G76: 2125.083333 | H76: 2279.5 | I76: 2420.833333 | J76: 4159.074119 | K76: 2908 | L76: 2707 | M76: 2827 | N76: 3108 | O76: 3107 | P76: 3107 | Q76: 3111.172949 | R76: 3111.172949 | S76: 3111.172949 | T76: 3111.172949 | U76: 3111.172949
A77: Compact Fluorescent 42W | B77: T5 2X14W | D77: 0.8796098925 | E77: 31.59 | F77: 245.5 | G77: 366.3333333 | H77: 572.1666667 | I77: 791.0833333 | J77: 1359.108111 | K77: 1570 | L77: 1336 | M77: 2089 | N77: 1921 | O77: 1924 | P77: 1924 | Q77: 1992.158172 | R77: 1992.158172 | S77: 1992.158172 | T77: 1992.158172 | U77: 1992.158172
A78: Smart lighting L1 | B78: =A78 -> Smart lighting L1 | D78: 1 | E78: =E$75 -> 25.83 | M78: 0 | N78: 0 | O78: 0 | P78: 1 | Q78: 1 | R78: 612.7057877 | S78: 1210.868896 | T78: 1877.414156 | U78: 2656.071163
A79: Smart lighting L2 | B79: =A79 -> Smart lighting L2 | D79: 1 | E79: =E$75 -> 25.83 | M79: 0 | N79: 0 | O79: 0 | P79: 3 | Q79: 3 | R79: 733.4515361 | S79: 1449.232558 | T79: 2382.304462 | U79: 3521.420507
A80: Smart lighting L4 | B80: Smart lighting L4 | D80: 1 | E80: 25.83 | M80: 0 | N80: 0 | O80: 0 | P80: 1 | Q80: 1 | R80: 34.27603915 | S80: 67.1955891 | T80: 110.8888113 | U80: 151.0536683
A81: Total Energy Efficient Lights | F81: =SUM(F69:F77) -> 5538.35 | G81: 7970.666667 | H81: 9249.916667 | I81: 12194.41667 | J81: =SUM(J69:J77) -> 20950.42317 | K81: 40465 | L81: 50844 | M81: 60979 | N81: 63680 | O81: 65958.42178 | P81: =SUM(P69:P80) -> 67744.71416 | Q81: =SUM(Q69:Q80) -> 75958.17626 | R81: 85162.54427 | S81: 94746.84239 | T81: 104040.9336 | U81: 108312.3592
A83: Total Number of Lights | F83: =SUM(F66,F81) -> 88611.9 | G83: 91440.3 | H83: 93200.2 | I83: 94747.58333 | J83: =SUM(J66,J81) -> 95808.84032 | K83: 100228 | L83: 95906 | M83: 110815 | N83: 111034 | O83: 111150.4218 | P83: 112899.3474 | Q83: 115502.0874 | R83: 118722.6169 | S83: 122338.2279 | T83: 125691.5661 | U83: 129247.6669
A86: Number Of Lights | B86: North & East | E86: HY2021 | F86: =F$2 -> 2011 | G86: 2012 | H86: 2013 | I86: 2014 | J86: =J$2 -> 2015 | K86: =K$2 -> 2016 | L86: 2017 | M86: 2018 | N86: 2019 | O86: 2020 | P86: HY2021 | Q86: 2022-06-30 | R86: 2023-06-30 | S86: 2024-06-30 | T86: 2025-06-30 | U86: 2026-06-30
E87: Actual Prices | F87: Actual Volumes | P87: Forecast Volumes
A88: Existing Lights | B88: Reference Light | D88: Price Factor
A89: Mercury Vapour 80W | B89: =A$89 -> Mercury Vapour 80W | D89: 1 | E89: 49.95 | F89: 28734.83333 | G89: 28906.48333 | H89: 28889.05 | I89: 26233.91667 | J89: 22548.59584 | K89: 6984 | L89: 8177 | M89: 4522 | N89: 4620 | O89: 4664 | P89: 4664 | Q89: 3522.436803 | R89: 2348.291202 | S89: 1174.145601 | T89: 1 | U89: 1
A90: HP Sodium 150W | B90: =A$90 -> HP Sodium 150W | D90: 1 | E90: 118.4 | F90: 4571.583333 | G90: 4712.166667 | H90: 4750.25 | I90: 4824.416667 | J90: 4878.454413 | K90: 5333 | L90: 7159 | M90: 5274 | N90: 5404 | O90: 5446 | P90: 5446 | Q90: 5238.877714 | R90: 4977.873925 | S90: 4724.415796 | T90: 4478.4066 | U90: 4239.752981
A91: HP Sodium 250W | B91: =A$91 -> HP Sodium 250W | D91: 1 | E91: 117.12 | F91: 4504.7 | G91: 4586.866667 | H91: 4654.616667 | I91: 4713.483333 | J91: 4766.278528 | K91: 5034 | L91: 5363 | M91: 5257 | N91: 5214 | O91: 5137 | P91: 5137 | Q91: 5005.044881 | R91: 4831.625875 | S91: 4661.803382 | T91: 4495.43874 | U91: 4332.451251
A92: Mercury Vapour 50W | B92: =A$89 -> Mercury Vapour 80W | D92: 1.48 | E92: 73.93 | F92: 376.75 | G92: 367.75 | H92: 363.1666667 | I92: 289.4166667 | J92: 292.6583901 | K92: 146 | L92: 128 | M92: 128 | N92: 128 | O92: 125 | P92: 125 | Q92: 94.435144 | R92: 62.95676267 | S92: 31.47838133 | T92: 0 | U92: 0
A93: Mercury Vapour 125W | B93: =A$89 -> Mercury Vapour 80W | D93: 1.48 | E93: 73.93 | F93: 62 | G93: 62.08333333 | H93: 60.33333333 | I93: 54.58333333 | J93: 55.19471509 | K93: 26 | L93: 21 | M93: 13 | N93: 17 | O93: 17 | P93: 17 | Q93: 12.75 | R93: 8.5 | S93: 4.25 | T93: 0 | U93: 0
A94: Mercury Vapour 250W | B94: =A$91 -> HP Sodium 250W | D94: 1.04 | E94: 121.81 | F94: 433.85 | G94: 433.2833333 | H94: 427.8 | I94: 417.6833333 | J94: 422.3617572 | K94: 277 | L94: 275 | M94: 274 | N94: 272 | O94: 260 | P94: 260 | Q94: 196.1419067 | R94: 130.7612711 | S94: 65.38063556 | T94: 0 | U94: 0
A95: Mercury Vapour 400W | B95: =A$91 -> HP Sodium 250W | D95: 1.07 | E95: 125.32 | F95: 132 | G95: 131.3333333 | H95: 127.6666667 | I95: 123.1666667 | J95: 124.5462426 | K95: 92 | L95: 91 | M95: 85 | N95: 91 | O95: 91 | P95: 91 | Q95: 68.25 | R95: 45.5 | S95: 22.75 | T95: 0 | U95: 0
A96: HP Sodium 100W | B96: =A$90 -> HP Sodium 150W | D96: 1.07 | E96: 126.69 | F96: 143.9166667 | G96: 196.8333333 | H96: 222.9166667 | I96: 248.5 | J96: 251.2834205 | K96: 244 | L96: 729 | M96: 152 | N96: 329 | O96: 315 | P96: 315 | Q96: 316.8680959 | R96: 311.9399318 | S96: 306.913954 | T96: 301.7884534 | U96: 296.5616748
A97: HP Sodium 400W | B97: =A$91 -> HP Sodium 250W | D97: 1.42 | E97: 166.31 | F97: 299.0833333 | G97: 310.4166667 | H97: 321.5 | I97: 330.0833333 | J97: 333.7805595 | K97: 349 | L97: 361 | M97: 354 | N97: 367 | O97: 354 | P97: 354 | Q97: 351.6158596 | R97: 346.0775418 | S97: 340.4293002 | T97: 334.6692137 | U97: 328.7953102
A98: Metal Halide 70W | B98: =A$89 -> Mercury Vapour 80W | D98: 3.804442037 | E98: 190.05 | F98: 0 | G98: 0 | H98: 0 | I98: 0 | J98: 0 | K98: 0 | L98: 0 | M98: 0 | N98: 0 | O98: 0 | P98: 0 | Q98: 0 | R98: 0 | S98: 0 | T98: 0 | U98: 0
A99: Metal Halide 100W | B99: =A$90 -> HP Sodium 150W | D99: 2.11804911 | E99: 250.78 | F99: 0 | G99: 0 | H99: 0 | I99: 0 | J99: 0 | K99: 0 | L99: 0 | M99: 0 | N99: 0 | O99: 0 | P99: 0 | Q99: 0 | R99: 0 | S99: 0 | T99: 0 | U99: 0
A100: Metal Halide 150W | B100: =A$90 -> HP Sodium 150W | D100: 2.406294827 | E100: 284.91 | F100: 0 | G100: 0 | H100: 0 | I100: 0 | J100: 0 | K100: 0 | L100: 0 | M100: 0 | N100: 0 | O100: 0 | P100: 0 | Q100: 0 | R100: 0 | S100: 0 | T100: 0 | U100: 0
A101: =A54 -> HP Sodium 50W | B101: =A$90 -> HP Sodium 150W | D101: 0.4547295587 | E101: 53.84 | F101: 0 | G101: 0 | H101: 0 | I101: 0 | J101: 0 | K101: 0 | L101: 0 | M101: 0 | N101: 0 | O101: 0 | P101: 0 | Q101: 0 | R101: 0 | S101: 0 | T101: 0 | U101: 0
A113: Total Existing Lights | F113: =SUM(F89:F112) -> 39258.71667 | G113: 39707.21667 | H113: 39817.3 | I113: 37235.25 | J113: =SUM(J89:J112) -> 33673.15386 | K113: 18485 | L113: 22304 | M113: 16059 | N113: 16442 | O113: 16409 | P113: 16409 | Q113: 14806.4204 | R113: 13063.52651 | S113: 11331.56705 | T113: 9611.303007 | U113: 9198.561216
A115: Energy Efficient Lights | B115: Reference Light | D115: Price Factor
A116: T5 2X14W | B116: =A$116 -> T5 2X14W | D116: 1 | E116: 40.6 | F116: 64.75 | G116: 140 | H116: 249.5833333 | I116: 3014.583333 | J116: 5220.598408 | K116: 7036 | L116: 8015 | M116: 6506 | N116: 7097 | O116: 7099 | P116: 7099 | Q116: 7103.567627 | R116: 7103.567627 | S116: 7103.567627 | T116: 7103.567627 | U116: 7103.567627
A117: T5 2X24W | B117: =A$117 -> T5 2X24W | D117: 1 | E117: 47.91 | F117: 36.5 | G117: 44.33333333 | H117: 64.41666667 | I117: 93.5 | J117: 128.2344074 | K117: 1002 | L117: 1159 | M117: 761 | N117: 1015 | O117: 1020 | P117: 1020 | Q117: 1020 | R117: 1020 | S117: 1020 | T117: 1020 | U117: 1020
A118: LED 18W | B118: =A$118 -> LED 18W | D118: 1 | E118: 16.74 | F118: 0 | G118: 0 | H118: 0 | I118: 0 | J118: 33.68712443 | K118: 14920 | L118: 19876 | M118: 18786 | N118: 19360 | O118: 18962 | P118: 19356.52962 | Q118: 21167.16157 | R118: 23165.86642 | S118: 25182.21605 | T118: 27216.60502 | U118: 28059.79112
A119: LED 14W | B119: =A119 -> LED 14W | D119: 1 | E119: 16.74 | K119: 0 | L119: 0 | M119: 47 | N119: 324 | O119: 937 | P119: 937 | Q119: 962.8832179 | R119: 962.8832179 | S119: 962.8832179 | T119: 962.8832179 | U119: 962.8832179
A120: LED 70W-125W (L1) | B120: =A120 -> LED 70W-125W (L1) | D120: 1 | E120: 24.09 | K120: 0 | L120: 0 | M120: 33 | N120: 181 | O120: 497.2095361 | P120: 583.3925412 | Q120: 681.5988342 | R120: 689.7636303 | S120: 732.2998026 | T120: 740.5540082 | U120: 713.8159087
A121: LED 155W-250W (L2) | B121: LED 155W-250W (L2) | D121: 1 | E121: 24.89 | K121: 0 | L121: 0 | M121: 117 | N121: 180 | O121: 278 | P121: 359.1076347 | Q121: 1013.705102 | R121: 1382.296186 | S121: 1690.922194 | T121: 1845.734713 | U121: 1855.541735
A122: LED 275W-400W (L4) | B122: LED 275W-400W (L4) | D122: 1 | E122: 26.37 | K122: 0 | L122: 0 | M122: 9 | N122: 9 | O122: 68 | P122: 73.94211492 | Q122: 107.8035148 | R122: 118.3808499 | S122: 131.9670006 | T122: 137.6736304 | U122: 124.0147015
A123: Compact Fluorescent 32W | B123: =A$116 -> T5 2X14W | D123: 0.8796098925 | E123: 36.13 | F123: 180.5833333 | G123: 291.75 | H123: 405.75 | I123: 536.5833333 | J123: 929.2448693 | K123: 640 | L123: 718 | M123: 689 | N123: 651 | O123: 680 | P123: 680 | Q123: 681.8270507 | R123: 681.8270507 | S123: 681.8270507 | T123: 681.8270507 | U123: 681.8270507
A124: Compact Fluorescent 42W | B124: T5 2X14W | D124: 0.8796098925 | E124: 36.13 | F124: 709.1666667 | G124: 1220.083333 | H124: 1602.333333 | I124: 1877.5 | J124: 3251.418995 | K124: 2614 | L124: 3222 | M124: 2634 | N124: 2761 | O124: 2715 | P124: 2715 | Q124: 2744.841828 | R124: 2744.841828 | S124: 2744.841828 | T124: 2744.841828 | U124: 2744.841828
A125: Smart lighting L1 | B125: =A125 -> Smart lighting L1 | D125: 1 | E125: =E$122 -> 26.37 | M125: 0 | N125: 0 | O125: 0 | P125: 1 | Q125: 1 | R125: 169.5861409 | S125: 308.7531314 | T125: 485.7854525 | U125: 701.9400794
A126: Smart lighting L2 | B126: =A126 -> Smart lighting L2 | D126: 1 | E126: =E$122 -> 26.37 | M126: 0 | N126: 0 | O126: 0 | P126: 3 | Q126: 3 | R126: 345.3076016 | S126: 723.8979187 | T126: 1229.271775 | U126: 1853.714684
A127: Smart lighting L4 | B127: Smart lighting L4 | D127: 1 | E127: 26.37 | M127: 0 | N127: 0 | O127: 0 | P127: 1 | Q127: 1 | R127: 29.59521248 | S127: 56.55728595 | T127: 91.78242029 | U127: 124.0147015
A128: Total Energy Efficient Lights | F128: =SUM(F116:F124) -> 991 | G128: 1696.166667 | H128: 2322.083333 | I128: 5522.166667 | J128: =SUM(J116:J124) -> 9563.183804 | K128: 26212 | L128: 32990 | M128: 29582 | N128: 31578 | O128: 32256.20954 | P128: =SUM(P116:P127) -> 32828.97191 | Q128: =SUM(Q116:Q127) -> 35488.38875 | R128: 38413.91577 | S128: 41339.7331 | T128: 44260.52674 | U128: 45945.95266
A130: Total Number of Lights | F130: =SUM(F113,F128) -> 40249.71667 | G130: 41403.38333 | H130: 42139.38333 | I130: 42757.41667 | J130: =SUM(J113,J128) -> 43236.33767 | K130: 44697 | L130: 55294 | M130: 45641 | N130: 48020 | O130: 48665.20954 | P130: 49237.97191 | Q130: 50294.80915 | R130: 51477.44228 | S130: 52671.30015 | T130: 53871.82975 | U130: 55144.51387
Q133: =Q2 -> 2022-06-30 | R133: =R2 -> 2023-06-30 | S133: 2024-06-30 | T133: 2025-06-30 | U133: 2026-06-30
P134: Real Labour Escalation | Q134: 0.0100352624 | R134: 0.006626862471 | S134: 0.006091269693 | T134: 0.007327727922 | U134: 0.009509468237

Sheet DNSP Inputs O & M
A1: Public Lighting Cost Build-up Model
A3: AusNet | C3: O & M Data Inputs
C5: Real 2021 $
A7: Input parameters | C7: ='DNSP Inputs General'!P2 -> HY2021 | D7: ='DNSP Inputs General'!Q2 -> 2022-06-30 | E7: ='DNSP Inputs General'!R2 -> 2023-06-30 | F7: ='DNSP Inputs General'!S2 -> 2024-06-30 | G7: ='DNSP Inputs General'!T2 -> 2025-06-30 | H7: ='DNSP Inputs General'!U2 -> 2026-06-30
A9: Inputs - all lamps
A11: Material premium for rural areas | C11: 0.05 | D11: 0.05 | E11: 0.05 | F11: 0.05 | G11: 0.05 | H11: 0.05
A12: Labour rate (per hour) | C12: 105.1461393 | D12: 111.3622324 | E12: =D12*(1+'DNSP Inputs General'!R$134) -> 112.1002146 | F12: =E12*(1+'DNSP Inputs General'!S$134) -> 112.7830472 | G12: =F12*(1+'DNSP Inputs General'!T$134) -> 113.6094907 | H12: =G12*(1+'DNSP Inputs General'!U$134) -> 114.6898565
A13: Labour rate for night patrols (per hour) | C13: 131.4292303 | D13: 143.4781359 | E13: =D13*(1+'DNSP Inputs General'!R$134) -> 144.4289457 | F13: =E13*(1+'DNSP Inputs General'!S$134) -> 145.3087014 | G13: =F13*(1+'DNSP Inputs General'!T$134) -> 146.373484 | H13: =G13*(1+'DNSP Inputs General'!U$134) -> 147.765418
A14: Elevated platform vehicle (per hour) - urban MV,urban T5 | C14: 49.79045722 | D14: 50.18 | E14: 50.18 | F14: 50.18 | G14: 50.18 | H14: 50.18
A15: Elevated platform vehicle (per hour) - rural MV, rural T5, S-HP | C15: 89.9713562 | D15: 63.64 | E15: 63.64 | F15: 63.64 | G15: 63.64 | H15: 63.64
A16: Patrol vehicle (per hour) | C16: 34.1064632 | D16: 34.37 | E16: 34.37 | F16: 34.37 | G16: 34.37 | H16: 34.37
A17: Number of hours in a day | C17: 8 | D17: 7.5 | E17: 7.5 | F17: 7.5 | G17: 7.5 | H17: 7.5
A18: Indirect overheads | C18: 0.25 | D18: 0.25 | E18: 0.25 | F18: 0.25 | G18: 0.25 | H18: 0.25
A22: Inputs - MV80
A24: Depreciation period | B24: years | C24: 20 | D24: =C24 -> 20 | E24: =D24 -> 20 | F24: =E24 -> 20 | G24: =F24 -> 20 | H24: =G24 -> 20
A25: Lamps - bulk change | B25: years | C25: 4 | D25: 4 | E25: 4 | F25: 4 | G25: 4 | H25: 4
A26: PE cells - bulk change | B26: years | C26: 8 | D26: 8 | E26: 8 | F26: 8 | G26: 8 | H26: 8
A27: Proportion of lamps that fail between bulk change | C27: 0.107 | D27: 0.1941685018 | E27: 0.1941685018 | F27: 0.1941685018 | G27: 0.1941685018 | H27: 0.1941685018
A28: Unit cost - lamp | C28: 6.111746931 | D28: 4.71 | E28: 4.71 | F28: 4.71 | G28: 4.71 | H28: 4.71
A29: Unit cost - PE cell | C29: 24.67380676 | D29: 15.12 | E29: 15.12 | F29: 15.12 | G29: 15.12 | H29: 15.12
A30: Unit cost - luminaire | C30: 212.0348253 | D30: 205 | E30: 205 | F30: 205 | G30: 205 | H30: 205
A31: Unit cost - miscellaneous materials (bulk lamp) | C31: 1.3373337 | D31: 1.347645671 | E31: 1.347645671 | F31: 1.347645671 | G31: 1.347645671 | H31: 1.347645671
A32: Unit cost - miscellaneous materials (repair) | C32: 13.373337 | D32: 13.47645671 | E32: 13.47645671 | F32: 13.47645671 | G32: 13.47645671 | H32: 13.47645671
A33: Number of men in crew | C33: 2 | D33: 2 | E33: 2 | F33: 2 | G33: 2 | H33: 2
A34: Number of bulk lamp changes in 1 day - urban | C34: 85 | D34: 86 | E34: 86 | F34: 86 | G34: 86 | H34: 86
A35: Number of bulk lamp changes in 1 day - rural | C35: 70 | D35: 72 | E35: 72 | F35: 72 | G35: 72 | H35: 72
A36: Number of bulk lamp changes in 1 day - remote | C36: 50 | D36: 60 | E36: 60 | F36: 60 | G36: 60 | H36: 60
A37: Number of repairs in 1 day - urban | C37: 20 | D37: 28.8 | E37: 28.8 | F37: 28.8 | G37: 28.8 | H37: 28.8
A38: Number of repairs in 1 day - rural | C38: 15 | D38: 24 | E38: 24 | F38: 24 | G38: 24 | H38: 24
A39: Number of repairs in 1 day - remote | C39: 10 | D39: 19.2 | E39: 19.2 | F39: 19.2 | G39: 19.2 | H39: 19.2
A40: % of repairs - lamps | C40: 0.6 | D40: 0.6 | E40: 0.6 | F40: 0.6 | G40: 0.6 | H40: 0.6
A41: % of repairs - PE cells | C41: 0.5 | D41: 0.5 | E41: 0.5 | F41: 0.5 | G41: 0.5 | H41: 0.5
A42: % of repairs - luminaires | C42: 0.15 | D42: 0.15 | E42: 0.15 | F42: 0.15 | G42: 0.15 | H42: 0.15
A43: % of repairs - other | C43: 0.1 | D43: 0.1 | E43: 0.1 | F43: 0.1 | G43: 0.1 | H43: 0.1
A45: Other Maintenance and Repair costs
A46: Traffic control costs | C46: 6771.147526 | D46: =D49*D50-D47 -> 38447.325 | E46: =E49*E50-E47 -> 25631.55 | F46: 12815.775 | G46: 4.2 | H46: 4.2
A47: Other costs : Describe……………………………………. | C47: 0 | D47: 0 | E47: 0 | F47: 0 | G47: 0 | H47: 0
C48: =SUM(C46:C47) -> 6771.147526 | D48: 38447.325 | E48: 25631.55 | F48: 12815.775 | G48: 4.2 | H48: 4.2
A49: Number of Lights | C49: =C48/C50 -> 34321.64001 | D49: =SUM('DNSP Inputs General'!Q42,'DNSP Inputs General'!Q89) -> 18308.25 | E49: =SUM('DNSP Inputs General'!R42,'DNSP Inputs General'!R89) -> 12205.5 | F49: =SUM('DNSP Inputs General'!S42,'DNSP Inputs General'!S89) -> 6102.75 | G49: =SUM('DNSP Inputs General'!T42,'DNSP Inputs General'!T89) -> 2 | H49: =SUM('DNSP Inputs General'!U42,'DNSP Inputs General'!U89) -> 2
A50: Unit Cost | C50: 0.1972850809 | D50: 2.1 | E50: 2.1 | F50: 2.1 | G50: 2.1 | H50: 2.1
A52: Other O & M costs specific to North/East zone
A53: Other N\E O & M costs : Describe……………………………………. | C53: 2873.472555 | D53: =D54*D55 -> 3451.988067 | E53: =E54*E55 -> 2301.325378 | F53: 1150.662689 | G53: 0.98 | H53: 0.98
A54: Number of Lights | C54: =C53/C55 -> 10840.22244 | D54: ='DNSP Inputs General'!Q89 -> 3522.436803 | E54: ='DNSP Inputs General'!R89 -> 2348.291202 | F54: ='DNSP Inputs General'!S89 -> 1174.145601 | G54: ='DNSP Inputs General'!T89 -> 1 | H54: ='DNSP Inputs General'!U89 -> 1
A55: Unit Cost | C55: 0.2650750546 | D55: 0.98 | E55: 0.98 | F55: 0.98 | G55: 0.98 | H55: 0.98
A57: Location of selected public lighting assets within distributors' areas (%)
A58: SP AusNet - Central
A59: Urban | C59: 0.96 | D59: 0.96 | E59: 0.96 | F59: 0.96 | G59: 0.96 | H59: 0.96
A60: Rural | C60: 0.04 | D60: 0.04 | E60: 0.04 | F60: 0.04 | G60: 0.04 | H60: 0.04
A61: Remote | C61: 0 | D61: 0 | E61: 0 | F61: 0 | G61: 0 | H61: 0
A63: SP AusNet - North/East
A64: Urban | C64: 0.35 | D64: 0.35 | E64: 0.35 | F64: 0.35 | G64: 0.35 | H64: 0.35
A65: Rural | C65: 0.53 | D65: 0.53 | E65: 0.53 | F65: 0.53 | G65: 0.53 | H65: 0.53
A66: Remote | C66: 0.12 | D66: 0.12 | E66: 0.12 | F66: 0.12 | G66: 0.12 | H66: 0.12
A70: Inputs - S-HP150
A72: Depreciation period | B72: years | C72: 20 | D72: =C72 -> 20 | E72: =D72 -> 20 | F72: =E72 -> 20 | G72: =F72 -> 20 | H72: =G72 -> 20
A73: Number of patrols per year | C73: 3 | D73: 3 | E73: 3 | F73: 3 | G73: 3 | H73: 3
A74: Lamps - frequency of replacement | B74: years | C74: 5 | D74: 5 | E74: 5 | F74: 5 | G74: 5 | H74: 5
A75: PE cells - frequency of replacement | B75: years | C75: 10 | D75: 10 | E75: 10 | F75: 10 | G75: 10 | H75: 10
A76: Unit cost - lamp | C76: 44.19769594 | D76: 19.33 | E76: 19.33 | F76: 19.33 | G76: 19.33 | H76: 19.33
A77: Unit cost - PE cell | C77: 24.00513991 | D77: 15.12 | E77: 15.12 | F77: 15.12 | G77: 15.12 | H77: 15.12
A78: Unit cost - miscellaneous materials | C78: 2.6746674 | D78: 2.695291341 | E78: 2.695291341 | F78: 2.695291341 | G78: 2.695291341 | H78: 2.695291341
A79: Number of men in crew - road patrols | C79: 2 | D79: 2 | E79: 2 | F79: 2 | G79: 2 | H79: 2
A80: Number of men in crew - repairs | C80: 2 | D80: 2 | E80: 2 | F80: 2 | G80: 2 | H80: 2
A81: Number of lamps patrolled in 1 day - urban | C81: 3000 | D81: 3000 | E81: 3000 | F81: 3000 | G81: 3000 | H81: 3000
A82: Number of lamps patrolled in 1 day - rural | C82: 2000 | D82: 2000 | E82: 2000 | F82: 2000 | G82: 2000 | H82: 2000
A83: Number of lamps patrolled in 1 day - remote | C83: 1000 | D83: 1000 | E83: 1000 | F83: 1000 | G83: 1000 | H83: 1000
A84: Number of repairs in 1 day - urban | C84: 15 | D84: 15 | E84: 15 | F84: 15 | G84: 15 | H84: 15
A85: Number of repairs in 1 day - rural | C85: 12 | D85: 11 | E85: 11 | F85: 11 | G85: 11 | H85: 11
A86: Number of repairs in 1 day - remote | C86: 9 | D86: 9 | E86: 9 | F86: 9 | G86: 9 | H86: 9
A88: Other Maintenance and Repair costs
A89: Traffic control costs | C89: 4101.281743 | D89: 54736.60844 | E89: 52834.47495 | F89: 50974.88941 | G89: 49156.95647 | H89: 47359.62851
A90: Other costs : Describe……………………………………. | C90: 995.8091444 | D90: 0 | E90: 0 | F90: 0 | G90: 0 | H90: 0
C91: =SUM(C89:C90) -> 5097.090887 | D91: 54736.60844 | E91: 52834.47495 | F91: 50974.88941 | G91: 49156.95647 | H91: 47359.62851
A92: Number of Lights | C92: =C91/C93 -> 20788.60563 | D92: =SUM('DNSP Inputs General'!Q43,'DNSP Inputs General'!Q90) -> 19682.34101 | E92: =SUM('DNSP Inputs General'!R43,'DNSP Inputs General'!R90) -> 18950.63899 | F92: =SUM('DNSP Inputs General'!S43,'DNSP Inputs General'!S90) -> 18235.60303 | G92: =SUM('DNSP Inputs General'!T43,'DNSP Inputs General'!T90) -> 17536.88781 | H92: =SUM('DNSP Inputs General'!U43,'DNSP Inputs General'!U90) -> 16854.15439
A93: Unit Cost | C93: 0.2451867614 | D93: =D91/D92 -> 2.78100092 | E93: =E91/E92 -> 2.78800493 | F93: =F91/F92 -> 2.795349808 | G93: =G91/G92 -> 2.80306044 | H93: =H91/H92 -> 2.809967644
A95: Other O & M costs specific to North/East zone
A96: Other N\E O & M costs : Describe……………………………………. | C96: 1401.119488 | D96: 8769.04886 | E96: 8434.92777 | F96: 8108.810232 | G96: 7790.550498 | H96: 7476.183726
A97: Number of Lights | C97: =C96/C98 -> 5285.746296 | D97: ='DNSP Inputs General'!Q90 -> 5238.877714 | E97: ='DNSP Inputs General'!R90 -> 4977.873925 | F97: ='DNSP Inputs General'!S90 -> 4724.415796 | G97: ='DNSP Inputs General'!T90 -> 4478.4066 | H97: ='DNSP Inputs General'!U90 -> 4239.752981
A98: Unit Cost | C98: 0.2650750546 | D98: =D96/D97 -> 1.673841104 | E98: =E96/E97 -> 1.69448401 | F98: =F96/F97 -> 1.716362526 | G98: =G96/G97 -> 1.739580881 | H98: =H96/H97 -> 1.763353611
A100: Location of selected public lighting assets within distributors' areas (%)
A101: SP AusNet - Central
A102: Urban | C102: 0.94 | D102: 0.94 | E102: 0.94 | F102: 0.94 | G102: 0.94 | H102: 0.94
A103: Rural | C103: 0.06 | D103: 0.06 | E103: 0.06 | F103: 0.06 | G103: 0.06 | H103: 0.06
A104: Remote | C104: 0 | D104: 0 | E104: 0 | F104: 0 | G104: 0 | H104: 0
A106: SP AusNet - North/East
A107: Urban | C107: 0.3 | D107: 0.3 | E107: 0.3 | F107: 0.3 | G107: 0.3 | H107: 0.3
A108: Rural | C108: 0.63 | D108: 0.63 | E108: 0.63 | F108: 0.63 | G108: 0.63 | H108: 0.63
A109: Remote | C109: 0.07 | D109: 0.07 | E109: 0.07 | F109: 0.07 | G109: 0.07 | H109: 0.07
A113: Inputs - S-HP250
A115: Depreciation period | B115: years | C115: =C72 -> 20 | D115: =D72 -> 20 | E115: 20 | F115: 20 | G115: 20 | H115: 20
A116: Number of patrols per year | C116: =C73 -> 3 | D116: 3 | E116: 3 | F116: 3 | G116: 3 | H116: 3
A117: Lamps - frequency of replacement | B117: years | C117: =C74 -> 5 | D117: 5 | E117: 5 | F117: 5 | G117: 5 | H117: 5
A118: PE cells - frequency of replacement | B118: years | C118: =C75 -> 10 | D118: 10 | E118: 10 | F118: 10 | G118: 10 | H118: 10
A119: Unit cost - lamp | C119: 44.41714825 | D119: 21.28 | E119: 21.28 | F119: 21.28 | G119: 21.28 | H119: 21.28
A120: Unit cost - PE cell | C120: 24.00513991 | D120: 15.12 | E120: 15.12 | F120: 15.12 | G120: 15.12 | H120: 15.12
A121: Unit cost - miscellaneous materials | C121: 2.6746674 | D121: 2.548069545 | E121: 2.548069545 | F121: 2.548069545 | G121: 2.548069545 | H121: 2.548069545
A122: Number of men in crew - road patrols | C122: =C79 -> 2 | D122: 2 | E122: 2 | F122: 2 | G122: 2 | H122: 2
A123: Number of men in crew - repairs | C123: =C80 -> 2 | D123: 2 | E123: 2 | F123: 2 | G123: 2 | H123: 2
A124: Number of lamps patrolled in 1 day - urban | C124: =C81 -> 3000 | D124: 3000 | E124: 3000 | F124: 3000 | G124: 3000 | H124: 3000
A125: Number of lamps patrolled in 1 day - rural | C125: =C82 -> 2000 | D125: 2000 | E125: 2000 | F125: 2000 | G125: 2000 | H125: 2000
A126: Number of lamps patrolled in 1 day - remote | C126: =C83 -> 1000 | D126: 1000 | E126: 1000 | F126: 1000 | G126: 1000 | H126: 1000
A127: Number of repairs in 1 day - urban | C127: =C84 -> 15 | D127: 15 | E127: 15 | F127: 15 | G127: 15 | H127: 15
A128: Number of repairs in 1 day - rural | C128: =C85 -> 12 | D128: 11 | E128: 11 | F128: 11 | G128: 11 | H128: 11
A129: Number of repairs in 1 day - remote | C129: =C86 -> 9 | D129: 9 | E129: 9 | F129: 9 | G129: 9 | H129: 9
A131: Other Maintenance and Repair costs
A132: Traffic control costs | C132: 2396.601961 | D132: 41324.63412 | E132: 39886.86547 | F132: 38481.49949 | G132: 37107.85364 | H132: 35749.89366
A133: Other costs : Describe……………………………………. | C133: 995.8091444 | D133: 0 | E133: 0 | F133: 0 | G133: 0 | H133: 0
C134: =SUM(C132:C133) -> 3392.411105 | D134: 41324.63412 | E134: 39886.86547 | F134: 38481.49949 | G134: 37107.85364 | H134: 35749.89366
A135: Number of Lights | C135: =C134/C136 -> 12147.91281 | D135: =SUM('DNSP Inputs General'!Q44,'DNSP Inputs General'!Q91) -> 11763.26051 | E135: =SUM('DNSP Inputs General'!R44,'DNSP Inputs General'!R91) -> 11335.46712 | F135: =SUM('DNSP Inputs General'!S44,'DNSP Inputs General'!S91) -> 10917.36704 | G135: =SUM('DNSP Inputs General'!T44,'DNSP Inputs General'!T91) -> 10508.60407 | H135: =SUM('DNSP Inputs General'!U44,'DNSP Inputs General'!U91) -> 10108.97136
A136: Unit Cost | C136: 0.2792587631 | D136: =D134/D135 -> 3.513025499 | E136: =E134/E135 -> 3.51876681 | F136: =F134/F135 -> 3.524796715 | G136: =G134/G135 -> 3.531187719 | H136: =H134/H135 -> 3.536452166
A138: Other O & M costs specific to North/East zone
A139: Other N\E O & M costs : Describe……………………………………. | C139: 1368.901944 | D139: 7817.865259 | E139: 7554.229292 | F139: 7296.29069 | G139: 7043.926498 | H139: 6794.318126
A140: Number of Lights | C140: =C139/C141 -> 5164.205083 | D140: ='DNSP Inputs General'!Q91 -> 5005.044881 | E140: ='DNSP Inputs General'!R91 -> 4831.625875 | F140: ='DNSP Inputs General'!S91 -> 4661.803382 | G140: ='DNSP Inputs General'!T91 -> 4495.43874 | H140: ='DNSP Inputs General'!U91 -> 4332.451251
A141: Unit Cost | C141: 0.2650750546 | D141: =D139/D140 -> 1.561997034 | E141: =E139/E140 -> 1.563496323 | F141: =F139/F140 -> 1.565121926 | G141: =G139/G140 -> 1.566905236 | H141: =H139/H140 -> 1.568238794
A143: Location of selected public lighting assets within distributors' areas (%)
A144: SP AusNet - Central
A145: Urban | C145: 0.9 | D145: 0.9 | E145: 0.9 | F145: 0.9 | G145: 0.9 | H145: 0.9
A146: Rural | C146: 0.1 | D146: 0.1 | E146: 0.1 | F146: 0.1 | G146: 0.1 | H146: 0.1
A147: Remote | C147: 0 | D147: 0 | E147: 0 | F147: 0 | G147: 0 | H147: 0
A149: SP AusNet - North/East
A150: Urban | C150: 0.37 | D150: 0.37 | E150: 0.37 | F150: 0.37 | G150: 0.37 | H150: 0.37
A151: Rural | C151: 0.57 | D151: 0.57 | E151: 0.57 | F151: 0.57 | G151: 0.57 | H151: 0.57
A152: Remote | C152: 0.06 | D152: 0.06 | E152: 0.06 | F152: 0.06 | G152: 0.06 | H152: 0.06
A156: Dedicated street lighting poles
A158: Period of inspection | B158: years | C158: 5 | D158: 5 | E158: 5 | F158: 5 | G158: 5 | H158: 5
A159: Pole inspection rate | B159: per day | C159: 75 | D159: 75 | E159: 75 | F159: 75 | G159: 75 | H159: 75
A160: Depreciation of dedicated street lighting pole & bracket | B160: years | C160: 35 | D160: =C160 -> 35 | E160: =D160 -> 35 | F160: =E160 -> 35 | G160: =F160 -> 35 | H160: =G160 -> 35
A161: Proportion of lights on dedicated poles
A162: SP AusNet - Central | C162: 0.381190625 | D162: 0.381190625 | E162: 0.381190625 | F162: 0.381190625 | G162: 0.381190625 | H162: 0.381190625
A163: SP AusNet - North/East | C163: 0.3829674402 | D163: 0.3829674402 | E163: 0.3829674402 | F163: 0.3829674402 | G163: 0.3829674402 | H163: 0.3829674402
A167: Other direct costs
A168: Call centre
A169: Number of calls | C169: 4000 | D169: 4000 | E169: 4000 | F169: 4000 | G169: 4000 | H169: 4000
A170: Average cost per call $ | C170: 16.0309915 | D170: 15.61 | E170: 16.61 | F170: 17.61 | G170: 18.61 | H170: 19.61
C171: =C169*C170 -> 64123.96601 | D171: 62440 | E171: 66440 | F171: 70440 | G171: 74440 | H171: 78440
A173: GIS and other | C173: 124476.143 | D173: 118584.4151 | E173: 118584.4151 | F173: 118584.4151 | G173: 118584.4151 | H173: 118584.4151
A174: Complaints handling | C174: 37342.84291 | D174: 35575.32453 | E174: 35575.32453 | F174: 35575.32453 | G174: 35575.32453 | H174: 35575.32453
A178: ENERGY EFFICIENT LIGHTS
A180: Inputs - T5 (2 X 14W)
A182: Depreciation period | B182: years | C182: 20 | D182: =C182 -> 20 | E182: =D182 -> 20 | F182: =E182 -> 20 | G182: =F182 -> 20 | H182: =G182 -> 20
A183: Lamps - bulk change | B183: years | C183: 4 | D183: 4 | E183: 4 | F183: 4 | G183: 4 | H183: 4
A184: PE cells - bulk change | B184: years | C184: 8 | D184: 8 | E184: 8 | F184: 8 | G184: 8 | H184: 8
A185: Ballast unit life | B185: years | C185: 20 | D185: =C185 -> 20 | E185: =D185 -> 20 | F185: =E185 -> 20 | G185: =F185 -> 20 | H185: =G185 -> 20
A186: Proportion of luminaires that fail between bulk change | C186: 0.114 | D186: 0.4156563612 | E186: 0.4156563612 | F186: 0.4156563612 | G186: 0.4156563612 | H186: 0.4156563612
A187: Unit cost - lamp | C187: 10.69830028 | D187: 8.1 | E187: 8.1 | F187: 8.1 | G187: 8.1 | H187: 8.1
A188: Unit cost - PE cell | C188: 18.05400495 | D188: 15.12 | E188: 15.12 | F188: 15.12 | G188: 15.12 | H188: 15.12
A189: Unit cost - luminaire | C189: 258.1088385 | D189: 260.28 | E189: 260.28 | F189: 260.28 | G189: 260.28 | H189: 260.28
A190: Unit cost - miscellaneous materials (bulk lamp) | C190: 1.3373337 | D190: 1.347645671 | E190: 1.347645671 | F190: 1.347645671 | G190: 1.347645671 | H190: 1.347645671
A191: Unit cost - miscellaneous materials (repair) | C191: 13.373337 | D191: 13.47645671 | E191: 13.47645671 | F191: 13.47645671 | G191: 13.47645671 | H191: 13.47645671
A192: Number of men in crew | C192: 2 | D192: 2 | E192: 2 | F192: 2 | G192: 2 | H192: 2
A193: Number of bulk lamp changes in 1 day - urban | C193: 85 | D193: 73.92 | E193: 73.92 | F193: 73.92 | G193: 73.92 | H193: 73.92
A194: Number of bulk lamp changes in 1 day - rural | C194: 70 | D194: 61.44 | E194: 61.44 | F194: 61.44 | G194: 61.44 | H194: 61.44
A195: Number of bulk lamp changes in 1 day - remote | C195: 50 | D195: 48.96 | E195: 48.96 | F195: 48.96 | G195: 48.96 | H195: 48.96
A196: Number of repairs in 1 day - urban | C196: 20 | D196: 24.96 | E196: 24.96 | F196: 24.96 | G196: 24.96 | H196: 24.96
A197: Number of repairs in 1 day - rural | C197: 15 | D197: 20.16 | E197: 20.16 | F197: 20.16 | G197: 20.16 | H197: 20.16
A198: Number of repairs in 1 day - remote | C198: 10 | D198: 16.32 | E198: 16.32 | F198: 16.32 | G198: 16.32 | H198: 16.32
A199: % of repairs - lamps | C199: 0.6 | D199: 0.6 | E199: 0.6 | F199: 0.6 | G199: 0.6 | H199: 0.6
A200: % of repairs - PE cells | C200: 0.5 | D200: 0.5 | E200: 0.5 | F200: 0.5 | G200: 0.5 | H200: 0.5
A201: % of repairs - luminaires | C201: 0.15 | D201: 0 | E201: 0 | F201: 0 | G201: 0 | H201: 0
A202: % of repairs - other | C202: 0.1 | D202: 0.1 | E202: 0.1 | F202: 0.1 | G202: 0.1 | H202: 0.1
A204: Other Maintenance and Repair costs
A205: Traffic control costs | C205: 7051.275982 | D205: 30287.25 | E205: 30287.25 | F205: 30287.25 | G205: 30287.25 | H205: 30287.25
A206: Other costs : Describe……………………………………. | C206: 0 | D206: 0 | E206: 0 | F206: 0 | G206: 0 | H206: 0
C207: =SUM(C205:C206) -> 7051.275982 | D207: 30287.25 | E207: 30287.25 | F207: 30287.25 | G207: 30287.25 | H207: 30287.25
A208: Number of Lights | C208: =C207/C209 -> 35741.55709 | D208: =SUM('DNSP Inputs General'!Q69,'DNSP Inputs General'!Q116) -> 29632 | E208: =SUM('DNSP Inputs General'!R69,'DNSP Inputs General'!R116) -> 29632 | F208: =SUM('DNSP Inputs General'!S69,'DNSP Inputs General'!S116) -> 29632 | G208: =SUM('DNSP Inputs General'!T69,'DNSP Inputs General'!T116) -> 29632 | H208: =SUM('DNSP Inputs General'!U69,'DNSP Inputs General'!U116) -> 29632
A209: Unit Cost | C209: 0.1972850809 | D209: =D207/D208 -> 1.022112918 | E209: =E207/E208 -> 1.022112918 | F209: =F207/F208 -> 1.022112918 | G209: =G207/G208 -> 1.022112918 | H209: =H207/H208 -> 1.022112918
A211: Other O & M costs specific to North/East zone
A212: Other N\E O & M costs : Describe……………………………………. | C212: 3466.071593 | D212: 7762.58 | E212: 7762.58 | F212: 7762.58 | G212: 7762.58 | H212: 7762.58
A213: Number of Lights | C213: =C212/C214 -> 13075.81205 | D213: ='DNSP Inputs General'!Q116 -> 7103.567627 | E213: ='DNSP Inputs General'!R116 -> 7103.567627 | F213: ='DNSP Inputs General'!S116 -> 7103.567627 | G213: ='DNSP Inputs General'!T116 -> 7103.567627 | H213: ='DNSP Inputs General'!U116 -> 7103.567627
A214: Unit Cost | C214: 0.2650750546 | D214: =D212/D213 -> 1.092772028 | E214: =E212/E213 -> 1.092772028 | F214: =F212/F213 -> 1.092772028 | G214: =G212/G213 -> 1.092772028 | H214: =H212/H213 -> 1.092772028
A216: Location of selected public lighting assets within distributors' areas (%)
A217: SP AusNet - Central
A218: Urban | C218: 0.96 | D218: 0.96 | E218: 0.96 | F218: 0.96 | G218: 0.96 | H218: 0.96
A219: Rural | C219: 0.04 | D219: 0.04 | E219: 0.04 | F219: 0.04 | G219: 0.04 | H219: 0.04
A220: Remote | C220: 0 | D220: 0 | E220: 0 | F220: 0 | G220: 0 | H220: 0
A222: SP AusNet - North/East
A223: Urban | C223: 0.35 | D223: 0.35 | E223: 0.35 | F223: 0.35 | G223: 0.35 | H223: 0.35
A224: Rural | C224: 0.53 | D224: 0.53 | E224: 0.53 | F224: 0.53 | G224: 0.53 | H224: 0.53
A225: Remote | C225: 0.12 | D225: 0.12 | E225: 0.12 | F225: 0.12 | G225: 0.12 | H225: 0.12
A229: Inputs - T5 (2 x 24W)
A231: Depreciation period | B231: years | C231: 20 | D231: =C231 -> 20 | E231: =D231 -> 20 | F231: =E231 -> 20 | G231: =F231 -> 20 | H231: =G231 -> 20
A232: Lamps - bulk change | B232: years | C232: 4 | D232: 4 | E232: 4 | F232: 4 | G232: 4 | H232: 4
A233: PE cells - bulk change | B233: years | C233: 8 | D233: 8 | E233: 8 | F233: 8 | G233: 8 | H233: 8
A234: Ballast unit life | C234: 20 | D234: =C234 -> 20 | E234: =D234 -> 20 | F234: 20 | G234: 20 | H234: 20
A235: Proportion of luminaires that fail between bulk change | C235: 0.114 | D235: 0.4156563612 | E235: 0.4156563612 | F235: 0.4156563612 | G235: 0.4156563612 | H235: 0.4156563612
A236: Unit cost - lamp | C236: 18.45593957 | D236: 8.1 | E236: 8.1 | F236: 8.1 | G236: 8.1 | H236: 8.1
A237: Unit cost - PE cell | C237: 23.40333975 | D237: 15.12 | E237: 15.12 | F237: 15.12 | G237: 15.12 | H237: 15.12
A238: Unit cost - luminaire | C238: 286.187762 | D238: 267.33 | E238: 267.33 | F238: 267.33 | G238: 267.33 | H238: 267.33
A239: Unit cost - miscellaneous materials (bulk lamp) | C239: 1.3373337 | D239: 1.347645671 | E239: 1.347645671 | F239: 1.347645671 | G239: 1.347645671 | H239: 1.347645671
A240: Unit cost - miscellaneous materials (repair) | C240: 13.373337 | D240: 13.47645671 | E240: 13.47645671 | F240: 13.47645671 | G240: 13.47645671 | H240: 13.47645671
A241: Number of men in crew | C241: 2 | D241: 2 | E241: 2 | F241: 2 | G241: 2 | H241: 2
A242: Number of bulk lamp changes in 1 day - urban | C242: 85 | D242: =D193 -> 73.92 | E242: =E193 -> 73.92 | F242: 73.92 | G242: 73.92 | H242: 73.92
A243: Number of bulk lamp changes in 1 day - rural | C243: 70 | D243: =D194 -> 61.44 | E243: 61.44 | F243: 61.44 | G243: 61.44 | H243: 61.44
A244: Number of bulk lamp changes in 1 day - remote | C244: 50 | D244: =D195 -> 48.96 | E244: 48.96 | F244: 48.96 | G244: 48.96 | H244: 48.96
A245: Number of repairs in 1 day - urban | C245: 20 | D245: =D196 -> 24.96 | E245: 24.96 | F245: 24.96 | G245: 24.96 | H245: 24.96
A246: Number of repairs in 1 day - rural | C246: 15 | D246: =D197 -> 20.16 | E246: 20.16 | F246: 20.16 | G246: 20.16 | H246: 20.16
A247: Number of repairs in 1 day - remote | C247: 10 | D247: =D198 -> 16.32 | E247: 16.32 | F247: 16.32 | G247: 16.32 | H247: 16.32
A248: % of repairs - lamps | C248: 0.6 | D248: 0.6 | E248: 0.6 | F248: 0.6 | G248: 0.6 | H248: 0.6
A249: % of repairs - PE cells | C249: 0.5 | D249: 0.5 | E249: 0.5 | F249: 0.5 | G249: 0.5 | H249: 0.5
A250: % of repairs - luminaires | C250: 0.15 | D250: 0 | E250: 0 | F250: 0 | G250: 0 | H250: 0
... 309 more rows

Sheet DNSP Inputs Capex
A1: Public Lighting Cost Build-up Model
A3: ='DNSP Inputs O & M'!$A$3 -> AusNet | C3: Capex Data Inputs
C5: Real 2021 $
A7: Input parameters | C7: ='DNSP Inputs General'!P2 -> HY2021 | D7: ='DNSP Inputs General'!Q2 -> 2022-06-30 | E7: ='DNSP Inputs General'!R2 -> 2023-06-30 | F7: ='DNSP Inputs General'!S2 -> 2024-06-30 | G7: ='DNSP Inputs General'!T2 -> 2025-06-30 | H7: ='DNSP Inputs General'!U2 -> 2026-06-30
A9: Inputs - all lamps
A11: Material premium for rural areas | C11: ='DNSP Inputs O & M'!C11 -> 0.05 | D11: ='DNSP Inputs O & M'!D11 -> 0.05 | E11: ='DNSP Inputs O & M'!E11 -> 0.05 | F11: ='DNSP Inputs O & M'!F11 -> 0.05 | G11: ='DNSP Inputs O & M'!G11 -> 0.05 | H11: ='DNSP Inputs O & M'!H11 -> 0.05
A12: Labour rate (per hour) | C12: ='DNSP Inputs O & M'!C12 -> 105.1461393 | D12: ='DNSP Inputs O & M'!D12 -> 111.3622324 | E12: ='DNSP Inputs O & M'!E12 -> 112.1002146 | F12: ='DNSP Inputs O & M'!F12 -> 112.7830472 | G12: ='DNSP Inputs O & M'!G12 -> 113.6094907 | H12: ='DNSP Inputs O & M'!H12 -> 114.6898565
A13: Elevated platform vehicle (per hour) - urban MV,urban T5 | C13: ='DNSP Inputs O & M'!C14 -> 49.79045722 | D13: ='DNSP Inputs O & M'!D14 -> 50.18 | E13: ='DNSP Inputs O & M'!E14 -> 50.18 | F13: ='DNSP Inputs O & M'!F14 -> 50.18 | G13: ='DNSP Inputs O & M'!G14 -> 50.18 | H13: ='DNSP Inputs O & M'!H14 -> 50.18
A14: Elevated platform vehicle (per hour) - rural MV, rural T5, S-HP | C14: ='DNSP Inputs O & M'!C15 -> 89.9713562 | D14: ='DNSP Inputs O & M'!D15 -> 63.64 | E14: ='DNSP Inputs O & M'!E15 -> 63.64 | F14: ='DNSP Inputs O & M'!F15 -> 63.64 | G14: ='DNSP Inputs O & M'!G15 -> 63.64 | H14: ='DNSP Inputs O & M'!H15 -> 63.64
A15: Number of hours in a day | C15: ='DNSP Inputs O & M'!C17 -> 8 | D15: ='DNSP Inputs O & M'!D17 -> 7.5 | E15: ='DNSP Inputs O & M'!E17 -> 7.5 | F15: ='DNSP Inputs O & M'!F17 -> 7.5 | G15: ='DNSP Inputs O & M'!G17 -> 7.5 | H15: ='DNSP Inputs O & M'!H17 -> 7.5
A19: Inputs - MV80
A21: Unit cost - luminaire | C21: ='DNSP Inputs O & M'!C30 -> 212.0348253 | D21: ='DNSP Inputs O & M'!D30 -> 205 | E21: ='DNSP Inputs O & M'!E30 -> 205 | F21: ='DNSP Inputs O & M'!F30 -> 205 | G21: ='DNSP Inputs O & M'!G30 -> 205 | H21: ='DNSP Inputs O & M'!H30 -> 205
A22: Unit cost - miscellaneous materials (bulk lamp) | C22: ='DNSP Inputs O & M'!C31 -> 1.3373337 | D22: ='DNSP Inputs O & M'!D31 -> 1.347645671 | E22: ='DNSP Inputs O & M'!E31 -> 1.347645671 | F22: ='DNSP Inputs O & M'!F31 -> 1.347645671 | G22: ='DNSP Inputs O & M'!G31 -> 1.347645671 | H22: ='DNSP Inputs O & M'!H31 -> 1.347645671
A23: Number of men in crew | C23: ='DNSP Inputs O & M'!C33 -> 2 | D23: ='DNSP Inputs O & M'!D33 -> 2 | E23: ='DNSP Inputs O & M'!E33 -> 2 | F23: ='DNSP Inputs O & M'!F33 -> 2 | G23: ='DNSP Inputs O & M'!G33 -> 2 | H23: ='DNSP Inputs O & M'!H33 -> 2
A24: Number of luminaires replaced per day - urban | C24: 16 | D24: 16 | E24: 16 | F24: 16 | G24: 16 | H24: 16
A25: Number of luminaires replaced per day - rural | C25: 13 | D25: 13 | E25: 13 | F25: 13 | G25: 13 | H25: 13
A26: Number of luminaires replaced per day - remote | C26: 10 | D26: 10 | E26: 10 | F26: 10 | G26: 10 | H26: 10
A28: Other Capex unit costs Describe :……………………… | C28: 0 | D28: 0 | E28: 0 | F28: 0 | G28: 0 | H28: 0
A30: Forecast Quantities to be replaced
A31: Number of luminaires replaced per year - urban | C31: 749.9114407 | D31: 0 | E31: 0 | F31: 0 | G31: 0 | H31: 0
A32: Number of luminaires replaced per year - rural | C32: 189.4001079 | D32: 0 | E32: 0 | F32: 0 | G32: 0 | H32: 0
A33: Number of luminaires replaced per year - remote | C33: 36.82157946 | D33: 0 | E33: 0 | F33: 0 | G33: 0 | H33: 0
A35: MV80 Lights replaced with T5 Energy Efficient Lights
A36: Number of Lights MV80 replaced with T5 per year
A37: SP AusNet - Central | C37: 1500 | D37: 0 | E37: 0 | F37: 0 | G37: 0 | H37: 0
A38: SP AusNet - North/East | C38: 500 | D38: 0 | E38: 0 | F38: 0 | G38: 0 | H38: 0
A42: Inputs - S-HP150
A44: Unit cost - luminaire | C44: 264.8350519 | D44: 234.07 | E44: 234.07 | F44: 234.07 | G44: 234.07 | H44: 234.07
A45: Unit cost - miscellaneous materials | C45: ='DNSP Inputs O & M'!C78 -> 2.6746674 | D45: ='DNSP Inputs O & M'!D78 -> 2.695291341 | E45: ='DNSP Inputs O & M'!E78 -> 2.695291341 | F45: ='DNSP Inputs O & M'!F78 -> 2.695291341 | G45: ='DNSP Inputs O & M'!G78 -> 2.695291341 | H45: ='DNSP Inputs O & M'!H78 -> 2.695291341
A46: Number of men in crew | C46: ='DNSP Inputs O & M'!C80 -> 2 | D46: ='DNSP Inputs O & M'!D80 -> 2 | E46: ='DNSP Inputs O & M'!E80 -> 2 | F46: ='DNSP Inputs O & M'!F80 -> 2 | G46: ='DNSP Inputs O & M'!G80 -> 2 | H46: ='DNSP Inputs O & M'!H80 -> 2
A47: Number of luminaires replaced per day - urban | C47: 16 | D47: 16 | E47: 16 | F47: 16 | G47: 16 | H47: 16
A48: Number of luminaires replaced per day - rural | C48: 13 | D48: 13 | E48: 13 | F48: 13 | G48: 13 | H48: 13
A49: Number of luminaires replaced per day - remote | C49: 10 | D49: 10 | E49: 10 | F49: 10 | G49: 10 | H49: 10
A51: Other Capex unit costs Describe :……………………… | C51: 0 | D51: 0 | E51: 0 | F51: 0 | G51: 0 | H51: 0
A53: Forecast Quantities to be replaced
A54: Number of luminaires replaced per year - urban | C54: 335.2045732 | D54: 0 | E54: 0 | F54: 0 | G54: 0 | H54: 0
A55: Number of luminaires replaced per year - rural | C55: 94.52251231 | D55: 0 | E55: 0 | F55: 0 | G55: 0 | H55: 0
A56: Number of luminaires replaced per day - remote | C56: 8.379871303 | D56: 0 | E56: 0 | F56: 0 | G56: 0 | H56: 0
A60: Inputs - S-HP250
A62: Unit cost - luminaire | C62: 271.769745 | D62: 240.18 | E62: 240.18 | F62: 240.18 | G62: 240.18 | H62: 240.18
A63: Unit cost - miscellaneous materials | C63: ='DNSP Inputs O & M'!C121 -> 2.6746674 | D63: ='DNSP Inputs O & M'!D121 -> 2.548069545 | E63: ='DNSP Inputs O & M'!E121 -> 2.548069545 | F63: ='DNSP Inputs O & M'!F121 -> 2.548069545 | G63: ='DNSP Inputs O & M'!G121 -> 2.548069545 | H63: ='DNSP Inputs O & M'!H121 -> 2.548069545
A64: Number of men in crew | C64: ='DNSP Inputs O & M'!C123 -> 2 | D64: ='DNSP Inputs O & M'!D123 -> 2 | E64: ='DNSP Inputs O & M'!E123 -> 2 | F64: ='DNSP Inputs O & M'!F123 -> 2 | G64: ='DNSP Inputs O & M'!G123 -> 2 | H64: ='DNSP Inputs O & M'!H123 -> 2
A65: Number of luminaires replaced per day - urban | C65: 16 | D65: 16 | E65: 16 | F65: 16 | G65: 16 | H65: 16
A66: Number of luminaires replaced per day - rural | C66: 13 | D66: 13 | E66: 13 | F66: 13 | G66: 13 | H66: 13
A67: Number of luminaires replaced per day - remote | C67: 10 | D67: 10 | E67: 10 | F67: 10 | G67: 10 | H67: 10
A69: Other Capex unit costs Describe :……………………… | C69: 0 | D69: 0 | E69: 0 | F69: 0 | G69: 0 | H69: 0
A71: Forecast Quantities to be replaced
A72: Number of luminaires replaced per year - urban | C72: 212.0461387 | D72: 0 | E72: 0 | F72: 0 | G72: 0 | H72: 0
A73: Number of luminaires replaced per year - rural | C73: 61.66473706 | D73: 0 | E73: 0 | F73: 0 | G73: 0 | H73: 0
A74: Number of luminaires replaced per day - remote | C74: 5.232576094 | D74: 0 | E74: 0 | F74: 0 | G74: 0 | H74: 0
A78: Dedicated street lighting poles
A80: Cost of pole & bracket | C80: 945.4664023 | D80: 1223.627538 | E80: 1223.627538 | F80: 1223.627538 | G80: 1223.627538 | H80: 1223.627538
A81: Number of men in crew | D81: 4 | E81: 4 | F81: 4 | G81: 4 | H81: 4
A82: Number of poles & brackets replaced per day | C82: 4 | D82: 4 | E82: 4 | F82: 4 | G82: 4 | H82: 4
A83: Cost of bracket on non-dedicated poles | C83: 47.99422096 | D83: 48.36429688 | E83: 48.36429688 | F83: 48.36429688 | G83: 48.36429688 | H83: 48.36429688
A84: Number of brackets replaced per day | C84: 20 | D84: 20 | E84: 20 | F84: 20 | G84: 20 | H84: 20
A85: Plant costs (including truck mounted crane & auger, and tipper truck) | D85: 387.05858 | E85: 387.05858 | F85: 387.05858 | G85: 387.05858 | H85: 387.05858
A86: Other poles & brackets Capex unit costs Describe :………………… | C86: 22.04901374 | D86: 20.53017169 | E86: 20.96576029 | F86: 21.4013489 | G86: 21.8369375 | H86: 22.2725261
A89: Forecast Quantities to be replaced
A90: Number of poles & brackets replaced per year - urban | C90: 598.7331124 | D90: 598.7331124 | E90: 598.7331124 | F90: 598.7331124 | G90: 598.7331124 | H90: 598.7331124
A91: Number of poles & brackets replaced per year - rural | C91: 203.0623874 | D91: 203.0623874 | E91: 203.0623874 | F91: 203.0623874 | G91: 203.0623874 | H91: 203.0623874
A92: Number of poles & brackets replaced per year - remote | C92: 15.48943329 | D92: 15.48943329 | E92: 15.48943329 | F92: 15.48943329 | G92: 15.48943329 | H92: 15.48943329
A94: Brackets on non-dedicated poles :
A95: Number of brackets replaced per year - urban | C95: 970.796428 | D95: 970.796428 | E95: 970.796428 | F95: 970.796428 | G95: 970.796428 | H95: 970.796428
A96: Number of brackets replaced per year - rural | C96: 327.8522232 | D96: 327.8522232 | E96: 327.8522232 | F96: 327.8522232 | G96: 327.8522232 | H96: 327.8522232
A97: Number of brackets replaced per year - remote | C97: 24.95638968 | D97: 24.95638968 | E97: 24.95638968 | F97: 24.95638968 | G97: 24.95638968 | H97: 24.95638968
A101: Luminaire Replacements - Other Light types (excluding T5s)
A102: Number of luminaires replaced per year | C102: 129.5406343 | D102: 0 | E102: 0 | F102: 0 | G102: 0 | H102: 0
A103: Forecast Capex | C103: 41924.26816 | D103: 0 | E103: 0 | F103: 0 | G103: 0 | H103: 0
A107: Inputs - T5 (2 X 14W)
A109: Unit cost - luminaire | C109: ='DNSP Inputs O & M'!C189 -> 258.1088385 | D109: ='DNSP Inputs O & M'!D189 -> 260.28 | E109: ='DNSP Inputs O & M'!E189 -> 260.28 | F109: ='DNSP Inputs O & M'!F189 -> 260.28 | G109: ='DNSP Inputs O & M'!G189 -> 260.28 | H109: ='DNSP Inputs O & M'!H189 -> 260.28
A110: Unit cost - miscellaneous materials (bulk lamp) | C110: ='DNSP Inputs O & M'!C190 -> 1.3373337 | D110: ='DNSP Inputs O & M'!D190 -> 1.347645671 | E110: ='DNSP Inputs O & M'!E190 -> 1.347645671 | F110: ='DNSP Inputs O & M'!F190 -> 1.347645671 | G110: ='DNSP Inputs O & M'!G190 -> 1.347645671 | H110: ='DNSP Inputs O & M'!H190 -> 1.347645671
A111: Number of men in crew | C111: ='DNSP Inputs O & M'!C192 -> 2 | D111: ='DNSP Inputs O & M'!D192 -> 2 | E111: ='DNSP Inputs O & M'!E192 -> 2 | F111: ='DNSP Inputs O & M'!F192 -> 2 | G111: ='DNSP Inputs O & M'!G192 -> 2 | H111: ='DNSP Inputs O & M'!H192 -> 2
A112: Number of luminaires replaced per day - urban | C112: 0 | D112: 16 | E112: 16 | F112: 16 | G112: 16 | H112: 16
A113: Number of luminaires replaced per day - rural | C113: 0 | D113: 13 | E113: 13 | F113: 13 | G113: 13 | H113: 13
A114: Number of luminaires replaced per day - remote | C114: 0 | D114: 10 | E114: 10 | F114: 10 | G114: 10 | H114: 10
A116: Other Capex unit costs Describe :……………………… | C116: 0 | D116: 0 | E116: 0 | F116: 0 | G116: 0 | H116: 0
A118: Forecast Quantities to be replaced
A119: Number of luminaires replaced per year - urban | C119: 0 | D119: 332.3168495 | E119: 332.3168495 | F119: 332.3168495 | G119: 332.3168495 | H119: 332.3168495
A120: Number of luminaires replaced per year - rural | C120: 0 | D120: 83.936583 | E120: 83.936583 | F120: 83.936583 | G120: 83.936583 | H120: 83.936583
A121: Number of luminaires replaced per year - remote | C121: 0 | D121: 16.29004164 | E121: 16.29004164 | F121: 16.29004164 | G121: 16.29004164 | H121: 16.29004164
A125: Inputs - T5 (2x24W)
A127: Unit cost - luminaire | C127: ='DNSP Inputs O & M'!C238 -> 286.187762 | D127: ='DNSP Inputs O & M'!D238 -> 267.33 | E127: ='DNSP Inputs O & M'!E238 -> 267.33 | F127: ='DNSP Inputs O & M'!F238 -> 267.33 | G127: ='DNSP Inputs O & M'!G238 -> 267.33 | H127: ='DNSP Inputs O & M'!H238 -> 267.33
A128: Unit cost - miscellaneous materials (bulk lamp) | C128: ='DNSP Inputs O & M'!C239 -> 1.3373337 | D128: ='DNSP Inputs O & M'!D239 -> 1.347645671 | E128: ='DNSP Inputs O & M'!E239 -> 1.347645671 | F128: ='DNSP Inputs O & M'!F239 -> 1.347645671 | G128: ='DNSP Inputs O & M'!G239 -> 1.347645671 | H128: ='DNSP Inputs O & M'!H239 -> 1.347645671
A129: Number of men in crew | C129: ='DNSP Inputs O & M'!C241 -> 2 | D129: ='DNSP Inputs O & M'!D241 -> 2 | E129: ='DNSP Inputs O & M'!E241 -> 2 | F129: ='DNSP Inputs O & M'!F241 -> 2 | G129: ='DNSP Inputs O & M'!G241 -> 2 | H129: ='DNSP Inputs O & M'!H241 -> 2
A130: Number of luminaires replaced per day - urban | C130: 0 | D130: 16 | E130: 16 | F130: 16 | G130: 16 | H130: 16
A131: Number of luminaires replaced per day - rural | C131: 0 | D131: 13 | E131: 13 | F131: 13 | G131: 13 | H131: 13
A132: Number of luminaires replaced per day - remote | C132: 0 | D132: 10 | E132: 10 | F132: 10 | G132: 10 | H132: 10
A134: Other Capex unit costs Describe :……………………… | C134: 0 | D134: 0 | E134: 0 | F134: 0 | G134: 0 | H134: 0
A136: Forecast Quantities to be replaced
A137: Number of luminaires replaced per year - urban | C137: 0 | D137: 35.82962046 | E137: 35.82962046 | F137: 35.82962046 | G137: 35.82962046 | H137: 35.82962046
A138: Number of luminaires replaced per year - rural | C138: 0 | D138: 9.049844796 | E138: 9.049844796 | F138: 9.049844796 | G138: 9.049844796 | H138: 9.049844796
A139: Number of luminaires replaced per year - remote | C139: 0 | D139: 1.756353944 | E139: 1.756353944 | F139: 1.756353944 | G139: 1.756353944 | H139: 1.756353944
A143: Inputs - LED 18W
J144: O & M
A145: Unit cost - luminaire | C145: ='DNSP Inputs O & M'!C286 -> 391.1415906 | D145: 473.5730337 | E145: 473.5730337 | F145: 473.5730337 | G145: 473.5730337 | H145: 473.5730337 | J145: ='DNSP Inputs O & M'!D286 -> 205 | K145: ='DNSP Inputs O & M'!E286 -> 205 | L145: ='DNSP Inputs O & M'!F286 -> 205 | M145: ='DNSP Inputs O & M'!G286 -> 205 | N145: ='DNSP Inputs O & M'!H286 -> 205
A146: Number of men in crew | C146: ='DNSP Inputs O & M'!C288 -> 2 | D146: ='DNSP Inputs O & M'!D288 -> 2 | E146: ='DNSP Inputs O & M'!E288 -> 2 | F146: ='DNSP Inputs O & M'!F288 -> 2 | G146: ='DNSP Inputs O & M'!G288 -> 2 | H146: ='DNSP Inputs O & M'!H288 -> 2
A147: Number of luminaires replaced per day - urban | C147: 0 | D147: 16 | E147: 16 | F147: 16 | G147: 16 | H147: 16
A148: Number of luminaires replaced per day - rural | C148: 0 | D148: 13 | E148: 13 | F148: 13 | G148: 13 | H148: 13
A149: Number of luminaires replaced per day - remote | C149: 0 | D149: 10 | E149: 10 | F149: 10 | G149: 10 | H149: 10
A151: Other Capex unit costs Describe :……………………… | C151: 0 | D151: 0 | E151: 0 | F151: 0 | G151: 0 | H151: 0
A153: Forecast Quantities to be replaced
A154: Number of luminaires replaced per year - urban | C154: 0 | D154: 1962.195227 | E154: 2205.373769 | F154: 2157.146945 | G154: 2109.229869 | H154: 333.1017506
A155: Number of luminaires replaced per year - rural | C155: 0 | D155: 495.7331393 | E155: 557.033261 | F155: 544.8521309 | G155: 532.7492367 | H155: 84.1348333
A156: Number of luminaires replaced per year - remote | C156: 0 | D156: 96.20970016 | E156: 108.1065573 | F156: 105.7424973 | G156: 103.393621 | H156: 16.32851719
A159: NEW
A160: Inputs - LED 14W
A162: Unit cost - luminaire | D162: ='DNSP Inputs O & M'!D332 -> 205 | E162: ='DNSP Inputs O & M'!E332 -> 205 | F162: ='DNSP Inputs O & M'!F332 -> 205 | G162: ='DNSP Inputs O & M'!G332 -> 205 | H162: ='DNSP Inputs O & M'!H332 -> 205
A163: Number of men in crew | D163: ='DNSP Inputs O & M'!D334 -> 2 | E163: ='DNSP Inputs O & M'!E334 -> 2 | F163: ='DNSP Inputs O & M'!F334 -> 2 | G163: ='DNSP Inputs O & M'!G334 -> 2 | H163: ='DNSP Inputs O & M'!H334 -> 2
A164: Number of luminaires replaced per day - urban | D164: 16 | E164: 16 | F164: 16 | G164: 16 | H164: 16
A165: Number of luminaires replaced per day - rural | D165: 13 | E165: 13 | F165: 13 | G165: 13 | H165: 13
A166: Number of luminaires replaced per day - remote | D166: 10 | E166: 10 | F166: 10 | G166: 10 | H166: 10
A168: Other Capex unit costs Describe :……………………… | D168: 0 | E168: 0 | F168: 0 | G168: 0 | H168: 0
A170: Forecast Quantities to be replaced
A171: Number of luminaires replaced per year - urban | D171: 13.50372755 | E171: 13.50372755 | F171: 13.50372755 | G171: 13.50372755 | H171: 13.50372755
A172: Number of luminaires replaced per year - rural | D172: 3.411610201 | E172: 3.411610201 | F172: 3.411610201 | G172: 3.411610201 | H172: 3.411610201
A173: Number of luminaires replaced per year - remote | D173: 0.6621102535 | E173: 0.6621102535 | F173: 0.6621102535 | G173: 0.6621102535 | H173: 0.6621102535
A176: NEW
A177: Inputs - LED 70W (L1)
A179: Unit cost - luminaire | D179: ='DNSP Inputs O & M'!D378 -> 402 | E179: ='DNSP Inputs O & M'!E378 -> 402 | F179: ='DNSP Inputs O & M'!F378 -> 402 | G179: ='DNSP Inputs O & M'!G378 -> 402 | H179: ='DNSP Inputs O & M'!H378 -> 402
A180: Number of men in crew | D180: ='DNSP Inputs O & M'!D380 -> 2 | E180: ='DNSP Inputs O & M'!E380 -> 2 | F180: ='DNSP Inputs O & M'!F380 -> 2 | G180: ='DNSP Inputs O & M'!G380 -> 2 | H180: ='DNSP Inputs O & M'!H380 -> 2
A181: Number of luminaires replaced per day - urban | D181: 16 | E181: 16 | F181: 16 | G181: 16 | H181: 16
A182: Number of luminaires replaced per day - rural | D182: 13 | E182: 13 | F182: 13 | G182: 13 | H182: 13
A183: Number of luminaires replaced per day - remote | D183: 10 | E183: 10 | F183: 10 | G183: 10 | H183: 10
A185: Other Capex unit costs Describe :……………………… | D185: 0 | E185: 0 | F185: 0 | G185: 0 | H185: 0
A187: Forecast Quantities to be replaced
A188: Number of luminaires replaced per year - urban | D188: 77.41435979 | E188: 78.47781207 | F188: 82.79370883 | G188: 85.94510215 | H188: 25.11870721
A189: Number of luminaires replaced per year - rural | D189: 19.5533174 | E189: 19.82192415 | F189: 20.91203327 | G189: 21.70801213 | H189: 6.344482549
A190: Number of luminaires replaced per year - remote | D190: 3.794821558 | E190: 3.846951572 | F190: 4.058515139 | G190: 4.212995203 | H190: 1.231309177
A193: NEW
A194: Inputs - LED 155W (L2)
A196: Unit cost - luminaire | D196: ='DNSP Inputs O & M'!D424 -> 427 | E196: ='DNSP Inputs O & M'!E424 -> 427 | F196: ='DNSP Inputs O & M'!F424 -> 427 | G196: ='DNSP Inputs O & M'!G424 -> 427 | H196: ='DNSP Inputs O & M'!H424 -> 427
A197: Number of men in crew | D197: ='DNSP Inputs O & M'!D426 -> 2 | E197: ='DNSP Inputs O & M'!E426 -> 2 | F197: ='DNSP Inputs O & M'!F426 -> 2 | G197: ='DNSP Inputs O & M'!G426 -> 2 | H197: ='DNSP Inputs O & M'!H426 -> 2
A198: Number of luminaires replaced per day - urban | D198: 16 | E198: 16 | F198: 16 | G198: 16 | H198: 16
A199: Number of luminaires replaced per day - rural | D199: 13 | E199: 13 | F199: 13 | G199: 13 | H199: 13
A200: Number of luminaires replaced per day - remote | D200: 10 | E200: 10 | F200: 10 | G200: 10 | H200: 10
A202: Other Capex unit costs Describe :……………………… | D202: 0 | E202: 0 | F202: 0 | G202: 0 | H202: 0
A204: Forecast Quantities to be replaced
A205: Number of luminaires replaced per year - urban | D205: 936.0338563 | E205: 929.8403706 | F205: 916.2721213 | G205: 903.0052867 | H205: 883.5794396
A206: Number of luminaires replaced per year - rural | D206: 236.4234121 | E206: 234.8590616 | F206: 231.4319935 | G206: 228.0810567 | H206: 223.1744766
A207: Number of luminaires replaced per year - remote | D207: 45.88401256 | E207: 45.58041032 | F207: 44.91530006 | G207: 44.26496503 | H207: 43.31271763
A210: NEW
A211: Inputs - LED 275W (L4)
A213: Unit cost - luminaire | D213: ='DNSP Inputs O & M'!D470 -> 650.88 | E213: ='DNSP Inputs O & M'!E470 -> 650.88 | F213: ='DNSP Inputs O & M'!F470 -> 650.88 | G213: ='DNSP Inputs O & M'!G470 -> 650.88 | H213: ='DNSP Inputs O & M'!H470 -> 650.88
A214: Number of men in crew | D214: ='DNSP Inputs O & M'!D472 -> 2 | E214: ='DNSP Inputs O & M'!E472 -> 2 | F214: ='DNSP Inputs O & M'!F472 -> 2 | G214: ='DNSP Inputs O & M'!G472 -> 2 | H214: ='DNSP Inputs O & M'!H472 -> 2
A215: Number of luminaires replaced per day - urban | D215: 16 | E215: 16 | F215: 16 | G215: 16 | H215: 16
A216: Number of luminaires replaced per day - rural | D216: 13 | E216: 13 | F216: 13 | G216: 13 | H216: 13
A217: Number of luminaires replaced per day - remote | D217: 10 | E217: 10 | F217: 10 | G217: 10 | H217: 10
A219: Other Capex unit costs Describe :……………………… | D219: 0 | E219: 0 | F219: 0 | G219: 0 | H219: 0
A221: Forecast Quantities to be replaced
A222: Number of luminaires replaced per year - urban | D222: 47.26849897 | E222: 47.74717948 | F222: 48.23058626 | G222: 48.72014899 | H222: 9.271581598
A223: Number of luminaires replaced per year - rural | D223: 11.93907649 | E223: 12.05998161 | F223: 12.18208048 | G223: 12.30573423 | H223: 2.341815889
A224: Number of luminaires replaced per year - remote | D224: 2.317083283 | E224: 2.340548014 | F224: 2.364244424 | G224: 2.388242597 | H224: 0.454489294
A226: NEW
A227: Inputs - Smart lighting L1
A229: Unit cost - luminaire | D229: ='DNSP Inputs O & M'!D517 -> 402 | E229: ='DNSP Inputs O & M'!E517 -> 402 | F229: ='DNSP Inputs O & M'!F517 -> 402 | G229: ='DNSP Inputs O & M'!G517 -> 402 | H229: ='DNSP Inputs O & M'!H517 -> 402
A230: Number of men in crew | D230: ='DNSP Inputs O & M'!D519 -> 2 | E230: ='DNSP Inputs O & M'!E519 -> 2 | F230: ='DNSP Inputs O & M'!F519 -> 2 | G230: ='DNSP Inputs O & M'!G519 -> 2 | H230: ='DNSP Inputs O & M'!H519 -> 2
A231: Number of luminaires replaced per day - urban | D231: 16 | E231: 16 | F231: 16 | G231: 16 | H231: 16
A232: Number of luminaires replaced per day - rural | D232: 13 | E232: 13 | F232: 13 | G232: 13 | H232: 13
A233: Number of luminaires replaced per day - remote | D233: 10 | E233: 10 | F233: 10 | G233: 10 | H233: 10
A235: Other Capex unit costs Describe :……………………… | D235: 0 | E235: 0 | F235: 0 | G235: 0 | H235: 0
A237: Forecast Quantities to be replaced
A238: Number of luminaires replaced per year - urban | D238: 77 | E238: 77 | F238: 76.90315209 | G238: 76.90315209 | H238: 11.69601551
A239: Number of luminaires replaced per year - rural | D239: 19 | E239: 19 | F239: 19.82615735 | G239: 19.82615735 | H239: 2
A240: Number of luminaires replaced per year - remote | D240: 4 | E240: 4 | F240: 3.907017259 | G240: 3.907017259 | H240: 0
A242: Inputs - Smart lighting L2
A244: Unit cost - luminaire | D244: ='DNSP Inputs O & M'!D561 -> 427 | E244: ='DNSP Inputs O & M'!E561 -> 427 | F244: ='DNSP Inputs O & M'!F561 -> 427 | G244: ='DNSP Inputs O & M'!G561 -> 427 | H244: ='DNSP Inputs O & M'!H561 -> 427
A245: Number of men in crew | D245: ='DNSP Inputs O & M'!D563 -> 2 | E245: ='DNSP Inputs O & M'!E563 -> 2 | F245: ='DNSP Inputs O & M'!F563 -> 2 | G245: ='DNSP Inputs O & M'!G563 -> 2 | H245: ='DNSP Inputs O & M'!H563 -> 2
A246: Number of luminaires replaced per day - urban | D246: 16 | E246: 16 | F246: 16 | G246: 16 | H246: 16
A247: Number of luminaires replaced per day - rural | D247: 13 | E247: 13 | F247: 13 | G247: 13 | H247: 13
A248: Number of luminaires replaced per day - remote | D248: 10 | E248: 10 | F248: 10 | G248: 10 | H248: 10
A250: Other Capex unit costs Describe :……………………… | D250: 0 | E250: 0 | F250: 0 | G250: 0 | H250: 0
A252: Forecast Quantities to be replaced
A253: Number of luminaires replaced per year - urban | D253: 77 | E253: 77 | F253: 76.90315209 | G253: 76.90315209 | H253: 11.69601551
A254: Number of luminaires replaced per year - rural | D254: 19 | E254: 19 | F254: 19.82615735 | G254: 19.82615735 | H254: 2
A255: Number of luminaires replaced per year - remote | D255: 4 | E255: 4 | F255: 3.907017259 | G255: 3.907017259 | H255: 0
A257: Inputs - Smart lighting L4
A259: Unit cost - luminaire | D259: ='DNSP Inputs O & M'!D605 -> 650.88 | E259: ='DNSP Inputs O & M'!E605 -> 650.88 | F259: ='DNSP Inputs O & M'!F605 -> 650.88 | G259: ='DNSP Inputs O & M'!G605 -> 650.88 | H259: ='DNSP Inputs O & M'!H605 -> 650.88
A260: Number of men in crew | D260: ='DNSP Inputs O & M'!D607 -> 2 | E260: ='DNSP Inputs O & M'!E607 -> 2 | F260: ='DNSP Inputs O & M'!F607 -> 2 | G260: ='DNSP Inputs O & M'!G607 -> 2 | H260: ='DNSP Inputs O & M'!H607 -> 2
A261: Number of luminaires replaced per day - urban | D261: 16 | E261: 16 | F261: 16 | G261: 16 | H261: 16
A262: Number of luminaires replaced per day - rural | D262: 13 | E262: 13 | F262: 13 | G262: 13 | H262: 13
A263: Number of luminaires replaced per day - remote | D263: 10 | E263: 10 | F263: 10 | G263: 10 | H263: 10
A265: Other Capex unit costs Describe :……………………… | D265: 0 | E265: 0 | F265: 0 | G265: 0 | H265: 0
A267: Forecast Quantities to be replaced
A268: Number of luminaires replaced per year - urban | D268: 77 | E268: 77 | F268: 76.90315209 | G268: 76.90315209 | H268: 11.69601551
A269: Number of luminaires replaced per year - rural | D269: 19 | E269: 19 | F269: 19.82615735 | G269: 19.82615735 | H269: 2
A270: Number of luminaires replaced per year - remote | D270: 4 | E270: 4 | F270: 3.907017259 | G270: 3.907017259 | H270: 0

Sheet PL Tariffs
A1: ='DNSP Inputs O & M'!$A$3 -> AusNet | E1: Global Check | F1: =IF(SUM('Total RAB'!F1,'Depn & WACC Post 2004 N & E'!F1,'Depn & WACC Post 2004 Central'!F1,'Cashflow Summary'!F1,'PL Tariff Components'!W1)<1,"Ok","Error") -> Ok
D3: ='DNSP Inputs General'!$B$39 -> Central | V3: Average
A4: Public Lighting Tariffs | C4: Nominal Prices | J4: Nominal Price Movement | P4: Real Price Movement (Implied X Factor) | V4: Nubmer | W4: % of | Y4: Revised Submission Model | AE4: Difference
C5: Actual | V5: of Lights | W5: Total Lights
A6: ='DNSP Inputs General'!A$41 -> Existing Lights | C6: ='DNSP Inputs General'!P$2 -> HY2021 | D6: ='DNSP Inputs General'!Q$2 -> 2022-06-30 | E6: ='DNSP Inputs General'!R$2 -> 2023-06-30 | F6: ='DNSP Inputs General'!S$2 -> 2024-06-30 | G6: ='DNSP Inputs General'!T$2 -> 2025-06-30 | H6: ='DNSP Inputs General'!U$2 -> 2026-06-30 | J6: =D6 -> 2022-06-30 | K6: =E6 -> 2023-06-30 | L6: 2024-06-30 | M6: 2025-06-30 | N6: 2026-06-30 | P6: =J6 -> 2022-06-30 | Q6: =K6 -> 2023-06-30 | R6: 2024-06-30 | S6: 2025-06-30 | T6: 2026-06-30 | V6: 2022-26 | W6: 2022-26 | Y6: =P6 -> 2022-06-30 | Z6: =Q6 -> 2023-06-30 | AA6: 2024-06-30 | AB6: 2025-06-30 | AC6: 2026-06-30 | AE6: =Y6 -> 2022-06-30 | AF6: =Z6 -> 2023-06-30 | AG6: 2024-06-30 | AH6: 2025-06-30 | AI6: 2026-06-30
A7: ='DNSP Inputs General'!A42 -> Mercury Vapour 80W | C7: ='DNSP Inputs General'!E42 -> 43.97 | D7: ='Charges Summary'!D$31 -> 61.37847262 | E7: ='Charges Summary'!E$31 -> 62.58727505 | F7: ='Charges Summary'!F$31 -> 65.49087168 | G7: ='Charges Summary'!G$31 -> 71.17799469 | H7: ='Charges Summary'!H$31 -> 72.38633133 | J7: =IF(C7=0,"",D7/C7-1) -> 0.3959170483 | K7: =IF(D7=0,"",E7/D7-1) -> 0.01969424108 | L7: =IF(E7=0,"",F7/E7-1) -> 0.04639276322 | M7: =IF(F7=0,"",G7/F7-1) -> 0.08683840756 | N7: =IF(G7=0,"",H7/G7-1) -> 0.016976267 | P7: =IF(C7=0,"",(D7/'Charges Summary'!D$4)/C7-1) -> 0.3685543472 | Q7: =IF(D7=0,"",(E7/'Charges Summary'!E$4)/(D7/'Charges Summary'!D$4)-1) -> -0.0002937580657 | R7: =IF(E7=0,"",(F7/'Charges Summary'!F$4)/(E7/'Charges Summary'!E$4)-1) -> 0.02588142089 | S7: =IF(F7=0,"",(G7/'Charges Summary'!G$4)/(F7/'Charges Summary'!F$4)-1) -> 0.06553425159 | T7: =IF(G7=0,"",(H7/'Charges Summary'!H$4)/(G7/'Charges Summary'!G$4)-1) -> -0.002958454542 | V7: =SUM('DNSP Inputs General'!Q42:U42)/5 -> 5914.725279 | W7: =V7/V$35 -> 0.04836225949 | Y7: 62.32190759 | Z7: 63.78635216 | AA7: 67.13530862 | AB7: 73.40006283 | AC7: 74.90059055 | AE7: =D7-Y7 -> -0.9434349705 | AF7: -1.199077112 | AG7: -1.644436932 | AH7: -2.222068139 | AI7: -2.514259215
A8: ='DNSP Inputs General'!A43 -> HP Sodium 150W | C8: ='DNSP Inputs General'!E43 -> 104.07 | D8: ='Charges Summary'!D$55 -> 113.4622145 | E8: ='Charges Summary'!E$55 -> 115.8823707 | F8: ='Charges Summary'!F$55 -> 118.806076 | G8: ='Charges Summary'!G$55 -> 126.4257047 | H8: ='Charges Summary'!H$55 -> 129.0494974 | J8: 0.09024901074 | K8: 0.02133006291 | L8: 0.02522994049 | M8: 0.06413500787 | N8: 0.02075363372 | P8: =IF(C8=0,"",(D8/'Charges Summary'!D$4)/C8-1) -> 0.06887800028 | Q8: =IF(D8=0,"",(E8/'Charges Summary'!E$4)/(D8/'Charges Summary'!D$4)-1) -> 0.001309998461 | R8: =IF(E8=0,"",(F8/'Charges Summary'!F$4)/(E8/'Charges Summary'!E$4)-1) -> 0.005133430822 | S8: =IF(F8=0,"",(G8/'Charges Summary'!G$4)/(F8/'Charges Summary'!F$4)-1) -> 0.04327588288 | T8: =IF(G8=0,"",(H8/'Charges Summary'!H$4)/(G8/'Charges Summary'!G$4)-1) -> 0.0007448684067 | V8: =SUM('DNSP Inputs General'!Q43:U43)/5 -> 13520.05964 | W8: =V8/V$35 -> 0.1105479294 | Y8: 114.8305964 | Z8: 117.6689276 | AA8: 121.2194088 | AB8: 129.7829967 | AC8: 133.0783398 | AE8: =D8-Y8 -> -1.368381807 | AF8: =E8-Z8 -> -1.786556858 | AG8: =F8-AA8 -> -2.413332786 | AH8: =G8-AB8 -> -3.357292032 | AI8: =H8-AC8 -> -4.028842329
A9: ='DNSP Inputs General'!A44 -> HP Sodium 250W | C9: ='DNSP Inputs General'!E44 -> 105.12 | D9: ='Charges Summary'!D$71 -> 116.2960792 | E9: ='Charges Summary'!E$71 -> 118.7666221 | F9: ='Charges Summary'!F$71 -> 121.9266682 | G9: ='Charges Summary'!G$71 -> 129.7338112 | H9: ='Charges Summary'!H$71 -> 132.4141003 | J9: 0.1063173436 | K9: 0.02124356173 | L9: 0.0266071902 | M9: 0.06403146361 | N9: 0.02065991179 | P9: =IF(C9=0,"",(D9/'Charges Summary'!D$4)/C9-1) -> 0.08463136242 | Q9: =IF(D9=0,"",(E9/'Charges Summary'!E$4)/(D9/'Charges Summary'!D$4)-1) -> 0.001225192875 | R9: =IF(E9=0,"",(F9/'Charges Summary'!F$4)/(E9/'Charges Summary'!E$4)-1) -> 0.006483683749 | S9: =IF(F9=0,"",(G9/'Charges Summary'!G$4)/(F9/'Charges Summary'!F$4)-1) -> 0.04317436829 | T9: =IF(G9=0,"",(H9/'Charges Summary'!H$4)/(G9/'Charges Summary'!G$4)-1) -> 0.0006529836167 | V9: =SUM('DNSP Inputs General'!Q44:U44)/5 -> 6261.461194 | W9: 0.05119737549 | Y9: 117.7355319 | Z9: 120.6385768 | AA9: 124.4543534 | AB9: 133.2324489 | AC9: 136.6034772 | AE9: -1.439452708 | AF9: -1.871954685 | AG9: -2.527685228 | AH9: -3.498637706 | AI9: -4.189376922
A10: ='DNSP Inputs General'!A45 -> Mercury Vapour 50W | C10: ='DNSP Inputs General'!E45 -> 67.27 | D10: =IF('DNSP Inputs General'!$B45='DNSP Inputs General'!$A$42,D$7,IF('DNSP Inputs General'!$B45='DNSP Inputs General'!$A$43,D$8,D$9))*'DNSP Inputs General'!$D45 -> 93.9090631 | E10: =IF('DNSP Inputs General'!$B45='DNSP Inputs General'!$A$42,E$7,IF('DNSP Inputs General'!$B45='DNSP Inputs General'!$A$43,E$8,E$9))*'DNSP Inputs General'!$D45 -> 95.75853083 | F10: =IF('DNSP Inputs General'!$B45='DNSP Inputs General'!$A$42,F$7,IF('DNSP Inputs General'!$B45='DNSP Inputs General'!$A$43,F$8,F$9))*'DNSP Inputs General'!$D45 -> 100.2010337 | G10: =IF('DNSP Inputs General'!$B45='DNSP Inputs General'!$A$42,G$7,IF('DNSP Inputs General'!$B45='DNSP Inputs General'!$A$43,G$8,G$9))*'DNSP Inputs General'!$D45 -> 108.9023319 | H10: =IF('DNSP Inputs General'!$B45='DNSP Inputs General'!$A$42,H$7,IF('DNSP Inputs General'!$B45='DNSP Inputs General'!$A$43,H$8,H$9))*'DNSP Inputs General'!$D45 -> 110.7510869 | J10: 0.3960021273 | K10: 0.01969424108 | L10: 0.04639276322 | M10: 0.08683840756 | N10: 0.016976267 | P10: =IF(C10=0,"",(D10/'Charges Summary'!D$4)/C10-1) -> 0.3686377584 | Q10: =IF(D10=0,"",(E10/'Charges Summary'!E$4)/(D10/'Charges Summary'!D$4)-1) -> -0.0002937580657 | R10: =IF(E10=0,"",(F10/'Charges Summary'!F$4)/(E10/'Charges Summary'!E$4)-1) -> 0.02588142089 | S10: =IF(F10=0,"",(G10/'Charges Summary'!G$4)/(F10/'Charges Summary'!F$4)-1) -> 0.06553425159 | T10: =IF(G10=0,"",(H10/'Charges Summary'!H$4)/(G10/'Charges Summary'!G$4)-1) -> -0.002958454542 | V10: =SUM('DNSP Inputs General'!Q45:U45)/5 -> 21.9259424 | W10: 0.0001792793521 | Y10: 95.35251861 | Z10: 97.59311881 | AA10: 102.7170222 | AB10: 112.3020961 | AC10: 114.5979035 | AE10: -1.443455505 | AF10: -1.834587982 | AG10: -2.515988505 | AH10: -3.399764252 | AI10: -3.846816599
A11: ='DNSP Inputs General'!A46 -> Mercury Vapour 125W | C11: ='DNSP Inputs General'!E46 -> 64.63 | D11: =IF('DNSP Inputs General'!$B46='DNSP Inputs General'!$A$42,D$7,IF('DNSP Inputs General'!$B46='DNSP Inputs General'!$A$43,D$8,D$9))*'DNSP Inputs General'!$D46 -> 90.22635474 | E11: =IF('DNSP Inputs General'!$B46='DNSP Inputs General'!$A$42,E$7,IF('DNSP Inputs General'!$B46='DNSP Inputs General'!$A$43,E$8,E$9))*'DNSP Inputs General'!$D46 -> 92.00329433 | F11: =IF('DNSP Inputs General'!$B46='DNSP Inputs General'!$A$42,F$7,IF('DNSP Inputs General'!$B46='DNSP Inputs General'!$A$43,F$8,F$9))*'DNSP Inputs General'!$D46 -> 96.27158138 | G11: =IF('DNSP Inputs General'!$B46='DNSP Inputs General'!$A$42,G$7,IF('DNSP Inputs General'!$B46='DNSP Inputs General'!$A$43,G$8,G$9))*'DNSP Inputs General'!$D46 -> 104.6316522 | H11: =IF('DNSP Inputs General'!$B46='DNSP Inputs General'!$A$42,H$7,IF('DNSP Inputs General'!$B46='DNSP Inputs General'!$A$43,H$8,H$9))*'DNSP Inputs General'!$D46 -> 106.4079071 | J11: 0.39604448 | K11: 0.01969424108 | L11: 0.04639276322 | M11: 0.08683840756 | N11: 0.016976267 | P11: =IF(C11=0,"",(D11/'Charges Summary'!D$4)/C11-1) -> 0.368679281 | Q11: =IF(D11=0,"",(E11/'Charges Summary'!E$4)/(D11/'Charges Summary'!D$4)-1) -> -0.0002937580657 | R11: =IF(E11=0,"",(F11/'Charges Summary'!F$4)/(E11/'Charges Summary'!E$4)-1) -> 0.02588142089 | S11: =IF(F11=0,"",(G11/'Charges Summary'!G$4)/(F11/'Charges Summary'!F$4)-1) -> 0.06553425159 | T11: =IF(G11=0,"",(H11/'Charges Summary'!H$4)/(G11/'Charges Summary'!G$4)-1) -> -0.002958454542 | V11: =SUM('DNSP Inputs General'!Q46:U46)/5 -> 84.44598 | W11: 0.0006904798118 | Y11: 91.61320415 | Z11: 93.76593768 | AA11: 98.68890367 | AB11: 107.8980924 | AC11: 110.1038681 | AE11: -1.386849407 | AF11: -1.762643355 | AG11: -2.417322289 | AH11: -3.266440164 | AI11: -3.695961046
A12: ='DNSP Inputs General'!A47 -> Mercury Vapour 250W | C12: ='DNSP Inputs General'!E47 -> 110.37 | D12: =IF('DNSP Inputs General'!$B47='DNSP Inputs General'!$A$42,D$7,IF('DNSP Inputs General'!$B47='DNSP Inputs General'!$A$43,D$8,D$9))*'DNSP Inputs General'!$D47 -> 122.1108831 | E12: =IF('DNSP Inputs General'!$B47='DNSP Inputs General'!$A$42,E$7,IF('DNSP Inputs General'!$B47='DNSP Inputs General'!$A$43,E$8,E$9))*'DNSP Inputs General'!$D47 -> 124.7049532 | F12: =IF('DNSP Inputs General'!$B47='DNSP Inputs General'!$A$42,F$7,IF('DNSP Inputs General'!$B47='DNSP Inputs General'!$A$43,F$8,F$9))*'DNSP Inputs General'!$D47 -> 128.0230016 | G12: =IF('DNSP Inputs General'!$B47='DNSP Inputs General'!$A$42,G$7,IF('DNSP Inputs General'!$B47='DNSP Inputs General'!$A$43,G$8,G$9))*'DNSP Inputs General'!$D47 -> 136.2205018 | H12: =IF('DNSP Inputs General'!$B47='DNSP Inputs General'!$A$42,H$7,IF('DNSP Inputs General'!$B47='DNSP Inputs General'!$A$43,H$8,H$9))*'DNSP Inputs General'!$D47 -> 139.0348053 | J12: 0.1063774859 | K12: 0.02124356173 | L12: 0.0266071902 | M12: 0.06403146361 | N12: 0.02065991179 | P12: =IF(C12=0,"",(D12/'Charges Summary'!D$4)/C12-1) -> 0.0846903258 | Q12: =IF(D12=0,"",(E12/'Charges Summary'!E$4)/(D12/'Charges Summary'!D$4)-1) -> 0.001225192875 | R12: =IF(E12=0,"",(F12/'Charges Summary'!F$4)/(E12/'Charges Summary'!E$4)-1) -> 0.006483683749 | S12: =IF(F12=0,"",(G12/'Charges Summary'!G$4)/(F12/'Charges Summary'!F$4)-1) -> 0.04317436829 | T12: =IF(G12=0,"",(H12/'Charges Summary'!H$4)/(G12/'Charges Summary'!G$4)-1) -> 0.0006529836167 | V12: =SUM('DNSP Inputs General'!Q47:U47)/5 -> 184.3432373 | W12: 0.00150729832 | Y12: 123.6223085 | Z12: 126.6705056 | AA12: 130.6770711 | AB12: 139.8940714 | AC12: 143.4336511 | AE12: -1.511425343 | AF12: -1.965552419 | AG12: -2.65406949 | AH12: -3.673569592 | AI12: -4.398845768
A13: ='DNSP Inputs General'!A48 -> Mercury Vapour 400W | C13: ='DNSP Inputs General'!E48 -> 114.58 | D13: =IF('DNSP Inputs General'!$B48='DNSP Inputs General'!$A$42,D$7,IF('DNSP Inputs General'!$B48='DNSP Inputs General'!$A$43,D$8,D$9))*'DNSP Inputs General'!$D48 -> 126.7627263 | E13: =IF('DNSP Inputs General'!$B48='DNSP Inputs General'!$A$42,E$7,IF('DNSP Inputs General'!$B48='DNSP Inputs General'!$A$43,E$8,E$9))*'DNSP Inputs General'!$D48 -> 129.4556181 | F13: =IF('DNSP Inputs General'!$B48='DNSP Inputs General'!$A$42,F$7,IF('DNSP Inputs General'!$B48='DNSP Inputs General'!$A$43,F$8,F$9))*'DNSP Inputs General'!$D48 -> 132.9000683 | G13: =IF('DNSP Inputs General'!$B48='DNSP Inputs General'!$A$42,G$7,IF('DNSP Inputs General'!$B48='DNSP Inputs General'!$A$43,G$8,G$9))*'DNSP Inputs General'!$D48 -> 141.4098542 | H13: =IF('DNSP Inputs General'!$B48='DNSP Inputs General'!$A$42,H$7,IF('DNSP Inputs General'!$B48='DNSP Inputs General'!$A$43,H$8,H$9))*'DNSP Inputs General'!$D48 -> 144.3313693 | J13: 0.1063250679 | K13: 0.02124356173 | L13: 0.0266071902 | M13: 0.06403146361 | N13: 0.02065991179 | P13: =IF(C13=0,"",(D13/'Charges Summary'!D$4)/C13-1) -> 0.08463893534 | Q13: =IF(D13=0,"",(E13/'Charges Summary'!E$4)/(D13/'Charges Summary'!D$4)-1) -> 0.001225192875 | R13: =IF(E13=0,"",(F13/'Charges Summary'!F$4)/(E13/'Charges Summary'!E$4)-1) -> 0.006483683749 | S13: =IF(F13=0,"",(G13/'Charges Summary'!G$4)/(F13/'Charges Summary'!F$4)-1) -> 0.04317436829 | T13: =IF(G13=0,"",(H13/'Charges Summary'!H$4)/(G13/'Charges Summary'!G$4)-1) -> 0.0006529836167 | V13: =SUM('DNSP Inputs General'!Q48:U48)/5 -> 34.8 | W13: 0.0002845451903 | Y13: 128.3317297 | Z13: 131.4960487 | AA13: 135.6552452 | AB13: 145.2233693 | AC13: 148.8977902 | AE13: -1.569003451 | AF13: -2.040430606 | AG13: -2.755176899 | AH13: -3.8135151 | AI13: -4.566420845
A14: ='DNSP Inputs General'!A49 -> HP Sodium 100W | C14: ='DNSP Inputs General'!E49 -> 111.36 | D14: =IF('DNSP Inputs General'!$B49='DNSP Inputs General'!$A$42,D$7,IF('DNSP Inputs General'!$B49='DNSP Inputs General'!$A$43,D$8,D$9))*'DNSP Inputs General'!$D49 -> 121.4045696 | E14: =IF('DNSP Inputs General'!$B49='DNSP Inputs General'!$A$42,E$7,IF('DNSP Inputs General'!$B49='DNSP Inputs General'!$A$43,E$8,E$9))*'DNSP Inputs General'!$D49 -> 123.9941367 | F14: =IF('DNSP Inputs General'!$B49='DNSP Inputs General'!$A$42,F$7,IF('DNSP Inputs General'!$B49='DNSP Inputs General'!$A$43,F$8,F$9))*'DNSP Inputs General'!$D49 -> 127.1225014 | G14: =IF('DNSP Inputs General'!$B49='DNSP Inputs General'!$A$42,G$7,IF('DNSP Inputs General'!$B49='DNSP Inputs General'!$A$43,G$8,G$9))*'DNSP Inputs General'!$D49 -> 135.275504 | H14: =IF('DNSP Inputs General'!$B49='DNSP Inputs General'!$A$42,H$7,IF('DNSP Inputs General'!$B49='DNSP Inputs General'!$A$43,H$8,H$9))*'DNSP Inputs General'!$D49 -> 138.0829622 | J14: 0.09019908015 | K14: 0.02133006291 | L14: 0.02522994049 | M14: 0.06413500787 | N14: 0.02075363372 | P14: =IF(C14=0,"",(D14/'Charges Summary'!D$4)/C14-1) -> 0.06882904843 | Q14: =IF(D14=0,"",(E14/'Charges Summary'!E$4)/(D14/'Charges Summary'!D$4)-1) -> 0.001309998461 | R14: =IF(E14=0,"",(F14/'Charges Summary'!F$4)/(E14/'Charges Summary'!E$4)-1) -> 0.005133430822 | S14: =IF(F14=0,"",(G14/'Charges Summary'!G$4)/(F14/'Charges Summary'!F$4)-1) -> 0.04327588288 | T14: =IF(G14=0,"",(H14/'Charges Summary'!H$4)/(G14/'Charges Summary'!G$4)-1) -> 0.0007448684067 | V14: =SUM('DNSP Inputs General'!Q49:U49)/5 -> 2403.513401 | W14: 0.01965253386 | Y14: 122.8687381 | Z14: 125.9057525 | AA14: 129.7047674 | AB14: 138.8678065 | AC14: 142.3938235 | AE14: -1.464168534 | AF14: -1.911615838 | AG14: -2.582266081 | AH14: -3.592302475 | AI14: -4.310861292
A15: ='DNSP Inputs General'!A50 -> HP Sodium 400W | C15: ='DNSP Inputs General'!E50 -> 149.26 | D15: =IF('DNSP Inputs General'!$B50='DNSP Inputs General'!$A$42,D$7,IF('DNSP Inputs General'!$B50='DNSP Inputs General'!$A$43,D$8,D$9))*'DNSP Inputs General'!$D50 -> 165.1404324 | E15: =IF('DNSP Inputs General'!$B50='DNSP Inputs General'!$A$42,E$7,IF('DNSP Inputs General'!$B50='DNSP Inputs General'!$A$43,E$8,E$9))*'DNSP Inputs General'!$D50 -> 168.6486034 | F15: =IF('DNSP Inputs General'!$B50='DNSP Inputs General'!$A$42,F$7,IF('DNSP Inputs General'!$B50='DNSP Inputs General'!$A$43,F$8,F$9))*'DNSP Inputs General'!$D50 -> 173.1358688 | G15: =IF('DNSP Inputs General'!$B50='DNSP Inputs General'!$A$42,G$7,IF('DNSP Inputs General'!$B50='DNSP Inputs General'!$A$43,G$8,G$9))*'DNSP Inputs General'!$D50 -> 184.2220119 | H15: =IF('DNSP Inputs General'!$B50='DNSP Inputs General'!$A$42,H$7,IF('DNSP Inputs General'!$B50='DNSP Inputs General'!$A$43,H$8,H$9))*'DNSP Inputs General'!$D50 -> 188.0280224 | J15: 0.1063944285 | K15: 0.02124356173 | L15: 0.0266071902 | M15: 0.06403146361 | N15: 0.02065991179 | P15: =IF(C15=0,"",(D15/'Charges Summary'!D$4)/C15-1) -> 0.08470693636 | Q15: =IF(D15=0,"",(E15/'Charges Summary'!E$4)/(D15/'Charges Summary'!D$4)-1) -> 0.001225192875 | R15: =IF(E15=0,"",(F15/'Charges Summary'!F$4)/(E15/'Charges Summary'!E$4)-1) -> 0.006483683749 | S15: =IF(F15=0,"",(G15/'Charges Summary'!G$4)/(F15/'Charges Summary'!F$4)-1) -> 0.04317436829 | T15: =IF(G15=0,"",(H15/'Charges Summary'!H$4)/(G15/'Charges Summary'!G$4)-1) -> 0.0006529836167 | V15: =SUM('DNSP Inputs General'!Q50:U50)/5 -> 208.9372332 | W15: 0.001708393241 | Y15: 167.1844553 | Z15: 171.306779 | AA15: 176.7251819 | AB15: 189.1900775 | AC15: 193.9769377 | AE15: -2.044022845 | AF15: -2.658175652 | AG15: -3.589313024 | AH15: -4.968065543 | AI15: -5.948915229
A16: ='DNSP Inputs General'!A51 -> Metal Halide 70W | C16: ='DNSP Inputs General'!E51 -> 191.93 | D16: =IF('DNSP Inputs General'!$B51='DNSP Inputs General'!$A$42,D$7,IF('DNSP Inputs General'!$B51='DNSP Inputs General'!$A$43,D$8,D$9))*'DNSP Inputs General'!$D51 -> 267.9235193 | E16: =IF('DNSP Inputs General'!$B51='DNSP Inputs General'!$A$42,E$7,IF('DNSP Inputs General'!$B51='DNSP Inputs General'!$A$43,E$8,E$9))*'DNSP Inputs General'!$D51 -> 273.2000697 | F16: =IF('DNSP Inputs General'!$B51='DNSP Inputs General'!$A$42,F$7,IF('DNSP Inputs General'!$B51='DNSP Inputs General'!$A$43,F$8,F$9))*'DNSP Inputs General'!$D51 -> 285.8745758 | G16: =IF('DNSP Inputs General'!$B51='DNSP Inputs General'!$A$42,G$7,IF('DNSP Inputs General'!$B51='DNSP Inputs General'!$A$43,G$8,G$9))*'DNSP Inputs General'!$D51 -> 310.6994687 | H16: =IF('DNSP Inputs General'!$B51='DNSP Inputs General'!$A$42,H$7,IF('DNSP Inputs General'!$B51='DNSP Inputs General'!$A$43,H$8,H$9))*'DNSP Inputs General'!$D51 -> 315.9739859 | J16: =IF(C16=0,"",D16/C16-1) -> 0.3959439342 | K16: =IF(D16=0,"",E16/D16-1) -> 0.01969424108 | L16: =IF(E16=0,"",F16/E16-1) -> 0.04639276322 | M16: =IF(F16=0,"",G16/F16-1) -> 0.08683840756 | N16: =IF(G16=0,"",H16/G16-1) -> 0.016976267 | P16: =IF(C16=0,"",(D16/'Charges Summary'!D$4)/C16-1) -> 0.3685807061 | Q16: =IF(D16=0,"",(E16/'Charges Summary'!E$4)/(D16/'Charges Summary'!D$4)-1) -> -0.0002937580657 | R16: =IF(E16=0,"",(F16/'Charges Summary'!F$4)/(E16/'Charges Summary'!E$4)-1) -> 0.02588142089 | S16: =IF(F16=0,"",(G16/'Charges Summary'!G$4)/(F16/'Charges Summary'!F$4)-1) -> 0.06553425159 | T16: =IF(G16=0,"",(H16/'Charges Summary'!H$4)/(G16/'Charges Summary'!G$4)-1) -> -0.002958454542 | V16: =SUM('DNSP Inputs General'!Q51:U51)/5 -> 6.975 | W16: 5.703168685e-05 | Y16: 272.0417126 | Z16: 278.434168 | AA16: 293.0527168 | AB16: 320.399031 | AC16: 326.9489931 | AE16: -4.118193346 | AF16: -5.23409831 | AG16: -7.178140986 | AH16: -9.699562248 | AI16: -10.97500717
A17: ='DNSP Inputs General'!A52 -> Metal Halide 100W | C17: ='DNSP Inputs General'!E52 -> 248.49 | D17: =IF('DNSP Inputs General'!$B52='DNSP Inputs General'!$A$42,D$7,IF('DNSP Inputs General'!$B52='DNSP Inputs General'!$A$43,D$8,D$9))*'DNSP Inputs General'!$D52 -> 270.9124915 | E17: =IF('DNSP Inputs General'!$B52='DNSP Inputs General'!$A$42,E$7,IF('DNSP Inputs General'!$B52='DNSP Inputs General'!$A$43,E$8,E$9))*'DNSP Inputs General'!$D52 -> 276.691072 | F17: =IF('DNSP Inputs General'!$B52='DNSP Inputs General'!$A$42,F$7,IF('DNSP Inputs General'!$B52='DNSP Inputs General'!$A$43,F$8,F$9))*'DNSP Inputs General'!$D52 -> 283.6719713 | G17: =IF('DNSP Inputs General'!$B52='DNSP Inputs General'!$A$42,G$7,IF('DNSP Inputs General'!$B52='DNSP Inputs General'!$A$43,G$8,G$9))*'DNSP Inputs General'!$D52 -> 301.8652754 | H17: =IF('DNSP Inputs General'!$B52='DNSP Inputs General'!$A$42,H$7,IF('DNSP Inputs General'!$B52='DNSP Inputs General'!$A$43,H$8,H$9))*'DNSP Inputs General'!$D52 -> 308.1300768 | J17: 0.09023498544 | K17: 0.02133006291 | L17: 0.02522994049 | M17: 0.06413500787 | N17: 0.02075363372 | P17: =IF(C17=0,"",(D17/'Charges Summary'!D$4)/C17-1) -> 0.0688642499 | Q17: =IF(D17=0,"",(E17/'Charges Summary'!E$4)/(D17/'Charges Summary'!D$4)-1) -> 0.001309998461 | R17: =IF(E17=0,"",(F17/'Charges Summary'!F$4)/(E17/'Charges Summary'!E$4)-1) -> 0.005133430822 | S17: =IF(F17=0,"",(G17/'Charges Summary'!G$4)/(F17/'Charges Summary'!F$4)-1) -> 0.04327588288 | T17: =IF(G17=0,"",(H17/'Charges Summary'!H$4)/(G17/'Charges Summary'!G$4)-1) -> 0.0007448684067 | V17: =SUM('DNSP Inputs General'!Q52:U52)/5 -> 7.65 | W17: 6.255088235e-05 | Y17: 274.1797618 | Z17: 280.9568143 | AA17: 289.4342597 | AB17: 309.881445 | AC17: 317.7496996 | AE17: -3.267270309 | AF17: -4.265742313 | AG17: -5.762288357 | AH17: -8.01616955 | AI17: -9.619622864
A18: ='DNSP Inputs General'!A53 -> Metal Halide 150W | C18: ='DNSP Inputs General'!E53 -> 282.31 | D18: =IF('DNSP Inputs General'!$B53='DNSP Inputs General'!$A$42,D$7,IF('DNSP Inputs General'!$B53='DNSP Inputs General'!$A$43,D$8,D$9))*'DNSP Inputs General'!$D53 -> 307.776107 | E18: =IF('DNSP Inputs General'!$B53='DNSP Inputs General'!$A$42,E$7,IF('DNSP Inputs General'!$B53='DNSP Inputs General'!$A$43,E$8,E$9))*'DNSP Inputs General'!$D53 -> 314.3409908 | F18: =IF('DNSP Inputs General'!$B53='DNSP Inputs General'!$A$42,F$7,IF('DNSP Inputs General'!$B53='DNSP Inputs General'!$A$43,F$8,F$9))*'DNSP Inputs General'!$D53 -> 322.2717953 | G18: =IF('DNSP Inputs General'!$B53='DNSP Inputs General'!$A$42,G$7,IF('DNSP Inputs General'!$B53='DNSP Inputs General'!$A$43,G$8,G$9))*'DNSP Inputs General'!$D53 -> 342.9406994 | H18: =IF('DNSP Inputs General'!$B53='DNSP Inputs General'!$A$42,H$7,IF('DNSP Inputs General'!$B53='DNSP Inputs General'!$A$43,H$8,H$9))*'DNSP Inputs General'!$D53 -> 350.057965 | J18: 0.09020618132 | K18: 0.02133006291 | L18: 0.02522994049 | M18: 0.06413500787 | N18: 0.02075363372 | P18: =IF(C18=0,"",(D18/'Charges Summary'!D$4)/C18-1) -> 0.06883601039 | Q18: =IF(D18=0,"",(E18/'Charges Summary'!E$4)/(D18/'Charges Summary'!D$4)-1) -> 0.001309998461 | R18: =IF(E18=0,"",(F18/'Charges Summary'!F$4)/(E18/'Charges Summary'!E$4)-1) -> 0.005133430822 | S18: =IF(F18=0,"",(G18/'Charges Summary'!G$4)/(F18/'Charges Summary'!F$4)-1) -> 0.04327588288 | T18: =IF(G18=0,"",(H18/'Charges Summary'!H$4)/(G18/'Charges Summary'!G$4)-1) -> 0.0007448684067 | V18: =SUM('DNSP Inputs General'!Q53:U53)/5 -> 7.425 | W18: 6.071115052e-05 | Y18: 311.4879615 | Z18: 319.1871813 | AA18: 328.81817 | AB18: 352.0476455 | AC18: 360.9865496 | AE18: -3.711854446 | AF18: -4.846190574 | AG18: -6.546374691 | AH18: -9.106946097 | AI18: -10.92858458
A19: ='DNSP Inputs General'!A54 -> HP Sodium 50W | C19: ='DNSP Inputs General'!E54 -> 46.14 | D19: =IF('DNSP Inputs General'!$B54='DNSP Inputs General'!$A$42,D$7,IF('DNSP Inputs General'!$B54='DNSP Inputs General'!$A$43,D$8,D$9))*'DNSP Inputs General'!$D54 -> 50.30291312 | E19: =IF('DNSP Inputs General'!$B54='DNSP Inputs General'!$A$42,E$7,IF('DNSP Inputs General'!$B54='DNSP Inputs General'!$A$43,E$8,E$9))*'DNSP Inputs General'!$D54 -> 51.37587742 | F19: =IF('DNSP Inputs General'!$B54='DNSP Inputs General'!$A$42,F$7,IF('DNSP Inputs General'!$B54='DNSP Inputs General'!$A$43,F$8,F$9))*'DNSP Inputs General'!$D54 -> 52.67208775 | G19: =IF('DNSP Inputs General'!$B54='DNSP Inputs General'!$A$42,G$7,IF('DNSP Inputs General'!$B54='DNSP Inputs General'!$A$43,G$8,G$9))*'DNSP Inputs General'!$D54 -> 56.05021251 | H19: =IF('DNSP Inputs General'!$B54='DNSP Inputs General'!$A$42,H$7,IF('DNSP Inputs General'!$B54='DNSP Inputs General'!$A$43,H$8,H$9))*'DNSP Inputs General'!$D54 -> 57.21345809 | J19: 0.09022351796 | K19: 0.02133006291 | L19: 0.02522994049 | M19: 0.06413500787 | N19: 0.02075363372 | P19: =IF(C19=0,"",(D19/'Charges Summary'!D$4)/C19-1) -> 0.06885300721 | Q19: =IF(D19=0,"",(E19/'Charges Summary'!E$4)/(D19/'Charges Summary'!D$4)-1) -> 0.001309998461 | R19: =IF(E19=0,"",(F19/'Charges Summary'!F$4)/(E19/'Charges Summary'!E$4)-1) -> 0.005133430822 | S19: =IF(F19=0,"",(G19/'Charges Summary'!G$4)/(F19/'Charges Summary'!F$4)-1) -> 0.04327588288 | T19: =IF(G19=0,"",(H19/'Charges Summary'!H$4)/(G19/'Charges Summary'!G$4)-1) -> 0.0007448684067 | V19: =SUM('DNSP Inputs General'!Q54:U54)/5 -> 0 | W19: 0 | Y19: 50.90957844 | Z19: 52.16793859 | AA19: 53.74202694 | AB19: 57.53865137 | AC19: 58.99962546 | AE19: -0.6066653241 | AF19: -0.7920611698 | AG19: -1.069939186 | AH19: -1.488438861 | AI19: -1.786167373
A22: ='DNSP Inputs General'!A$68 -> Energy Efficient Lights
A23: ='DNSP Inputs General'!A69 -> T5 2X14W | C23: ='DNSP Inputs General'!E69 -> 35.6 | D23: ='Charges Summary'!D$89 -> 51.71446209 | E23: ='Charges Summary'!E$89 -> 54.68734999 | F23: ='Charges Summary'!F$89 -> 57.30227085 | G23: ='Charges Summary'!G$89 -> 59.71188018 | H23: ='Charges Summary'!H$89 -> 61.71523463 | J23: =IF(C23=0,"",D23/C23-1) -> 0.4526534295 | K23: 0.05748658651 | L23: 0.04781582691 | M23: 0.0420508523 | N23: 0.03355034958 | P23: =IF(C23=0,"",(D23/'Charges Summary'!D$4)/C23-1) -> 0.4241785845 | Q23: =IF(D23=0,"",(E23/'Charges Summary'!E$4)/(D23/'Charges Summary'!D$4)-1) -> 0.03675778357 | R23: =IF(E23=0,"",(F23/'Charges Summary'!F$4)/(E23/'Charges Summary'!E$4)-1) -> 0.02727658974 | S23: =IF(F23=0,"",(G23/'Charges Summary'!G$4)/(F23/'Charges Summary'!F$4)-1) -> 0.0216246199 | T23: =IF(G23=0,"",(H23/'Charges Summary'!H$4)/(G23/'Charges Summary'!G$4)-1) -> 0.01329074364 | V23: =SUM('DNSP Inputs General'!Q69:U69)/5 -> 22528.43237 | W23: =V23/V$35 -> 0.1842056631 | Y23: 51.54481725 | Z23: 54.59179001 | AA23: 57.34144503 | AB23: 59.95136283 | AC23: 62.19683763 | AE23: =D23-Y23 -> 0.1696448401 | AF23: =E23-Z23 -> 0.09555997998 | AG23: =F23-AA23 -> -0.03917418441 | AH23: =G23-AB23 -> -0.2394826488 | AI23: =H23-AC23 -> -0.4816030005
A24: ='DNSP Inputs General'!A70 -> T5 2X24W | C24: ='DNSP Inputs General'!E70 -> 42.08 | D24: ='Charges Summary'!D$105 -> 55.21785853 | E24: ='Charges Summary'!E$105 -> 58.31702573 | F24: ='Charges Summary'!F$105 -> 61.05061357 | G24: ='Charges Summary'!G$105 -> 63.57708705 | H24: ='Charges Summary'!H$105 -> 65.69333383 | J24: 0.3122114669 | K24: 0.05612617524 | L24: 0.04687460998 | M24: 0.04138326117 | N24: 0.03328631241 | P24: =IF(C24=0,"",(D24/'Charges Summary'!D$4)/C24-1) -> 0.2864895587 | Q24: =IF(D24=0,"",(E24/'Charges Summary'!E$4)/(D24/'Charges Summary'!D$4)-1) -> 0.03542403902 | R24: =IF(E24=0,"",(F24/'Charges Summary'!F$4)/(E24/'Charges Summary'!E$4)-1) -> 0.02635382251 | S24: =IF(F24=0,"",(G24/'Charges Summary'!G$4)/(F24/'Charges Summary'!F$4)-1) -> 0.02097011486 | T24: =IF(G24=0,"",(H24/'Charges Summary'!H$4)/(G24/'Charges Summary'!G$4)-1) -> 0.01303188212 | V24: =SUM('DNSP Inputs General'!Q70:U70)/5 -> 1781 | W24: 0.01456249954 | Y24: 55.05742193 | Z24: 58.23936187 | AA24: 61.12190411 | AB24: 63.86912608 | AC24: 66.25165821 | AE24: 0.160436599 | AF24: 0.07766385604 | AG24: -0.07129054445 | AH24: -0.2920390295 | AI24: -0.5583243787
A25: ='DNSP Inputs General'!A71 -> LED 18W | C25: ='DNSP Inputs General'!E71 -> 16.27 | D25: ='Charges Summary'!D$121 -> 29.45708821 | E25: ='Charges Summary'!E$121 -> 31.56774473 | F25: ='Charges Summary'!F$121 -> 33.38134841 | G25: ='Charges Summary'!G$121 -> 35.0116067 | H25: ='Charges Summary'!H$121 -> 36.27870205 | J25: =IF(C25=0,"",D25/C25-1) -> 0.8105155628 | K25: =IF(D25=0,"",E25/D25-1) -> 0.07165190642 | L25: =IF(E25=0,"",F25/E25-1) -> 0.05745116378 | M25: =IF(F25=0,"",G25/F25-1) -> 0.04883740093 | N25: =IF(G25=0,"",H25/G25-1) -> 0.03619072259 | P25: =IF(C25=0,"",(D25/'Charges Summary'!D$4)/C25-1) -> 0.7750259208 | Q25: =IF(D25=0,"",(E25/'Charges Summary'!E$4)/(D25/'Charges Summary'!D$4)-1) -> 0.05064543554 | R25: =IF(E25=0,"",(F25/'Charges Summary'!F$4)/(E25/'Charges Summary'!E$4)-1) -> 0.03672305519 | S25: =IF(F25=0,"",(G25/'Charges Summary'!G$4)/(F25/'Charges Summary'!F$4)-1) -> 0.02827813892 | T25: =IF(G25=0,"",(H25/'Charges Summary'!H$4)/(G25/'Charges Summary'!G$4)-1) -> 0.01587936018 | V25: =SUM('DNSP Inputs General'!Q71:U71)/5 -> 52548.47112 | W25: 0.4296670895 | Y25: 29.22854592 | Z25: 31.35919624 | AA25: 33.21847795 | AB25: 34.9207972 | AC25: 36.27831639 | AE25: 0.2285422832 | AF25: 0.2085484965 | AG25: 0.1628704559 | AH25: 0.09080950587 | AI25: 0.0003856587831
A26: ='DNSP Inputs General'!A72 -> LED 14W | C26: ='DNSP Inputs General'!E72 -> 16.27 | D26: ='Charges Summary'!D$137 -> 31.27586507 | E26: ='Charges Summary'!E$137 -> 33.4293901 | F26: ='Charges Summary'!F$137 -> 35.28635365 | G26: ='Charges Summary'!G$137 -> 36.9622783 | H26: ='Charges Summary'!H$137 -> 38.2784794 | J26: =IF(C26=0,"",D26/C26-1) -> 0.9223027088 | K26: =IF(D26=0,"",E26/D26-1) -> 0.06885581013 | L26: =IF(E26=0,"",F26/E26-1) -> 0.05554883128 | M26: =IF(F26=0,"",G26/F26-1) -> 0.04749497964 | N26: =IF(G26=0,"",H26/G26-1) -> 0.03560930667 | P26: =IF(C26=0,"",(D26/'Charges Summary'!D$4)/C26-1) -> 0.8846218204 | Q26: =IF(D26=0,"",(E26/'Charges Summary'!E$4)/(D26/'Charges Summary'!D$4)-1) -> 0.04790414819 | R26: =IF(E26=0,"",(F26/'Charges Summary'!F$4)/(E26/'Charges Summary'!E$4)-1) -> 0.03485801212 | S26: =IF(F26=0,"",(G26/'Charges Summary'!G$4)/(F26/'Charges Summary'!F$4)-1) -> 0.02696203171 | T26: =IF(G26=0,"",(H26/'Charges Summary'!H$4)/(G26/'Charges Summary'!G$4)-1) -> 0.01530934115 | V26: =SUM('DNSP Inputs General'!Q72:U72)/5 -> 2732.116782 | W26: 0.02233938764 | Y26: 31.05400811 | Z26: 33.23290539 | AA26: 35.14329934 | AB26: 36.90173262 | AC26: 38.32045491 | AE26: 0.2218569644 | AF26: 0.1964847121 | AG26: 0.1430543112 | AH26: 0.06054567671 | AI26: -0.04197551171
A27: ='DNSP Inputs General'!A73 -> LED 70W-125W (L1) | C27: ='DNSP Inputs General'!E73 -> 23.59 | D27: ='Charges Summary'!D$153 -> 45.36310793 | E27: ='Charges Summary'!E$153 -> 49.01525907 | F27: ='Charges Summary'!F$153 -> 52.13747317 | G27: ='Charges Summary'!G$153 -> 54.90884025 | H27: ='Charges Summary'!H$153 -> 57.02846585 | J27: 0.9229804126 | K27: 0.08050927963 | L27: 0.06369881867 | M27: 0.053154994 | N27: 0.03860262916 | P27: =IF(C27=0,"",(D27/'Charges Summary'!D$4)/C27-1) -> 0.8852862399 | Q27: =IF(D27=0,"",(E27/'Charges Summary'!E$4)/(D27/'Charges Summary'!D$4)-1) -> 0.05932918692 | R27: =IF(E27=0,"",(F27/'Charges Summary'!F$4)/(E27/'Charges Summary'!E$4)-1) -> 0.04284824384 | S27: =IF(F27=0,"",(G27/'Charges Summary'!G$4)/(F27/'Charges Summary'!F$4)-1) -> 0.03251109874 | T27: =IF(G27=0,"",(H27/'Charges Summary'!H$4)/(G27/'Charges Summary'!G$4)-1) -> 0.01824398867 | V27: =SUM('DNSP Inputs General'!Q73:U73)/5 -> 2664.23197 | W27: 0.02178432164 | Y27: 48.82118537 | Z27: 52.61133364 | AA27: 55.93536966 | AB27: 58.98198538 | AC27: 61.42881417 | AE27: -3.458077441 | AF27: -3.596074566 | AG27: -3.797896481 | AH27: -4.073145137 | AI27: -4.400348323
A28: ='DNSP Inputs General'!A74 -> LED 155W-250W (L2) | C28: ='DNSP Inputs General'!E74 -> 24.3 | D28: ='Charges Summary'!D$169 -> 46.0359781 | E28: ='Charges Summary'!E$169 -> 49.84877338 | F28: ='Charges Summary'!F$169 -> 53.10183235 | G28: ='Charges Summary'!G$169 -> 55.98029694 | H28: ='Charges Summary'!H$169 -> 58.16650898 | J28: 0.8944846955 | K28: 0.08282207596 | L28: 0.06525855607 | M28: 0.05420650208 | N28: 0.03905324138 | P28: =IF(C28=0,"",(D28/'Charges Summary'!D$4)/C28-1) -> 0.8573490946 | Q28: =IF(D28=0,"",(E28/'Charges Summary'!E$4)/(D28/'Charges Summary'!D$4)-1) -> 0.06159664793 | R28: =IF(E28=0,"",(F28/'Charges Summary'!F$4)/(E28/'Charges Summary'!E$4)-1) -> 0.04437740734 | S28: =IF(F28=0,"",(G28/'Charges Summary'!G$4)/(F28/'Charges Summary'!F$4)-1) -> 0.0335419952 | T28: =IF(G28=0,"",(H28/'Charges Summary'!H$4)/(G28/'Charges Summary'!G$4)-1) -> 0.01868576802 | V28: =SUM('DNSP Inputs General'!Q74:U74)/5 -> 3178.076953 | W28: 0.02598581929 | Y28: 49.48586632 | Z28: 53.43528099 | AA28: 56.889819 | AB28: 60.04409698 | AC28: 62.55854856 | AE28: -3.449888221 | AF28: -3.586507609 | AG28: -3.787986654 | AH28: -4.063800044 | AI28: -4.39203958
A29: ='DNSP Inputs General'!A75 -> LED 275W-400W (L4) | C29: ='DNSP Inputs General'!E75 -> 25.83 | D29: ='Charges Summary'!D$185 -> 52.06166504 | E29: ='Charges Summary'!E$185 -> 57.31306066 | F29: ='Charges Summary'!F$185 -> 61.73786164 | G29: ='Charges Summary'!G$185 -> 65.57540586 | H29: ='Charges Summary'!H$185 -> 68.3579129 | J29: 1.01555033 | K29: 0.1008687605 | L29: 0.07720406002 | M29: 0.06215868386 | N29: 0.0424321741 | P29: =IF(C29=0,"",(D29/'Charges Summary'!D$4)/C29-1) -> 0.9760416065 | Q29: =IF(D29=0,"",(E29/'Charges Summary'!E$4)/(D29/'Charges Summary'!D$4)-1) -> 0.07928958224 | R29: =IF(E29=0,"",(F29/'Charges Summary'!F$4)/(E29/'Charges Summary'!E$4)-1) -> 0.05608875608 | S29: =IF(F29=0,"",(G29/'Charges Summary'!G$4)/(F29/'Charges Summary'!F$4)-1) -> 0.04133829868 | T29: =IF(G29=0,"",(H29/'Charges Summary'!H$4)/(G29/'Charges Summary'!G$4)-1) -> 0.02199846705 | V29: =SUM('DNSP Inputs General'!Q75:U75)/5 -> 146.1341972 | W29: 0.001194878821 | Y29: 55.43821715 | Z29: 60.81389425 | AA29: 65.4371038 | AB29: 69.55551873 | AC29: 72.67554602 | AE29: -3.376552116 | AF29: -3.500833592 | AG29: -3.699242169 | AH29: -3.980112871 | AI29: -4.317633126
A30: ='DNSP Inputs General'!A76 -> Compact Fluorescent 32W | C30: ='DNSP Inputs General'!E76 -> 31.59 | D30: =IF('DNSP Inputs General'!$B76='DNSP Inputs General'!$A$69,D$23,D$24)*'DNSP Inputs General'!$D76 -> 45.48855244 | E30: =IF('DNSP Inputs General'!$B76='DNSP Inputs General'!$A$69,E$23,E$24)*'DNSP Inputs General'!$D76 -> 48.10353405 | F30: =IF('DNSP Inputs General'!$B76='DNSP Inputs General'!$A$69,F$23,F$24)*'DNSP Inputs General'!$D76 -> 50.4036443 | G30: =IF('DNSP Inputs General'!$B76='DNSP Inputs General'!$A$69,G$23,G$24)*'DNSP Inputs General'!$D76 -> 52.52316051 | H30: =IF('DNSP Inputs General'!$B76='DNSP Inputs General'!$A$69,H$23,H$24)*'DNSP Inputs General'!$D76 -> 54.2853309 | J30: 0.4399668389 | K30: 0.05748658651 | L30: 0.04781582691 | M30: 0.0420508523 | N30: 0.03355034958 | P30: =IF(C30=0,"",(D30/'Charges Summary'!D$4)/C30-1) -> 0.4117406758 | Q30: =IF(D30=0,"",(E30/'Charges Summary'!E$4)/(D30/'Charges Summary'!D$4)-1) -> 0.03675778357 | R30: =IF(E30=0,"",(F30/'Charges Summary'!F$4)/(E30/'Charges Summary'!E$4)-1) -> 0.02727658974 | S30: =IF(F30=0,"",(G30/'Charges Summary'!G$4)/(F30/'Charges Summary'!F$4)-1) -> 0.0216246199 | T30: =IF(G30=0,"",(H30/'Charges Summary'!H$4)/(G30/'Charges Summary'!G$4)-1) -> 0.01329074364 | V30: =SUM('DNSP Inputs General'!Q76:U76)/5 -> 3111.172949 | W30: 0.02543877296 | Y30: 45.33933116 | Z30: 48.01947854 | AA30: 50.4381023 | AB30: 52.73381181 | AC30: 54.70895367 | AE30: 0.1492212796 | AF30: 0.08405550372 | AG30: -0.03445800014 | AH30: -0.210651307 | AI30: -0.4236227635
A31: ='DNSP Inputs General'!A77 -> Compact Fluorescent 42W | C31: ='DNSP Inputs General'!E77 -> 31.59 | D31: =IF('DNSP Inputs General'!$B77='DNSP Inputs General'!$A$69,D$23,D$24)*'DNSP Inputs General'!$D77 -> 45.48855244 | E31: =IF('DNSP Inputs General'!$B77='DNSP Inputs General'!$A$69,E$23,E$24)*'DNSP Inputs General'!$D77 -> 48.10353405 | F31: =IF('DNSP Inputs General'!$B77='DNSP Inputs General'!$A$69,F$23,F$24)*'DNSP Inputs General'!$D77 -> 50.4036443 | G31: =IF('DNSP Inputs General'!$B77='DNSP Inputs General'!$A$69,G$23,G$24)*'DNSP Inputs General'!$D77 -> 52.52316051 | H31: =IF('DNSP Inputs General'!$B77='DNSP Inputs General'!$A$69,H$23,H$24)*'DNSP Inputs General'!$D77 -> 54.2853309 | J31: 0.4399668389 | K31: 0.05748658651 | L31: 0.04781582691 | M31: 0.0420508523 | N31: 0.03355034958 | P31: =IF(C31=0,"",(D31/'Charges Summary'!D$4)/C31-1) -> 0.4117406758 | Q31: =IF(D31=0,"",(E31/'Charges Summary'!E$4)/(D31/'Charges Summary'!D$4)-1) -> 0.03675778357 | R31: =IF(E31=0,"",(F31/'Charges Summary'!F$4)/(E31/'Charges Summary'!E$4)-1) -> 0.02727658974 | S31: =IF(F31=0,"",(G31/'Charges Summary'!G$4)/(F31/'Charges Summary'!F$4)-1) -> 0.0216246199 | T31: =IF(G31=0,"",(H31/'Charges Summary'!H$4)/(G31/'Charges Summary'!G$4)-1) -> 0.01329074364 | V31: =SUM('DNSP Inputs General'!Q77:U77)/5 -> 1992.158172 | W31: 0.01628905248 | Y31: 45.33933116 | Z31: 48.01947854 | AA31: 50.4381023 | AB31: 52.73381181 | AC31: 54.70895367 | AE31: 0.1492212796 | AF31: 0.08405550372 | AG31: -0.03445800014 | AH31: -0.210651307 | AI31: -0.4236227635
A32: ='DNSP Inputs General'!A78 -> Smart lighting L1 | C32: ='DNSP Inputs General'!E78 -> 25.83 | D32: ='Charges Summary'!D$201 -> 59.98039629 | E32: ='Charges Summary'!E$201 -> 63.94559634 | F32: ='Charges Summary'!F$201 -> 67.38594923 | G32: ='Charges Summary'!G$201 -> 70.48641794 | H32: ='Charges Summary'!H$201 -> 72.94980159 | P32: =IF(C32=0,"",(D32/'Charges Summary'!D$4)/C32-1) -> 1.276603304 | Q32: =IF(D32=0,"",(E32/'Charges Summary'!E$4)/(D32/'Charges Summary'!D$4)-1) -> 0.0452104623 | R32: =IF(E32=0,"",(F32/'Charges Summary'!F$4)/(E32/'Charges Summary'!E$4)-1) -> 0.03314468491 | S32: =IF(F32=0,"",(G32/'Charges Summary'!G$4)/(F32/'Charges Summary'!F$4)-1) -> 0.02550675972 | T32: =IF(G32=0,"",(H32/'Charges Summary'!H$4)/(G32/'Charges Summary'!G$4)-1) -> 0.01466133566 | V32: =SUM('DNSP Inputs General'!Q78:U78)/5 -> 1271.612001 | W32: =V32/V$35 -> 0.01039744479 | Y32: 59.78002868 | Z32: 63.83037371 | AA32: 67.42078437 | AB32: 70.7400993 | AC32: 73.466102 | AE32: =D32-Y32 -> 0.2003676097 | AF32: =E32-Z32 -> 0.1152226298 | AG32: =F32-AA32 -> -0.03483513866 | AH32: =G32-AB32 -> -0.2536813616 | AI32: =H32-AC32 -> -0.5163004102
A33: ='DNSP Inputs General'!A79 -> Smart lighting L2 | C33: ='DNSP Inputs General'!E79 -> 25.83 | D33: ='Charges Summary'!D$217 -> 60.65326646 | E33: ='Charges Summary'!E$217 -> 64.77911065 | F33: ='Charges Summary'!F$217 -> 68.35030841 | G33: ='Charges Summary'!G$217 -> 71.55787462 | H33: ='Charges Summary'!H$217 -> 74.08784473 | P33: =IF(C33=0,"",(D33/'Charges Summary'!D$4)/C33-1) -> 1.302142623 | Q33: =IF(D33=0,"",(E33/'Charges Summary'!E$4)/(D33/'Charges Summary'!D$4)-1) -> 0.0470880999 | R33: =IF(E33=0,"",(F33/'Charges Summary'!F$4)/(E33/'Charges Summary'!E$4)-1) -> 0.03444626159 | S33: =IF(F33=0,"",(G33/'Charges Summary'!G$4)/(F33/'Charges Summary'!F$4)-1) -> 0.02640649508 | T33: =IF(G33=0,"",(H33/'Charges Summary'!H$4)/(G33/'Charges Summary'!G$4)-1) -> 0.01506058727 | V33: =SUM('DNSP Inputs General'!Q79:U79)/5 -> 1617.881813 | W33: 0.01322874966 | Y33: 60.44470963 | Z33: 64.65432106 | AA33: 68.37523372 | AB33: 71.80221089 | AC33: 74.5958364 | AE33: 0.2085568299 | AF33: 0.1247895871 | AG33: -0.02492531146 | AH33: -0.244336269 | AI33: -0.5079916673
A34: ='DNSP Inputs General'!A80 -> Smart lighting L4 | C34: ='DNSP Inputs General'!E80 -> 25.83 | D34: ='Charges Summary'!D$233 -> 66.67895339 | E34: ='Charges Summary'!E$233 -> 72.24339793 | F34: ='Charges Summary'!F$233 -> 76.98633769 | G34: ='Charges Summary'!G$233 -> 81.15298355 | H34: ='Charges Summary'!H$233 -> 84.27924864 | P34: =IF(C34=0,"",(D34/'Charges Summary'!D$4)/C34-1) -> 1.530852328 | Q34: =IF(D34=0,"",(E34/'Charges Summary'!E$4)/(D34/'Charges Summary'!D$4)-1) -> 0.06221352609 | R34: =IF(E34=0,"",(F34/'Charges Summary'!F$4)/(E34/'Charges Summary'!E$4)-1) -> 0.04476335889 | S34: =IF(F34=0,"",(G34/'Charges Summary'!G$4)/(F34/'Charges Summary'!F$4)-1) -> 0.03345903856 | T34: =IF(G34=0,"",(H34/'Charges Summary'!H$4)/(G34/'Charges Summary'!G$4)-1) -> 0.01816602562 | V34: =SUM('DNSP Inputs General'!Q80:U80)/5 -> 72.88282157 | W34: 0.0005959326532 | Y34: 66.39706046 | Z34: 72.03293433 | AA34: 76.92251852 | AB34: 81.31363264 | AC34: 84.71283386 | AE34: 0.2818929347 | AF34: 0.2104636034 | AG34: 0.06381917311 | AH34: -0.1606490958 | AI34: -0.4335852131
V35: =SUM(V7:V34) -> 122300.4331 | W35: 1
A37: Total Revenue - Nominal ($,000) | D37: ='Cashflow Summary'!D7/10^3 -> 9926.043351 | E37: ='Cashflow Summary'!E7/10^3 -> 10205.20622 | F37: ='Cashflow Summary'!F7/10^3 -> 10504.6883 | G37: ='Cashflow Summary'!G7/10^3 -> 10955.23369 | H37: ='Cashflow Summary'!H7/10^3 -> 11451.47654 | Y37: 9912.928164 | Z37: 10207.06722 | AA37: 10531.95133 | AB37: 11014.92835 | AC37: 11550.29383 | AE37: =D37-Y37 -> 13.11518674 | AF37: =E37-Z37 -> -1.861003369 | AG37: -27.2630332 | AH37: -59.69466621 | AI37: -98.81728252
AI39: =SUM(AE37:AI37)/SUM(Y37:AC37) -> -0.003279407796
D40: ='DNSP Inputs General'!$B$86 -> North & East | V40: Average
A41: Public Lighting Tariffs | C41: Nominal Prices | J41: Nominal Price Movement | P41: Real Price Movement (Implied X Factor) | V41: Nubmer | W41: % of | Y41: =Y4 -> Revised Submission Model | AE41: Difference
C42: Actual | V42: of Lights | W42: Total Lights
A43: ='DNSP Inputs General'!A$88 -> Existing Lights | C43: ='DNSP Inputs General'!P$2 -> HY2021 | D43: ='DNSP Inputs General'!Q$2 -> 2022-06-30 | E43: ='DNSP Inputs General'!R$2 -> 2023-06-30 | F43: ='DNSP Inputs General'!S$2 -> 2024-06-30 | G43: ='DNSP Inputs General'!T$2 -> 2025-06-30 | H43: ='DNSP Inputs General'!U$2 -> 2026-06-30 | J43: =D43 -> 2022-06-30 | K43: =E43 -> 2023-06-30 | L43: 2024-06-30 | M43: 2025-06-30 | N43: 2026-06-30 | P43: =J43 -> 2022-06-30 | Q43: =K43 -> 2023-06-30 | R43: 2024-06-30 | S43: 2025-06-30 | T43: 2026-06-30 | V43: 2022-26 | W43: 2022-26 | Y43: =P43 -> 2022-06-30 | Z43: =Q43 -> 2023-06-30 | AA43: =R43 -> 2024-06-30 | AB43: =S43 -> 2025-06-30 | AC43: =T43 -> 2026-06-30 | AE43: =Y43 -> 2022-06-30 | AF43: =Z43 -> 2023-06-30 | AG43: =AA43 -> 2024-06-30 | AH43: =AB43 -> 2025-06-30 | AI43: =AC43 -> 2026-06-30
A44: ='DNSP Inputs General'!A89 -> Mercury Vapour 80W | C44: ='DNSP Inputs General'!E89 -> 49.95 | D44: ='Charges Summary'!K$31 -> 67.48176672 | E44: ='Charges Summary'!L$31 -> 68.78045681 | F44: ='Charges Summary'!M$31 -> 69.44077522 | G44: ='Charges Summary'!N$31 -> 75.21704389 | H44: ='Charges Summary'!O$31 -> 76.52383806 | J44: =IF(C44=0,"",D44/C44-1) -> 0.3509863207 | K44: =IF(D44=0,"",E44/D44-1) -> 0.0192450517 | L44: =IF(E44=0,"",F44/E44-1) -> 0.009600378408 | M44: =IF(F44=0,"",G44/F44-1) -> 0.0831826639 | N44: =IF(G44=0,"",H44/G44-1) -> 0.01737364439 | P44: =IF(C44=0,"",(D44/'Charges Summary'!K$4)/C44-1) -> 0.3245043496 | Q44: =IF(D44=0,"",(E44/'Charges Summary'!L$4)/(D44/'Charges Summary'!K$4)-1) -> -0.0007341424528 | R44: =IF(E44=0,"",(F44/'Charges Summary'!M$4)/(E44/'Charges Summary'!L$4)-1) -> -0.01018976131 | S44: =IF(F44=0,"",(G44/'Charges Summary'!N$4)/(F44/'Charges Summary'!M$4)-1) -> 0.06195016764 | T44: =IF(G44=0,"",(H44/'Charges Summary'!O$4)/(G44/'Charges Summary'!N$4)-1) -> -0.002568866525 | V44: =SUM('DNSP Inputs General'!Q89:U89)/5 -> 1409.374721 | W44: =V44/V$35 -> 0.01152387351 | Y44: 68.542872 | Z44: 70.12690138 | AA44: 71.12620399 | AB44: 77.50073941 | AC44: 79.1233014 | AE44: =D44-Y44 -> -1.061105279 | AF44: =E44-Z44 -> -1.346444565 | AG44: =F44-AA44 -> -1.685428765 | AH44: =G44-AB44 -> -2.283695516 | AI44: =H44-AC44 -> -2.599463339
A45: ='DNSP Inputs General'!A90 -> HP Sodium 150W | C45: ='DNSP Inputs General'!E90 -> 118.4 | D45: ='Charges Summary'!K$55 -> 132.7989795 | E45: ='Charges Summary'!L$55 -> 135.667877 | F45: ='Charges Summary'!M$55 -> 136.8994464 | G45: ='Charges Summary'!N$55 -> 144.9974207 | H45: ='Charges Summary'!O$55 -> 148.1448664 | J45: 0.1216130024 | K45: 0.02160331015 | L45: 0.009077825769 | M45: 0.05915271752 | N45: 0.02170690876 | P45: =IF(C45=0,"",(D45/'Charges Summary'!K$4)/C45-1) -> 0.09962719646 | Q45: =IF(D45=0,"",(E45/'Charges Summary'!L$4)/(D45/'Charges Summary'!K$4)-1) -> 0.001577889527 | R45: =IF(E45=0,"",(F45/'Charges Summary'!M$4)/(E45/'Charges Summary'!L$4)-1) -> -0.01070207089 | S45: =IF(F45=0,"",(G45/'Charges Summary'!N$4)/(F45/'Charges Summary'!M$4)-1) -> 0.03839125515 | T45: =IF(G45=0,"",(H45/'Charges Summary'!O$4)/(G45/'Charges Summary'!N$4)-1) -> 0.001679457397 | V45: =SUM('DNSP Inputs General'!Q90:U90)/5 -> 4731.865403 | W45: =V45/V$35 -> 0.03869050407 | Y45: 134.3463528 | Z45: 137.6980233 | AA45: 139.5209989 | AB45: 148.6730864 | AC45: 152.6222837 | AE45: -1.547373355 | AF45: -2.030146246 | AG45: -2.621552559 | AH45: -3.675665742 | AI45: -4.477417283
A46: ='DNSP Inputs General'!A91 -> HP Sodium 250W | C46: ='DNSP Inputs General'!E91 -> 117.12 | D46: ='Charges Summary'!K$71 -> 132.5755566 | E46: ='Charges Summary'!L$71 -> 135.5199664 | F46: ='Charges Summary'!M$71 -> 137.2431629 | G46: ='Charges Summary'!N$71 -> 145.4339823 | H46: ='Charges Summary'!O$71 -> 148.5344731 | J46: 0.1319634273 | K46: 0.0222092964 | L46: 0.01271544365 | M46: 0.05968107367 | N46: 0.02131888839 | P46: =IF(C46=0,"",(D46/'Charges Summary'!K$4)/C46-1) -> 0.1097747328 | Q46: =IF(D46=0,"",(E46/'Charges Summary'!L$4)/(D46/'Charges Summary'!K$4)-1) -> 0.002171997254 | R46: =IF(E46=0,"",(F46/'Charges Summary'!M$4)/(E46/'Charges Summary'!L$4)-1) -> -0.007135757428 | S46: =IF(F46=0,"",(G46/'Charges Summary'!N$4)/(F46/'Charges Summary'!M$4)-1) -> 0.03890925449 | T46: =IF(G46=0,"",(H46/'Charges Summary'!O$4)/(G46/'Charges Summary'!N$4)-1) -> 0.001299042987 | V46: =SUM('DNSP Inputs General'!Q91:U91)/5 -> 4665.272826 | W46: 0.03814600414 | Y46: 134.1670687 | Z46: 137.5988638 | AA46: 139.9479253 | AB46: 149.2014912 | AC46: 153.1009187 | AE46: -1.591512082 | AF46: -2.078897408 | AG46: -2.704762377 | AH46: -3.767508939 | AI46: -4.566445611
A47: ='DNSP Inputs General'!A92 -> Mercury Vapour 50W | C47: ='DNSP Inputs General'!E92 -> 73.93 | D47: =IF('DNSP Inputs General'!$B92='DNSP Inputs General'!$A$89,D$44,IF('DNSP Inputs General'!$B92='DNSP Inputs General'!$A$90,D$45,D$46))*'DNSP Inputs General'!$D92 -> 99.87301475 | E47: =IF('DNSP Inputs General'!$B92='DNSP Inputs General'!$A$89,E$44,IF('DNSP Inputs General'!$B92='DNSP Inputs General'!$A$90,E$45,E$46))*'DNSP Inputs General'!$D92 -> 101.7950761 | F47: =IF('DNSP Inputs General'!$B92='DNSP Inputs General'!$A$89,F$44,IF('DNSP Inputs General'!$B92='DNSP Inputs General'!$A$90,F$45,F$46))*'DNSP Inputs General'!$D92 -> 102.7723473 | G47: =IF('DNSP Inputs General'!$B92='DNSP Inputs General'!$A$89,G$44,IF('DNSP Inputs General'!$B92='DNSP Inputs General'!$A$90,G$45,G$46))*'DNSP Inputs General'!$D92 -> 111.321225 | H47: =IF('DNSP Inputs General'!$B92='DNSP Inputs General'!$A$89,H$44,IF('DNSP Inputs General'!$B92='DNSP Inputs General'!$A$90,H$45,H$46))*'DNSP Inputs General'!$D92 -> 113.2552803 | J47: 0.3509132253 | K47: 0.0192450517 | L47: 0.009600378408 | M47: 0.0831826639 | N47: 0.01737364439 | P47: =IF(C47=0,"",(D47/'Charges Summary'!K$4)/C47-1) -> 0.324432687 | Q47: =IF(D47=0,"",(E47/'Charges Summary'!L$4)/(D47/'Charges Summary'!K$4)-1) -> -0.0007341424528 | R47: =IF(E47=0,"",(F47/'Charges Summary'!M$4)/(E47/'Charges Summary'!L$4)-1) -> -0.01018976131 | S47: =IF(F47=0,"",(G47/'Charges Summary'!N$4)/(F47/'Charges Summary'!M$4)-1) -> 0.06195016764 | T47: =IF(G47=0,"",(H47/'Charges Summary'!O$4)/(G47/'Charges Summary'!N$4)-1) -> -0.002568866525 | V47: =SUM('DNSP Inputs General'!Q92:U92)/5 -> 37.7740576 | W47: 0.0003088628278 | Y47: 101.4434506 | Z47: 103.787814 | AA47: 105.2667819 | AB47: 114.7010943 | AC47: 117.1024861 | AE47: -1.570435812 | AF47: -1.992737957 | AG47: -2.494434573 | AH47: -3.379869364 | AI47: -3.847205741
A48: ='DNSP Inputs General'!A93 -> Mercury Vapour 125W | C48: ='DNSP Inputs General'!E93 -> 73.93 | D48: =IF('DNSP Inputs General'!$B93='DNSP Inputs General'!$A$89,D$44,IF('DNSP Inputs General'!$B93='DNSP Inputs General'!$A$90,D$45,D$46))*'DNSP Inputs General'!$D93 -> 99.87301475 | E48: =IF('DNSP Inputs General'!$B93='DNSP Inputs General'!$A$89,E$44,IF('DNSP Inputs General'!$B93='DNSP Inputs General'!$A$90,E$45,E$46))*'DNSP Inputs General'!$D93 -> 101.7950761 | F48: =IF('DNSP Inputs General'!$B93='DNSP Inputs General'!$A$89,F$44,IF('DNSP Inputs General'!$B93='DNSP Inputs General'!$A$90,F$45,F$46))*'DNSP Inputs General'!$D93 -> 102.7723473 | G48: =IF('DNSP Inputs General'!$B93='DNSP Inputs General'!$A$89,G$44,IF('DNSP Inputs General'!$B93='DNSP Inputs General'!$A$90,G$45,G$46))*'DNSP Inputs General'!$D93 -> 111.321225 | H48: =IF('DNSP Inputs General'!$B93='DNSP Inputs General'!$A$89,H$44,IF('DNSP Inputs General'!$B93='DNSP Inputs General'!$A$90,H$45,H$46))*'DNSP Inputs General'!$D93 -> 113.2552803 | J48: 0.3509132253 | K48: 0.0192450517 | L48: 0.009600378408 | M48: 0.0831826639 | N48: 0.01737364439 | P48: =IF(C48=0,"",(D48/'Charges Summary'!K$4)/C48-1) -> 0.324432687 | Q48: =IF(D48=0,"",(E48/'Charges Summary'!L$4)/(D48/'Charges Summary'!K$4)-1) -> -0.0007341424528 | R48: =IF(E48=0,"",(F48/'Charges Summary'!M$4)/(E48/'Charges Summary'!L$4)-1) -> -0.01018976131 | S48: =IF(F48=0,"",(G48/'Charges Summary'!N$4)/(F48/'Charges Summary'!M$4)-1) -> 0.06195016764 | T48: =IF(G48=0,"",(H48/'Charges Summary'!O$4)/(G48/'Charges Summary'!N$4)-1) -> -0.002568866525 | V48: =SUM('DNSP Inputs General'!Q93:U93)/5 -> 5.1 | W48: 4.170058824e-05 | Y48: 101.4434506 | Z48: 103.787814 | AA48: 105.2667819 | AB48: 114.7010943 | AC48: 117.1024861 | AE48: -1.570435812 | AF48: -1.992737957 | AG48: -2.494434573 | AH48: -3.379869364 | AI48: -3.847205741
A49: ='DNSP Inputs General'!A94 -> Mercury Vapour 250W | C49: ='DNSP Inputs General'!E94 -> 121.81 | D49: =IF('DNSP Inputs General'!$B94='DNSP Inputs General'!$A$89,D$44,IF('DNSP Inputs General'!$B94='DNSP Inputs General'!$A$90,D$45,D$46))*'DNSP Inputs General'!$D94 -> 137.8785789 | E49: =IF('DNSP Inputs General'!$B94='DNSP Inputs General'!$A$89,E$44,IF('DNSP Inputs General'!$B94='DNSP Inputs General'!$A$90,E$45,E$46))*'DNSP Inputs General'!$D94 -> 140.9407651 | F49: =IF('DNSP Inputs General'!$B94='DNSP Inputs General'!$A$89,F$44,IF('DNSP Inputs General'!$B94='DNSP Inputs General'!$A$90,F$45,F$46))*'DNSP Inputs General'!$D94 -> 142.7328895 | G49: =IF('DNSP Inputs General'!$B94='DNSP Inputs General'!$A$89,G$44,IF('DNSP Inputs General'!$B94='DNSP Inputs General'!$A$90,G$45,G$46))*'DNSP Inputs General'!$D94 -> 151.2513415 | H49: =IF('DNSP Inputs General'!$B94='DNSP Inputs General'!$A$89,H$44,IF('DNSP Inputs General'!$B94='DNSP Inputs General'!$A$90,H$45,H$46))*'DNSP Inputs General'!$D94 -> 154.475852 | J49: 0.1319151044 | K49: 0.0222092964 | L49: 0.01271544365 | M49: 0.05968107367 | N49: 0.02131888839 | P49: =IF(C49=0,"",(D49/'Charges Summary'!K$4)/C49-1) -> 0.1097273571 | Q49: =IF(D49=0,"",(E49/'Charges Summary'!L$4)/(D49/'Charges Summary'!K$4)-1) -> 0.002171997254 | R49: =IF(E49=0,"",(F49/'Charges Summary'!M$4)/(E49/'Charges Summary'!L$4)-1) -> -0.007135757428 | S49: =IF(F49=0,"",(G49/'Charges Summary'!N$4)/(F49/'Charges Summary'!M$4)-1) -> 0.03890925449 | T49: =IF(G49=0,"",(H49/'Charges Summary'!O$4)/(G49/'Charges Summary'!N$4)-1) -> 0.001299042987 | V49: =SUM('DNSP Inputs General'!Q94:U94)/5 -> 78.45676267 | W49: 0.0006415084616 | Y49: 139.5337514 | Z49: 143.1028184 | AA49: 145.5458423 | AB49: 155.1695508 | AC49: 159.2249554 | AE49: -1.655172565 | AF49: -2.162053305 | AG49: -2.812952872 | AH49: -3.918209297 | AI49: -4.749103436
A50: ='DNSP Inputs General'!A95 -> Mercury Vapour 400W | C50: ='DNSP Inputs General'!E95 -> 125.32 | D50: =IF('DNSP Inputs General'!$B95='DNSP Inputs General'!$A$89,D$44,IF('DNSP Inputs General'!$B95='DNSP Inputs General'!$A$90,D$45,D$46))*'DNSP Inputs General'!$D95 -> 141.8558456 | E50: =IF('DNSP Inputs General'!$B95='DNSP Inputs General'!$A$89,E$44,IF('DNSP Inputs General'!$B95='DNSP Inputs General'!$A$90,E$45,E$46))*'DNSP Inputs General'!$D95 -> 145.0063641 | F50: =IF('DNSP Inputs General'!$B95='DNSP Inputs General'!$A$89,F$44,IF('DNSP Inputs General'!$B95='DNSP Inputs General'!$A$90,F$45,F$46))*'DNSP Inputs General'!$D95 -> 146.8501843 | G50: =IF('DNSP Inputs General'!$B95='DNSP Inputs General'!$A$89,G$44,IF('DNSP Inputs General'!$B95='DNSP Inputs General'!$A$90,G$45,G$46))*'DNSP Inputs General'!$D95 -> 155.614361 | H50: =IF('DNSP Inputs General'!$B95='DNSP Inputs General'!$A$89,H$44,IF('DNSP Inputs General'!$B95='DNSP Inputs General'!$A$90,H$45,H$46))*'DNSP Inputs General'!$D95 -> 158.9318862 | J50: 0.1319489752 | K50: 0.0222092964 | L50: 0.01271544365 | M50: 0.05968107367 | N50: 0.02131888839 | P50: =IF(C50=0,"",(D50/'Charges Summary'!K$4)/C50-1) -> 0.1097605639 | Q50: =IF(D50=0,"",(E50/'Charges Summary'!L$4)/(D50/'Charges Summary'!K$4)-1) -> 0.002171997254 | R50: =IF(E50=0,"",(F50/'Charges Summary'!M$4)/(E50/'Charges Summary'!L$4)-1) -> -0.007135757428 | S50: =IF(F50=0,"",(G50/'Charges Summary'!N$4)/(F50/'Charges Summary'!M$4)-1) -> 0.03890925449 | T50: =IF(G50=0,"",(H50/'Charges Summary'!O$4)/(G50/'Charges Summary'!N$4)-1) -> 0.001299042987 | V50: =SUM('DNSP Inputs General'!Q95:U95)/5 -> 27.3 | W50: 0.0002232207958 | Y50: 143.5587635 | Z50: 147.2307843 | AA50: 149.7442801 | AB50: 159.6455956 | AC50: 163.817983 | AE50: -1.702917927 | AF50: -2.224420227 | AG50: -2.894095743 | AH50: -4.031234565 | AI50: -4.886096804
A51: ='DNSP Inputs General'!A96 -> HP Sodium 100W | C51: ='DNSP Inputs General'!E96 -> 126.69 | D51: =IF('DNSP Inputs General'!$B96='DNSP Inputs General'!$A$89,D$44,IF('DNSP Inputs General'!$B96='DNSP Inputs General'!$A$90,D$45,D$46))*'DNSP Inputs General'!$D96 -> 142.0949081 | E51: =IF('DNSP Inputs General'!$B96='DNSP Inputs General'!$A$89,E$44,IF('DNSP Inputs General'!$B96='DNSP Inputs General'!$A$90,E$45,E$46))*'DNSP Inputs General'!$D96 -> 145.1646284 | F51: =IF('DNSP Inputs General'!$B96='DNSP Inputs General'!$A$89,F$44,IF('DNSP Inputs General'!$B96='DNSP Inputs General'!$A$90,F$45,F$46))*'DNSP Inputs General'!$D96 -> 146.4824076 | G51: =IF('DNSP Inputs General'!$B96='DNSP Inputs General'!$A$89,G$44,IF('DNSP Inputs General'!$B96='DNSP Inputs General'!$A$90,G$45,G$46))*'DNSP Inputs General'!$D96 -> 155.1472401 | H51: =IF('DNSP Inputs General'!$B96='DNSP Inputs General'!$A$89,H$44,IF('DNSP Inputs General'!$B96='DNSP Inputs General'!$A$90,H$45,H$46))*'DNSP Inputs General'!$D96 -> 158.5150071 | J51: 0.121595296 | K51: 0.02160331015 | L51: 0.009077825769 | M51: 0.05915271752 | N51: 0.02170690876 | P51: =IF(C51=0,"",(D51/'Charges Summary'!K$4)/C51-1) -> 0.09960983712 | Q51: =IF(D51=0,"",(E51/'Charges Summary'!L$4)/(D51/'Charges Summary'!K$4)-1) -> 0.001577889527 | R51: =IF(E51=0,"",(F51/'Charges Summary'!M$4)/(E51/'Charges Summary'!L$4)-1) -> -0.01070207089 | S51: =IF(F51=0,"",(G51/'Charges Summary'!N$4)/(F51/'Charges Summary'!M$4)-1) -> 0.03839125515 | T51: =IF(G51=0,"",(H51/'Charges Summary'!O$4)/(G51/'Charges Summary'!N$4)-1) -> 0.001679457397 | V51: =SUM('DNSP Inputs General'!Q96:U96)/5 -> 306.814422 | W51: 0.002508694485 | Y51: 143.7505975 | Z51: 147.3368849 | AA51: 149.2874689 | AB51: 159.0802024 | AC51: 163.3058436 | AE51: -1.655689489 | AF51: -2.172256484 | AG51: -2.805061238 | AH51: -3.932962344 | AI51: -4.790836493
A52: ='DNSP Inputs General'!A97 -> HP Sodium 400W | C52: ='DNSP Inputs General'!E97 -> 166.31 | D52: =IF('DNSP Inputs General'!$B97='DNSP Inputs General'!$A$89,D$44,IF('DNSP Inputs General'!$B97='DNSP Inputs General'!$A$90,D$45,D$46))*'DNSP Inputs General'!$D97 -> 188.2572904 | E52: =IF('DNSP Inputs General'!$B97='DNSP Inputs General'!$A$89,E$44,IF('DNSP Inputs General'!$B97='DNSP Inputs General'!$A$90,E$45,E$46))*'DNSP Inputs General'!$D97 -> 192.4383523 | F52: =IF('DNSP Inputs General'!$B97='DNSP Inputs General'!$A$89,F$44,IF('DNSP Inputs General'!$B97='DNSP Inputs General'!$A$90,F$45,F$46))*'DNSP Inputs General'!$D97 -> 194.8852914 | G52: =IF('DNSP Inputs General'!$B97='DNSP Inputs General'!$A$89,G$44,IF('DNSP Inputs General'!$B97='DNSP Inputs General'!$A$90,G$45,G$46))*'DNSP Inputs General'!$D97 -> 206.5162548 | H52: =IF('DNSP Inputs General'!$B97='DNSP Inputs General'!$A$89,H$44,IF('DNSP Inputs General'!$B97='DNSP Inputs General'!$A$90,H$45,H$46))*'DNSP Inputs General'!$D97 -> 210.9189518 | J52: 0.1319661498 | K52: 0.0222092964 | L52: 0.01271544365 | M52: 0.05968107367 | N52: 0.02131888839 | P52: =IF(C52=0,"",(D52/'Charges Summary'!K$4)/C52-1) -> 0.109777402 | Q52: =IF(D52=0,"",(E52/'Charges Summary'!L$4)/(D52/'Charges Summary'!K$4)-1) -> 0.002171997254 | R52: =IF(E52=0,"",(F52/'Charges Summary'!M$4)/(E52/'Charges Summary'!L$4)-1) -> -0.007135757428 | S52: =IF(F52=0,"",(G52/'Charges Summary'!N$4)/(F52/'Charges Summary'!M$4)-1) -> 0.03890925449 | T52: =IF(G52=0,"",(H52/'Charges Summary'!O$4)/(G52/'Charges Summary'!N$4)-1) -> 0.001299042987 | V52: =SUM('DNSP Inputs General'!Q97:U97)/5 -> 340.3174451 | W52: 0.002782634833 | Y52: 190.5172375 | Z52: 195.3903867 | AA52: 198.7260539 | AB52: 211.8661175 | AC52: 217.4033046 | AE52: -2.259947156 | AF52: -2.95203432 | AG52: -3.840762575 | AH52: -5.349862694 | AI52: -6.484352768
A53: ='DNSP Inputs General'!A98 -> Metal Halide 70W | C53: ='DNSP Inputs General'!E98 -> 190.05 | D53: =IF('DNSP Inputs General'!$B98='DNSP Inputs General'!$A$89,D$44,IF('DNSP Inputs General'!$B98='DNSP Inputs General'!$A$90,D$45,D$46))*'DNSP Inputs General'!$D98 -> 256.73047 | E53: =IF('DNSP Inputs General'!$B98='DNSP Inputs General'!$A$89,E$44,IF('DNSP Inputs General'!$B98='DNSP Inputs General'!$A$90,E$45,E$46))*'DNSP Inputs General'!$D98 -> 261.6712612 | F53: =IF('DNSP Inputs General'!$B98='DNSP Inputs General'!$A$89,F$44,IF('DNSP Inputs General'!$B98='DNSP Inputs General'!$A$90,F$45,F$46))*'DNSP Inputs General'!$D98 -> 264.1834043 | G53: =IF('DNSP Inputs General'!$B98='DNSP Inputs General'!$A$89,G$44,IF('DNSP Inputs General'!$B98='DNSP Inputs General'!$A$90,G$45,G$46))*'DNSP Inputs General'!$D98 -> 286.1588837 | H53: =IF('DNSP Inputs General'!$B98='DNSP Inputs General'!$A$89,H$44,IF('DNSP Inputs General'!$B98='DNSP Inputs General'!$A$90,H$45,H$46))*'DNSP Inputs General'!$D98 -> 291.1305063 | J53: =IF(C53=0,"",D53/C53-1) -> 0.3508575114 | K53: =IF(D53=0,"",E53/D53-1) -> 0.0192450517 | L53: =IF(E53=0,"",F53/E53-1) -> 0.009600378408 | M53: =IF(F53=0,"",G53/F53-1) -> 0.0831826639 | N53: =IF(G53=0,"",H53/G53-1) -> 0.01737364439 | P53: =IF(C53=0,"",(D53/'Charges Summary'!K$4)/C53-1) -> 0.3243780652 | Q53: =IF(D53=0,"",(E53/'Charges Summary'!L$4)/(D53/'Charges Summary'!K$4)-1) -> -0.0007341424528 | R53: =IF(E53=0,"",(F53/'Charges Summary'!M$4)/(E53/'Charges Summary'!L$4)-1) -> -0.01018976131 | S53: =IF(F53=0,"",(G53/'Charges Summary'!N$4)/(F53/'Charges Summary'!M$4)-1) -> 0.06195016764 | T53: =IF(G53=0,"",(H53/'Charges Summary'!O$4)/(G53/'Charges Summary'!N$4)-1) -> -0.002568866525 | V53: =SUM('DNSP Inputs General'!Q98:U98)/5 -> 0 | W53: 0 | Y53: 260.7673836 | Z53: 266.7937315 | AA53: 270.5955204 | AB53: 294.8470709 | AC53: 301.0200139 | AE53: -4.036913527 | AF53: -5.122470304 | AG53: -6.412116045 | AH53: -8.68818722 | AI53: -9.889507599
A54: ='DNSP Inputs General'!A99 -> Metal Halide 100W | C54: ='DNSP Inputs General'!E99 -> 250.78 | D54: =IF('DNSP Inputs General'!$B99='DNSP Inputs General'!$A$89,D$44,IF('DNSP Inputs General'!$B99='DNSP Inputs General'!$A$90,D$45,D$46))*'DNSP Inputs General'!$D99 -> 281.2747603 | E54: =IF('DNSP Inputs General'!$B99='DNSP Inputs General'!$A$89,E$44,IF('DNSP Inputs General'!$B99='DNSP Inputs General'!$A$90,E$45,E$46))*'DNSP Inputs General'!$D99 -> 287.3512262 | F54: =IF('DNSP Inputs General'!$B99='DNSP Inputs General'!$A$89,F$44,IF('DNSP Inputs General'!$B99='DNSP Inputs General'!$A$90,F$45,F$46))*'DNSP Inputs General'!$D99 -> 289.9597505 | G54: =IF('DNSP Inputs General'!$B99='DNSP Inputs General'!$A$89,G$44,IF('DNSP Inputs General'!$B99='DNSP Inputs General'!$A$90,G$45,G$46))*'DNSP Inputs General'!$D99 -> 307.1116577 | H54: =IF('DNSP Inputs General'!$B99='DNSP Inputs General'!$A$89,H$44,IF('DNSP Inputs General'!$B99='DNSP Inputs General'!$A$90,H$45,H$46))*'DNSP Inputs General'!$D99 -> 313.7781025 | J54: 0.1215996502 | K54: 0.02160331015 | L54: 0.009077825769 | M54: 0.05915271752 | N54: 0.02170690876 | P54: =IF(C54=0,"",(D54/'Charges Summary'!K$4)/C54-1) -> 0.09961410598 | Q54: =IF(D54=0,"",(E54/'Charges Summary'!L$4)/(D54/'Charges Summary'!K$4)-1) -> 0.001577889527 | R54: =IF(E54=0,"",(F54/'Charges Summary'!M$4)/(E54/'Charges Summary'!L$4)-1) -> -0.01070207089 | S54: =IF(F54=0,"",(G54/'Charges Summary'!N$4)/(F54/'Charges Summary'!M$4)-1) -> 0.03839125515 | T54: =IF(G54=0,"",(H54/'Charges Summary'!O$4)/(G54/'Charges Summary'!N$4)-1) -> 0.001679457397 | V54: =SUM('DNSP Inputs General'!Q99:U99)/5 -> 0 | W54: 0 | Y54: 284.552173 | Z54: 291.6511756 | AA54: 295.5123276 | AB54: 314.8968983 | AC54: 323.2614922 | AE54: -3.277412756 | AF54: -4.29994945 | AG54: -5.552577064 | AH54: -7.785240553 | AI54: -9.483389691
A55: ='DNSP Inputs General'!A100 -> Metal Halide 150W | C55: ='DNSP Inputs General'!E100 -> 284.91 | D55: =IF('DNSP Inputs General'!$B100='DNSP Inputs General'!$A$89,D$44,IF('DNSP Inputs General'!$B100='DNSP Inputs General'!$A$90,D$45,D$46))*'DNSP Inputs General'!$D100 -> 319.5534974 | E55: =IF('DNSP Inputs General'!$B100='DNSP Inputs General'!$A$89,E$44,IF('DNSP Inputs General'!$B100='DNSP Inputs General'!$A$90,E$45,E$46))*'DNSP Inputs General'!$D100 -> 326.4569107 | F55: =IF('DNSP Inputs General'!$B100='DNSP Inputs General'!$A$89,F$44,IF('DNSP Inputs General'!$B100='DNSP Inputs General'!$A$90,F$45,F$46))*'DNSP Inputs General'!$D100 -> 329.4204297 | G55: =IF('DNSP Inputs General'!$B100='DNSP Inputs General'!$A$89,G$44,IF('DNSP Inputs General'!$B100='DNSP Inputs General'!$A$90,G$45,G$46))*'DNSP Inputs General'!$D100 -> 348.9065433 | H55: =IF('DNSP Inputs General'!$B100='DNSP Inputs General'!$A$89,H$44,IF('DNSP Inputs General'!$B100='DNSP Inputs General'!$A$90,H$45,H$46))*'DNSP Inputs General'!$D100 -> 356.4802258 | J55: 0.1215945296 | K55: 0.02160331015 | L55: 0.009077825769 | M55: 0.05915271752 | N55: 0.02170690876 | P55: =IF(C55=0,"",(D55/'Charges Summary'!K$4)/C55-1) -> 0.09960908574 | Q55: =IF(D55=0,"",(E55/'Charges Summary'!L$4)/(D55/'Charges Summary'!K$4)-1) -> 0.001577889527 | R55: =IF(E55=0,"",(F55/'Charges Summary'!M$4)/(E55/'Charges Summary'!L$4)-1) -> -0.01070207089 | S55: =IF(F55=0,"",(G55/'Charges Summary'!N$4)/(F55/'Charges Summary'!M$4)-1) -> 0.03839125515 | T55: =IF(G55=0,"",(H55/'Charges Summary'!O$4)/(G55/'Charges Summary'!N$4)-1) -> 0.001679457397 | V55: =SUM('DNSP Inputs General'!Q100:U100)/5 -> 0 | W55: 0 | Y55: 323.2769339 | Z55: 331.3420412 | AA55: 335.7286581 | AB55: 357.7512788 | AC55: 367.2542119 | AE55: -3.723436499 | AF55: -4.885130412 | AG55: -6.308228362 | AH55: -8.844735463 | AI55: -10.77398605
A56: ='DNSP Inputs General'!A101 -> HP Sodium 50W | C56: ='DNSP Inputs General'!E101 -> 53.84 | D56: =IF('DNSP Inputs General'!$B101='DNSP Inputs General'!$A$89,D$44,IF('DNSP Inputs General'!$B101='DNSP Inputs General'!$A$90,D$45,D$46))*'DNSP Inputs General'!$D101 -> 60.38762134 | E56: =IF('DNSP Inputs General'!$B101='DNSP Inputs General'!$A$89,E$44,IF('DNSP Inputs General'!$B101='DNSP Inputs General'!$A$90,E$45,E$46))*'DNSP Inputs General'!$D101 -> 61.69219385 | F56: =IF('DNSP Inputs General'!$B101='DNSP Inputs General'!$A$89,F$44,IF('DNSP Inputs General'!$B101='DNSP Inputs General'!$A$90,F$45,F$46))*'DNSP Inputs General'!$D101 -> 62.25222484 | G56: =IF('DNSP Inputs General'!$B101='DNSP Inputs General'!$A$89,G$44,IF('DNSP Inputs General'!$B101='DNSP Inputs General'!$A$90,G$45,G$46))*'DNSP Inputs General'!$D101 -> 65.93461311 | H56: =IF('DNSP Inputs General'!$B101='DNSP Inputs General'!$A$89,H$44,IF('DNSP Inputs General'!$B101='DNSP Inputs General'!$A$90,H$45,H$46))*'DNSP Inputs General'!$D101 -> 67.36584974 | J56: 0.1216125805 | K56: 0.02160331015 | L56: 0.009077825769 | M56: 0.05915271752 | N56: 0.02170690876 | P56: =IF(C56=0,"",(D56/'Charges Summary'!K$4)/C56-1) -> 0.09962678284 | Q56: =IF(D56=0,"",(E56/'Charges Summary'!L$4)/(D56/'Charges Summary'!K$4)-1) -> 0.001577889527 | R56: =IF(E56=0,"",(F56/'Charges Summary'!M$4)/(E56/'Charges Summary'!L$4)-1) -> -0.01070207089 | S56: =IF(F56=0,"",(G56/'Charges Summary'!N$4)/(F56/'Charges Summary'!M$4)-1) -> 0.03839125515 | T56: =IF(G56=0,"",(H56/'Charges Summary'!O$4)/(G56/'Charges Summary'!N$4)-1) -> 0.001679457397 | V56: =SUM('DNSP Inputs General'!Q101:U101)/5 -> 0 | W56: 0 | Y56: 61.09125774 | Z56: 62.61536136 | AA56: 63.44432227 | AB56: 67.60604697 | AC56: 69.40186372 | AE56: -0.7036364026 | AF56: -0.9231675067 | AG56: -1.192097438 | AH56: -1.671433861 | AI56: -2.036013985
A59: ='DNSP Inputs General'!A$115 -> Energy Efficient Lights
A60: ='DNSP Inputs General'!A116 -> T5 2X14W | C60: ='DNSP Inputs General'!E116 -> 40.6 | D60: ='Charges Summary'!K$89 -> 57.56132998 | E60: ='Charges Summary'!L$89 -> 60.66559543 | F60: ='Charges Summary'!M$89 -> 63.41332032 | G60: ='Charges Summary'!N$89 -> 65.96572355 | H60: ='Charges Summary'!O$89 -> 68.12573648 | J60: =IF(C60=0,"",D60/C60-1) -> 0.4177667482 | K60: 0.05392970336 | L60: 0.04529296829 | M60: 0.04025026955 | N60: 0.03274447404 | P60: =IF(C60=0,"",(D60/'Charges Summary'!K$4)/C60-1) -> 0.3899757503 | Q60: =IF(D60=0,"",(E60/'Charges Summary'!L$4)/(D60/'Charges Summary'!K$4)-1) -> 0.03327062228 | R60: =IF(E60=0,"",(F60/'Charges Summary'!M$4)/(E60/'Charges Summary'!L$4)-1) -> 0.02480318408 | S60: =IF(F60=0,"",(G60/'Charges Summary'!N$4)/(F60/'Charges Summary'!M$4)-1) -> 0.01985933209 | T60: =IF(G60=0,"",(H60/'Charges Summary'!O$4)/(G60/'Charges Summary'!N$4)-1) -> 0.01250066484 | V60: =SUM('DNSP Inputs General'!Q116:U116)/5 -> 7103.567627 | W60: =V60/V$35 -> 0.0580829311 | Y60: 57.41341852 | Z60: 60.60915495 | AA60: 63.51641311 | AB60: 66.3023124 | AC60: 68.74276848 | AE60: =D60-Y60 -> 0.147911454 | AF60: =E60-Z60 -> 0.05644047903 | AG60: =F60-AA60 -> -0.1030927949 | AH60: =G60-AB60 -> -0.3365888453 | AI60: =H60-AC60 -> -0.6170320004
A61: ='DNSP Inputs General'!A117 -> T5 2X24W | C61: ='DNSP Inputs General'!E117 -> 47.91 | D61: ='Charges Summary'!K$105 -> 61.62163165 | E61: ='Charges Summary'!L$105 -> 64.86565845 | F61: ='Charges Summary'!M$105 -> 67.74566992 | G61: ='Charges Summary'!N$105 -> 70.42934877 | H61: ='Charges Summary'!O$105 -> 72.71786539 | J61: 0.2861956094 | K61: 0.05264428601 | L61: 0.04439963371 | M61: 0.03961402775 | N61: 0.0324937921 | P61: =IF(C61=0,"",(D61/'Charges Summary'!K$4)/C61-1) -> 0.2609836628 | Q61: =IF(D61=0,"",(E61/'Charges Summary'!L$4)/(D61/'Charges Summary'!K$4)-1) -> 0.03201040161 | R61: =IF(E61=0,"",(F61/'Charges Summary'!M$4)/(E61/'Charges Summary'!L$4)-1) -> 0.02392736061 | S61: =IF(F61=0,"",(G61/'Charges Summary'!N$4)/(F61/'Charges Summary'!M$4)-1) -> 0.01923556187 | T61: =IF(G61=0,"",(H61/'Charges Summary'!O$4)/(G61/'Charges Summary'!N$4)-1) -> 0.01225489675 | V61: =SUM('DNSP Inputs General'!Q117:U117)/5 -> 1020 | W61: 0.008340117647 | Y61: 61.48425566 | Z61: 64.82998361 | AA61: 67.88613071 | AB61: 70.82708302 | AC61: 73.4241225 | AE61: 0.1373759874 | AF61: 0.03567483403 | AG61: -0.1404607903 | AH61: -0.3977342481 | AI61: -0.7062571084
A62: ='DNSP Inputs General'!A118 -> LED 18W | C62: ='DNSP Inputs General'!E118 -> 16.74 | D62: ='Charges Summary'!K$121 -> 31.57668679 | E62: ='Charges Summary'!L$121 -> 33.72847665 | F62: ='Charges Summary'!M$121 -> 35.58371984 | G62: ='Charges Summary'!N$121 -> 37.26030516 | H62: ='Charges Summary'!O$121 -> 38.57955664 | J62: =IF(C62=0,"",D62/C62-1) -> 0.8863014808 | K62: =IF(D62=0,"",E62/D62-1) -> 0.06814489051 | L62: =IF(E62=0,"",F62/E62-1) -> 0.05500524708 | M62: =IF(F62=0,"",G62/F62-1) -> 0.04711663983 | N62: =IF(G62=0,"",H62/G62-1) -> 0.03540635217 | P62: =IF(C62=0,"",(D62/'Charges Summary'!K$4)/C62-1) -> 0.8493262868 | Q62: =IF(D62=0,"",(E62/'Charges Summary'!L$4)/(D62/'Charges Summary'!K$4)-1) -> 0.04720716399 | R62: =IF(E62=0,"",(F62/'Charges Summary'!M$4)/(E62/'Charges Summary'!L$4)-1) -> 0.03432508323 | S62: =IF(F62=0,"",(G62/'Charges Summary'!N$4)/(F62/'Charges Summary'!M$4)-1) -> 0.0265911081 | T62: =IF(G62=0,"",(H62/'Charges Summary'!O$4)/(G62/'Charges Summary'!N$4)-1) -> 0.01511036496 | V62: =SUM('DNSP Inputs General'!Q118:U118)/5 -> 24958.32804 | W62: 0.2040739138 | Y62: 31.35545768 | Z62: 33.53417642 | AA62: 35.44381828 | AB62: 37.20317285 | AC62: 38.62482224 | AE62: 0.2212291078 | AF62: 0.1943002282 | AG62: 0.1399015641 | AH62: 0.05713230385 | AI62: -0.04526559608
A63: ='DNSP Inputs General'!A119 -> LED 14W | C63: ='DNSP Inputs General'!E119 -> 16.74 | D63: ='Charges Summary'!K$137 -> 33.32546335 | E63: ='Charges Summary'!L$137 -> 35.5181668 | F63: ='Charges Summary'!M$137 -> 37.41480711 | G63: ='Charges Summary'!N$137 -> 39.13493385 | H63: ='Charges Summary'!O$137 -> 40.50090798 | J63: =IF(C63=0,"",D63/C63-1) -> 0.99076842 | K63: =IF(D63=0,"",E63/D63-1) -> 0.06579663818 | L63: =IF(E63=0,"",F63/E63-1) -> 0.05339916081 | M63: =IF(F63=0,"",G63/F63-1) -> 0.04597449178 | N63: =IF(G63=0,"",H63/G63-1) -> 0.03490421464 | P63: =IF(C63=0,"",(D63/'Charges Summary'!K$4)/C63-1) -> 0.9517454699 | Q63: =IF(D63=0,"",(E63/'Charges Summary'!L$4)/(D63/'Charges Summary'!K$4)-1) -> 0.04490494199 | R63: =IF(E63=0,"",(F63/'Charges Summary'!M$4)/(E63/'Charges Summary'!L$4)-1) -> 0.0327504794 | S63: =IF(F63=0,"",(G63/'Charges Summary'!N$4)/(F63/'Charges Summary'!M$4)-1) -> 0.02547134838 | T63: =IF(G63=0,"",(H63/'Charges Summary'!O$4)/(G63/'Charges Summary'!N$4)-1) -> 0.0146180703 | V63: =SUM('DNSP Inputs General'!Q119:U119)/5 -> 962.8832179 | W63: 0.00787309737 | Y63: 33.11066226 | Z63: 35.33554105 | AA63: 37.29401184 | AB63: 39.10681949 | AC63: 40.58662708 | AE63: 0.2148010907 | AF63: 0.1826257542 | AG63: 0.1207952631 | AH63: 0.02811435657 | AI63: -0.08571910028
A64: ='DNSP Inputs General'!A120 -> LED 70W-125W (L1) | C64: ='DNSP Inputs General'!E120 -> 24.09 | D64: ='Charges Summary'!K$153 -> 51.23726973 | E64: ='Charges Summary'!L$153 -> 55.02464989 | F64: ='Charges Summary'!M$153 -> 58.28341061 | G64: ='Charges Summary'!N$153 -> 61.20212066 | H64: ='Charges Summary'!O$153 -> 63.48432879 | J64: 1.126910325 | K64: 0.07391846165 | L64: 0.05922365197 | M64: 0.05007788706 | N64: 0.03728969036 | P64: =IF(C64=0,"",(D64/'Charges Summary'!K$4)/C64-1) -> 1.085218728 | Q64: =IF(D64=0,"",(E64/'Charges Summary'!L$4)/(D64/'Charges Summary'!K$4)-1) -> 0.05286756185 | R64: =IF(E64=0,"",(F64/'Charges Summary'!M$4)/(E64/'Charges Summary'!L$4)-1) -> 0.03846079915 | S64: =IF(F64=0,"",(G64/'Charges Summary'!N$4)/(F64/'Charges Summary'!M$4)-1) -> 0.0294943091 | T64: =IF(G64=0,"",(H64/'Charges Summary'!O$4)/(G64/'Charges Summary'!N$4)-1) -> 0.01695678604 | V64: =SUM('DNSP Inputs General'!Q120:U120)/5 -> 711.6064368 | W64: 0.005818511178 | Y64: 56.37649942 | Z64: 60.36418532 | AA64: 63.89881606 | AB64: 67.18240268 | AC64: 69.8933338 | AE64: -5.139229691 | AF64: -5.33953543 | AG64: -5.615405456 | AH64: -5.980282021 | AI64: -6.409005011
A65: ='DNSP Inputs General'!A121 -> LED 155W-250W (L2) | C65: ='DNSP Inputs General'!E121 -> 24.89 | D65: ='Charges Summary'!K$169 -> 51.9101399 | E65: ='Charges Summary'!L$169 -> 55.85816419 | F65: ='Charges Summary'!M$169 -> 59.24776978 | G65: ='Charges Summary'!N$169 -> 62.27357735 | H65: ='Charges Summary'!O$169 -> 64.62237193 | J65: 1.085582158 | K65: 0.07605497306 | L65: 0.06068236643 | M65: 0.05107040445 | N65: 0.0377173543 | P65: =IF(C65=0,"",(D65/'Charges Summary'!K$4)/C65-1) -> 1.044700673 | Q65: =IF(D65=0,"",(E65/'Charges Summary'!L$4)/(D65/'Charges Summary'!K$4)-1) -> 0.05496219346 | R65: =IF(E65=0,"",(F65/'Charges Summary'!M$4)/(E65/'Charges Summary'!L$4)-1) -> 0.03989091995 | S65: =IF(F65=0,"",(G65/'Charges Summary'!N$4)/(F65/'Charges Summary'!M$4)-1) -> 0.03046737121 | T65: =IF(G65=0,"",(H65/'Charges Summary'!O$4)/(G65/'Charges Summary'!N$4)-1) -> 0.01737606693 | V65: =SUM('DNSP Inputs General'!Q121:U121)/5 -> 1557.639986 | W65: 0.01273617719 | Y65: 57.04118037 | Z65: 61.18813267 | AA65: 64.85326541 | AB65: 68.24451428 | AC65: 71.0230682 | AE65: -5.13104047 | AF65: -5.329968473 | AG65: -5.605495629 | AH65: -5.970936928 | AI65: -6.400696268
A66: ='DNSP Inputs General'!A122 -> LED 275W-400W (L4) | C66: ='DNSP Inputs General'!E122 -> 26.37 | D66: ='Charges Summary'!K$185 -> 57.93582684 | E66: ='Charges Summary'!L$185 -> 63.32245148 | F66: ='Charges Summary'!M$185 -> 67.88379907 | G66: ='Charges Summary'!N$185 -> 71.86868627 | H66: ='Charges Summary'!O$185 -> 74.81377584 | J66: 1.197035527 | K66: 0.0929757101 | L66: 0.07203365448 | M66: 0.05870159387 | N66: 0.04097875893 | P66: =IF(C66=0,"",(D66/'Charges Summary'!K$4)/C66-1) -> 1.153969338 | Q66: =IF(D66=0,"",(E66/'Charges Summary'!L$4)/(D66/'Charges Summary'!K$4)-1) -> 0.07155125101 | R66: =IF(E66=0,"",(F66/'Charges Summary'!M$4)/(E66/'Charges Summary'!L$4)-1) -> 0.05101970058 | S66: =IF(F66=0,"",(G66/'Charges Summary'!N$4)/(F66/'Charges Summary'!M$4)-1) -> 0.03794897441 | T66: =IF(G66=0,"",(H66/'Charges Summary'!O$4)/(G66/'Charges Summary'!N$4)-1) -> 0.02057354166 | V66: =SUM('DNSP Inputs General'!Q122:U122)/5 -> 123.9679394 | W66: 0.001013634509 | Y66: 62.9935312 | Z66: 68.56674593 | AA66: 73.40055021 | AB66: 77.75593603 | AC66: 81.14006565 | AE66: -5.057704366 | AF66: -5.244294456 | AG66: -5.516751144 | AH66: -5.887249755 | AI66: -6.326289813
A67: ='DNSP Inputs General'!A123 -> Compact Fluorescent 32W | C67: ='DNSP Inputs General'!E123 -> 36.13 | D67: =IF('DNSP Inputs General'!$B123='DNSP Inputs General'!$A$116,D$60,D$61)*'DNSP Inputs General'!$D123 -> 50.63151527 | E67: =IF('DNSP Inputs General'!$B123='DNSP Inputs General'!$A$116,E$60,E$61)*'DNSP Inputs General'!$D123 -> 53.36205787 | F67: =IF('DNSP Inputs General'!$B123='DNSP Inputs General'!$A$116,F$60,F$61)*'DNSP Inputs General'!$D123 -> 55.77898387 | G67: =IF('DNSP Inputs General'!$B123='DNSP Inputs General'!$A$116,G$60,G$61)*'DNSP Inputs General'!$D123 -> 58.02410301 | H67: =IF('DNSP Inputs General'!$B123='DNSP Inputs General'!$A$116,H$60,H$61)*'DNSP Inputs General'!$D123 -> 59.92407174 | J67: 0.4013704754 | K67: 0.05392970336 | L67: 0.04529296829 | M67: 0.04025026955 | N67: 0.03274447404 | P67: =IF(C67=0,"",(D67/'Charges Summary'!K$4)/C67-1) -> 0.3739008764 | Q67: =IF(D67=0,"",(E67/'Charges Summary'!L$4)/(D67/'Charges Summary'!K$4)-1) -> 0.03327062228 | R67: =IF(E67=0,"",(F67/'Charges Summary'!M$4)/(E67/'Charges Summary'!L$4)-1) -> 0.02480318408 | S67: =IF(F67=0,"",(G67/'Charges Summary'!N$4)/(F67/'Charges Summary'!M$4)-1) -> 0.01985933209 | T67: =IF(G67=0,"",(H67/'Charges Summary'!O$4)/(G67/'Charges Summary'!N$4)-1) -> 0.01250066484 | V67: =SUM('DNSP Inputs General'!Q123:U123)/5 -> 681.8270507 | W67: 0.005575017468 | Y67: 50.5014109 | Z67: 53.31241227 | AA67: 55.86966531 | AB67: 58.32016988 | AC67: 60.46681919 | AE67: 0.1301043782 | AF67: 0.0496456037 | AG67: -0.09068144229 | AH67: -0.2960668781 | AI67: -0.5427474515
A68: ='DNSP Inputs General'!A124 -> Compact Fluorescent 42W | C68: ='DNSP Inputs General'!E124 -> 36.13 | D68: =IF('DNSP Inputs General'!$B124='DNSP Inputs General'!$A$116,D$60,D$61)*'DNSP Inputs General'!$D124 -> 50.63151527 | E68: =IF('DNSP Inputs General'!$B124='DNSP Inputs General'!$A$116,E$60,E$61)*'DNSP Inputs General'!$D124 -> 53.36205787 | F68: =IF('DNSP Inputs General'!$B124='DNSP Inputs General'!$A$116,F$60,F$61)*'DNSP Inputs General'!$D124 -> 55.77898387 | G68: =IF('DNSP Inputs General'!$B124='DNSP Inputs General'!$A$116,G$60,G$61)*'DNSP Inputs General'!$D124 -> 58.02410301 | H68: =IF('DNSP Inputs General'!$B124='DNSP Inputs General'!$A$116,H$60,H$61)*'DNSP Inputs General'!$D124 -> 59.92407174 | J68: 0.4013704754 | K68: 0.05392970336 | L68: 0.04529296829 | M68: 0.04025026955 | N68: 0.03274447404 | P68: =IF(C68=0,"",(D68/'Charges Summary'!K$4)/C68-1) -> 0.3739008764 | Q68: =IF(D68=0,"",(E68/'Charges Summary'!L$4)/(D68/'Charges Summary'!K$4)-1) -> 0.03327062228 | R68: =IF(E68=0,"",(F68/'Charges Summary'!M$4)/(E68/'Charges Summary'!L$4)-1) -> 0.02480318408 | S68: =IF(F68=0,"",(G68/'Charges Summary'!N$4)/(F68/'Charges Summary'!M$4)-1) -> 0.01985933209 | T68: =IF(G68=0,"",(H68/'Charges Summary'!O$4)/(G68/'Charges Summary'!N$4)-1) -> 0.01250066484 | V68: =SUM('DNSP Inputs General'!Q124:U124)/5 -> 2744.841828 | W68: =V68/V$35 -> 0.02244343506 | Y68: 50.5014109 | Z68: 53.31241227 | AA68: 55.86966531 | AB68: 58.32016988 | AC68: 60.46681919 | AE68: 0.1301043782 | AF68: 0.0496456037 | AG68: -0.09068144229 | AH68: -0.2960668781 | AI68: -0.5427474515
A69: ='DNSP Inputs General'!A125 -> Smart lighting L1 | C69: ='DNSP Inputs General'!E125 -> 26.37 | D69: ='Charges Summary'!K$201 -> 67.8196228 | E69: ='Charges Summary'!L$201 -> 71.96760678 | F69: ='Charges Summary'!M$201 -> 75.59254721 | G69: ='Charges Summary'!N$201 -> 78.89118978 | H69: ='Charges Summary'!O$201 -> 81.57221374 | P69: =IF(C69=0,"",(D69/'Charges Summary'!K$4)/C69-1) -> 1.521434422 | Q69: =IF(D69=0,"",(E69/'Charges Summary'!L$4)/(D69/'Charges Summary'!K$4)-1) -> 0.04036115478 | R69: =IF(E69=0,"",(F69/'Charges Summary'!M$4)/(E69/'Charges Summary'!L$4)-1) -> 0.02977977084 | S69: =IF(F69=0,"",(G69/'Charges Summary'!N$4)/(F69/'Charges Summary'!M$4)-1) -> 0.02317981326 | T69: =IF(G69=0,"",(H69/'Charges Summary'!O$4)/(G69/'Charges Summary'!N$4)-1) -> 0.01371571678 | V69: =SUM('DNSP Inputs General'!Q125:U125)/5 -> 333.4129608 | W69: 0.002726179724 | Y69: 67.64759213 | Z69: 71.90288856 | AA69: 75.71148373 | AB69: 79.27553955 | AC69: 82.27359906 | AE69: =D69-Y69 -> 0.17203067 | AF69: =E69-Z69 -> 0.0647182186 | AG69: =F69-AA69 -> -0.1189365181 | AH69: =G69-AB69 -> -0.3843497654 | AI69: =H69-AC69 -> -0.7013853226
A70: ='DNSP Inputs General'!A126 -> Smart lighting L2 | C70: ='DNSP Inputs General'!E126 -> 26.37 | D70: ='Charges Summary'!K$217 -> 68.49249297 | E70: ='Charges Summary'!L$217 -> 72.80112108 | F70: ='Charges Summary'!M$217 -> 76.55690639 | G70: ='Charges Summary'!N$217 -> 79.96264647 | H70: ='Charges Summary'!O$217 -> 82.71025688 | P70: =IF(C70=0,"",(D70/'Charges Summary'!K$4)/C70-1) -> 1.546450751 | Q70: =IF(D70=0,"",(E70/'Charges Summary'!L$4)/(D70/'Charges Summary'!K$4)-1) -> 0.04207152921 | R70: =IF(E70=0,"",(F70/'Charges Summary'!M$4)/(E70/'Charges Summary'!L$4)-1) -> 0.03097645136 | S70: =IF(F70=0,"",(G70/'Charges Summary'!N$4)/(F70/'Charges Summary'!M$4)-1) -> 0.02401241224 | T70: =IF(G70=0,"",(H70/'Charges Summary'!O$4)/(G70/'Charges Summary'!N$4)-1) -> 0.01408567434 | V70: =SUM('DNSP Inputs General'!Q126:U126)/5 -> 831.0383959 | W70: 0.006795056854 | Y70: 68.31227308 | Z70: 72.72683591 | AA70: 76.66593308 | AB70: 80.33765114 | AC70: 83.40333346 | AE70: 0.1802198902 | AF70: 0.07428517594 | AG70: -0.1090266909 | AH70: -0.3750046728 | AI70: -0.6930765797
A71: ='DNSP Inputs General'!A127 -> Smart lighting L4 | C71: ='DNSP Inputs General'!E127 -> 26.37 | D71: ='Charges Summary'!K$233 -> 74.5181799 | E71: ='Charges Summary'!L$233 -> 80.26540836 | F71: ='Charges Summary'!M$233 -> 85.19293568 | G71: ='Charges Summary'!N$233 -> 89.55775539 | H71: ='Charges Summary'!O$233 -> 92.90166079 | P71: =IF(C71=0,"",(D71/'Charges Summary'!K$4)/C71-1) -> 1.770476982 | Q71: =IF(D71=0,"",(E71/'Charges Summary'!L$4)/(D71/'Charges Summary'!K$4)-1) -> 0.05601142782 | R71: =IF(E71=0,"",(F71/'Charges Summary'!M$4)/(E71/'Charges Summary'!L$4)-1) -> 0.0405850965 | S71: =IF(F71=0,"",(G71/'Charges Summary'!N$4)/(F71/'Charges Summary'!M$4)-1) -> 0.03062827608 | T71: =IF(G71=0,"",(H71/'Charges Summary'!O$4)/(G71/'Charges Summary'!N$4)-1) -> 0.01700412604 | V71: =SUM('DNSP Inputs General'!Q127:U127)/5 -> 60.58992404 | W71: 0.0004954187203 | Y71: 74.26462391 | Z71: 80.10544917 | AA71: 85.21321788 | AB71: 89.84907289 | AC71: 93.52033092 | AE71: 0.253555995 | AF71: 0.1599591923 | AG71: -0.02028220637 | AH71: -0.2913174996 | AI71: -0.6186701255
V72: =SUM(V44:V71) -> 52691.97904 | W72: 0.4308404944

Sheet PL Tariff Components
A1: ='DNSP Inputs O & M'!$A$3 -> AusNet | E1: Global Check | F1: =IF(SUM('Total RAB'!F1,'Depn & WACC Post 2004 N & E'!F1,'Depn & WACC Post 2004 Central'!F1,'Cashflow Summary'!F1,W1)<1,"Ok","Error") -> Ok | V1: Check | W1: =SUM(V7:Z34,V41:Z68) -> 1.68043357e-12
D3: ='DNSP Inputs General'!$B$39 -> Central
A4: Public Lighting Tariffs | C4: Total Tariff | J4: Operations, maintenance and repair Tariff | P4: Replacement Tariff | V4: Check
C5: Actual
A6: ='DNSP Inputs General'!A$41 -> Existing Lights | C6: ='DNSP Inputs General'!P$2 -> HY2021 | D6: ='DNSP Inputs General'!Q$2 -> 2022-06-30 | E6: ='DNSP Inputs General'!R$2 -> 2023-06-30 | F6: ='DNSP Inputs General'!S$2 -> 2024-06-30 | G6: ='DNSP Inputs General'!T$2 -> 2025-06-30 | H6: ='DNSP Inputs General'!U$2 -> 2026-06-30 | J6: =D6 -> 2022-06-30 | K6: =E6 -> 2023-06-30 | L6: 2024-06-30 | M6: 2025-06-30 | N6: 2026-06-30 | P6: =J6 -> 2022-06-30 | Q6: =K6 -> 2023-06-30 | R6: 2024-06-30 | S6: 2025-06-30 | T6: 2026-06-30 | V6: =P6 -> 2022-06-30 | W6: =Q6 -> 2023-06-30 | X6: 2024-06-30 | Y6: 2025-06-30 | Z6: 2026-06-30
A7: ='DNSP Inputs General'!A42 -> Mercury Vapour 80W | C7: ='DNSP Inputs General'!E42 -> 43.97 | D7: ='Charges Summary'!D$31 -> 61.37847262 | E7: ='Charges Summary'!E$31 -> 62.58727505 | F7: ='Charges Summary'!F$31 -> 65.49087168 | G7: ='Charges Summary'!G$31 -> 71.17799469 | H7: ='Charges Summary'!H$31 -> 72.38633133 | J7: =SUM('Charges Summary'!D25,'Charges Summary'!D8) -> 25.66326446 | K7: =SUM('Charges Summary'!E25,'Charges Summary'!E8) -> 26.24804532 | L7: =SUM('Charges Summary'!F25,'Charges Summary'!F8) -> 26.83705343 | M7: =SUM('Charges Summary'!G25,'Charges Summary'!G8) -> 27.45849906 | N7: =SUM('Charges Summary'!H25,'Charges Summary'!H8) -> 28.12262914 | P7: =SUM('Charges Summary'!D27,'Charges Summary'!D11) -> 35.71520815 | Q7: =SUM('Charges Summary'!E27,'Charges Summary'!E11) -> 36.33922974 | R7: =SUM('Charges Summary'!F27,'Charges Summary'!F11) -> 38.65381825 | S7: =SUM('Charges Summary'!G27,'Charges Summary'!G11) -> 43.71949564 | T7: =SUM('Charges Summary'!H27,'Charges Summary'!H11) -> 44.2637022 | V7: =ABS(D7-J7-P7) -> 0 | W7: =ABS(E7-K7-Q7) -> 0 | X7: 7.105427358e-15 | Y7: 7.105427358e-15 | Z7: 0
A8: ='DNSP Inputs General'!A43 -> HP Sodium 150W | C8: ='DNSP Inputs General'!E43 -> 104.07 | D8: ='Charges Summary'!D$55 -> 113.4622145 | E8: ='Charges Summary'!E$55 -> 115.8823707 | F8: ='Charges Summary'!F$55 -> 118.806076 | G8: ='Charges Summary'!G$55 -> 126.4257047 | H8: ='Charges Summary'!H$55 -> 129.0494974 | J8: =SUM('Charges Summary'!D49,'Charges Summary'!D8) -> 72.98832173 | K8: =SUM('Charges Summary'!E49,'Charges Summary'!E8) -> 74.76666097 | L8: =SUM('Charges Summary'!F49,'Charges Summary'!F8) -> 76.56032933 | M8: =SUM('Charges Summary'!G49,'Charges Summary'!G8) -> 78.46393964 | N8: =SUM('Charges Summary'!H49,'Charges Summary'!H8) -> 80.52750749 | P8: =SUM('Charges Summary'!D51,'Charges Summary'!D11) -> 40.47389281 | Q8: =SUM('Charges Summary'!E51,'Charges Summary'!E11) -> 41.11570975 | R8: =SUM('Charges Summary'!F51,'Charges Summary'!F11) -> 42.24574671 | S8: =SUM('Charges Summary'!G51,'Charges Summary'!G11) -> 47.96176502 | T8: =SUM('Charges Summary'!H51,'Charges Summary'!H11) -> 48.52198994 | V8: =ABS(D8-J8-P8) -> 0 | W8: 0 | X8: 0 | Y8: 1.421085472e-14 | Z8: 0
A9: ='DNSP Inputs General'!A44 -> HP Sodium 250W | C9: ='DNSP Inputs General'!E44 -> 105.12 | D9: ='Charges Summary'!D$71 -> 116.2960792 | E9: ='Charges Summary'!E$71 -> 118.7666221 | F9: ='Charges Summary'!F$71 -> 121.9266682 | G9: ='Charges Summary'!G$71 -> 129.7338112 | H9: ='Charges Summary'!H$71 -> 132.4141003 | J9: =SUM('Charges Summary'!D65,'Charges Summary'!D8) -> 75.25680245 | K9: =SUM('Charges Summary'!E65,'Charges Summary'!E8) -> 77.08341417 | L9: =SUM('Charges Summary'!F65,'Charges Summary'!F8) -> 78.92596164 | M9: =SUM('Charges Summary'!G65,'Charges Summary'!G8) -> 80.88039618 | N9: =SUM('Charges Summary'!H65,'Charges Summary'!H8) -> 82.99709358 | P9: =SUM('Charges Summary'!D67,'Charges Summary'!D11) -> 41.03927671 | Q9: =SUM('Charges Summary'!E67,'Charges Summary'!E11) -> 41.68320793 | R9: =SUM('Charges Summary'!F67,'Charges Summary'!F11) -> 43.00070656 | S9: =SUM('Charges Summary'!G67,'Charges Summary'!G11) -> 48.85341504 | T9: =SUM('Charges Summary'!H67,'Charges Summary'!H11) -> 49.41700673 | V9: =ABS(D9-J9-P9) -> 7.105427358e-15 | W9: =ABS(E9-K9-Q9) -> 7.105427358e-15 | X9: =ABS(F9-L9-R9) -> 0 | Y9: =ABS(G9-M9-S9) -> 0 | Z9: =ABS(H9-N9-T9) -> 1.421085472e-14
A10: ='DNSP Inputs General'!A45 -> Mercury Vapour 50W | C10: ='DNSP Inputs General'!E45 -> 67.27 | D10: =IF('DNSP Inputs General'!$B45='DNSP Inputs General'!$A$42,D$7,IF('DNSP Inputs General'!$B45='DNSP Inputs General'!$A$43,D$8,D$9))*'DNSP Inputs General'!$D45 -> 93.9090631 | E10: =IF('DNSP Inputs General'!$B45='DNSP Inputs General'!$A$42,E$7,IF('DNSP Inputs General'!$B45='DNSP Inputs General'!$A$43,E$8,E$9))*'DNSP Inputs General'!$D45 -> 95.75853083 | F10: =IF('DNSP Inputs General'!$B45='DNSP Inputs General'!$A$42,F$7,IF('DNSP Inputs General'!$B45='DNSP Inputs General'!$A$43,F$8,F$9))*'DNSP Inputs General'!$D45 -> 100.2010337 | G10: =IF('DNSP Inputs General'!$B45='DNSP Inputs General'!$A$42,G$7,IF('DNSP Inputs General'!$B45='DNSP Inputs General'!$A$43,G$8,G$9))*'DNSP Inputs General'!$D45 -> 108.9023319 | H10: =IF('DNSP Inputs General'!$B45='DNSP Inputs General'!$A$42,H$7,IF('DNSP Inputs General'!$B45='DNSP Inputs General'!$A$43,H$8,H$9))*'DNSP Inputs General'!$D45 -> 110.7510869 | J10: =IF('DNSP Inputs General'!$B45='DNSP Inputs General'!$A$42,J$7,IF('DNSP Inputs General'!$B45='DNSP Inputs General'!$A$43,J$8,J$9))*'DNSP Inputs General'!$D45 -> 39.26479463 | K10: =IF('DNSP Inputs General'!$B45='DNSP Inputs General'!$A$42,K$7,IF('DNSP Inputs General'!$B45='DNSP Inputs General'!$A$43,K$8,K$9))*'DNSP Inputs General'!$D45 -> 40.15950933 | L10: =IF('DNSP Inputs General'!$B45='DNSP Inputs General'!$A$42,L$7,IF('DNSP Inputs General'!$B45='DNSP Inputs General'!$A$43,L$8,L$9))*'DNSP Inputs General'!$D45 -> 41.06069175 | M10: =IF('DNSP Inputs General'!$B45='DNSP Inputs General'!$A$42,M$7,IF('DNSP Inputs General'!$B45='DNSP Inputs General'!$A$43,M$8,M$9))*'DNSP Inputs General'!$D45 -> 42.01150356 | N10: =IF('DNSP Inputs General'!$B45='DNSP Inputs General'!$A$42,N$7,IF('DNSP Inputs General'!$B45='DNSP Inputs General'!$A$43,N$8,N$9))*'DNSP Inputs General'!$D45 -> 43.02762258 | P10: =IF('DNSP Inputs General'!$B45='DNSP Inputs General'!$A$42,P$7,IF('DNSP Inputs General'!$B45='DNSP Inputs General'!$A$43,P$8,P$9))*'DNSP Inputs General'!$D45 -> 54.64426847 | Q10: =IF('DNSP Inputs General'!$B45='DNSP Inputs General'!$A$42,Q$7,IF('DNSP Inputs General'!$B45='DNSP Inputs General'!$A$43,Q$8,Q$9))*'DNSP Inputs General'!$D45 -> 55.5990215 | R10: =IF('DNSP Inputs General'!$B45='DNSP Inputs General'!$A$42,R$7,IF('DNSP Inputs General'!$B45='DNSP Inputs General'!$A$43,R$8,R$9))*'DNSP Inputs General'!$D45 -> 59.14034193 | S10: =IF('DNSP Inputs General'!$B45='DNSP Inputs General'!$A$42,S$7,IF('DNSP Inputs General'!$B45='DNSP Inputs General'!$A$43,S$8,S$9))*'DNSP Inputs General'!$D45 -> 66.89082832 | T10: =IF('DNSP Inputs General'!$B45='DNSP Inputs General'!$A$42,T$7,IF('DNSP Inputs General'!$B45='DNSP Inputs General'!$A$43,T$8,T$9))*'DNSP Inputs General'!$D45 -> 67.72346436 | V10: 7.105427358e-15 | W10: 7.105427358e-15 | X10: 1.421085472e-14 | Y10: 1.421085472e-14 | Z10: 0
A11: ='DNSP Inputs General'!A46 -> Mercury Vapour 125W | C11: ='DNSP Inputs General'!E46 -> 64.63 | D11: =IF('DNSP Inputs General'!$B46='DNSP Inputs General'!$A$42,D$7,IF('DNSP Inputs General'!$B46='DNSP Inputs General'!$A$43,D$8,D$9))*'DNSP Inputs General'!$D46 -> 90.22635474 | E11: =IF('DNSP Inputs General'!$B46='DNSP Inputs General'!$A$42,E$7,IF('DNSP Inputs General'!$B46='DNSP Inputs General'!$A$43,E$8,E$9))*'DNSP Inputs General'!$D46 -> 92.00329433 | F11: =IF('DNSP Inputs General'!$B46='DNSP Inputs General'!$A$42,F$7,IF('DNSP Inputs General'!$B46='DNSP Inputs General'!$A$43,F$8,F$9))*'DNSP Inputs General'!$D46 -> 96.27158138 | G11: =IF('DNSP Inputs General'!$B46='DNSP Inputs General'!$A$42,G$7,IF('DNSP Inputs General'!$B46='DNSP Inputs General'!$A$43,G$8,G$9))*'DNSP Inputs General'!$D46 -> 104.6316522 | H11: =IF('DNSP Inputs General'!$B46='DNSP Inputs General'!$A$42,H$7,IF('DNSP Inputs General'!$B46='DNSP Inputs General'!$A$43,H$8,H$9))*'DNSP Inputs General'!$D46 -> 106.4079071 | J11: =IF('DNSP Inputs General'!$B46='DNSP Inputs General'!$A$42,J$7,IF('DNSP Inputs General'!$B46='DNSP Inputs General'!$A$43,J$8,J$9))*'DNSP Inputs General'!$D46 -> 37.72499876 | K11: =IF('DNSP Inputs General'!$B46='DNSP Inputs General'!$A$42,K$7,IF('DNSP Inputs General'!$B46='DNSP Inputs General'!$A$43,K$8,K$9))*'DNSP Inputs General'!$D46 -> 38.58462661 | L11: =IF('DNSP Inputs General'!$B46='DNSP Inputs General'!$A$42,L$7,IF('DNSP Inputs General'!$B46='DNSP Inputs General'!$A$43,L$8,L$9))*'DNSP Inputs General'!$D46 -> 39.45046855 | M11: =IF('DNSP Inputs General'!$B46='DNSP Inputs General'!$A$42,M$7,IF('DNSP Inputs General'!$B46='DNSP Inputs General'!$A$43,M$8,M$9))*'DNSP Inputs General'!$D46 -> 40.36399361 | N11: =IF('DNSP Inputs General'!$B46='DNSP Inputs General'!$A$42,N$7,IF('DNSP Inputs General'!$B46='DNSP Inputs General'!$A$43,N$8,N$9))*'DNSP Inputs General'!$D46 -> 41.34026483 | P11: =IF('DNSP Inputs General'!$B46='DNSP Inputs General'!$A$42,P$7,IF('DNSP Inputs General'!$B46='DNSP Inputs General'!$A$43,P$8,P$9))*'DNSP Inputs General'!$D46 -> 52.50135598 | Q11: =IF('DNSP Inputs General'!$B46='DNSP Inputs General'!$A$42,Q$7,IF('DNSP Inputs General'!$B46='DNSP Inputs General'!$A$43,Q$8,Q$9))*'DNSP Inputs General'!$D46 -> 53.41866771 | R11: =IF('DNSP Inputs General'!$B46='DNSP Inputs General'!$A$42,R$7,IF('DNSP Inputs General'!$B46='DNSP Inputs General'!$A$43,R$8,R$9))*'DNSP Inputs General'!$D46 -> 56.82111283 | S11: =IF('DNSP Inputs General'!$B46='DNSP Inputs General'!$A$42,S$7,IF('DNSP Inputs General'!$B46='DNSP Inputs General'!$A$43,S$8,S$9))*'DNSP Inputs General'!$D46 -> 64.26765858 | T11: =IF('DNSP Inputs General'!$B46='DNSP Inputs General'!$A$42,T$7,IF('DNSP Inputs General'!$B46='DNSP Inputs General'!$A$43,T$8,T$9))*'DNSP Inputs General'!$D46 -> 65.06764223 | V11: 0 | W11: 0 | X11: 7.105427358e-15 | Y11: 1.421085472e-14 | Z11: 1.421085472e-14
A12: ='DNSP Inputs General'!A47 -> Mercury Vapour 250W | C12: ='DNSP Inputs General'!E47 -> 110.37 | D12: =IF('DNSP Inputs General'!$B47='DNSP Inputs General'!$A$42,D$7,IF('DNSP Inputs General'!$B47='DNSP Inputs General'!$A$43,D$8,D$9))*'DNSP Inputs General'!$D47 -> 122.1108831 | E12: =IF('DNSP Inputs General'!$B47='DNSP Inputs General'!$A$42,E$7,IF('DNSP Inputs General'!$B47='DNSP Inputs General'!$A$43,E$8,E$9))*'DNSP Inputs General'!$D47 -> 124.7049532 | F12: =IF('DNSP Inputs General'!$B47='DNSP Inputs General'!$A$42,F$7,IF('DNSP Inputs General'!$B47='DNSP Inputs General'!$A$43,F$8,F$9))*'DNSP Inputs General'!$D47 -> 128.0230016 | G12: =IF('DNSP Inputs General'!$B47='DNSP Inputs General'!$A$42,G$7,IF('DNSP Inputs General'!$B47='DNSP Inputs General'!$A$43,G$8,G$9))*'DNSP Inputs General'!$D47 -> 136.2205018 | H12: =IF('DNSP Inputs General'!$B47='DNSP Inputs General'!$A$42,H$7,IF('DNSP Inputs General'!$B47='DNSP Inputs General'!$A$43,H$8,H$9))*'DNSP Inputs General'!$D47 -> 139.0348053 | J12: =IF('DNSP Inputs General'!$B47='DNSP Inputs General'!$A$42,J$7,IF('DNSP Inputs General'!$B47='DNSP Inputs General'!$A$43,J$8,J$9))*'DNSP Inputs General'!$D47 -> 79.01964257 | K12: =IF('DNSP Inputs General'!$B47='DNSP Inputs General'!$A$42,K$7,IF('DNSP Inputs General'!$B47='DNSP Inputs General'!$A$43,K$8,K$9))*'DNSP Inputs General'!$D47 -> 80.93758488 | L12: =IF('DNSP Inputs General'!$B47='DNSP Inputs General'!$A$42,L$7,IF('DNSP Inputs General'!$B47='DNSP Inputs General'!$A$43,L$8,L$9))*'DNSP Inputs General'!$D47 -> 82.87225972 | M12: =IF('DNSP Inputs General'!$B47='DNSP Inputs General'!$A$42,M$7,IF('DNSP Inputs General'!$B47='DNSP Inputs General'!$A$43,M$8,M$9))*'DNSP Inputs General'!$D47 -> 84.92441599 | N12: =IF('DNSP Inputs General'!$B47='DNSP Inputs General'!$A$42,N$7,IF('DNSP Inputs General'!$B47='DNSP Inputs General'!$A$43,N$8,N$9))*'DNSP Inputs General'!$D47 -> 87.14694826 | P12: =IF('DNSP Inputs General'!$B47='DNSP Inputs General'!$A$42,P$7,IF('DNSP Inputs General'!$B47='DNSP Inputs General'!$A$43,P$8,P$9))*'DNSP Inputs General'!$D47 -> 43.09124054 | Q12: =IF('DNSP Inputs General'!$B47='DNSP Inputs General'!$A$42,Q$7,IF('DNSP Inputs General'!$B47='DNSP Inputs General'!$A$43,Q$8,Q$9))*'DNSP Inputs General'!$D47 -> 43.76736832 | R12: =IF('DNSP Inputs General'!$B47='DNSP Inputs General'!$A$42,R$7,IF('DNSP Inputs General'!$B47='DNSP Inputs General'!$A$43,R$8,R$9))*'DNSP Inputs General'!$D47 -> 45.15074189 | S12: =IF('DNSP Inputs General'!$B47='DNSP Inputs General'!$A$42,S$7,IF('DNSP Inputs General'!$B47='DNSP Inputs General'!$A$43,S$8,S$9))*'DNSP Inputs General'!$D47 -> 51.29608579 | T12: =IF('DNSP Inputs General'!$B47='DNSP Inputs General'!$A$42,T$7,IF('DNSP Inputs General'!$B47='DNSP Inputs General'!$A$43,T$8,T$9))*'DNSP Inputs General'!$D47 -> 51.88785707 | V12: 0 | W12: 0 | X12: 1.421085472e-14 | Y12: 0 | Z12: 7.105427358e-15
A13: ='DNSP Inputs General'!A48 -> Mercury Vapour 400W | C13: ='DNSP Inputs General'!E48 -> 114.58 | D13: =IF('DNSP Inputs General'!$B48='DNSP Inputs General'!$A$42,D$7,IF('DNSP Inputs General'!$B48='DNSP Inputs General'!$A$43,D$8,D$9))*'DNSP Inputs General'!$D48 -> 126.7627263 | E13: =IF('DNSP Inputs General'!$B48='DNSP Inputs General'!$A$42,E$7,IF('DNSP Inputs General'!$B48='DNSP Inputs General'!$A$43,E$8,E$9))*'DNSP Inputs General'!$D48 -> 129.4556181 | F13: =IF('DNSP Inputs General'!$B48='DNSP Inputs General'!$A$42,F$7,IF('DNSP Inputs General'!$B48='DNSP Inputs General'!$A$43,F$8,F$9))*'DNSP Inputs General'!$D48 -> 132.9000683 | G13: =IF('DNSP Inputs General'!$B48='DNSP Inputs General'!$A$42,G$7,IF('DNSP Inputs General'!$B48='DNSP Inputs General'!$A$43,G$8,G$9))*'DNSP Inputs General'!$D48 -> 141.4098542 | H13: =IF('DNSP Inputs General'!$B48='DNSP Inputs General'!$A$42,H$7,IF('DNSP Inputs General'!$B48='DNSP Inputs General'!$A$43,H$8,H$9))*'DNSP Inputs General'!$D48 -> 144.3313693 | J13: =IF('DNSP Inputs General'!$B48='DNSP Inputs General'!$A$42,J$7,IF('DNSP Inputs General'!$B48='DNSP Inputs General'!$A$43,J$8,J$9))*'DNSP Inputs General'!$D48 -> 82.02991467 | K13: =IF('DNSP Inputs General'!$B48='DNSP Inputs General'!$A$42,K$7,IF('DNSP Inputs General'!$B48='DNSP Inputs General'!$A$43,K$8,K$9))*'DNSP Inputs General'!$D48 -> 84.02092145 | L13: =IF('DNSP Inputs General'!$B48='DNSP Inputs General'!$A$42,L$7,IF('DNSP Inputs General'!$B48='DNSP Inputs General'!$A$43,L$8,L$9))*'DNSP Inputs General'!$D48 -> 86.02929819 | M13: =IF('DNSP Inputs General'!$B48='DNSP Inputs General'!$A$42,M$7,IF('DNSP Inputs General'!$B48='DNSP Inputs General'!$A$43,M$8,M$9))*'DNSP Inputs General'!$D48 -> 88.15963183 | N13: =IF('DNSP Inputs General'!$B48='DNSP Inputs General'!$A$42,N$7,IF('DNSP Inputs General'!$B48='DNSP Inputs General'!$A$43,N$8,N$9))*'DNSP Inputs General'!$D48 -> 90.466832 | P13: =IF('DNSP Inputs General'!$B48='DNSP Inputs General'!$A$42,P$7,IF('DNSP Inputs General'!$B48='DNSP Inputs General'!$A$43,P$8,P$9))*'DNSP Inputs General'!$D48 -> 44.73281161 | Q13: =IF('DNSP Inputs General'!$B48='DNSP Inputs General'!$A$42,Q$7,IF('DNSP Inputs General'!$B48='DNSP Inputs General'!$A$43,Q$8,Q$9))*'DNSP Inputs General'!$D48 -> 45.43469664 | R13: =IF('DNSP Inputs General'!$B48='DNSP Inputs General'!$A$42,R$7,IF('DNSP Inputs General'!$B48='DNSP Inputs General'!$A$43,R$8,R$9))*'DNSP Inputs General'!$D48 -> 46.87077015 | S13: =IF('DNSP Inputs General'!$B48='DNSP Inputs General'!$A$42,S$7,IF('DNSP Inputs General'!$B48='DNSP Inputs General'!$A$43,S$8,S$9))*'DNSP Inputs General'!$D48 -> 53.25022239 | T13: =IF('DNSP Inputs General'!$B48='DNSP Inputs General'!$A$42,T$7,IF('DNSP Inputs General'!$B48='DNSP Inputs General'!$A$43,T$8,T$9))*'DNSP Inputs General'!$D48 -> 53.86453734 | V13: 1.421085472e-14 | W13: 7.105427358e-15 | X13: 7.105427358e-15 | Y13: 2.131628207e-14 | Z13: 1.421085472e-14
A14: ='DNSP Inputs General'!A49 -> HP Sodium 100W | C14: ='DNSP Inputs General'!E49 -> 111.36 | D14: =IF('DNSP Inputs General'!$B49='DNSP Inputs General'!$A$42,D$7,IF('DNSP Inputs General'!$B49='DNSP Inputs General'!$A$43,D$8,D$9))*'DNSP Inputs General'!$D49 -> 121.4045696 | E14: =IF('DNSP Inputs General'!$B49='DNSP Inputs General'!$A$42,E$7,IF('DNSP Inputs General'!$B49='DNSP Inputs General'!$A$43,E$8,E$9))*'DNSP Inputs General'!$D49 -> 123.9941367 | F14: =IF('DNSP Inputs General'!$B49='DNSP Inputs General'!$A$42,F$7,IF('DNSP Inputs General'!$B49='DNSP Inputs General'!$A$43,F$8,F$9))*'DNSP Inputs General'!$D49 -> 127.1225014 | G14: =IF('DNSP Inputs General'!$B49='DNSP Inputs General'!$A$42,G$7,IF('DNSP Inputs General'!$B49='DNSP Inputs General'!$A$43,G$8,G$9))*'DNSP Inputs General'!$D49 -> 135.275504 | H14: =IF('DNSP Inputs General'!$B49='DNSP Inputs General'!$A$42,H$7,IF('DNSP Inputs General'!$B49='DNSP Inputs General'!$A$43,H$8,H$9))*'DNSP Inputs General'!$D49 -> 138.0829622 | J14: =IF('DNSP Inputs General'!$B49='DNSP Inputs General'!$A$42,J$7,IF('DNSP Inputs General'!$B49='DNSP Inputs General'!$A$43,J$8,J$9))*'DNSP Inputs General'!$D49 -> 78.09750426 | K14: =IF('DNSP Inputs General'!$B49='DNSP Inputs General'!$A$42,K$7,IF('DNSP Inputs General'!$B49='DNSP Inputs General'!$A$43,K$8,K$9))*'DNSP Inputs General'!$D49 -> 80.00032724 | L14: =IF('DNSP Inputs General'!$B49='DNSP Inputs General'!$A$42,L$7,IF('DNSP Inputs General'!$B49='DNSP Inputs General'!$A$43,L$8,L$9))*'DNSP Inputs General'!$D49 -> 81.91955238 | M14: =IF('DNSP Inputs General'!$B49='DNSP Inputs General'!$A$42,M$7,IF('DNSP Inputs General'!$B49='DNSP Inputs General'!$A$43,M$8,M$9))*'DNSP Inputs General'!$D49 -> 83.95641541 | N14: =IF('DNSP Inputs General'!$B49='DNSP Inputs General'!$A$42,N$7,IF('DNSP Inputs General'!$B49='DNSP Inputs General'!$A$43,N$8,N$9))*'DNSP Inputs General'!$D49 -> 86.16443301 | P14: =IF('DNSP Inputs General'!$B49='DNSP Inputs General'!$A$42,P$7,IF('DNSP Inputs General'!$B49='DNSP Inputs General'!$A$43,P$8,P$9))*'DNSP Inputs General'!$D49 -> 43.30706531 | Q14: =IF('DNSP Inputs General'!$B49='DNSP Inputs General'!$A$42,Q$7,IF('DNSP Inputs General'!$B49='DNSP Inputs General'!$A$43,Q$8,Q$9))*'DNSP Inputs General'!$D49 -> 43.99380943 | R14: =IF('DNSP Inputs General'!$B49='DNSP Inputs General'!$A$42,R$7,IF('DNSP Inputs General'!$B49='DNSP Inputs General'!$A$43,R$8,R$9))*'DNSP Inputs General'!$D49 -> 45.20294898 | S14: =IF('DNSP Inputs General'!$B49='DNSP Inputs General'!$A$42,S$7,IF('DNSP Inputs General'!$B49='DNSP Inputs General'!$A$43,S$8,S$9))*'DNSP Inputs General'!$D49 -> 51.31908857 | T14: =IF('DNSP Inputs General'!$B49='DNSP Inputs General'!$A$42,T$7,IF('DNSP Inputs General'!$B49='DNSP Inputs General'!$A$43,T$8,T$9))*'DNSP Inputs General'!$D49 -> 51.91852924 | V14: 1.421085472e-14 | W14: 0 | X14: 7.105427358e-15 | Y14: 7.105427358e-15 | Z14: 7.105427358e-15
A15: ='DNSP Inputs General'!A50 -> HP Sodium 400W | C15: ='DNSP Inputs General'!E50 -> 149.26 | D15: =IF('DNSP Inputs General'!$B50='DNSP Inputs General'!$A$42,D$7,IF('DNSP Inputs General'!$B50='DNSP Inputs General'!$A$43,D$8,D$9))*'DNSP Inputs General'!$D50 -> 165.1404324 | E15: =IF('DNSP Inputs General'!$B50='DNSP Inputs General'!$A$42,E$7,IF('DNSP Inputs General'!$B50='DNSP Inputs General'!$A$43,E$8,E$9))*'DNSP Inputs General'!$D50 -> 168.6486034 | F15: =IF('DNSP Inputs General'!$B50='DNSP Inputs General'!$A$42,F$7,IF('DNSP Inputs General'!$B50='DNSP Inputs General'!$A$43,F$8,F$9))*'DNSP Inputs General'!$D50 -> 173.1358688 | G15: =IF('DNSP Inputs General'!$B50='DNSP Inputs General'!$A$42,G$7,IF('DNSP Inputs General'!$B50='DNSP Inputs General'!$A$43,G$8,G$9))*'DNSP Inputs General'!$D50 -> 184.2220119 | H15: =IF('DNSP Inputs General'!$B50='DNSP Inputs General'!$A$42,H$7,IF('DNSP Inputs General'!$B50='DNSP Inputs General'!$A$43,H$8,H$9))*'DNSP Inputs General'!$D50 -> 188.0280224 | J15: =IF('DNSP Inputs General'!$B50='DNSP Inputs General'!$A$42,J$7,IF('DNSP Inputs General'!$B50='DNSP Inputs General'!$A$43,J$8,J$9))*'DNSP Inputs General'!$D50 -> 106.8646595 | K15: =IF('DNSP Inputs General'!$B50='DNSP Inputs General'!$A$42,K$7,IF('DNSP Inputs General'!$B50='DNSP Inputs General'!$A$43,K$8,K$9))*'DNSP Inputs General'!$D50 -> 109.4584481 | L15: =IF('DNSP Inputs General'!$B50='DNSP Inputs General'!$A$42,L$7,IF('DNSP Inputs General'!$B50='DNSP Inputs General'!$A$43,L$8,L$9))*'DNSP Inputs General'!$D50 -> 112.0748655 | M15: =IF('DNSP Inputs General'!$B50='DNSP Inputs General'!$A$42,M$7,IF('DNSP Inputs General'!$B50='DNSP Inputs General'!$A$43,M$8,M$9))*'DNSP Inputs General'!$D50 -> 114.8501626 | N15: =IF('DNSP Inputs General'!$B50='DNSP Inputs General'!$A$42,N$7,IF('DNSP Inputs General'!$B50='DNSP Inputs General'!$A$43,N$8,N$9))*'DNSP Inputs General'!$D50 -> 117.8558729 | P15: =IF('DNSP Inputs General'!$B50='DNSP Inputs General'!$A$42,P$7,IF('DNSP Inputs General'!$B50='DNSP Inputs General'!$A$43,P$8,P$9))*'DNSP Inputs General'!$D50 -> 58.27577293 | Q15: =IF('DNSP Inputs General'!$B50='DNSP Inputs General'!$A$42,Q$7,IF('DNSP Inputs General'!$B50='DNSP Inputs General'!$A$43,Q$8,Q$9))*'DNSP Inputs General'!$D50 -> 59.19015525 | R15: =IF('DNSP Inputs General'!$B50='DNSP Inputs General'!$A$42,R$7,IF('DNSP Inputs General'!$B50='DNSP Inputs General'!$A$43,R$8,R$9))*'DNSP Inputs General'!$D50 -> 61.06100331 | S15: =IF('DNSP Inputs General'!$B50='DNSP Inputs General'!$A$42,S$7,IF('DNSP Inputs General'!$B50='DNSP Inputs General'!$A$43,S$8,S$9))*'DNSP Inputs General'!$D50 -> 69.37184935 | T15: =IF('DNSP Inputs General'!$B50='DNSP Inputs General'!$A$42,T$7,IF('DNSP Inputs General'!$B50='DNSP Inputs General'!$A$43,T$8,T$9))*'DNSP Inputs General'!$D50 -> 70.17214956 | V15: 7.105427358e-15 | W15: 1.421085472e-14 | X15: 1.421085472e-14 | Y15: 1.421085472e-14 | Z15: 2.842170943e-14
A16: ='DNSP Inputs General'!A51 -> Metal Halide 70W | C16: ='DNSP Inputs General'!E51 -> 191.93 | D16: =IF('DNSP Inputs General'!$B51='DNSP Inputs General'!$A$42,D$7,IF('DNSP Inputs General'!$B51='DNSP Inputs General'!$A$43,D$8,D$9))*'DNSP Inputs General'!$D51 -> 267.9235193 | E16: =IF('DNSP Inputs General'!$B51='DNSP Inputs General'!$A$42,E$7,IF('DNSP Inputs General'!$B51='DNSP Inputs General'!$A$43,E$8,E$9))*'DNSP Inputs General'!$D51 -> 273.2000697 | F16: =IF('DNSP Inputs General'!$B51='DNSP Inputs General'!$A$42,F$7,IF('DNSP Inputs General'!$B51='DNSP Inputs General'!$A$43,F$8,F$9))*'DNSP Inputs General'!$D51 -> 285.8745758 | G16: =IF('DNSP Inputs General'!$B51='DNSP Inputs General'!$A$42,G$7,IF('DNSP Inputs General'!$B51='DNSP Inputs General'!$A$43,G$8,G$9))*'DNSP Inputs General'!$D51 -> 310.6994687 | H16: =IF('DNSP Inputs General'!$B51='DNSP Inputs General'!$A$42,H$7,IF('DNSP Inputs General'!$B51='DNSP Inputs General'!$A$43,H$8,H$9))*'DNSP Inputs General'!$D51 -> 315.9739859 | J16: =IF('DNSP Inputs General'!$B51='DNSP Inputs General'!$A$42,J$7,IF('DNSP Inputs General'!$B51='DNSP Inputs General'!$A$43,J$8,J$9))*'DNSP Inputs General'!$D51 -> 112.0228614 | K16: =IF('DNSP Inputs General'!$B51='DNSP Inputs General'!$A$42,K$7,IF('DNSP Inputs General'!$B51='DNSP Inputs General'!$A$43,K$8,K$9))*'DNSP Inputs General'!$D51 -> 114.5754916 | L16: =IF('DNSP Inputs General'!$B51='DNSP Inputs General'!$A$42,L$7,IF('DNSP Inputs General'!$B51='DNSP Inputs General'!$A$43,L$8,L$9))*'DNSP Inputs General'!$D51 -> 117.1465743 | M16: =IF('DNSP Inputs General'!$B51='DNSP Inputs General'!$A$42,M$7,IF('DNSP Inputs General'!$B51='DNSP Inputs General'!$A$43,M$8,M$9))*'DNSP Inputs General'!$D51 -> 119.8592501 | N16: =IF('DNSP Inputs General'!$B51='DNSP Inputs General'!$A$42,N$7,IF('DNSP Inputs General'!$B51='DNSP Inputs General'!$A$43,N$8,N$9))*'DNSP Inputs General'!$D51 -> 122.7582481 | P16: =IF('DNSP Inputs General'!$B51='DNSP Inputs General'!$A$42,P$7,IF('DNSP Inputs General'!$B51='DNSP Inputs General'!$A$43,P$8,P$9))*'DNSP Inputs General'!$D51 -> 155.9006579 | Q16: =IF('DNSP Inputs General'!$B51='DNSP Inputs General'!$A$42,Q$7,IF('DNSP Inputs General'!$B51='DNSP Inputs General'!$A$43,Q$8,Q$9))*'DNSP Inputs General'!$D51 -> 158.624578 | R16: =IF('DNSP Inputs General'!$B51='DNSP Inputs General'!$A$42,R$7,IF('DNSP Inputs General'!$B51='DNSP Inputs General'!$A$43,R$8,R$9))*'DNSP Inputs General'!$D51 -> 168.7280015 | S16: =IF('DNSP Inputs General'!$B51='DNSP Inputs General'!$A$42,S$7,IF('DNSP Inputs General'!$B51='DNSP Inputs General'!$A$43,S$8,S$9))*'DNSP Inputs General'!$D51 -> 190.8402186 | T16: =IF('DNSP Inputs General'!$B51='DNSP Inputs General'!$A$42,T$7,IF('DNSP Inputs General'!$B51='DNSP Inputs General'!$A$43,T$8,T$9))*'DNSP Inputs General'!$D51 -> 193.2157378 | V16: 0 | W16: 0 | X16: 2.842170943e-14 | Y16: 5.684341886e-14 | Z16: 2.842170943e-14
A17: ='DNSP Inputs General'!A52 -> Metal Halide 100W | C17: ='DNSP Inputs General'!E52 -> 248.49 | D17: =IF('DNSP Inputs General'!$B52='DNSP Inputs General'!$A$42,D$7,IF('DNSP Inputs General'!$B52='DNSP Inputs General'!$A$43,D$8,D$9))*'DNSP Inputs General'!$D52 -> 270.9124915 | E17: =IF('DNSP Inputs General'!$B52='DNSP Inputs General'!$A$42,E$7,IF('DNSP Inputs General'!$B52='DNSP Inputs General'!$A$43,E$8,E$9))*'DNSP Inputs General'!$D52 -> 276.691072 | F17: =IF('DNSP Inputs General'!$B52='DNSP Inputs General'!$A$42,F$7,IF('DNSP Inputs General'!$B52='DNSP Inputs General'!$A$43,F$8,F$9))*'DNSP Inputs General'!$D52 -> 283.6719713 | G17: =IF('DNSP Inputs General'!$B52='DNSP Inputs General'!$A$42,G$7,IF('DNSP Inputs General'!$B52='DNSP Inputs General'!$A$43,G$8,G$9))*'DNSP Inputs General'!$D52 -> 301.8652754 | H17: =IF('DNSP Inputs General'!$B52='DNSP Inputs General'!$A$42,H$7,IF('DNSP Inputs General'!$B52='DNSP Inputs General'!$A$43,H$8,H$9))*'DNSP Inputs General'!$D52 -> 308.1300768 | J17: =IF('DNSP Inputs General'!$B52='DNSP Inputs General'!$A$42,J$7,IF('DNSP Inputs General'!$B52='DNSP Inputs General'!$A$43,J$8,J$9))*'DNSP Inputs General'!$D52 -> 174.2734193 | K17: =IF('DNSP Inputs General'!$B52='DNSP Inputs General'!$A$42,K$7,IF('DNSP Inputs General'!$B52='DNSP Inputs General'!$A$43,K$8,K$9))*'DNSP Inputs General'!$D52 -> 178.5195405 | L17: =IF('DNSP Inputs General'!$B52='DNSP Inputs General'!$A$42,L$7,IF('DNSP Inputs General'!$B52='DNSP Inputs General'!$A$43,L$8,L$9))*'DNSP Inputs General'!$D52 -> 182.8022629 | M17: =IF('DNSP Inputs General'!$B52='DNSP Inputs General'!$A$42,M$7,IF('DNSP Inputs General'!$B52='DNSP Inputs General'!$A$43,M$8,M$9))*'DNSP Inputs General'!$D52 -> 187.3474924 | N17: =IF('DNSP Inputs General'!$B52='DNSP Inputs General'!$A$42,N$7,IF('DNSP Inputs General'!$B52='DNSP Inputs General'!$A$43,N$8,N$9))*'DNSP Inputs General'!$D52 -> 192.2746509 | P17: =IF('DNSP Inputs General'!$B52='DNSP Inputs General'!$A$42,P$7,IF('DNSP Inputs General'!$B52='DNSP Inputs General'!$A$43,P$8,P$9))*'DNSP Inputs General'!$D52 -> 96.6390722 | Q17: =IF('DNSP Inputs General'!$B52='DNSP Inputs General'!$A$42,Q$7,IF('DNSP Inputs General'!$B52='DNSP Inputs General'!$A$43,Q$8,Q$9))*'DNSP Inputs General'!$D52 -> 98.1715315 | R17: =IF('DNSP Inputs General'!$B52='DNSP Inputs General'!$A$42,R$7,IF('DNSP Inputs General'!$B52='DNSP Inputs General'!$A$43,R$8,R$9))*'DNSP Inputs General'!$D52 -> 100.8697084 | S17: =IF('DNSP Inputs General'!$B52='DNSP Inputs General'!$A$42,S$7,IF('DNSP Inputs General'!$B52='DNSP Inputs General'!$A$43,S$8,S$9))*'DNSP Inputs General'!$D52 -> 114.517783 | T17: =IF('DNSP Inputs General'!$B52='DNSP Inputs General'!$A$42,T$7,IF('DNSP Inputs General'!$B52='DNSP Inputs General'!$A$43,T$8,T$9))*'DNSP Inputs General'!$D52 -> 115.8554259 | V17: 2.842170943e-14 | W17: 1.421085472e-14 | X17: 0 | Y17: 2.842170943e-14 | Z17: 2.842170943e-14
A18: ='DNSP Inputs General'!A53 -> Metal Halide 150W | C18: ='DNSP Inputs General'!E53 -> 282.31 | D18: =IF('DNSP Inputs General'!$B53='DNSP Inputs General'!$A$42,D$7,IF('DNSP Inputs General'!$B53='DNSP Inputs General'!$A$43,D$8,D$9))*'DNSP Inputs General'!$D53 -> 307.776107 | E18: =IF('DNSP Inputs General'!$B53='DNSP Inputs General'!$A$42,E$7,IF('DNSP Inputs General'!$B53='DNSP Inputs General'!$A$43,E$8,E$9))*'DNSP Inputs General'!$D53 -> 314.3409908 | F18: =IF('DNSP Inputs General'!$B53='DNSP Inputs General'!$A$42,F$7,IF('DNSP Inputs General'!$B53='DNSP Inputs General'!$A$43,F$8,F$9))*'DNSP Inputs General'!$D53 -> 322.2717953 | G18: =IF('DNSP Inputs General'!$B53='DNSP Inputs General'!$A$42,G$7,IF('DNSP Inputs General'!$B53='DNSP Inputs General'!$A$43,G$8,G$9))*'DNSP Inputs General'!$D53 -> 342.9406994 | H18: =IF('DNSP Inputs General'!$B53='DNSP Inputs General'!$A$42,H$7,IF('DNSP Inputs General'!$B53='DNSP Inputs General'!$A$43,H$8,H$9))*'DNSP Inputs General'!$D53 -> 350.057965 | J18: =IF('DNSP Inputs General'!$B53='DNSP Inputs General'!$A$42,J$7,IF('DNSP Inputs General'!$B53='DNSP Inputs General'!$A$43,J$8,J$9))*'DNSP Inputs General'!$D53 -> 197.9871591 | K18: =IF('DNSP Inputs General'!$B53='DNSP Inputs General'!$A$42,K$7,IF('DNSP Inputs General'!$B53='DNSP Inputs General'!$A$43,K$8,K$9))*'DNSP Inputs General'!$D53 -> 202.8110587 | L18: =IF('DNSP Inputs General'!$B53='DNSP Inputs General'!$A$42,L$7,IF('DNSP Inputs General'!$B53='DNSP Inputs General'!$A$43,L$8,L$9))*'DNSP Inputs General'!$D53 -> 207.6765398 | M18: =IF('DNSP Inputs General'!$B53='DNSP Inputs General'!$A$42,M$7,IF('DNSP Inputs General'!$B53='DNSP Inputs General'!$A$43,M$8,M$9))*'DNSP Inputs General'!$D53 -> 212.840248 | N18: =IF('DNSP Inputs General'!$B53='DNSP Inputs General'!$A$42,N$7,IF('DNSP Inputs General'!$B53='DNSP Inputs General'!$A$43,N$8,N$9))*'DNSP Inputs General'!$D53 -> 218.437855 | P18: =IF('DNSP Inputs General'!$B53='DNSP Inputs General'!$A$42,P$7,IF('DNSP Inputs General'!$B53='DNSP Inputs General'!$A$43,P$8,P$9))*'DNSP Inputs General'!$D53 -> 109.7889479 | Q18: =IF('DNSP Inputs General'!$B53='DNSP Inputs General'!$A$42,Q$7,IF('DNSP Inputs General'!$B53='DNSP Inputs General'!$A$43,Q$8,Q$9))*'DNSP Inputs General'!$D53 -> 111.5299321 | R18: =IF('DNSP Inputs General'!$B53='DNSP Inputs General'!$A$42,R$7,IF('DNSP Inputs General'!$B53='DNSP Inputs General'!$A$43,R$8,R$9))*'DNSP Inputs General'!$D53 -> 114.5952555 | S18: =IF('DNSP Inputs General'!$B53='DNSP Inputs General'!$A$42,S$7,IF('DNSP Inputs General'!$B53='DNSP Inputs General'!$A$43,S$8,S$9))*'DNSP Inputs General'!$D53 -> 130.1004514 | T18: =IF('DNSP Inputs General'!$B53='DNSP Inputs General'!$A$42,T$7,IF('DNSP Inputs General'!$B53='DNSP Inputs General'!$A$43,T$8,T$9))*'DNSP Inputs General'!$D53 -> 131.6201101 | V18: 2.842170943e-14 | W18: 1.421085472e-14 | X18: 0 | Y18: 2.842170943e-14 | Z18: 2.842170943e-14
A19: ='DNSP Inputs General'!A54 -> HP Sodium 50W | C19: ='DNSP Inputs General'!E54 -> 46.14 | D19: =IF('DNSP Inputs General'!$B54='DNSP Inputs General'!$A$42,D$7,IF('DNSP Inputs General'!$B54='DNSP Inputs General'!$A$43,D$8,D$9))*'DNSP Inputs General'!$D54 -> 50.30291312 | E19: =IF('DNSP Inputs General'!$B54='DNSP Inputs General'!$A$42,E$7,IF('DNSP Inputs General'!$B54='DNSP Inputs General'!$A$43,E$8,E$9))*'DNSP Inputs General'!$D54 -> 51.37587742 | F19: =IF('DNSP Inputs General'!$B54='DNSP Inputs General'!$A$42,F$7,IF('DNSP Inputs General'!$B54='DNSP Inputs General'!$A$43,F$8,F$9))*'DNSP Inputs General'!$D54 -> 52.67208775 | G19: =IF('DNSP Inputs General'!$B54='DNSP Inputs General'!$A$42,G$7,IF('DNSP Inputs General'!$B54='DNSP Inputs General'!$A$43,G$8,G$9))*'DNSP Inputs General'!$D54 -> 56.05021251 | H19: =IF('DNSP Inputs General'!$B54='DNSP Inputs General'!$A$42,H$7,IF('DNSP Inputs General'!$B54='DNSP Inputs General'!$A$43,H$8,H$9))*'DNSP Inputs General'!$D54 -> 57.21345809 | J19: =IF('DNSP Inputs General'!$B54='DNSP Inputs General'!$A$42,J$7,IF('DNSP Inputs General'!$B54='DNSP Inputs General'!$A$43,J$8,J$9))*'DNSP Inputs General'!$D54 -> 32.35901239 | K19: =IF('DNSP Inputs General'!$B54='DNSP Inputs General'!$A$42,K$7,IF('DNSP Inputs General'!$B54='DNSP Inputs General'!$A$43,K$8,K$9))*'DNSP Inputs General'!$D54 -> 33.14743032 | L19: =IF('DNSP Inputs General'!$B54='DNSP Inputs General'!$A$42,L$7,IF('DNSP Inputs General'!$B54='DNSP Inputs General'!$A$43,L$8,L$9))*'DNSP Inputs General'!$D54 -> 33.94264434 | M19: =IF('DNSP Inputs General'!$B54='DNSP Inputs General'!$A$42,M$7,IF('DNSP Inputs General'!$B54='DNSP Inputs General'!$A$43,M$8,M$9))*'DNSP Inputs General'!$D54 -> 34.78660058 | N19: =IF('DNSP Inputs General'!$B54='DNSP Inputs General'!$A$42,N$7,IF('DNSP Inputs General'!$B54='DNSP Inputs General'!$A$43,N$8,N$9))*'DNSP Inputs General'!$D54 -> 35.70147321 | P19: =IF('DNSP Inputs General'!$B54='DNSP Inputs General'!$A$42,P$7,IF('DNSP Inputs General'!$B54='DNSP Inputs General'!$A$43,P$8,P$9))*'DNSP Inputs General'!$D54 -> 17.94390072 | Q19: =IF('DNSP Inputs General'!$B54='DNSP Inputs General'!$A$42,Q$7,IF('DNSP Inputs General'!$B54='DNSP Inputs General'!$A$43,Q$8,Q$9))*'DNSP Inputs General'!$D54 -> 18.2284471 | R19: =IF('DNSP Inputs General'!$B54='DNSP Inputs General'!$A$42,R$7,IF('DNSP Inputs General'!$B54='DNSP Inputs General'!$A$43,R$8,R$9))*'DNSP Inputs General'!$D54 -> 18.72944341 | S19: =IF('DNSP Inputs General'!$B54='DNSP Inputs General'!$A$42,S$7,IF('DNSP Inputs General'!$B54='DNSP Inputs General'!$A$43,S$8,S$9))*'DNSP Inputs General'!$D54 -> 21.26361193 | T19: =IF('DNSP Inputs General'!$B54='DNSP Inputs General'!$A$42,T$7,IF('DNSP Inputs General'!$B54='DNSP Inputs General'!$A$43,T$8,T$9))*'DNSP Inputs General'!$D54 -> 21.51198488 | V19: 3.552713679e-15 | W19: 3.552713679e-15 | X19: 3.552713679e-15 | Y19: 1.065814104e-14 | Z19: 3.552713679e-15
A22: ='DNSP Inputs General'!A$68 -> Energy Efficient Lights
A23: ='DNSP Inputs General'!A69 -> T5 2X14W | C23: ='DNSP Inputs General'!E69 -> 35.6 | D23: ='Charges Summary'!D$89 -> 51.71446209 | E23: ='Charges Summary'!E$89 -> 54.68734999 | F23: ='Charges Summary'!F$89 -> 57.30227085 | G23: ='Charges Summary'!G$89 -> 59.71188018 | H23: ='Charges Summary'!H$89 -> 61.71523463 | J23: =SUM('Charges Summary'!D83,'Charges Summary'!D8) -> 32.40524504 | K23: =SUM('Charges Summary'!E83,'Charges Summary'!E8) -> 33.16916122 | L23: =SUM('Charges Summary'!F83,'Charges Summary'!F8) -> 33.93839318 | M23: =SUM('Charges Summary'!G83,'Charges Summary'!G8) -> 34.75347906 | N23: =SUM('Charges Summary'!H83,'Charges Summary'!H8) -> 35.63234263 | P23: =SUM('Charges Summary'!D85,'Charges Summary'!D11) -> 19.30921705 | Q23: =SUM('Charges Summary'!E85,'Charges Summary'!E11) -> 21.51818877 | R23: =SUM('Charges Summary'!F85,'Charges Summary'!F11) -> 23.36387767 | S23: =SUM('Charges Summary'!G85,'Charges Summary'!G11) -> 24.95840111 | T23: =SUM('Charges Summary'!H85,'Charges Summary'!H11) -> 26.082892 | V23: =ABS(D23-J23-P23) -> 3.552713679e-15 | W23: =ABS(E23-K23-Q23) -> 0 | X23: =ABS(F23-L23-R23) -> 3.552713679e-15 | Y23: =ABS(G23-M23-S23) -> 0 | Z23: =ABS(H23-N23-T23) -> 0
A24: ='DNSP Inputs General'!A70 -> T5 2X24W | C24: ='DNSP Inputs General'!E70 -> 42.08 | D24: ='Charges Summary'!D$105 -> 55.21785853 | E24: ='Charges Summary'!E$105 -> 58.31702573 | F24: ='Charges Summary'!F$105 -> 61.05061357 | G24: ='Charges Summary'!G$105 -> 63.57708705 | H24: ='Charges Summary'!H$105 -> 65.69333383 | J24: =SUM('Charges Summary'!D99,'Charges Summary'!D8) -> 35.71889209 | K24: =SUM('Charges Summary'!E99,'Charges Summary'!E8) -> 36.56378593 | L24: =SUM('Charges Summary'!F99,'Charges Summary'!F8) -> 37.41478661 | M24: =SUM('Charges Summary'!G99,'Charges Summary'!G8) -> 38.31653515 | N24: =SUM('Charges Summary'!H99,'Charges Summary'!H8) -> 39.28951367 | P24: =SUM('Charges Summary'!D101,'Charges Summary'!D11) -> 19.49896644 | Q24: =SUM('Charges Summary'!E101,'Charges Summary'!E11) -> 21.7532398 | R24: =SUM('Charges Summary'!F101,'Charges Summary'!F11) -> 23.63582695 | S24: =SUM('Charges Summary'!G101,'Charges Summary'!G11) -> 25.2605519 | T24: =SUM('Charges Summary'!H101,'Charges Summary'!H11) -> 26.40382017 | V24: 0 | W24: 0 | X24: 0 | Y24: 7.105427358e-15 | Z24: 7.105427358e-15
A25: ='DNSP Inputs General'!A71 -> LED 18W | C25: ='DNSP Inputs General'!E71 -> 16.27 | D25: ='Charges Summary'!D$121 -> 29.45708821 | E25: ='Charges Summary'!E$121 -> 31.56774473 | F25: ='Charges Summary'!F$121 -> 33.38134841 | G25: ='Charges Summary'!G$121 -> 35.0116067 | H25: ='Charges Summary'!H$121 -> 36.27870205 | J25: =SUM('Charges Summary'!D115,'Charges Summary'!D8) -> 11.63572167 | K25: =SUM('Charges Summary'!E115,'Charges Summary'!E8) -> 11.89262279 | L25: =SUM('Charges Summary'!F115,'Charges Summary'!F8) -> 12.14986175 | M25: =SUM('Charges Summary'!G115,'Charges Summary'!G8) -> 12.42241061 | N25: =SUM('Charges Summary'!H115,'Charges Summary'!H8) -> 12.71225103 | P25: =SUM('Charges Summary'!D117,'Charges Summary'!D11) -> 17.82136653 | Q25: =SUM('Charges Summary'!E117,'Charges Summary'!E11) -> 19.67512194 | R25: =SUM('Charges Summary'!F117,'Charges Summary'!F11) -> 21.23148666 | S25: =SUM('Charges Summary'!G117,'Charges Summary'!G11) -> 22.58919609 | T25: =SUM('Charges Summary'!H117,'Charges Summary'!H11) -> 23.56645101 | V25: 0 | W25: 3.552713679e-15 | X25: 0 | Y25: 3.552713679e-15 | Z25: 0
A26: ='DNSP Inputs General'!A72 -> LED 14W | C26: ='DNSP Inputs General'!E72 -> 16.27 | D26: ='Charges Summary'!D$137 -> 31.27586507 | E26: ='Charges Summary'!E$137 -> 33.4293901 | F26: ='Charges Summary'!F$137 -> 35.28635365 | G26: ='Charges Summary'!G$137 -> 36.9622783 | H26: ='Charges Summary'!H$137 -> 38.2784794 | J26: =SUM('Charges Summary'!D131,'Charges Summary'!D$8) -> 13.45449854 | K26: =SUM('Charges Summary'!E131,'Charges Summary'!E$8) -> 13.75426816 | L26: =SUM('Charges Summary'!F131,'Charges Summary'!F$8) -> 14.05486699 | M26: =SUM('Charges Summary'!G131,'Charges Summary'!G$8) -> 14.37308221 | N26: =SUM('Charges Summary'!H131,'Charges Summary'!H$8) -> 14.71202839 | P26: =SUM('Charges Summary'!D133,'Charges Summary'!D$11) -> 17.82136653 | Q26: =SUM('Charges Summary'!E133,'Charges Summary'!E$11) -> 19.67512194 | R26: =SUM('Charges Summary'!F133,'Charges Summary'!F$11) -> 21.23148666 | S26: =SUM('Charges Summary'!G133,'Charges Summary'!G$11) -> 22.58919609 | T26: =SUM('Charges Summary'!H133,'Charges Summary'!H$11) -> 23.56645101 | V26: =ABS(D26-J26-P26) -> 0 | W26: =ABS(E26-K26-Q26) -> 3.552713679e-15 | X26: =ABS(F26-L26-R26) -> 0 | Y26: =ABS(G26-M26-S26) -> 3.552713679e-15 | Z26: =ABS(H26-N26-T26) -> 7.105427358e-15
A27: ='DNSP Inputs General'!A73 -> LED 70W-125W (L1) | C27: ='DNSP Inputs General'!E73 -> 23.59 | D27: ='Charges Summary'!D$153 -> 45.36310793 | E27: ='Charges Summary'!E$153 -> 49.01525907 | F27: ='Charges Summary'!F$153 -> 52.13747317 | G27: ='Charges Summary'!G$153 -> 54.90884025 | H27: ='Charges Summary'!H$153 -> 57.02846585 | J27: =SUM('Charges Summary'!D147,'Charges Summary'!D$8) -> 22.23952447 | K27: =SUM('Charges Summary'!E147,'Charges Summary'!E$8) -> 22.77204443 | L27: =SUM('Charges Summary'!F147,'Charges Summary'!F$8) -> 23.30683621 | M27: =SUM('Charges Summary'!G147,'Charges Summary'!G$8) -> 23.87656547 | N27: =SUM('Charges Summary'!H147,'Charges Summary'!H$8) -> 24.4942349 | P27: =SUM('Charges Summary'!D149,'Charges Summary'!D$11) -> 23.12358346 | Q27: =SUM('Charges Summary'!E149,'Charges Summary'!E$11) -> 26.24321465 | R27: =SUM('Charges Summary'!F149,'Charges Summary'!F$11) -> 28.83063696 | S27: =SUM('Charges Summary'!G149,'Charges Summary'!G$11) -> 31.03227478 | T27: =SUM('Charges Summary'!H149,'Charges Summary'!H$11) -> 32.53423094 | V27: 0 | W27: 3.552713679e-15 | X27: 3.552713679e-15 | Y27: 0 | Z27: 0
A28: ='DNSP Inputs General'!A74 -> LED 155W-250W (L2) | C28: ='DNSP Inputs General'!E74 -> 24.3 | D28: ='Charges Summary'!D$169 -> 46.0359781 | E28: ='Charges Summary'!E$169 -> 49.84877338 | F28: ='Charges Summary'!F$169 -> 53.10183235 | G28: ='Charges Summary'!G$169 -> 55.98029694 | H28: ='Charges Summary'!H$169 -> 58.16650898 | J28: =SUM('Charges Summary'!D163,'Charges Summary'!D$8) -> 22.23952447 | K28: =SUM('Charges Summary'!E163,'Charges Summary'!E$8) -> 22.77204443 | L28: =SUM('Charges Summary'!F163,'Charges Summary'!F$8) -> 23.30683621 | M28: =SUM('Charges Summary'!G163,'Charges Summary'!G$8) -> 23.87656547 | N28: =SUM('Charges Summary'!H163,'Charges Summary'!H$8) -> 24.4942349 | P28: =SUM('Charges Summary'!D165,'Charges Summary'!D$11) -> 23.79645363 | Q28: =SUM('Charges Summary'!E165,'Charges Summary'!E$11) -> 27.07672895 | R28: =SUM('Charges Summary'!F165,'Charges Summary'!F$11) -> 29.79499614 | S28: =SUM('Charges Summary'!G165,'Charges Summary'!G$11) -> 32.10373147 | T28: =SUM('Charges Summary'!H165,'Charges Summary'!H$11) -> 33.67227408 | V28: 0 | W28: 3.552713679e-15 | X28: 3.552713679e-15 | Y28: 0 | Z28: 0
A29: ='DNSP Inputs General'!A75 -> LED 275W-400W (L4) | C29: ='DNSP Inputs General'!E75 -> 25.83 | D29: ='Charges Summary'!D$185 -> 52.06166504 | E29: ='Charges Summary'!E$185 -> 57.31306066 | F29: ='Charges Summary'!F$185 -> 61.73786164 | G29: ='Charges Summary'!G$185 -> 65.57540586 | H29: ='Charges Summary'!H$185 -> 68.3579129 | J29: =SUM('Charges Summary'!D179,'Charges Summary'!D$8) -> 22.23952447 | K29: =SUM('Charges Summary'!E179,'Charges Summary'!E$8) -> 22.77204443 | L29: =SUM('Charges Summary'!F179,'Charges Summary'!F$8) -> 23.30683621 | M29: =SUM('Charges Summary'!G179,'Charges Summary'!G$8) -> 23.87656547 | N29: =SUM('Charges Summary'!H179,'Charges Summary'!H$8) -> 24.4942349 | P29: =SUM('Charges Summary'!D181,'Charges Summary'!D$11) -> 29.82214057 | Q29: =SUM('Charges Summary'!E181,'Charges Summary'!E$11) -> 34.54101623 | R29: =SUM('Charges Summary'!F181,'Charges Summary'!F$11) -> 38.43102542 | S29: =SUM('Charges Summary'!G181,'Charges Summary'!G$11) -> 41.69884039 | T29: =SUM('Charges Summary'!H181,'Charges Summary'!H$11) -> 43.86367799 | V29: 3.552713679e-15 | W29: 0 | X29: 7.105427358e-15 | Y29: 1.421085472e-14 | Z29: 0
A30: ='DNSP Inputs General'!A76 -> Compact Fluorescent 32W | C30: ='DNSP Inputs General'!E76 -> 31.59 | D30: =IF('DNSP Inputs General'!$B76='DNSP Inputs General'!$A$69,D$23,D$24)*'DNSP Inputs General'!$D76 -> 45.48855244 | E30: =IF('DNSP Inputs General'!$B76='DNSP Inputs General'!$A$69,E$23,E$24)*'DNSP Inputs General'!$D76 -> 48.10353405 | F30: =IF('DNSP Inputs General'!$B76='DNSP Inputs General'!$A$69,F$23,F$24)*'DNSP Inputs General'!$D76 -> 50.4036443 | G30: =IF('DNSP Inputs General'!$B76='DNSP Inputs General'!$A$69,G$23,G$24)*'DNSP Inputs General'!$D76 -> 52.52316051 | H30: =IF('DNSP Inputs General'!$B76='DNSP Inputs General'!$A$69,H$23,H$24)*'DNSP Inputs General'!$D76 -> 54.2853309 | J30: =IF('DNSP Inputs General'!$B76='DNSP Inputs General'!$A$69,J$23,J$24)*'DNSP Inputs General'!$D76 -> 28.50397411 | K30: =IF('DNSP Inputs General'!$B76='DNSP Inputs General'!$A$69,K$23,K$24)*'DNSP Inputs General'!$D76 -> 29.17592234 | L30: =IF('DNSP Inputs General'!$B76='DNSP Inputs General'!$A$69,L$23,L$24)*'DNSP Inputs General'!$D76 -> 29.85254638 | M30: =IF('DNSP Inputs General'!$B76='DNSP Inputs General'!$A$69,M$23,M$24)*'DNSP Inputs General'!$D76 -> 30.56950398 | N30: =IF('DNSP Inputs General'!$B76='DNSP Inputs General'!$A$69,N$23,N$24)*'DNSP Inputs General'!$D76 -> 31.34256107 | P30: =IF('DNSP Inputs General'!$B76='DNSP Inputs General'!$A$69,P$23,P$24)*'DNSP Inputs General'!$D76 -> 16.98457834 | Q30: =IF('DNSP Inputs General'!$B76='DNSP Inputs General'!$A$69,Q$23,Q$24)*'DNSP Inputs General'!$D76 -> 18.92761171 | R30: =IF('DNSP Inputs General'!$B76='DNSP Inputs General'!$A$69,R$23,R$24)*'DNSP Inputs General'!$D76 -> 20.55109792 | S30: =IF('DNSP Inputs General'!$B76='DNSP Inputs General'!$A$69,S$23,S$24)*'DNSP Inputs General'!$D76 -> 21.95365652 | T30: =IF('DNSP Inputs General'!$B76='DNSP Inputs General'!$A$69,T$23,T$24)*'DNSP Inputs General'!$D76 -> 22.94276983 | V30: 3.552713679e-15 | W30: 3.552713679e-15 | X30: 3.552713679e-15 | Y30: 0 | Z30: 0
A31: ='DNSP Inputs General'!A77 -> Compact Fluorescent 42W | C31: ='DNSP Inputs General'!E77 -> 31.59 | D31: =IF('DNSP Inputs General'!$B77='DNSP Inputs General'!$A$69,D$23,D$24)*'DNSP Inputs General'!$D77 -> 45.48855244 | E31: =IF('DNSP Inputs General'!$B77='DNSP Inputs General'!$A$69,E$23,E$24)*'DNSP Inputs General'!$D77 -> 48.10353405 | F31: =IF('DNSP Inputs General'!$B77='DNSP Inputs General'!$A$69,F$23,F$24)*'DNSP Inputs General'!$D77 -> 50.4036443 | G31: =IF('DNSP Inputs General'!$B77='DNSP Inputs General'!$A$69,G$23,G$24)*'DNSP Inputs General'!$D77 -> 52.52316051 | H31: =IF('DNSP Inputs General'!$B77='DNSP Inputs General'!$A$69,H$23,H$24)*'DNSP Inputs General'!$D77 -> 54.2853309 | J31: =IF('DNSP Inputs General'!$B77='DNSP Inputs General'!$A$69,J$23,J$24)*'DNSP Inputs General'!$D77 -> 28.50397411 | K31: =IF('DNSP Inputs General'!$B77='DNSP Inputs General'!$A$69,K$23,K$24)*'DNSP Inputs General'!$D77 -> 29.17592234 | L31: =IF('DNSP Inputs General'!$B77='DNSP Inputs General'!$A$69,L$23,L$24)*'DNSP Inputs General'!$D77 -> 29.85254638 | M31: =IF('DNSP Inputs General'!$B77='DNSP Inputs General'!$A$69,M$23,M$24)*'DNSP Inputs General'!$D77 -> 30.56950398 | N31: =IF('DNSP Inputs General'!$B77='DNSP Inputs General'!$A$69,N$23,N$24)*'DNSP Inputs General'!$D77 -> 31.34256107 | P31: =IF('DNSP Inputs General'!$B77='DNSP Inputs General'!$A$69,P$23,P$24)*'DNSP Inputs General'!$D77 -> 16.98457834 | Q31: =IF('DNSP Inputs General'!$B77='DNSP Inputs General'!$A$69,Q$23,Q$24)*'DNSP Inputs General'!$D77 -> 18.92761171 | R31: =IF('DNSP Inputs General'!$B77='DNSP Inputs General'!$A$69,R$23,R$24)*'DNSP Inputs General'!$D77 -> 20.55109792 | S31: =IF('DNSP Inputs General'!$B77='DNSP Inputs General'!$A$69,S$23,S$24)*'DNSP Inputs General'!$D77 -> 21.95365652 | T31: =IF('DNSP Inputs General'!$B77='DNSP Inputs General'!$A$69,T$23,T$24)*'DNSP Inputs General'!$D77 -> 22.94276983 | V31: 3.552713679e-15 | W31: 3.552713679e-15 | X31: 3.552713679e-15 | Y31: 0 | Z31: 0
A32: ='DNSP Inputs General'!A78 -> Smart lighting L1 | C32: ='DNSP Inputs General'!E78 -> 25.83 | D32: ='Charges Summary'!D$201 -> 59.98039629 | E32: ='Charges Summary'!E$201 -> 63.94559634 | F32: ='Charges Summary'!F$201 -> 67.38594923 | G32: ='Charges Summary'!G$201 -> 70.48641794 | H32: ='Charges Summary'!H$201 -> 72.94980159 | J32: =SUM('Charges Summary'!D$195,'Charges Summary'!D$8) -> 36.85681282 | K32: =SUM('Charges Summary'!E$195,'Charges Summary'!E$8) -> 37.70238169 | L32: =SUM('Charges Summary'!F$195,'Charges Summary'!F$8) -> 38.55531227 | M32: =SUM('Charges Summary'!G$195,'Charges Summary'!G$8) -> 39.45414315 | N32: =SUM('Charges Summary'!H$195,'Charges Summary'!H$8) -> 40.41557065 | P32: =SUM('Charges Summary'!D$197,'Charges Summary'!D$11) -> 23.12358346 | Q32: =SUM('Charges Summary'!E$197,'Charges Summary'!E$11) -> 26.24321465 | R32: =SUM('Charges Summary'!F$197,'Charges Summary'!F$11) -> 28.83063696 | S32: =SUM('Charges Summary'!G$197,'Charges Summary'!G$11) -> 31.03227478 | T32: =SUM('Charges Summary'!H$197,'Charges Summary'!H$11) -> 32.53423094 | V32: =ABS(D32-J32-P32) -> 0 | W32: =ABS(E32-K32-Q32) -> 7.105427358e-15 | X32: =ABS(F32-L32-R32) -> 3.552713679e-15 | Y32: =ABS(G32-M32-S32) -> 3.552713679e-15 | Z32: =ABS(H32-N32-T32) -> 0
A33: ='DNSP Inputs General'!A79 -> Smart lighting L2 | C33: ='DNSP Inputs General'!E79 -> 25.83 | D33: ='Charges Summary'!D$217 -> 60.65326646 | E33: ='Charges Summary'!E$217 -> 64.77911065 | F33: ='Charges Summary'!F$217 -> 68.35030841 | G33: ='Charges Summary'!G$217 -> 71.55787462 | H33: ='Charges Summary'!H$217 -> 74.08784473 | J33: =SUM('Charges Summary'!D$211,'Charges Summary'!D$8) -> 36.85681282 | K33: =SUM('Charges Summary'!E$211,'Charges Summary'!E$8) -> 37.70238169 | L33: =SUM('Charges Summary'!F$211,'Charges Summary'!F$8) -> 38.55531227 | M33: =SUM('Charges Summary'!G$211,'Charges Summary'!G$8) -> 39.45414315 | N33: =SUM('Charges Summary'!H$211,'Charges Summary'!H$8) -> 40.41557065 | P33: =SUM('Charges Summary'!D$213,'Charges Summary'!D$11) -> 23.79645363 | Q33: =SUM('Charges Summary'!E$213,'Charges Summary'!E$11) -> 27.07672895 | R33: =SUM('Charges Summary'!F$213,'Charges Summary'!F$11) -> 29.79499614 | S33: =SUM('Charges Summary'!G$213,'Charges Summary'!G$11) -> 32.10373147 | T33: =SUM('Charges Summary'!H$213,'Charges Summary'!H$11) -> 33.67227408 | V33: 0 | W33: 0 | X33: 3.552713679e-15 | Y33: 7.105427358e-15 | Z33: 1.421085472e-14
A34: ='DNSP Inputs General'!A80 -> Smart lighting L4 | C34: ='DNSP Inputs General'!E80 -> 25.83 | D34: ='Charges Summary'!D$233 -> 66.67895339 | E34: ='Charges Summary'!E$233 -> 72.24339793 | F34: ='Charges Summary'!F$233 -> 76.98633769 | G34: ='Charges Summary'!G$233 -> 81.15298355 | H34: ='Charges Summary'!H$233 -> 84.27924864 | J34: =SUM('Charges Summary'!D$227,'Charges Summary'!D$8) -> 36.85681282 | K34: =SUM('Charges Summary'!E$227,'Charges Summary'!E$8) -> 37.70238169 | L34: =SUM('Charges Summary'!F$227,'Charges Summary'!F$8) -> 38.55531227 | M34: =SUM('Charges Summary'!G$227,'Charges Summary'!G$8) -> 39.45414315 | N34: =SUM('Charges Summary'!H$227,'Charges Summary'!H$8) -> 40.41557065 | P34: =SUM('Charges Summary'!D$229,'Charges Summary'!D$11) -> 29.82214057 | Q34: =SUM('Charges Summary'!E$229,'Charges Summary'!E$11) -> 34.54101623 | R34: =SUM('Charges Summary'!F$229,'Charges Summary'!F$11) -> 38.43102542 | S34: =SUM('Charges Summary'!G$229,'Charges Summary'!G$11) -> 41.69884039 | T34: =SUM('Charges Summary'!H$229,'Charges Summary'!H$11) -> 43.86367799 | V34: 1.065814104e-14 | W34: 7.105427358e-15 | X34: 0 | Y34: 7.105427358e-15 | Z34: 0
D37: ='DNSP Inputs General'!$B$86 -> North & East
A38: Public Lighting Tariffs | C38: Total Tariff | J38: Operations, maintenance and repair Tariff | P38: Replacement Tariff | V38: Check
C39: Actual
A40: ='DNSP Inputs General'!A$88 -> Existing Lights | C40: ='DNSP Inputs General'!P$2 -> HY2021 | D40: ='DNSP Inputs General'!Q$2 -> 44742 | E40: ='DNSP Inputs General'!R$2 -> 45107 | F40: ='DNSP Inputs General'!S$2 -> 45473 | G40: ='DNSP Inputs General'!T$2 -> 45838 | H40: ='DNSP Inputs General'!U$2 -> 46203 | J40: =D40 -> 44742 | K40: =E40 -> 45107 | L40: 45473 | M40: 45838 | N40: 46203 | P40: =J40 -> 44742 | Q40: =K40 -> 45107 | R40: 45473 | S40: 45838 | T40: 46203 | V40: =P40 -> 44742 | W40: =Q40 -> 45107 | X40: =R40 -> 45473 | Y40: =S40 -> 45838 | Z40: =T40 -> 46203
A41: ='DNSP Inputs General'!A89 -> Mercury Vapour 80W | C41: ='DNSP Inputs General'!E89 -> 49.95 | D41: ='Charges Summary'!K$31 -> 67.48176672 | E41: ='Charges Summary'!L$31 -> 68.78045681 | F41: ='Charges Summary'!M$31 -> 69.44077522 | G41: ='Charges Summary'!N$31 -> 75.21704389 | H41: ='Charges Summary'!O$31 -> 76.52383806 | J41: =SUM('Charges Summary'!K25,'Charges Summary'!K8) -> 29.41257607 | K41: =SUM('Charges Summary'!L25,'Charges Summary'!L8) -> 30.08358415 | L41: =SUM('Charges Summary'!M25,'Charges Summary'!M8) -> 30.75991012 | M41: =SUM('Charges Summary'!N25,'Charges Summary'!N8) -> 31.47291246 | N41: =SUM('Charges Summary'!O25,'Charges Summary'!O8) -> 32.23480504 | P41: =SUM('Charges Summary'!K27,'Charges Summary'!K11) -> 38.06919065 | Q41: =SUM('Charges Summary'!L27,'Charges Summary'!L11) -> 38.69687266 | R41: =SUM('Charges Summary'!M27,'Charges Summary'!M11) -> 38.6808651 | S41: =SUM('Charges Summary'!N27,'Charges Summary'!N11) -> 43.74413142 | T41: =SUM('Charges Summary'!O27,'Charges Summary'!O11) -> 44.28903302 | V41: =ABS(D41-J41-P41) -> 7.105427358e-15 | W41: =ABS(E41-K41-Q41) -> 0 | X41: =ABS(F41-L41-R41) -> 7.105427358e-15 | Y41: =ABS(G41-M41-S41) -> 0 | Z41: =ABS(H41-N41-T41) -> 0
A42: ='DNSP Inputs General'!A90 -> HP Sodium 150W | C42: ='DNSP Inputs General'!E90 -> 118.4 | D42: ='Charges Summary'!K$55 -> 132.7989795 | E42: ='Charges Summary'!L$55 -> 135.667877 | F42: ='Charges Summary'!M$55 -> 136.8994464 | G42: ='Charges Summary'!N$55 -> 144.9974207 | H42: ='Charges Summary'!O$55 -> 148.1448664 | J42: =SUM('Charges Summary'!K49,'Charges Summary'!K8) -> 90.15699606 | K42: =SUM('Charges Summary'!L49,'Charges Summary'!L8) -> 92.38111139 | L42: =SUM('Charges Summary'!M49,'Charges Summary'!M8) -> 94.62665282 | M42: =SUM('Charges Summary'!N49,'Charges Summary'!N8) -> 97.01101985 | N42: =SUM('Charges Summary'!O49,'Charges Summary'!O8) -> 99.59754568 | P42: =SUM('Charges Summary'!K51,'Charges Summary'!K11) -> 42.64198343 | Q42: =SUM('Charges Summary'!L51,'Charges Summary'!L11) -> 43.28676564 | R42: =SUM('Charges Summary'!M51,'Charges Summary'!M11) -> 42.27279355 | S42: =SUM('Charges Summary'!N51,'Charges Summary'!N11) -> 47.98640081 | T42: =SUM('Charges Summary'!O51,'Charges Summary'!O11) -> 48.54732076 | V42: =ABS(D42-J42-P42) -> 0 | W42: 1.421085472e-14 | X42: 0 | Y42: 1.421085472e-14 | Z42: 0
A43: ='DNSP Inputs General'!A91 -> HP Sodium 250W | C43: ='DNSP Inputs General'!E91 -> 117.12 | D43: ='Charges Summary'!K$71 -> 132.5755566 | E43: ='Charges Summary'!L$71 -> 135.5199664 | F43: ='Charges Summary'!M$71 -> 137.2431629 | G43: ='Charges Summary'!N$71 -> 145.4339823 | H43: ='Charges Summary'!O$71 -> 148.5344731 | J43: =SUM('Charges Summary'!K65,'Charges Summary'!K8) -> 89.71036389 | K43: =SUM('Charges Summary'!L65,'Charges Summary'!L8) -> 92.0091568 | L43: =SUM('Charges Summary'!M65,'Charges Summary'!M8) -> 94.21540953 | M43: =SUM('Charges Summary'!N65,'Charges Summary'!N8) -> 96.55593143 | N43: =SUM('Charges Summary'!O65,'Charges Summary'!O8) -> 99.09213553 | P43: =SUM('Charges Summary'!K67,'Charges Summary'!K11) -> 42.86519272 | Q43: =SUM('Charges Summary'!L67,'Charges Summary'!L11) -> 43.51080963 | R43: =SUM('Charges Summary'!M67,'Charges Summary'!M11) -> 43.02775341 | S43: =SUM('Charges Summary'!N67,'Charges Summary'!N11) -> 48.87805083 | T43: =SUM('Charges Summary'!O67,'Charges Summary'!O11) -> 49.44233755 | V43: 0 | W43: 0 | X43: 1.421085472e-14 | Y43: 7.105427358e-15 | Z43: 7.105427358e-15
A44: ='DNSP Inputs General'!A92 -> Mercury Vapour 50W | C44: ='DNSP Inputs General'!E92 -> 73.93 | D44: =IF('DNSP Inputs General'!$B92='DNSP Inputs General'!$A$89,D$41,IF('DNSP Inputs General'!$B92='DNSP Inputs General'!$A$90,D$42,D$43))*'DNSP Inputs General'!$D92 -> 99.87301475 | E44: =IF('DNSP Inputs General'!$B92='DNSP Inputs General'!$A$89,E$41,IF('DNSP Inputs General'!$B92='DNSP Inputs General'!$A$90,E$42,E$43))*'DNSP Inputs General'!$D92 -> 101.7950761 | F44: =IF('DNSP Inputs General'!$B92='DNSP Inputs General'!$A$89,F$41,IF('DNSP Inputs General'!$B92='DNSP Inputs General'!$A$90,F$42,F$43))*'DNSP Inputs General'!$D92 -> 102.7723473 | G44: =IF('DNSP Inputs General'!$B92='DNSP Inputs General'!$A$89,G$41,IF('DNSP Inputs General'!$B92='DNSP Inputs General'!$A$90,G$42,G$43))*'DNSP Inputs General'!$D92 -> 111.321225 | H44: =IF('DNSP Inputs General'!$B92='DNSP Inputs General'!$A$89,H$41,IF('DNSP Inputs General'!$B92='DNSP Inputs General'!$A$90,H$42,H$43))*'DNSP Inputs General'!$D92 -> 113.2552803 | J44: =IF('DNSP Inputs General'!$B92='DNSP Inputs General'!$A$89,J$41,IF('DNSP Inputs General'!$B92='DNSP Inputs General'!$A$90,J$42,J$43))*'DNSP Inputs General'!$D92 -> 43.53061259 | K44: =IF('DNSP Inputs General'!$B92='DNSP Inputs General'!$A$89,K$41,IF('DNSP Inputs General'!$B92='DNSP Inputs General'!$A$90,K$42,K$43))*'DNSP Inputs General'!$D92 -> 44.52370454 | L44: =IF('DNSP Inputs General'!$B92='DNSP Inputs General'!$A$89,L$41,IF('DNSP Inputs General'!$B92='DNSP Inputs General'!$A$90,L$42,L$43))*'DNSP Inputs General'!$D92 -> 45.52466698 | M44: =IF('DNSP Inputs General'!$B92='DNSP Inputs General'!$A$89,M$41,IF('DNSP Inputs General'!$B92='DNSP Inputs General'!$A$90,M$42,M$43))*'DNSP Inputs General'!$D92 -> 46.57991045 | N44: =IF('DNSP Inputs General'!$B92='DNSP Inputs General'!$A$89,N$41,IF('DNSP Inputs General'!$B92='DNSP Inputs General'!$A$90,N$42,N$43))*'DNSP Inputs General'!$D92 -> 47.70751146 | P44: =IF('DNSP Inputs General'!$B92='DNSP Inputs General'!$A$89,P$41,IF('DNSP Inputs General'!$B92='DNSP Inputs General'!$A$90,P$42,P$43))*'DNSP Inputs General'!$D92 -> 56.34240216 | Q44: =IF('DNSP Inputs General'!$B92='DNSP Inputs General'!$A$89,Q$41,IF('DNSP Inputs General'!$B92='DNSP Inputs General'!$A$90,Q$42,Q$43))*'DNSP Inputs General'!$D92 -> 57.27137154 | R44: =IF('DNSP Inputs General'!$B92='DNSP Inputs General'!$A$89,R$41,IF('DNSP Inputs General'!$B92='DNSP Inputs General'!$A$90,R$42,R$43))*'DNSP Inputs General'!$D92 -> 57.24768035 | S44: =IF('DNSP Inputs General'!$B92='DNSP Inputs General'!$A$89,S$41,IF('DNSP Inputs General'!$B92='DNSP Inputs General'!$A$90,S$42,S$43))*'DNSP Inputs General'!$D92 -> 64.74131451 | T44: =IF('DNSP Inputs General'!$B92='DNSP Inputs General'!$A$89,T$41,IF('DNSP Inputs General'!$B92='DNSP Inputs General'!$A$90,T$42,T$43))*'DNSP Inputs General'!$D92 -> 65.54776887 | V44: 0 | W44: 7.105427358e-15 | X44: 1.421085472e-14 | Y44: 0 | Z44: 0
A45: ='DNSP Inputs General'!A93 -> Mercury Vapour 125W | C45: ='DNSP Inputs General'!E93 -> 73.93 | D45: =IF('DNSP Inputs General'!$B93='DNSP Inputs General'!$A$89,D$41,IF('DNSP Inputs General'!$B93='DNSP Inputs General'!$A$90,D$42,D$43))*'DNSP Inputs General'!$D93 -> 99.87301475 | E45: =IF('DNSP Inputs General'!$B93='DNSP Inputs General'!$A$89,E$41,IF('DNSP Inputs General'!$B93='DNSP Inputs General'!$A$90,E$42,E$43))*'DNSP Inputs General'!$D93 -> 101.7950761 | F45: =IF('DNSP Inputs General'!$B93='DNSP Inputs General'!$A$89,F$41,IF('DNSP Inputs General'!$B93='DNSP Inputs General'!$A$90,F$42,F$43))*'DNSP Inputs General'!$D93 -> 102.7723473 | G45: =IF('DNSP Inputs General'!$B93='DNSP Inputs General'!$A$89,G$41,IF('DNSP Inputs General'!$B93='DNSP Inputs General'!$A$90,G$42,G$43))*'DNSP Inputs General'!$D93 -> 111.321225 | H45: =IF('DNSP Inputs General'!$B93='DNSP Inputs General'!$A$89,H$41,IF('DNSP Inputs General'!$B93='DNSP Inputs General'!$A$90,H$42,H$43))*'DNSP Inputs General'!$D93 -> 113.2552803 | J45: =IF('DNSP Inputs General'!$B93='DNSP Inputs General'!$A$89,J$41,IF('DNSP Inputs General'!$B93='DNSP Inputs General'!$A$90,J$42,J$43))*'DNSP Inputs General'!$D93 -> 43.53061259 | K45: =IF('DNSP Inputs General'!$B93='DNSP Inputs General'!$A$89,K$41,IF('DNSP Inputs General'!$B93='DNSP Inputs General'!$A$90,K$42,K$43))*'DNSP Inputs General'!$D93 -> 44.52370454 | L45: =IF('DNSP Inputs General'!$B93='DNSP Inputs General'!$A$89,L$41,IF('DNSP Inputs General'!$B93='DNSP Inputs General'!$A$90,L$42,L$43))*'DNSP Inputs General'!$D93 -> 45.52466698 | M45: =IF('DNSP Inputs General'!$B93='DNSP Inputs General'!$A$89,M$41,IF('DNSP Inputs General'!$B93='DNSP Inputs General'!$A$90,M$42,M$43))*'DNSP Inputs General'!$D93 -> 46.57991045 | N45: =IF('DNSP Inputs General'!$B93='DNSP Inputs General'!$A$89,N$41,IF('DNSP Inputs General'!$B93='DNSP Inputs General'!$A$90,N$42,N$43))*'DNSP Inputs General'!$D93 -> 47.70751146 | P45: =IF('DNSP Inputs General'!$B93='DNSP Inputs General'!$A$89,P$41,IF('DNSP Inputs General'!$B93='DNSP Inputs General'!$A$90,P$42,P$43))*'DNSP Inputs General'!$D93 -> 56.34240216 | Q45: =IF('DNSP Inputs General'!$B93='DNSP Inputs General'!$A$89,Q$41,IF('DNSP Inputs General'!$B93='DNSP Inputs General'!$A$90,Q$42,Q$43))*'DNSP Inputs General'!$D93 -> 57.27137154 | R45: =IF('DNSP Inputs General'!$B93='DNSP Inputs General'!$A$89,R$41,IF('DNSP Inputs General'!$B93='DNSP Inputs General'!$A$90,R$42,R$43))*'DNSP Inputs General'!$D93 -> 57.24768035 | S45: =IF('DNSP Inputs General'!$B93='DNSP Inputs General'!$A$89,S$41,IF('DNSP Inputs General'!$B93='DNSP Inputs General'!$A$90,S$42,S$43))*'DNSP Inputs General'!$D93 -> 64.74131451 | T45: =IF('DNSP Inputs General'!$B93='DNSP Inputs General'!$A$89,T$41,IF('DNSP Inputs General'!$B93='DNSP Inputs General'!$A$90,T$42,T$43))*'DNSP Inputs General'!$D93 -> 65.54776887 | V45: 0 | W45: 7.105427358e-15 | X45: 1.421085472e-14 | Y45: 0 | Z45: 0
A46: ='DNSP Inputs General'!A94 -> Mercury Vapour 250W | C46: ='DNSP Inputs General'!E94 -> 121.81 | D46: =IF('DNSP Inputs General'!$B94='DNSP Inputs General'!$A$89,D$41,IF('DNSP Inputs General'!$B94='DNSP Inputs General'!$A$90,D$42,D$43))*'DNSP Inputs General'!$D94 -> 137.8785789 | E46: =IF('DNSP Inputs General'!$B94='DNSP Inputs General'!$A$89,E$41,IF('DNSP Inputs General'!$B94='DNSP Inputs General'!$A$90,E$42,E$43))*'DNSP Inputs General'!$D94 -> 140.9407651 | F46: =IF('DNSP Inputs General'!$B94='DNSP Inputs General'!$A$89,F$41,IF('DNSP Inputs General'!$B94='DNSP Inputs General'!$A$90,F$42,F$43))*'DNSP Inputs General'!$D94 -> 142.7328895 | G46: =IF('DNSP Inputs General'!$B94='DNSP Inputs General'!$A$89,G$41,IF('DNSP Inputs General'!$B94='DNSP Inputs General'!$A$90,G$42,G$43))*'DNSP Inputs General'!$D94 -> 151.2513415 | H46: =IF('DNSP Inputs General'!$B94='DNSP Inputs General'!$A$89,H$41,IF('DNSP Inputs General'!$B94='DNSP Inputs General'!$A$90,H$42,H$43))*'DNSP Inputs General'!$D94 -> 154.475852 | J46: =IF('DNSP Inputs General'!$B94='DNSP Inputs General'!$A$89,J$41,IF('DNSP Inputs General'!$B94='DNSP Inputs General'!$A$90,J$42,J$43))*'DNSP Inputs General'!$D94 -> 93.29877844 | K46: =IF('DNSP Inputs General'!$B94='DNSP Inputs General'!$A$89,K$41,IF('DNSP Inputs General'!$B94='DNSP Inputs General'!$A$90,K$42,K$43))*'DNSP Inputs General'!$D94 -> 95.68952308 | L46: =IF('DNSP Inputs General'!$B94='DNSP Inputs General'!$A$89,L$41,IF('DNSP Inputs General'!$B94='DNSP Inputs General'!$A$90,L$42,L$43))*'DNSP Inputs General'!$D94 -> 97.98402591 | M46: =IF('DNSP Inputs General'!$B94='DNSP Inputs General'!$A$89,M$41,IF('DNSP Inputs General'!$B94='DNSP Inputs General'!$A$90,M$42,M$43))*'DNSP Inputs General'!$D94 -> 100.4181687 | N46: =IF('DNSP Inputs General'!$B94='DNSP Inputs General'!$A$89,N$41,IF('DNSP Inputs General'!$B94='DNSP Inputs General'!$A$90,N$42,N$43))*'DNSP Inputs General'!$D94 -> 103.055821 | P46: =IF('DNSP Inputs General'!$B94='DNSP Inputs General'!$A$89,P$41,IF('DNSP Inputs General'!$B94='DNSP Inputs General'!$A$90,P$42,P$43))*'DNSP Inputs General'!$D94 -> 44.57980043 | Q46: =IF('DNSP Inputs General'!$B94='DNSP Inputs General'!$A$89,Q$41,IF('DNSP Inputs General'!$B94='DNSP Inputs General'!$A$90,Q$42,Q$43))*'DNSP Inputs General'!$D94 -> 45.25124202 | R46: =IF('DNSP Inputs General'!$B94='DNSP Inputs General'!$A$89,R$41,IF('DNSP Inputs General'!$B94='DNSP Inputs General'!$A$90,R$42,R$43))*'DNSP Inputs General'!$D94 -> 44.74886354 | S46: =IF('DNSP Inputs General'!$B94='DNSP Inputs General'!$A$89,S$41,IF('DNSP Inputs General'!$B94='DNSP Inputs General'!$A$90,S$42,S$43))*'DNSP Inputs General'!$D94 -> 50.83317286 | T46: =IF('DNSP Inputs General'!$B94='DNSP Inputs General'!$A$89,T$41,IF('DNSP Inputs General'!$B94='DNSP Inputs General'!$A$90,T$42,T$43))*'DNSP Inputs General'!$D94 -> 51.42003106 | V46: 0 | W46: 7.105427358e-15 | X46: 2.131628207e-14 | Y46: 7.105427358e-15 | Z46: 1.421085472e-14
A47: ='DNSP Inputs General'!A95 -> Mercury Vapour 400W | C47: ='DNSP Inputs General'!E95 -> 125.32 | D47: =IF('DNSP Inputs General'!$B95='DNSP Inputs General'!$A$89,D$41,IF('DNSP Inputs General'!$B95='DNSP Inputs General'!$A$90,D$42,D$43))*'DNSP Inputs General'!$D95 -> 141.8558456 | E47: =IF('DNSP Inputs General'!$B95='DNSP Inputs General'!$A$89,E$41,IF('DNSP Inputs General'!$B95='DNSP Inputs General'!$A$90,E$42,E$43))*'DNSP Inputs General'!$D95 -> 145.0063641 | F47: =IF('DNSP Inputs General'!$B95='DNSP Inputs General'!$A$89,F$41,IF('DNSP Inputs General'!$B95='DNSP Inputs General'!$A$90,F$42,F$43))*'DNSP Inputs General'!$D95 -> 146.8501843 | G47: =IF('DNSP Inputs General'!$B95='DNSP Inputs General'!$A$89,G$41,IF('DNSP Inputs General'!$B95='DNSP Inputs General'!$A$90,G$42,G$43))*'DNSP Inputs General'!$D95 -> 155.614361 | H47: =IF('DNSP Inputs General'!$B95='DNSP Inputs General'!$A$89,H$41,IF('DNSP Inputs General'!$B95='DNSP Inputs General'!$A$90,H$42,H$43))*'DNSP Inputs General'!$D95 -> 158.9318862 | J47: =IF('DNSP Inputs General'!$B95='DNSP Inputs General'!$A$89,J$41,IF('DNSP Inputs General'!$B95='DNSP Inputs General'!$A$90,J$42,J$43))*'DNSP Inputs General'!$D95 -> 95.99008936 | K47: =IF('DNSP Inputs General'!$B95='DNSP Inputs General'!$A$89,K$41,IF('DNSP Inputs General'!$B95='DNSP Inputs General'!$A$90,K$42,K$43))*'DNSP Inputs General'!$D95 -> 98.44979778 | L47: =IF('DNSP Inputs General'!$B95='DNSP Inputs General'!$A$89,L$41,IF('DNSP Inputs General'!$B95='DNSP Inputs General'!$A$90,L$42,L$43))*'DNSP Inputs General'!$D95 -> 100.8104882 | M47: =IF('DNSP Inputs General'!$B95='DNSP Inputs General'!$A$89,M$41,IF('DNSP Inputs General'!$B95='DNSP Inputs General'!$A$90,M$42,M$43))*'DNSP Inputs General'!$D95 -> 103.3148466 | N47: =IF('DNSP Inputs General'!$B95='DNSP Inputs General'!$A$89,N$41,IF('DNSP Inputs General'!$B95='DNSP Inputs General'!$A$90,N$42,N$43))*'DNSP Inputs General'!$D95 -> 106.028585 | P47: =IF('DNSP Inputs General'!$B95='DNSP Inputs General'!$A$89,P$41,IF('DNSP Inputs General'!$B95='DNSP Inputs General'!$A$90,P$42,P$43))*'DNSP Inputs General'!$D95 -> 45.86575621 | Q47: =IF('DNSP Inputs General'!$B95='DNSP Inputs General'!$A$89,Q$41,IF('DNSP Inputs General'!$B95='DNSP Inputs General'!$A$90,Q$42,Q$43))*'DNSP Inputs General'!$D95 -> 46.55656631 | R47: =IF('DNSP Inputs General'!$B95='DNSP Inputs General'!$A$89,R$41,IF('DNSP Inputs General'!$B95='DNSP Inputs General'!$A$90,R$42,R$43))*'DNSP Inputs General'!$D95 -> 46.03969614 | S47: =IF('DNSP Inputs General'!$B95='DNSP Inputs General'!$A$89,S$41,IF('DNSP Inputs General'!$B95='DNSP Inputs General'!$A$90,S$42,S$43))*'DNSP Inputs General'!$D95 -> 52.29951438 | T47: =IF('DNSP Inputs General'!$B95='DNSP Inputs General'!$A$89,T$41,IF('DNSP Inputs General'!$B95='DNSP Inputs General'!$A$90,T$42,T$43))*'DNSP Inputs General'!$D95 -> 52.90330118 | V47: 0 | W47: 1.421085472e-14 | X47: 1.421085472e-14 | Y47: 7.105427358e-15 | Z47: 7.105427358e-15
A48: ='DNSP Inputs General'!A96 -> HP Sodium 100W | C48: ='DNSP Inputs General'!E96 -> 126.69 | D48: =IF('DNSP Inputs General'!$B96='DNSP Inputs General'!$A$89,D$41,IF('DNSP Inputs General'!$B96='DNSP Inputs General'!$A$90,D$42,D$43))*'DNSP Inputs General'!$D96 -> 142.0949081 | E48: =IF('DNSP Inputs General'!$B96='DNSP Inputs General'!$A$89,E$41,IF('DNSP Inputs General'!$B96='DNSP Inputs General'!$A$90,E$42,E$43))*'DNSP Inputs General'!$D96 -> 145.1646284 | F48: =IF('DNSP Inputs General'!$B96='DNSP Inputs General'!$A$89,F$41,IF('DNSP Inputs General'!$B96='DNSP Inputs General'!$A$90,F$42,F$43))*'DNSP Inputs General'!$D96 -> 146.4824076 | G48: =IF('DNSP Inputs General'!$B96='DNSP Inputs General'!$A$89,G$41,IF('DNSP Inputs General'!$B96='DNSP Inputs General'!$A$90,G$42,G$43))*'DNSP Inputs General'!$D96 -> 155.1472401 | H48: =IF('DNSP Inputs General'!$B96='DNSP Inputs General'!$A$89,H$41,IF('DNSP Inputs General'!$B96='DNSP Inputs General'!$A$90,H$42,H$43))*'DNSP Inputs General'!$D96 -> 158.5150071 | J48: =IF('DNSP Inputs General'!$B96='DNSP Inputs General'!$A$89,J$41,IF('DNSP Inputs General'!$B96='DNSP Inputs General'!$A$90,J$42,J$43))*'DNSP Inputs General'!$D96 -> 96.46798579 | K48: =IF('DNSP Inputs General'!$B96='DNSP Inputs General'!$A$89,K$41,IF('DNSP Inputs General'!$B96='DNSP Inputs General'!$A$90,K$42,K$43))*'DNSP Inputs General'!$D96 -> 98.84778919 | L48: =IF('DNSP Inputs General'!$B96='DNSP Inputs General'!$A$89,L$41,IF('DNSP Inputs General'!$B96='DNSP Inputs General'!$A$90,L$42,L$43))*'DNSP Inputs General'!$D96 -> 101.2505185 | M48: =IF('DNSP Inputs General'!$B96='DNSP Inputs General'!$A$89,M$41,IF('DNSP Inputs General'!$B96='DNSP Inputs General'!$A$90,M$42,M$43))*'DNSP Inputs General'!$D96 -> 103.8017912 | N48: =IF('DNSP Inputs General'!$B96='DNSP Inputs General'!$A$89,N$41,IF('DNSP Inputs General'!$B96='DNSP Inputs General'!$A$90,N$42,N$43))*'DNSP Inputs General'!$D96 -> 106.5693739 | P48: =IF('DNSP Inputs General'!$B96='DNSP Inputs General'!$A$89,P$41,IF('DNSP Inputs General'!$B96='DNSP Inputs General'!$A$90,P$42,P$43))*'DNSP Inputs General'!$D96 -> 45.62692226 | Q48: =IF('DNSP Inputs General'!$B96='DNSP Inputs General'!$A$89,Q$41,IF('DNSP Inputs General'!$B96='DNSP Inputs General'!$A$90,Q$42,Q$43))*'DNSP Inputs General'!$D96 -> 46.31683923 | R48: =IF('DNSP Inputs General'!$B96='DNSP Inputs General'!$A$89,R$41,IF('DNSP Inputs General'!$B96='DNSP Inputs General'!$A$90,R$42,R$43))*'DNSP Inputs General'!$D96 -> 45.2318891 | S48: =IF('DNSP Inputs General'!$B96='DNSP Inputs General'!$A$89,S$41,IF('DNSP Inputs General'!$B96='DNSP Inputs General'!$A$90,S$42,S$43))*'DNSP Inputs General'!$D96 -> 51.34544887 | T48: =IF('DNSP Inputs General'!$B96='DNSP Inputs General'!$A$89,T$41,IF('DNSP Inputs General'!$B96='DNSP Inputs General'!$A$90,T$42,T$43))*'DNSP Inputs General'!$D96 -> 51.94563322 | V48: 7.105427358e-15 | W48: 2.842170943e-14 | X48: 2.131628207e-14 | Y48: 2.842170943e-14 | Z48: 7.105427358e-15
A49: ='DNSP Inputs General'!A97 -> HP Sodium 400W | C49: ='DNSP Inputs General'!E97 -> 166.31 | D49: =IF('DNSP Inputs General'!$B97='DNSP Inputs General'!$A$89,D$41,IF('DNSP Inputs General'!$B97='DNSP Inputs General'!$A$90,D$42,D$43))*'DNSP Inputs General'!$D97 -> 188.2572904 | E49: =IF('DNSP Inputs General'!$B97='DNSP Inputs General'!$A$89,E$41,IF('DNSP Inputs General'!$B97='DNSP Inputs General'!$A$90,E$42,E$43))*'DNSP Inputs General'!$D97 -> 192.4383523 | F49: =IF('DNSP Inputs General'!$B97='DNSP Inputs General'!$A$89,F$41,IF('DNSP Inputs General'!$B97='DNSP Inputs General'!$A$90,F$42,F$43))*'DNSP Inputs General'!$D97 -> 194.8852914 | G49: =IF('DNSP Inputs General'!$B97='DNSP Inputs General'!$A$89,G$41,IF('DNSP Inputs General'!$B97='DNSP Inputs General'!$A$90,G$42,G$43))*'DNSP Inputs General'!$D97 -> 206.5162548 | H49: =IF('DNSP Inputs General'!$B97='DNSP Inputs General'!$A$89,H$41,IF('DNSP Inputs General'!$B97='DNSP Inputs General'!$A$90,H$42,H$43))*'DNSP Inputs General'!$D97 -> 210.9189518 | J49: =IF('DNSP Inputs General'!$B97='DNSP Inputs General'!$A$89,J$41,IF('DNSP Inputs General'!$B97='DNSP Inputs General'!$A$90,J$42,J$43))*'DNSP Inputs General'!$D97 -> 127.3887167 | K49: =IF('DNSP Inputs General'!$B97='DNSP Inputs General'!$A$89,K$41,IF('DNSP Inputs General'!$B97='DNSP Inputs General'!$A$90,K$42,K$43))*'DNSP Inputs General'!$D97 -> 130.6530027 | L49: =IF('DNSP Inputs General'!$B97='DNSP Inputs General'!$A$89,L$41,IF('DNSP Inputs General'!$B97='DNSP Inputs General'!$A$90,L$42,L$43))*'DNSP Inputs General'!$D97 -> 133.7858815 | M49: =IF('DNSP Inputs General'!$B97='DNSP Inputs General'!$A$89,M$41,IF('DNSP Inputs General'!$B97='DNSP Inputs General'!$A$90,M$42,M$43))*'DNSP Inputs General'!$D97 -> 137.1094226 | N49: =IF('DNSP Inputs General'!$B97='DNSP Inputs General'!$A$89,N$41,IF('DNSP Inputs General'!$B97='DNSP Inputs General'!$A$90,N$42,N$43))*'DNSP Inputs General'!$D97 -> 140.7108325 | P49: =IF('DNSP Inputs General'!$B97='DNSP Inputs General'!$A$89,P$41,IF('DNSP Inputs General'!$B97='DNSP Inputs General'!$A$90,P$42,P$43))*'DNSP Inputs General'!$D97 -> 60.86857366 | Q49: =IF('DNSP Inputs General'!$B97='DNSP Inputs General'!$A$89,Q$41,IF('DNSP Inputs General'!$B97='DNSP Inputs General'!$A$90,Q$42,Q$43))*'DNSP Inputs General'!$D97 -> 61.78534968 | R49: =IF('DNSP Inputs General'!$B97='DNSP Inputs General'!$A$89,R$41,IF('DNSP Inputs General'!$B97='DNSP Inputs General'!$A$90,R$42,R$43))*'DNSP Inputs General'!$D97 -> 61.09940984 | S49: =IF('DNSP Inputs General'!$B97='DNSP Inputs General'!$A$89,S$41,IF('DNSP Inputs General'!$B97='DNSP Inputs General'!$A$90,S$42,S$43))*'DNSP Inputs General'!$D97 -> 69.40683217 | T49: =IF('DNSP Inputs General'!$B97='DNSP Inputs General'!$A$89,T$41,IF('DNSP Inputs General'!$B97='DNSP Inputs General'!$A$90,T$42,T$43))*'DNSP Inputs General'!$D97 -> 70.20811933 | V49: 7.105427358e-15 | W49: 0 | X49: 1.421085472e-14 | Y49: 0 | Z49: 0
A50: ='DNSP Inputs General'!A98 -> Metal Halide 70W | C50: ='DNSP Inputs General'!E98 -> 190.05 | D50: =IF('DNSP Inputs General'!$B98='DNSP Inputs General'!$A$89,D$41,IF('DNSP Inputs General'!$B98='DNSP Inputs General'!$A$90,D$42,D$43))*'DNSP Inputs General'!$D98 -> 256.73047 | E50: =IF('DNSP Inputs General'!$B98='DNSP Inputs General'!$A$89,E$41,IF('DNSP Inputs General'!$B98='DNSP Inputs General'!$A$90,E$42,E$43))*'DNSP Inputs General'!$D98 -> 261.6712612 | F50: =IF('DNSP Inputs General'!$B98='DNSP Inputs General'!$A$89,F$41,IF('DNSP Inputs General'!$B98='DNSP Inputs General'!$A$90,F$42,F$43))*'DNSP Inputs General'!$D98 -> 264.1834043 | G50: =IF('DNSP Inputs General'!$B98='DNSP Inputs General'!$A$89,G$41,IF('DNSP Inputs General'!$B98='DNSP Inputs General'!$A$90,G$42,G$43))*'DNSP Inputs General'!$D98 -> 286.1588837 | H50: =IF('DNSP Inputs General'!$B98='DNSP Inputs General'!$A$89,H$41,IF('DNSP Inputs General'!$B98='DNSP Inputs General'!$A$90,H$42,H$43))*'DNSP Inputs General'!$D98 -> 291.1305063 | J50: =IF('DNSP Inputs General'!$B98='DNSP Inputs General'!$A$89,J$41,IF('DNSP Inputs General'!$B98='DNSP Inputs General'!$A$90,J$42,J$43))*'DNSP Inputs General'!$D98 -> 111.8984408 | K50: =IF('DNSP Inputs General'!$B98='DNSP Inputs General'!$A$89,K$41,IF('DNSP Inputs General'!$B98='DNSP Inputs General'!$A$90,K$42,K$43))*'DNSP Inputs General'!$D98 -> 114.4512521 | L50: =IF('DNSP Inputs General'!$B98='DNSP Inputs General'!$A$89,L$41,IF('DNSP Inputs General'!$B98='DNSP Inputs General'!$A$90,L$42,L$43))*'DNSP Inputs General'!$D98 -> 117.0242951 | M50: =IF('DNSP Inputs General'!$B98='DNSP Inputs General'!$A$89,M$41,IF('DNSP Inputs General'!$B98='DNSP Inputs General'!$A$90,M$42,M$43))*'DNSP Inputs General'!$D98 -> 119.7368712 | N50: =IF('DNSP Inputs General'!$B98='DNSP Inputs General'!$A$89,N$41,IF('DNSP Inputs General'!$B98='DNSP Inputs General'!$A$90,N$42,N$43))*'DNSP Inputs General'!$D98 -> 122.6354473 | P50: =IF('DNSP Inputs General'!$B98='DNSP Inputs General'!$A$89,P$41,IF('DNSP Inputs General'!$B98='DNSP Inputs General'!$A$90,P$42,P$43))*'DNSP Inputs General'!$D98 -> 144.8320292 | Q50: =IF('DNSP Inputs General'!$B98='DNSP Inputs General'!$A$89,Q$41,IF('DNSP Inputs General'!$B98='DNSP Inputs General'!$A$90,Q$42,Q$43))*'DNSP Inputs General'!$D98 -> 147.2200091 | R50: =IF('DNSP Inputs General'!$B98='DNSP Inputs General'!$A$89,R$41,IF('DNSP Inputs General'!$B98='DNSP Inputs General'!$A$90,R$42,R$43))*'DNSP Inputs General'!$D98 -> 147.1591092 | S50: =IF('DNSP Inputs General'!$B98='DNSP Inputs General'!$A$89,S$41,IF('DNSP Inputs General'!$B98='DNSP Inputs General'!$A$90,S$42,S$43))*'DNSP Inputs General'!$D98 -> 166.4220125 | T50: =IF('DNSP Inputs General'!$B98='DNSP Inputs General'!$A$89,T$41,IF('DNSP Inputs General'!$B98='DNSP Inputs General'!$A$90,T$42,T$43))*'DNSP Inputs General'!$D98 -> 168.495059 | V50: 2.842170943e-14 | W50: 0 | X50: 5.684341886e-14 | Y50: 2.842170943e-14 | Z50: 0
A51: ='DNSP Inputs General'!A99 -> Metal Halide 100W | C51: ='DNSP Inputs General'!E99 -> 250.78 | D51: =IF('DNSP Inputs General'!$B99='DNSP Inputs General'!$A$89,D$41,IF('DNSP Inputs General'!$B99='DNSP Inputs General'!$A$90,D$42,D$43))*'DNSP Inputs General'!$D99 -> 281.2747603 | E51: =IF('DNSP Inputs General'!$B99='DNSP Inputs General'!$A$89,E$41,IF('DNSP Inputs General'!$B99='DNSP Inputs General'!$A$90,E$42,E$43))*'DNSP Inputs General'!$D99 -> 287.3512262 | F51: =IF('DNSP Inputs General'!$B99='DNSP Inputs General'!$A$89,F$41,IF('DNSP Inputs General'!$B99='DNSP Inputs General'!$A$90,F$42,F$43))*'DNSP Inputs General'!$D99 -> 289.9597505 | G51: =IF('DNSP Inputs General'!$B99='DNSP Inputs General'!$A$89,G$41,IF('DNSP Inputs General'!$B99='DNSP Inputs General'!$A$90,G$42,G$43))*'DNSP Inputs General'!$D99 -> 307.1116577 | H51: =IF('DNSP Inputs General'!$B99='DNSP Inputs General'!$A$89,H$41,IF('DNSP Inputs General'!$B99='DNSP Inputs General'!$A$90,H$42,H$43))*'DNSP Inputs General'!$D99 -> 313.7781025 | J51: =IF('DNSP Inputs General'!$B99='DNSP Inputs General'!$A$89,J$41,IF('DNSP Inputs General'!$B99='DNSP Inputs General'!$A$90,J$42,J$43))*'DNSP Inputs General'!$D99 -> 190.9569452 | K51: =IF('DNSP Inputs General'!$B99='DNSP Inputs General'!$A$89,K$41,IF('DNSP Inputs General'!$B99='DNSP Inputs General'!$A$90,K$42,K$43))*'DNSP Inputs General'!$D99 -> 195.6677307 | L51: =IF('DNSP Inputs General'!$B99='DNSP Inputs General'!$A$89,L$41,IF('DNSP Inputs General'!$B99='DNSP Inputs General'!$A$90,L$42,L$43))*'DNSP Inputs General'!$D99 -> 200.4238978 | M51: =IF('DNSP Inputs General'!$B99='DNSP Inputs General'!$A$89,M$41,IF('DNSP Inputs General'!$B99='DNSP Inputs General'!$A$90,M$42,M$43))*'DNSP Inputs General'!$D99 -> 205.4741042 | N51: =IF('DNSP Inputs General'!$B99='DNSP Inputs General'!$A$89,N$41,IF('DNSP Inputs General'!$B99='DNSP Inputs General'!$A$90,N$42,N$43))*'DNSP Inputs General'!$D99 -> 210.952493 | P51: =IF('DNSP Inputs General'!$B99='DNSP Inputs General'!$A$89,P$41,IF('DNSP Inputs General'!$B99='DNSP Inputs General'!$A$90,P$42,P$43))*'DNSP Inputs General'!$D99 -> 90.31781503 | Q51: =IF('DNSP Inputs General'!$B99='DNSP Inputs General'!$A$89,Q$41,IF('DNSP Inputs General'!$B99='DNSP Inputs General'!$A$90,Q$42,Q$43))*'DNSP Inputs General'!$D99 -> 91.68349542 | R51: =IF('DNSP Inputs General'!$B99='DNSP Inputs General'!$A$89,R$41,IF('DNSP Inputs General'!$B99='DNSP Inputs General'!$A$90,R$42,R$43))*'DNSP Inputs General'!$D99 -> 89.53585276 | S51: =IF('DNSP Inputs General'!$B99='DNSP Inputs General'!$A$89,S$41,IF('DNSP Inputs General'!$B99='DNSP Inputs General'!$A$90,S$42,S$43))*'DNSP Inputs General'!$D99 -> 101.6375535 | T51: =IF('DNSP Inputs General'!$B99='DNSP Inputs General'!$A$89,T$41,IF('DNSP Inputs General'!$B99='DNSP Inputs General'!$A$90,T$42,T$43))*'DNSP Inputs General'!$D99 -> 102.8256095 | V51: 0 | W51: 2.842170943e-14 | X51: 1.421085472e-14 | Y51: 4.263256415e-14 | Z51: 0
A52: ='DNSP Inputs General'!A100 -> Metal Halide 150W | C52: ='DNSP Inputs General'!E100 -> 284.91 | D52: =IF('DNSP Inputs General'!$B100='DNSP Inputs General'!$A$89,D$41,IF('DNSP Inputs General'!$B100='DNSP Inputs General'!$A$90,D$42,D$43))*'DNSP Inputs General'!$D100 -> 319.5534974 | E52: =IF('DNSP Inputs General'!$B100='DNSP Inputs General'!$A$89,E$41,IF('DNSP Inputs General'!$B100='DNSP Inputs General'!$A$90,E$42,E$43))*'DNSP Inputs General'!$D100 -> 326.4569107 | F52: =IF('DNSP Inputs General'!$B100='DNSP Inputs General'!$A$89,F$41,IF('DNSP Inputs General'!$B100='DNSP Inputs General'!$A$90,F$42,F$43))*'DNSP Inputs General'!$D100 -> 329.4204297 | G52: =IF('DNSP Inputs General'!$B100='DNSP Inputs General'!$A$89,G$41,IF('DNSP Inputs General'!$B100='DNSP Inputs General'!$A$90,G$42,G$43))*'DNSP Inputs General'!$D100 -> 348.9065433 | H52: =IF('DNSP Inputs General'!$B100='DNSP Inputs General'!$A$89,H$41,IF('DNSP Inputs General'!$B100='DNSP Inputs General'!$A$90,H$42,H$43))*'DNSP Inputs General'!$D100 -> 356.4802258 | J52: =IF('DNSP Inputs General'!$B100='DNSP Inputs General'!$A$89,J$41,IF('DNSP Inputs General'!$B100='DNSP Inputs General'!$A$90,J$42,J$43))*'DNSP Inputs General'!$D100 -> 216.9443133 | K52: =IF('DNSP Inputs General'!$B100='DNSP Inputs General'!$A$89,K$41,IF('DNSP Inputs General'!$B100='DNSP Inputs General'!$A$90,K$42,K$43))*'DNSP Inputs General'!$D100 -> 222.2961905 | L52: =IF('DNSP Inputs General'!$B100='DNSP Inputs General'!$A$89,L$41,IF('DNSP Inputs General'!$B100='DNSP Inputs General'!$A$90,L$42,L$43))*'DNSP Inputs General'!$D100 -> 227.6996252 | M52: =IF('DNSP Inputs General'!$B100='DNSP Inputs General'!$A$89,M$41,IF('DNSP Inputs General'!$B100='DNSP Inputs General'!$A$90,M$42,M$43))*'DNSP Inputs General'!$D100 -> 233.4371153 | N52: =IF('DNSP Inputs General'!$B100='DNSP Inputs General'!$A$89,N$41,IF('DNSP Inputs General'!$B100='DNSP Inputs General'!$A$90,N$42,N$43))*'DNSP Inputs General'!$D100 -> 239.661059 | P52: =IF('DNSP Inputs General'!$B100='DNSP Inputs General'!$A$89,P$41,IF('DNSP Inputs General'!$B100='DNSP Inputs General'!$A$90,P$42,P$43))*'DNSP Inputs General'!$D100 -> 102.6091841 | Q52: =IF('DNSP Inputs General'!$B100='DNSP Inputs General'!$A$89,Q$41,IF('DNSP Inputs General'!$B100='DNSP Inputs General'!$A$90,Q$42,Q$43))*'DNSP Inputs General'!$D100 -> 104.1607203 | R52: =IF('DNSP Inputs General'!$B100='DNSP Inputs General'!$A$89,R$41,IF('DNSP Inputs General'!$B100='DNSP Inputs General'!$A$90,R$42,R$43))*'DNSP Inputs General'!$D100 -> 101.7208045 | S52: =IF('DNSP Inputs General'!$B100='DNSP Inputs General'!$A$89,S$41,IF('DNSP Inputs General'!$B100='DNSP Inputs General'!$A$90,S$42,S$43))*'DNSP Inputs General'!$D100 -> 115.4694281 | T52: =IF('DNSP Inputs General'!$B100='DNSP Inputs General'!$A$89,T$41,IF('DNSP Inputs General'!$B100='DNSP Inputs General'!$A$90,T$42,T$43))*'DNSP Inputs General'!$D100 -> 116.8191668 | V52: 2.842170943e-14 | W52: 5.684341886e-14 | X52: 1.421085472e-14 | Y52: 1.421085472e-14 | Z52: 2.842170943e-14
A53: ='DNSP Inputs General'!A101 -> HP Sodium 50W | C53: ='DNSP Inputs General'!E101 -> 53.84 | D53: =IF('DNSP Inputs General'!$B101='DNSP Inputs General'!$A$89,D$41,IF('DNSP Inputs General'!$B101='DNSP Inputs General'!$A$90,D$42,D$43))*'DNSP Inputs General'!$D101 -> 60.38762134 | E53: =IF('DNSP Inputs General'!$B101='DNSP Inputs General'!$A$89,E$41,IF('DNSP Inputs General'!$B101='DNSP Inputs General'!$A$90,E$42,E$43))*'DNSP Inputs General'!$D101 -> 61.69219385 | F53: =IF('DNSP Inputs General'!$B101='DNSP Inputs General'!$A$89,F$41,IF('DNSP Inputs General'!$B101='DNSP Inputs General'!$A$90,F$42,F$43))*'DNSP Inputs General'!$D101 -> 62.25222484 | G53: =IF('DNSP Inputs General'!$B101='DNSP Inputs General'!$A$89,G$41,IF('DNSP Inputs General'!$B101='DNSP Inputs General'!$A$90,G$42,G$43))*'DNSP Inputs General'!$D101 -> 65.93461311 | H53: =IF('DNSP Inputs General'!$B101='DNSP Inputs General'!$A$89,H$41,IF('DNSP Inputs General'!$B101='DNSP Inputs General'!$A$90,H$42,H$43))*'DNSP Inputs General'!$D101 -> 67.36584974 | J53: =IF('DNSP Inputs General'!$B101='DNSP Inputs General'!$A$89,J$41,IF('DNSP Inputs General'!$B101='DNSP Inputs General'!$A$90,J$42,J$43))*'DNSP Inputs General'!$D101 -> 40.99705103 | K53: =IF('DNSP Inputs General'!$B101='DNSP Inputs General'!$A$89,K$41,IF('DNSP Inputs General'!$B101='DNSP Inputs General'!$A$90,K$42,K$43))*'DNSP Inputs General'!$D101 -> 42.00842201 | L53: =IF('DNSP Inputs General'!$B101='DNSP Inputs General'!$A$89,L$41,IF('DNSP Inputs General'!$B101='DNSP Inputs General'!$A$90,L$42,L$43))*'DNSP Inputs General'!$D101 -> 43.02953608 | M53: =IF('DNSP Inputs General'!$B101='DNSP Inputs General'!$A$89,M$41,IF('DNSP Inputs General'!$B101='DNSP Inputs General'!$A$90,M$42,M$43))*'DNSP Inputs General'!$D101 -> 44.11377824 | N53: =IF('DNSP Inputs General'!$B101='DNSP Inputs General'!$A$89,N$41,IF('DNSP Inputs General'!$B101='DNSP Inputs General'!$A$90,N$42,N$43))*'DNSP Inputs General'!$D101 -> 45.28994799 | P53: =IF('DNSP Inputs General'!$B101='DNSP Inputs General'!$A$89,P$41,IF('DNSP Inputs General'!$B101='DNSP Inputs General'!$A$90,P$42,P$43))*'DNSP Inputs General'!$D101 -> 19.3905703 | Q53: =IF('DNSP Inputs General'!$B101='DNSP Inputs General'!$A$89,Q$41,IF('DNSP Inputs General'!$B101='DNSP Inputs General'!$A$90,Q$42,Q$43))*'DNSP Inputs General'!$D101 -> 19.68377184 | R53: =IF('DNSP Inputs General'!$B101='DNSP Inputs General'!$A$89,R$41,IF('DNSP Inputs General'!$B101='DNSP Inputs General'!$A$90,R$42,R$43))*'DNSP Inputs General'!$D101 -> 19.22268876 | S53: =IF('DNSP Inputs General'!$B101='DNSP Inputs General'!$A$89,S$41,IF('DNSP Inputs General'!$B101='DNSP Inputs General'!$A$90,S$42,S$43))*'DNSP Inputs General'!$D101 -> 21.82083486 | T53: =IF('DNSP Inputs General'!$B101='DNSP Inputs General'!$A$89,T$41,IF('DNSP Inputs General'!$B101='DNSP Inputs General'!$A$90,T$42,T$43))*'DNSP Inputs General'!$D101 -> 22.07590175 | V53: 3.552713679e-15 | W53: 3.552713679e-15 | X53: 3.552713679e-15 | Y53: 1.065814104e-14 | Z53: 3.552713679e-15
A56: ='DNSP Inputs General'!A$115 -> Energy Efficient Lights
A57: ='DNSP Inputs General'!A116 -> T5 2X14W | C57: ='DNSP Inputs General'!E116 -> 40.6 | D57: ='Charges Summary'!K$89 -> 57.56132998 | E57: ='Charges Summary'!L$89 -> 60.66559543 | F57: ='Charges Summary'!M$89 -> 63.41332032 | G57: ='Charges Summary'!N$89 -> 65.96572355 | H57: ='Charges Summary'!O$89 -> 68.12573648 | J57: =SUM('Charges Summary'!K83,'Charges Summary'!K8) -> 38.21489647 | K57: =SUM('Charges Summary'!L83,'Charges Summary'!L8) -> 39.11519344 | L57: =SUM('Charges Summary'!M83,'Charges Summary'!M8) -> 40.0223958 | M57: =SUM('Charges Summary'!N83,'Charges Summary'!N8) -> 40.98268665 | N57: =SUM('Charges Summary'!O83,'Charges Summary'!O8) -> 42.01751365 | P57: =SUM('Charges Summary'!K85,'Charges Summary'!K11) -> 19.34643351 | Q57: =SUM('Charges Summary'!L85,'Charges Summary'!L11) -> 21.55040199 | R57: =SUM('Charges Summary'!M85,'Charges Summary'!M11) -> 23.39092451 | S57: =SUM('Charges Summary'!N85,'Charges Summary'!N11) -> 24.9830369 | T57: =SUM('Charges Summary'!O85,'Charges Summary'!O11) -> 26.10822282 | V57: =ABS(D57-J57-P57) -> 0 | W57: =ABS(E57-K57-Q57) -> 0 | X57: =ABS(F57-L57-R57) -> 0 | Y57: =ABS(G57-M57-S57) -> 0 | Z57: =ABS(H57-N57-T57) -> 3.552713679e-15
A58: ='DNSP Inputs General'!A117 -> T5 2X24W | C58: ='DNSP Inputs General'!E117 -> 47.91 | D58: ='Charges Summary'!K$105 -> 61.62163165 | E58: ='Charges Summary'!L$105 -> 64.86565845 | F58: ='Charges Summary'!M$105 -> 67.74566992 | G58: ='Charges Summary'!N$105 -> 70.42934877 | H58: ='Charges Summary'!O$105 -> 72.71786539 | J58: =SUM('Charges Summary'!K99,'Charges Summary'!K8) -> 42.08544875 | K58: =SUM('Charges Summary'!L99,'Charges Summary'!L8) -> 43.08020543 | L58: =SUM('Charges Summary'!M99,'Charges Summary'!M8) -> 44.08279612 | M58: =SUM('Charges Summary'!N99,'Charges Summary'!N8) -> 45.14416108 | N58: =SUM('Charges Summary'!O99,'Charges Summary'!O8) -> 46.2887144 | P58: =SUM('Charges Summary'!K101,'Charges Summary'!K11) -> 19.5361829 | Q58: =SUM('Charges Summary'!L101,'Charges Summary'!L11) -> 21.78545302 | R58: =SUM('Charges Summary'!M101,'Charges Summary'!M11) -> 23.6628738 | S58: =SUM('Charges Summary'!N101,'Charges Summary'!N11) -> 25.28518769 | T58: =SUM('Charges Summary'!O101,'Charges Summary'!O11) -> 26.42915099 | V58: 0 | W58: 7.105427358e-15 | X58: 7.105427358e-15 | Y58: 3.552713679e-15 | Z58: 7.105427358e-15
A59: ='DNSP Inputs General'!A118 -> LED 18W | C59: ='DNSP Inputs General'!E118 -> 16.74 | D59: ='Charges Summary'!K$121 -> 31.57668679 | E59: ='Charges Summary'!L$121 -> 33.72847665 | F59: ='Charges Summary'!M$121 -> 35.58371984 | G59: ='Charges Summary'!N$121 -> 37.26030516 | H59: ='Charges Summary'!O$121 -> 38.57955664 | J59: =SUM('Charges Summary'!K115,'Charges Summary'!K8) -> 13.7181038 | K59: =SUM('Charges Summary'!L115,'Charges Summary'!L8) -> 14.02114149 | L59: =SUM('Charges Summary'!M115,'Charges Summary'!M8) -> 14.32518634 | M59: =SUM('Charges Summary'!N115,'Charges Summary'!N8) -> 14.64647328 | N59: =SUM('Charges Summary'!O115,'Charges Summary'!O8) -> 14.98777481 | P59: =SUM('Charges Summary'!K117,'Charges Summary'!K11) -> 17.85858299 | Q59: =SUM('Charges Summary'!L117,'Charges Summary'!L11) -> 19.70733516 | R59: =SUM('Charges Summary'!M117,'Charges Summary'!M11) -> 21.25853351 | S59: =SUM('Charges Summary'!N117,'Charges Summary'!N11) -> 22.61383188 | T59: =SUM('Charges Summary'!O117,'Charges Summary'!O11) -> 23.59178184 | V59: 3.552713679e-15 | W59: 3.552713679e-15 | X59: 0 | Y59: 3.552713679e-15 | Z59: 3.552713679e-15
A60: ='DNSP Inputs General'!A119 -> LED 14W | C60: ='DNSP Inputs General'!E119 -> 16.74 | D60: ='Charges Summary'!K$137 -> 33.32546335 | E60: ='Charges Summary'!L$137 -> 35.5181668 | F60: ='Charges Summary'!M$137 -> 37.41480711 | G60: ='Charges Summary'!N$137 -> 39.13493385 | H60: ='Charges Summary'!O$137 -> 40.50090798 | J60: =SUM('Charges Summary'!K131,'Charges Summary'!K$8) -> 15.46688036 | K60: =SUM('Charges Summary'!L131,'Charges Summary'!L$8) -> 15.81083164 | L60: =SUM('Charges Summary'!M131,'Charges Summary'!M$8) -> 16.1562736 | M60: =SUM('Charges Summary'!N131,'Charges Summary'!N$8) -> 16.52110197 | N60: =SUM('Charges Summary'!O131,'Charges Summary'!O$8) -> 16.90912614 | P60: =SUM('Charges Summary'!K133,'Charges Summary'!K$11) -> 17.85858299 | Q60: =SUM('Charges Summary'!L133,'Charges Summary'!L$11) -> 19.70733516 | R60: =SUM('Charges Summary'!M133,'Charges Summary'!M$11) -> 21.25853351 | S60: =SUM('Charges Summary'!N133,'Charges Summary'!N$11) -> 22.61383188 | T60: =SUM('Charges Summary'!O133,'Charges Summary'!O$11) -> 23.59178184 | V60: =ABS(D60-J60-P60) -> 3.552713679e-15 | W60: =ABS(E60-K60-Q60) -> 3.552713679e-15 | X60: =ABS(F60-L60-R60) -> 0 | Y60: =ABS(G60-M60-S60) -> 3.552713679e-15 | Z60: =ABS(H60-N60-T60) -> 3.552713679e-15
A61: ='DNSP Inputs General'!A120 -> LED 70W-125W (L1) | C61: ='DNSP Inputs General'!E120 -> 24.09 | D61: ='Charges Summary'!K$153 -> 51.23726973 | E61: ='Charges Summary'!L$153 -> 55.02464989 | F61: ='Charges Summary'!M$153 -> 58.28341061 | G61: ='Charges Summary'!N$153 -> 61.20212066 | H61: ='Charges Summary'!O$153 -> 63.48432879 | J61: =SUM('Charges Summary'!K147,'Charges Summary'!K$8) -> 28.07646981 | K61: =SUM('Charges Summary'!L147,'Charges Summary'!L$8) -> 28.74922203 | L61: =SUM('Charges Summary'!M147,'Charges Summary'!M$8) -> 29.4257268 | M61: =SUM('Charges Summary'!N147,'Charges Summary'!N$8) -> 30.14521009 | N61: =SUM('Charges Summary'!O147,'Charges Summary'!O$8) -> 30.92476702 | P61: =SUM('Charges Summary'!K149,'Charges Summary'!K$11) -> 23.16079992 | Q61: =SUM('Charges Summary'!L149,'Charges Summary'!L$11) -> 26.27542787 | R61: =SUM('Charges Summary'!M149,'Charges Summary'!M$11) -> 28.85768381 | S61: =SUM('Charges Summary'!N149,'Charges Summary'!N$11) -> 31.05691057 | T61: =SUM('Charges Summary'!O149,'Charges Summary'!O$11) -> 32.55956177 | V61: 0 | W61: 3.552713679e-15 | X61: 3.552713679e-15 | Y61: 7.105427358e-15 | Z61: 7.105427358e-15
A62: ='DNSP Inputs General'!A121 -> LED 155W-250W (L2) | C62: ='DNSP Inputs General'!E121 -> 24.89 | D62: ='Charges Summary'!K$169 -> 51.9101399 | E62: ='Charges Summary'!L$169 -> 55.85816419 | F62: ='Charges Summary'!M$169 -> 59.24776978 | G62: ='Charges Summary'!N$169 -> 62.27357735 | H62: ='Charges Summary'!O$169 -> 64.62237193 | J62: =SUM('Charges Summary'!K163,'Charges Summary'!K$8) -> 28.07646981 | K62: =SUM('Charges Summary'!L163,'Charges Summary'!L$8) -> 28.74922203 | L62: =SUM('Charges Summary'!M163,'Charges Summary'!M$8) -> 29.4257268 | M62: =SUM('Charges Summary'!N163,'Charges Summary'!N$8) -> 30.14521009 | N62: =SUM('Charges Summary'!O163,'Charges Summary'!O$8) -> 30.92476702 | P62: =SUM('Charges Summary'!K165,'Charges Summary'!K$11) -> 23.83367009 | Q62: =SUM('Charges Summary'!L165,'Charges Summary'!L$11) -> 27.10894217 | R62: =SUM('Charges Summary'!M165,'Charges Summary'!M$11) -> 29.82204298 | S62: =SUM('Charges Summary'!N165,'Charges Summary'!N$11) -> 32.12836726 | T62: =SUM('Charges Summary'!O165,'Charges Summary'!O$11) -> 33.69760491 | V62: 3.552713679e-15 | W62: 0 | X62: 0 | Y62: 0 | Z62: 7.105427358e-15
A63: ='DNSP Inputs General'!A122 -> LED 275W-400W (L4) | C63: ='DNSP Inputs General'!E122 -> 26.37 | D63: ='Charges Summary'!K$185 -> 57.93582684 | E63: ='Charges Summary'!L$185 -> 63.32245148 | F63: ='Charges Summary'!M$185 -> 67.88379907 | G63: ='Charges Summary'!N$185 -> 71.86868627 | H63: ='Charges Summary'!O$185 -> 74.81377584 | J63: =SUM('Charges Summary'!K179,'Charges Summary'!K$8) -> 28.07646981 | K63: =SUM('Charges Summary'!L179,'Charges Summary'!L$8) -> 28.74922203 | L63: =SUM('Charges Summary'!M179,'Charges Summary'!M$8) -> 29.4257268 | M63: =SUM('Charges Summary'!N179,'Charges Summary'!N$8) -> 30.14521009 | N63: =SUM('Charges Summary'!O179,'Charges Summary'!O$8) -> 30.92476702 | P63: =SUM('Charges Summary'!K181,'Charges Summary'!K$11) -> 29.85935702 | Q63: =SUM('Charges Summary'!L181,'Charges Summary'!L$11) -> 34.57322945 | R63: =SUM('Charges Summary'!M181,'Charges Summary'!M$11) -> 38.45807227 | S63: =SUM('Charges Summary'!N181,'Charges Summary'!N$11) -> 41.72347618 | T63: =SUM('Charges Summary'!O181,'Charges Summary'!O$11) -> 43.88900882 | V63: 0 | W63: 0 | X63: 0 | Y63: 0 | Z63: 0
A64: ='DNSP Inputs General'!A123 -> Compact Fluorescent 32W | C64: ='DNSP Inputs General'!E123 -> 36.13 | D64: =IF('DNSP Inputs General'!$B123='DNSP Inputs General'!$A$116,D$57,D$58)*'DNSP Inputs General'!$D123 -> 50.63151527 | E64: =IF('DNSP Inputs General'!$B123='DNSP Inputs General'!$A$116,E$57,E$58)*'DNSP Inputs General'!$D123 -> 53.36205787 | F64: =IF('DNSP Inputs General'!$B123='DNSP Inputs General'!$A$116,F$57,F$58)*'DNSP Inputs General'!$D123 -> 55.77898387 | G64: =IF('DNSP Inputs General'!$B123='DNSP Inputs General'!$A$116,G$57,G$58)*'DNSP Inputs General'!$D123 -> 58.02410301 | H64: =IF('DNSP Inputs General'!$B123='DNSP Inputs General'!$A$116,H$57,H$58)*'DNSP Inputs General'!$D123 -> 59.92407174 | J64: =IF('DNSP Inputs General'!$B123='DNSP Inputs General'!$A$116,J$57,J$58)*'DNSP Inputs General'!$D123 -> 33.61420098 | K64: =IF('DNSP Inputs General'!$B123='DNSP Inputs General'!$A$116,K$57,K$58)*'DNSP Inputs General'!$D123 -> 34.4061111 | L64: =IF('DNSP Inputs General'!$B123='DNSP Inputs General'!$A$116,L$57,L$58)*'DNSP Inputs General'!$D123 -> 35.20409527 | M64: =IF('DNSP Inputs General'!$B123='DNSP Inputs General'!$A$116,M$57,M$58)*'DNSP Inputs General'!$D123 -> 36.0487766 | N64: =IF('DNSP Inputs General'!$B123='DNSP Inputs General'!$A$116,N$57,N$58)*'DNSP Inputs General'!$D123 -> 36.95902067 | P64: =IF('DNSP Inputs General'!$B123='DNSP Inputs General'!$A$116,P$57,P$58)*'DNSP Inputs General'!$D123 -> 17.0173143 | Q64: =IF('DNSP Inputs General'!$B123='DNSP Inputs General'!$A$116,Q$57,Q$58)*'DNSP Inputs General'!$D123 -> 18.95594678 | R64: =IF('DNSP Inputs General'!$B123='DNSP Inputs General'!$A$116,R$57,R$58)*'DNSP Inputs General'!$D123 -> 20.5748886 | S64: =IF('DNSP Inputs General'!$B123='DNSP Inputs General'!$A$116,S$57,S$58)*'DNSP Inputs General'!$D123 -> 21.97532641 | T64: =IF('DNSP Inputs General'!$B123='DNSP Inputs General'!$A$116,T$57,T$58)*'DNSP Inputs General'!$D123 -> 22.96505107 | V64: 3.552713679e-15 | W64: 0 | X64: 0 | Y64: 3.552713679e-15 | Z64: 0
A65: ='DNSP Inputs General'!A124 -> Compact Fluorescent 42W | C65: ='DNSP Inputs General'!E124 -> 36.13 | D65: =IF('DNSP Inputs General'!$B124='DNSP Inputs General'!$A$116,D$57,D$58)*'DNSP Inputs General'!$D124 -> 50.63151527 | E65: =IF('DNSP Inputs General'!$B124='DNSP Inputs General'!$A$116,E$57,E$58)*'DNSP Inputs General'!$D124 -> 53.36205787 | F65: =IF('DNSP Inputs General'!$B124='DNSP Inputs General'!$A$116,F$57,F$58)*'DNSP Inputs General'!$D124 -> 55.77898387 | G65: =IF('DNSP Inputs General'!$B124='DNSP Inputs General'!$A$116,G$57,G$58)*'DNSP Inputs General'!$D124 -> 58.02410301 | H65: =IF('DNSP Inputs General'!$B124='DNSP Inputs General'!$A$116,H$57,H$58)*'DNSP Inputs General'!$D124 -> 59.92407174 | J65: =IF('DNSP Inputs General'!$B124='DNSP Inputs General'!$A$116,J$57,J$58)*'DNSP Inputs General'!$D124 -> 33.61420098 | K65: =IF('DNSP Inputs General'!$B124='DNSP Inputs General'!$A$116,K$57,K$58)*'DNSP Inputs General'!$D124 -> 34.4061111 | L65: =IF('DNSP Inputs General'!$B124='DNSP Inputs General'!$A$116,L$57,L$58)*'DNSP Inputs General'!$D124 -> 35.20409527 | M65: =IF('DNSP Inputs General'!$B124='DNSP Inputs General'!$A$116,M$57,M$58)*'DNSP Inputs General'!$D124 -> 36.0487766 | N65: =IF('DNSP Inputs General'!$B124='DNSP Inputs General'!$A$116,N$57,N$58)*'DNSP Inputs General'!$D124 -> 36.95902067 | P65: =IF('DNSP Inputs General'!$B124='DNSP Inputs General'!$A$116,P$57,P$58)*'DNSP Inputs General'!$D124 -> 17.0173143 | Q65: =IF('DNSP Inputs General'!$B124='DNSP Inputs General'!$A$116,Q$57,Q$58)*'DNSP Inputs General'!$D124 -> 18.95594678 | R65: =IF('DNSP Inputs General'!$B124='DNSP Inputs General'!$A$116,R$57,R$58)*'DNSP Inputs General'!$D124 -> 20.5748886 | S65: =IF('DNSP Inputs General'!$B124='DNSP Inputs General'!$A$116,S$57,S$58)*'DNSP Inputs General'!$D124 -> 21.97532641 | T65: =IF('DNSP Inputs General'!$B124='DNSP Inputs General'!$A$116,T$57,T$58)*'DNSP Inputs General'!$D124 -> 22.96505107 | V65: 3.552713679e-15 | W65: 0 | X65: 0 | Y65: 3.552713679e-15 | Z65: 0
A66: ='DNSP Inputs General'!A125 -> Smart lighting L1 | C66: ='DNSP Inputs General'!E125 -> 26.37 | D66: ='Charges Summary'!K$201 -> 67.8196228 | E66: ='Charges Summary'!L$201 -> 71.96760678 | F66: ='Charges Summary'!M$201 -> 75.59254721 | G66: ='Charges Summary'!N$201 -> 78.89118978 | H66: ='Charges Summary'!O$201 -> 81.57221374 | J66: =SUM('Charges Summary'!K$195,'Charges Summary'!K$8) -> 44.65882288 | K66: =SUM('Charges Summary'!L$195,'Charges Summary'!L$8) -> 45.69217891 | L66: =SUM('Charges Summary'!M$195,'Charges Summary'!M$8) -> 46.73486341 | M66: =SUM('Charges Summary'!N$195,'Charges Summary'!N$8) -> 47.83427921 | N66: =SUM('Charges Summary'!O$195,'Charges Summary'!O$8) -> 49.01265197 | P66: =SUM('Charges Summary'!K$197,'Charges Summary'!K$11) -> 23.16079992 | Q66: =SUM('Charges Summary'!L$197,'Charges Summary'!L$11) -> 26.27542787 | R66: =SUM('Charges Summary'!M$197,'Charges Summary'!M$11) -> 28.85768381 | S66: =SUM('Charges Summary'!N$197,'Charges Summary'!N$11) -> 31.05691057 | T66: =SUM('Charges Summary'!O$197,'Charges Summary'!O$11) -> 32.55956177 | V66: =ABS(D66-J66-P66) -> 0 | W66: =ABS(E66-K66-Q66) -> 7.105427358e-15 | X66: =ABS(F66-L66-R66) -> 0 | Y66: =ABS(G66-M66-S66) -> 7.105427358e-15 | Z66: =ABS(H66-N66-T66) -> 0
A67: ='DNSP Inputs General'!A126 -> Smart lighting L2 | C67: ='DNSP Inputs General'!E126 -> 26.37 | D67: ='Charges Summary'!K$217 -> 68.49249297 | E67: ='Charges Summary'!L$217 -> 72.80112108 | F67: ='Charges Summary'!M$217 -> 76.55690639 | G67: ='Charges Summary'!N$217 -> 79.96264647 | H67: ='Charges Summary'!O$217 -> 82.71025688 | J67: =SUM('Charges Summary'!K$211,'Charges Summary'!K$8) -> 44.65882288 | K67: =SUM('Charges Summary'!L$211,'Charges Summary'!L$8) -> 45.69217891 | L67: =SUM('Charges Summary'!M$211,'Charges Summary'!M$8) -> 46.73486341 | M67: =SUM('Charges Summary'!N$211,'Charges Summary'!N$8) -> 47.83427921 | N67: =SUM('Charges Summary'!O$211,'Charges Summary'!O$8) -> 49.01265197 | P67: =SUM('Charges Summary'!K$213,'Charges Summary'!K$11) -> 23.83367009 | Q67: =SUM('Charges Summary'!L$213,'Charges Summary'!L$11) -> 27.10894217 | R67: =SUM('Charges Summary'!M$213,'Charges Summary'!M$11) -> 29.82204298 | S67: =SUM('Charges Summary'!N$213,'Charges Summary'!N$11) -> 32.12836726 | T67: =SUM('Charges Summary'!O$213,'Charges Summary'!O$11) -> 33.69760491 | V67: 3.552713679e-15 | W67: 7.105427358e-15 | X67: 0 | Y67: 7.105427358e-15 | Z67: 0
A68: ='DNSP Inputs General'!A127 -> Smart lighting L4 | C68: ='DNSP Inputs General'!E127 -> 26.37 | D68: ='Charges Summary'!K$233 -> 74.5181799 | E68: ='Charges Summary'!L$233 -> 80.26540836 | F68: ='Charges Summary'!M$233 -> 85.19293568 | G68: ='Charges Summary'!N$233 -> 89.55775539 | H68: ='Charges Summary'!O$233 -> 92.90166079 | J68: =SUM('Charges Summary'!K$227,'Charges Summary'!K$8) -> 44.65882288 | K68: =SUM('Charges Summary'!L$227,'Charges Summary'!L$8) -> 45.69217891 | L68: =SUM('Charges Summary'!M$227,'Charges Summary'!M$8) -> 46.73486341 | M68: =SUM('Charges Summary'!N$227,'Charges Summary'!N$8) -> 47.83427921 | N68: =SUM('Charges Summary'!O$227,'Charges Summary'!O$8) -> 49.01265197 | P68: =SUM('Charges Summary'!K$229,'Charges Summary'!K$11) -> 29.85935702 | Q68: =SUM('Charges Summary'!L$229,'Charges Summary'!L$11) -> 34.57322945 | R68: =SUM('Charges Summary'!M$229,'Charges Summary'!M$11) -> 38.45807227 | S68: =SUM('Charges Summary'!N$229,'Charges Summary'!N$11) -> 41.72347618 | T68: =SUM('Charges Summary'!O$229,'Charges Summary'!O$11) -> 43.88900882 | V68: 0 | W68: 7.105427358e-15 | X68: 0 | Y68: 7.105427358e-15 | Z68: 7.105427358e-15

Sheet Cashflow Summary
A1: ='DNSP Inputs O & M'!$A$3 -> AusNet | E1: Check | F1: =SUM(C21,C27,C50,C213,C378) -> 2.700835466e-08
C2: ='DNSP Inputs General'!O$2 -> 2020 | D2: ='DNSP Inputs General'!Q$2 -> 2022-06-30 | E2: ='DNSP Inputs General'!R$2 -> 2023-06-30 | F2: ='DNSP Inputs General'!S$2 -> 2024-06-30 | G2: ='DNSP Inputs General'!T$2 -> 2025-06-30 | H2: ='DNSP Inputs General'!U$2 -> 2026-06-30 | J2: =C2 -> 2020 | K2: =D2 -> 2022-06-30 | L2: 2023-06-30 | M2: 2024-06-30 | N2: 2025-06-30 | O2: 2026-06-30
A4: Public Lighting - Revenue | C4: Revenue - Nominal | J4: Revenue - Real 2021 $
C5: =C$2 -> 2020 | D5: =D$2 -> 2022-06-30 | E5: 2023-06-30 | F5: 2024-06-30 | G5: 2025-06-30 | H5: 2026-06-30 | J5: =J$2 -> 2020 | K5: 2022-06-30 | L5: 2023-06-30 | M5: 2024-06-30 | N5: 2025-06-30 | O5: 2026-06-30
A7: Total Revenue | C7: =C95+C260 -> 7659842.097 | D7: 9926043.351 | E7: 10205206.22 | F7: 10504688.3 | G7: 10955233.69 | H7: 11451476.54 | J7: =J95+J260 -> 7659842.097 | K7: 9731473.511 | L7: 9809043.473 | M7: 9898980.799 | N7: 10121185.74 | O7: 10372266.67
D8: =D7/C7-1 -> 0.2958548264 | E8: =E7/D7-1 -> 0.02812428422 | F8: 0.0293460098 | G8: 0.04288993413 | H8: 0.04529733208 | K8: =K7/J7-1 -> 0.2704535403 | L8: 0.00797103976 | M8: 0.009168817139 | N8: 0.02244725409 | O8: 0.02480746234
A10: Public Lighting - O & M | D10: Forecast O & M - Nominal | K10: Forecast O & M - Real 2021 $
D11: =D$2 -> 2022-06-30 | E11: 2023-06-30 | F11: 2024-06-30 | G11: 2025-06-30 | H11: 2026-06-30 | K11: =K$2 -> 2022-06-30 | L11: 2023-06-30 | M11: 2024-06-30 | N11: 2025-06-30 | O11: 2026-06-30
A13: Total O & M | D13: =D153+D318 -> 5676347.355 | E13: =E153+E318 -> 5729783.496 | F13: =F153+F318 -> 5789125.821 | G13: =G153+G318 -> 5856496.067 | H13: =H153+H318 -> 6065478.908 | K13: =K153+K318 -> 5565079.858 | L13: =L153+L318 -> 5507355.188 | M13: =M153+M318 -> 5455320.874 | N13: =N153+N318 -> 5410627.117 | O13: =O153+O318 -> 5493856.139
A16: Public Lighting - Capital Charge | D16: Capital Charge - Nominal | K16: Capital Charge - Real 2021 $
D17: =D$2 -> 2022-06-30 | E17: 2023-06-30 | F17: 2024-06-30 | G17: 2025-06-30 | H17: 2026-06-30 | K17: =K$2 -> 2022-06-30 | L17: 2023-06-30 | M17: 2024-06-30 | N17: 2025-06-30 | O17: 2026-06-30
A19: Total Capital Charge | D19: =D211+D376 -> 4249695.996 | E19: =E211+E376 -> 4475422.72 | F19: =F211+F376 -> 4715562.476 | G19: =G211+G376 -> 5098737.62 | H19: =H211+H376 -> 5385997.637 | K19: =K211+K376 -> 4166393.653 | L19: =L211+L376 -> 4301688.284 | M19: =M211+M376 -> 4443659.925 | N19: =N211+N376 -> 4710558.619 | O19: =O211+O376 -> 4878410.531
A21: Check | C21: =SUM(D21:O21) -> 1.11758709e-08 | D21: =ABS(D7-SUM(D13,D19)) -> 1.862645149e-09 | E21: =ABS(E7-SUM(E13,E19)) -> 1.862645149e-09 | F21: =ABS(F7-SUM(F13,F19)) -> 0 | G21: =ABS(G7-SUM(G13,G19)) -> 0 | H21: =ABS(H7-SUM(H13,H19)) -> 1.862645149e-09 | K21: =ABS(K7-SUM(K13,K19)) -> 0 | L21: =ABS(L7-SUM(L13,L19)) -> 1.862645149e-09 | M21: =ABS(M7-SUM(M13,M19)) -> 1.862645149e-09 | N21: =ABS(N7-SUM(N13,N19)) -> 0 | O21: =ABS(O7-SUM(O13,O19)) -> 1.862645149e-09
A23: Public Lighting - Capital Expenditure | D23: Forecast Capital Expenditure - Nominal | K23: Forecast Capital Expenditure - Real 2021 $
D24: =D$2 -> 2022-06-30 | E24: 2023-06-30 | F24: 2024-06-30 | G24: 2025-06-30 | H24: 2026-06-30 | K24: =K$2 -> 2022-06-30 | L24: 2023-06-30 | M24: 2024-06-30 | N24: 2025-06-30 | O24: 2026-06-30
A26: Total Capital Expenditure | D26: =K26*'Charges Summary'!K$4 -> 5180030.033 | E26: =L26*'Charges Summary'!L$4 -> 5493068.685 | F26: =M26*'Charges Summary'!M$4 -> 5565328.756 | G26: =N26*'Charges Summary'!N$4 -> 5638245.831 | H26: =O26*'Charges Summary'!O$4 -> 3886894.017 | K26: ='DNSP Inputs General'!Q14 -> 5078491.325 | L26: ='DNSP Inputs General'!R14 -> 5279829.569 | M26: ='DNSP Inputs General'!S14 -> 5244428.1 | N26: ='DNSP Inputs General'!T14 -> 5208992.79 | O26: ='DNSP Inputs General'!U14 -> 3520585.411
A27: Check | C27: =SUM(D27:H27) -> 0 | D27: =ABS(D26-D34) -> 0 | E27: =ABS(E26-E34) -> 0 | F27: =ABS(F26-F34) -> 0 | G27: =ABS(G26-G34) -> 0 | H27: =ABS(H26-H34) -> 0
A30: Public Lighting - RAB | D30: RAB - Historical Cost ($)
D31: =D$2 -> 2022-06-30 | E31: 2023-06-30 | F31: 2024-06-30 | G31: 2025-06-30 | H31: 2026-06-30
A33: Opening RAB | D33: ='Total RAB'!T157 -> 38396400.2 | E33: =D36 -> 41339422.94 | F33: =E36 -> 44524441.4 | G33: 47702188.88 | H33: 50726223.44
A34: Capex | D34: ='Total RAB'!T158 -> 5180030.033 | E34: ='Total RAB'!U158 -> 5493068.685 | F34: ='Total RAB'!V158 -> 5565328.756 | G34: ='Total RAB'!W158 -> 5638245.831 | H34: ='Total RAB'!X158 -> 3886894.017
A35: Depreciation | D35: ='Total RAB'!T159 -> 2237007.293 | E35: ='Total RAB'!U159 -> 2308050.227 | F35: ='Total RAB'!V159 -> 2387581.28 | G35: ='Total RAB'!W159 -> 2614211.271 | H35: ='Total RAB'!X159 -> 2797643.908
A36: Closing RAB | D36: =D33+D34-D35 -> 41339422.94 | E36: =E33+E34-E35 -> 44524441.4 | F36: =F33+F34-F35 -> 47702188.88 | G36: =G33+G34-G35 -> 50726223.44 | H36: =H33+H34-H35 -> 51815473.54
A38: Average RAB | D38: =SUM(D33,D36)/2 -> 39867911.57 | E38: =SUM(E33,E36)/2 -> 42931932.17 | F38: =SUM(F33,F36)/2 -> 46113315.14 | G38: =SUM(G33,G36)/2 -> 49214206.16 | H38: =SUM(H33,H36)/2 -> 51270848.49
A40: =WACC!A$8 -> Nominal Pre Tax WACC | D40: =WACC!E$8 -> 0.05048392615 | E40: =WACC!F$8 -> 0.05048392615 | F40: =WACC!G$8 -> 0.05048392615 | G40: =WACC!H$8 -> 0.05048392615 | H40: =WACC!I$8 -> 0.05048392615
A42: Capital Charge | D42: Capital Charge - Nominal
D43: =D$2 -> 2022-06-30 | E43: 2023-06-30 | F43: 2024-06-30 | G43: 2025-06-30 | H43: 2026-06-30
A45: Depreciation | D45: =D35 -> 2237007.293 | E45: =E35 -> 2308050.227 | F45: =F35 -> 2387581.28 | G45: =G35 -> 2614211.271 | H45: =H35 -> 2797643.908
A46: Return | D46: =D40*D38 -> 2012688.703 | E46: =E40*E38 -> 2167372.493 | F46: =F40*F38 -> 2327981.196 | G46: =G40*G38 -> 2484526.349 | H46: =H40*H38 -> 2588353.729
D48: =SUM(D45:D47) -> 4249695.996 | E48: =SUM(E45:E47) -> 4475422.72 | F48: =SUM(F45:F47) -> 4715562.476 | G48: =SUM(G45:G47) -> 5098737.62 | H48: =SUM(H45:H47) -> 5385997.637
A50: Check | C50: =SUM(D50:H50) -> 2.793967724e-09 | D50: =ABS(D19-D48)*IF('DNSP Inputs General'!Q83=0,0,1)*IF('DNSP Inputs General'!Q130=0,0,1) -> 0 | E50: =ABS(E19-E48)*IF('DNSP Inputs General'!R83=0,0,1)*IF('DNSP Inputs General'!R130=0,0,1) -> 9.313225746e-10 | F50: =ABS(F19-F48)*IF('DNSP Inputs General'!S83=0,0,1)*IF('DNSP Inputs General'!S130=0,0,1) -> 9.313225746e-10 | G50: =ABS(G19-G48)*IF('DNSP Inputs General'!T83=0,0,1)*IF('DNSP Inputs General'!T130=0,0,1) -> 9.313225746e-10 | H50: =ABS(H19-H48)*IF('DNSP Inputs General'!U83=0,0,1)*IF('DNSP Inputs General'!U130=0,0,1) -> 0
A53: ='DNSP Inputs General'!$B$39 -> Central
A54: Public Lighting - Revenue | C54: Revenue - Nominal | J54: Revenue - Real 2021 $
C55: =C$2 -> 2020 | D55: =D$2 -> 2022-06-30 | E55: 2023-06-30 | F55: 2024-06-30 | G55: 2025-06-30 | H55: 2026-06-30 | J55: =J$2 -> 2020 | K55: 2022-06-30 | L55: 2023-06-30 | M55: 2024-06-30 | N55: 2025-06-30 | O55: 2026-06-30
A56: ='DNSP Inputs General'!A$41 -> Existing Lights
A57: ='DNSP Inputs General'!A$42 -> Mercury Vapour 80W | C57: =IF('PL Tariffs'!C7=0,"",'DNSP Inputs General'!O42*'PL Tariffs'!C7) -> 863570.8 | D57: ='DNSP Inputs General'!Q42*'PL Tariffs'!D7 -> 907530.6304 | E57: ='DNSP Inputs General'!R42*'PL Tariffs'!E7 -> 616935.8383 | F57: ='DNSP Inputs General'!S42*'PL Tariffs'!F7 -> 322778.5983 | G57: ='DNSP Inputs General'!T42*'PL Tariffs'!G7 -> 71.17799469 | H57: ='DNSP Inputs General'!U42*'PL Tariffs'!H7 -> 72.38633133 | J57: =C57 -> 863570.8 | K57: =D57/'Charges Summary'!D$4 -> 889741.2572 | L57: =E57/'Charges Summary'!E$4 -> 592986.5923 | M57: =F57/'Charges Summary'!F$4 -> 304166.964 | N57: =G57/'Charges Summary'!G$4 -> 65.75904497 | O57: =H57/'Charges Summary'!H$4 -> 65.56449982
A58: ='DNSP Inputs General'!A$43 -> HP Sodium 150W | C58: =IF('PL Tariffs'!C8=0,"",'DNSP Inputs General'!O43*'PL Tariffs'!C8) -> 1538466.81 | D58: ='DNSP Inputs General'!Q43*'PL Tariffs'!D8 -> 1638787.331 | E58: ='DNSP Inputs General'!R43*'PL Tariffs'!E8 -> 1619197.141 | F58: ='DNSP Inputs General'!S43*'PL Tariffs'!F8 -> 1605211.137 | G58: ='DNSP Inputs General'!T43*'PL Tariffs'!G8 -> 1650927.689 | H58: ='DNSP Inputs General'!U43*'PL Tariffs'!H8 -> 1627882.162 | J58: 1538466.81 | K58: =D58/'Charges Summary'!D$4 -> 1606663.898 | L58: =E58/'Charges Summary'!E$4 -> 1556340.442 | M58: =F58/'Charges Summary'!F$4 -> 1512653.567 | N58: =G58/'Charges Summary'!G$4 -> 1525238.645 | O58: =H58/'Charges Summary'!H$4 -> 1474467.317
A59: ='DNSP Inputs General'!A$44 -> HP Sodium 250W | C59: =IF('PL Tariffs'!C9=0,"",'DNSP Inputs General'!O44*'PL Tariffs'!C9) -> 723225.6 | D59: ='DNSP Inputs General'!Q44*'PL Tariffs'!D9 -> 785953.9798 | E59: ='DNSP Inputs General'!R44*'PL Tariffs'!E9 -> 772439.2549 | F59: ='DNSP Inputs General'!S44*'PL Tariffs'!F9 -> 762720.0347 | G59: ='DNSP Inputs General'!T44*'PL Tariffs'!G9 -> 780110.8561 | H59: ='DNSP Inputs General'!U44*'PL Tariffs'!H9 -> 764892.7131 | J59: 723225.6 | K59: =D59/'Charges Summary'!D$4 -> 770547.7464 | L59: =E59/'Charges Summary'!E$4 -> 742453.4175 | M59: =F59/'Charges Summary'!F$4 -> 718741.0768 | N59: =G59/'Charges Summary'!G$4 -> 720719.1645 | O59: =H59/'Charges Summary'!H$4 -> 692807.7059
A60: ='DNSP Inputs General'!A$45 -> Mercury Vapour 50W | C60: =IF('PL Tariffs'!C10=0,"",'DNSP Inputs General'!O45*'PL Tariffs'!C10) -> 4776.17 | D60: ='DNSP Inputs General'!Q45*'PL Tariffs'!D10 -> 5147.611771 | E60: ='DNSP Inputs General'!R45*'PL Tariffs'!E10 -> 3499.326719 | F60: ='DNSP Inputs General'!S45*'PL Tariffs'!F10 -> 1830.835077 | G60: ='DNSP Inputs General'!T45*'PL Tariffs'!G10 -> 0 | H60: ='DNSP Inputs General'!U45*'PL Tariffs'!H10 -> 0 | J60: 4776.17 | K60: =D60/'Charges Summary'!D$4 -> 5046.708524 | L60: =E60/'Charges Summary'!E$4 -> 3363.484008 | M60: =F60/'Charges Summary'!F$4 -> 1725.267877 | N60: =G60/'Charges Summary'!G$4 -> 0 | O60: =H60/'Charges Summary'!H$4 -> 0
A61: ='DNSP Inputs General'!A$46 -> Mercury Vapour 125W | C61: =IF('PL Tariffs'!C11=0,"",'DNSP Inputs General'!O46*'PL Tariffs'!C11) -> 18354.92 | D61: ='DNSP Inputs General'!Q46*'PL Tariffs'!D11 -> 19048.13237 | E61: ='DNSP Inputs General'!R46*'PL Tariffs'!E11 -> 12948.84725 | F61: ='DNSP Inputs General'!S46*'PL Tariffs'!F11 -> 6774.79003 | G61: ='DNSP Inputs General'!T46*'PL Tariffs'!G11 -> 0 | H61: ='DNSP Inputs General'!U46*'PL Tariffs'!H11 -> 0 | J61: 18354.92 | K61: =D61/'Charges Summary'!D$4 -> 18674.75176 | L61: =E61/'Charges Summary'!E$4 -> 12446.17727 | M61: =F61/'Charges Summary'!F$4 -> 6384.151011 | N61: =G61/'Charges Summary'!G$4 -> 0 | O61: =H61/'Charges Summary'!H$4 -> 0
A62: ='DNSP Inputs General'!A$47 -> Mercury Vapour 250W | C62: =IF('PL Tariffs'!C12=0,"",'DNSP Inputs General'!O47*'PL Tariffs'!C12) -> 67436.07 | D62: ='DNSP Inputs General'!Q47*'PL Tariffs'!D12 -> 56275.78877 | E62: ='DNSP Inputs General'!R47*'PL Tariffs'!E12 -> 38314.19131 | F62: ='DNSP Inputs General'!S47*'PL Tariffs'!F12 -> 19666.81214 | G62: ='DNSP Inputs General'!T47*'PL Tariffs'!G12 -> 0 | H62: ='DNSP Inputs General'!U47*'PL Tariffs'!H12 -> 0 | J62: 67436.07 | K62: =D62/'Charges Summary'!D$4 -> 55172.67337 | L62: =E62/'Charges Summary'!E$4 -> 36826.84702 | M62: =F62/'Charges Summary'!F$4 -> 18532.81033 | N62: =G62/'Charges Summary'!G$4 -> 0 | O62: =H62/'Charges Summary'!H$4 -> 0
A63: ='DNSP Inputs General'!A$48 -> Mercury Vapour 400W | C63: =IF('PL Tariffs'!C13=0,"",'DNSP Inputs General'!O48*'PL Tariffs'!C13) -> 13291.28 | D63: ='DNSP Inputs General'!Q48*'PL Tariffs'!D13 -> 11028.35719 | E63: ='DNSP Inputs General'!R48*'PL Tariffs'!E13 -> 7508.425849 | F63: ='DNSP Inputs General'!S48*'PL Tariffs'!F13 -> 3854.101982 | G63: ='DNSP Inputs General'!T48*'PL Tariffs'!G13 -> 0 | H63: ='DNSP Inputs General'!U48*'PL Tariffs'!H13 -> 0 | J63: 13291.28 | K63: =D63/'Charges Summary'!D$4 -> 10812.17984 | L63: =E63/'Charges Summary'!E$4 -> 7216.951231 | M63: =F63/'Charges Summary'!F$4 -> 3631.87183 | N63: =G63/'Charges Summary'!G$4 -> 0 | O63: =H63/'Charges Summary'!H$4 -> 0
A64: ='DNSP Inputs General'!A$49 -> HP Sodium 100W | C64: =IF('PL Tariffs'!C14=0,"",'DNSP Inputs General'!O49*'PL Tariffs'!C14) -> 278065.92 | D64: ='DNSP Inputs General'!Q49*'PL Tariffs'!D14 -> 299344.5322 | E64: ='DNSP Inputs General'!R49*'PL Tariffs'!E14 -> 301875.5695 | F64: ='DNSP Inputs General'!S49*'PL Tariffs'!F14 -> 305540.6356 | G64: ='DNSP Inputs General'!T49*'PL Tariffs'!G14 -> 320931.8375 | H64: ='DNSP Inputs General'!U49*'PL Tariffs'!H14 -> 323300.4284 | J64: 278065.92 | K64: =D64/'Charges Summary'!D$4 -> 293476.7946 | L64: =E64/'Charges Summary'!E$4 -> 290156.8594 | M64: =F64/'Charges Summary'!F$4 -> 287922.954 | N64: =G64/'Charges Summary'!G$4 -> 296498.5348 | O64: =H64/'Charges Summary'!H$4 -> 292831.9544
A65: ='DNSP Inputs General'!A50 -> HP Sodium 400W | C65: =IF('PL Tariffs'!C15=0,"",'DNSP Inputs General'!O50*'PL Tariffs'!C15) -> 31643.12 | D65: ='DNSP Inputs General'!Q50*'PL Tariffs'!D15 -> 35621.3718 | E65: ='DNSP Inputs General'!R50*'PL Tariffs'!E15 -> 35818.73427 | F65: ='DNSP Inputs General'!S50*'PL Tariffs'!F15 -> 36186.1272 | G65: ='DNSP Inputs General'!T50*'PL Tariffs'!G15 -> 37867.69608 | H65: ='DNSP Inputs General'!U50*'PL Tariffs'!H15 -> 37988.61224 | J65: 31643.12 | K65: =D65/'Charges Summary'!D$4 -> 34923.12332 | L65: =E65/'Charges Summary'!E$4 -> 34428.26281 | M65: =F65/'Charges Summary'!F$4 -> 34099.6104 | N65: =G65/'Charges Summary'!G$4 -> 34984.73847 | O65: =H65/'Charges Summary'!H$4 -> 34408.49003
A66: ='DNSP Inputs General'!A51 -> Metal Halide 70W | C66: =IF('PL Tariffs'!C16=0,"",'DNSP Inputs General'!O51*'PL Tariffs'!C16) -> 5949.83 | D66: ='DNSP Inputs General'!Q51*'PL Tariffs'!D16 -> 5191.018186 | E66: ='DNSP Inputs General'!R51*'PL Tariffs'!E16 -> 3175.95081 | F66: ='DNSP Inputs General'!S51*'PL Tariffs'!F16 -> 1107.763981 | G66: ='DNSP Inputs General'!T51*'PL Tariffs'!G16 -> 0 | H66: ='DNSP Inputs General'!U51*'PL Tariffs'!H16 -> 0 | J66: =C66 -> 5949.83 | K66: =D66/'Charges Summary'!D$4 -> 5089.264089 | L66: =E66/'Charges Summary'!E$4 -> 3052.661446 | M66: =F66/'Charges Summary'!F$4 -> 1043.889554 | N66: =G66/'Charges Summary'!G$4 -> 0 | O66: =H66/'Charges Summary'!H$4 -> 0
A67: ='DNSP Inputs General'!A52 -> Metal Halide 100W | C67: =IF('PL Tariffs'!C17=0,"",'DNSP Inputs General'!O52*'PL Tariffs'!C17) -> 8448.66 | D67: ='DNSP Inputs General'!Q52*'PL Tariffs'!D17 -> 5756.890445 | E67: ='DNSP Inputs General'!R52*'PL Tariffs'!E17 -> 3527.811168 | F67: ='DNSP Inputs General'!S52*'PL Tariffs'!F17 -> 1205.605878 | G67: ='DNSP Inputs General'!T52*'PL Tariffs'!G17 -> 0 | H67: ='DNSP Inputs General'!U52*'PL Tariffs'!H17 -> 0 | J67: 8448.66 | K67: =D67/'Charges Summary'!D$4 -> 5644.044146 | L67: =E67/'Charges Summary'!E$4 -> 3390.862701 | M67: =F67/'Charges Summary'!F$4 -> 1136.08982 | N67: =G67/'Charges Summary'!G$4 -> 0 | O67: =H67/'Charges Summary'!H$4 -> 0
A68: ='DNSP Inputs General'!A53 -> Metal Halide 150W | C68: =IF('PL Tariffs'!C18=0,"",'DNSP Inputs General'!O53*'PL Tariffs'!C18) -> 9316.23 | D68: ='DNSP Inputs General'!Q53*'PL Tariffs'!D18 -> 6347.882208 | E68: ='DNSP Inputs General'!R53*'PL Tariffs'!E18 -> 3889.969761 | F68: ='DNSP Inputs General'!S53*'PL Tariffs'!F18 -> 1329.371155 | G68: ='DNSP Inputs General'!T53*'PL Tariffs'!G18 -> 0 | H68: ='DNSP Inputs General'!U53*'PL Tariffs'!H18 -> 0 | J68: 9316.23 | K68: =D68/'Charges Summary'!D$4 -> 6223.451316 | L68: =E68/'Charges Summary'!E$4 -> 3738.962416 | M68: =F68/'Charges Summary'!F$4 -> 1252.718707 | N68: =G68/'Charges Summary'!G$4 -> 0 | O68: =H68/'Charges Summary'!H$4 -> 0
A69: ='DNSP Inputs General'!A54 -> HP Sodium 50W | C69: =IF('PL Tariffs'!C19=0,"",'DNSP Inputs General'!O54*'PL Tariffs'!C19) -> 0 | D69: ='DNSP Inputs General'!Q54*'PL Tariffs'!D19 -> 0 | E69: ='DNSP Inputs General'!R54*'PL Tariffs'!E19 -> 0 | F69: ='DNSP Inputs General'!S54*'PL Tariffs'!F19 -> 0 | G69: ='DNSP Inputs General'!T54*'PL Tariffs'!G19 -> 0 | H69: ='DNSP Inputs General'!U54*'PL Tariffs'!H19 -> 0 | J69: 0 | K69: =D69/'Charges Summary'!D$4 -> 0 | L69: =E69/'Charges Summary'!E$4 -> 0 | M69: =F69/'Charges Summary'!F$4 -> 0 | N69: =G69/'Charges Summary'!G$4 -> 0 | O69: =H69/'Charges Summary'!H$4 -> 0
A81: ='DNSP Inputs General'!A$68 -> Energy Efficient Lights
A82: ='DNSP Inputs General'!A$69 -> T5 2X14W | C82: =IF('PL Tariffs'!C23=0,"",'DNSP Inputs General'!O69*'PL Tariffs'!C23) -> 801640.8 | D82: ='DNSP Inputs General'!Q69*'PL Tariffs'!D23 -> 1165045.762 | E82: ='DNSP Inputs General'!R69*'PL Tariffs'!E23 -> 1232020.266 | F82: ='DNSP Inputs General'!S69*'PL Tariffs'!F23 -> 1290930.334 | G82: ='DNSP Inputs General'!T69*'PL Tariffs'!G23 -> 1345215.054 | H82: ='DNSP Inputs General'!U69*'PL Tariffs'!H23 -> 1390347.49 | J82: =C82 -> 801640.8 | K82: =D82/'Charges Summary'!D$4 -> 1142208.589 | L82: =E82/'Charges Summary'!E$4 -> 1184193.645 | M82: =F82/'Charges Summary'!F$4 -> 1216494.409 | N82: =G82/'Charges Summary'!G$4 -> 1242800.639 | O82: =H82/'Charges Summary'!H$4 -> 1259318.383
A83: ='DNSP Inputs General'!A$70 -> T5 2X24W | C83: =IF('PL Tariffs'!C24=0,"",'DNSP Inputs General'!O70*'PL Tariffs'!C24) -> 69389.92 | D83: ='DNSP Inputs General'!Q70*'PL Tariffs'!D24 -> 98343.00604 | E83: ='DNSP Inputs General'!R70*'PL Tariffs'!E24 -> 103862.6228 | F83: ='DNSP Inputs General'!S70*'PL Tariffs'!F24 -> 108731.1428 | G83: ='DNSP Inputs General'!T70*'PL Tariffs'!G24 -> 113230.792 | H83: ='DNSP Inputs General'!U70*'PL Tariffs'!H24 -> 116999.8276 | J83: =C83 -> 69389.92 | K83: =D83/'Charges Summary'!D$4 -> 96415.291 | L83: =E83/'Charges Summary'!E$4 -> 99830.71003 | M83: =F83/'Charges Summary'!F$4 -> 102461.6308 | N83: =G83/'Charges Summary'!G$4 -> 104610.263 | O83: =H83/'Charges Summary'!H$4 -> 105973.5316
A84: ='DNSP Inputs General'!A$71 -> LED 18W | C84: =IF('PL Tariffs'!C25=0,"",'DNSP Inputs General'!O71*'PL Tariffs'!C25) -> 503702.93 | D84: ='DNSP Inputs General'!Q71*'PL Tariffs'!D25 -> 1141708.722 | E84: ='DNSP Inputs General'!R71*'PL Tariffs'!E25 -> 1454862.084 | F84: ='DNSP Inputs General'!S71*'PL Tariffs'!F25 -> 1785223.659 | G84: ='DNSP Inputs General'!T71*'PL Tariffs'!G25 -> 2133545.609 | H84: ='DNSP Inputs General'!U71*'PL Tariffs'!H25 -> 2302939.034 | J84: =C84 -> 503702.93 | K84: =D84/'Charges Summary'!D$4 -> 1119329 | L84: =E84/'Charges Summary'!E$4 -> 1398384.817 | M84: =F84/'Charges Summary'!F$4 -> 1682286.444 | N84: =G84/'Charges Summary'!G$4 -> 1971113.717 | O84: =H84/'Charges Summary'!H$4 -> 2085905.489
A85: ='DNSP Inputs General'!A$72 -> LED 14W | C85: =IF('PL Tariffs'!C26=0,"",'DNSP Inputs General'!O72*'PL Tariffs'!C26) -> 43489.71 | D85: ='DNSP Inputs General'!Q72*'PL Tariffs'!D26 -> 85449.31584 | E85: ='DNSP Inputs General'!R72*'PL Tariffs'!E26 -> 91332.99771 | F85: ='DNSP Inputs General'!S72*'PL Tariffs'!F26 -> 96406.43899 | G85: ='DNSP Inputs General'!T72*'PL Tariffs'!G26 -> 100985.2608 | H85: ='DNSP Inputs General'!U72*'PL Tariffs'!H26 -> 104581.276 | J85: =C85 -> 43489.71 | K85: =D85/'Charges Summary'!D$4 -> 83774.34232 | L85: =E85/'Charges Summary'!E$4 -> 87787.48083 | M85: =F85/'Charges Summary'!F$4 -> 90847.5779 | N85: =G85/'Charges Summary'!G$4 -> 93297.01318 | O85: =H85/'Charges Summary'!H$4 -> 94725.32898
A86: ='DNSP Inputs General'!A$73 -> LED 70W-125W (L1) | C86: =IF('PL Tariffs'!C27=0,"",'DNSP Inputs General'!O73*'PL Tariffs'!C27) -> 43250.41977 | D86: ='DNSP Inputs General'!Q73*'PL Tariffs'!D27 -> 111835.0354 | E86: ='DNSP Inputs General'!R73*'PL Tariffs'!E27 -> 121406.0954 | F86: ='DNSP Inputs General'!S73*'PL Tariffs'!F27 -> 148721.3564 | G86: ='DNSP Inputs General'!T73*'PL Tariffs'!G27 -> 156119.3077 | H86: ='DNSP Inputs General'!U73*'PL Tariffs'!H27 -> 153018.5134 | J86: 43250.41977 | K86: =D86/'Charges Summary'!D$4 -> 109642.8502 | L86: =E86/'Charges Summary'!E$4 -> 116693.1508 | M86: =F86/'Charges Summary'!F$4 -> 140145.9814 | N86: =G86/'Charges Summary'!G$4 -> 144233.5742 | O86: =H86/'Charges Summary'!H$4 -> 138597.7451
A87: ='DNSP Inputs General'!A$74 -> LED 155W-250W (L2) | C87: =IF('PL Tariffs'!C28=0,"",'DNSP Inputs General'!O74*'PL Tariffs'!C28) -> 29816.1 | D87: ='DNSP Inputs General'!Q74*'PL Tariffs'!D28 -> 113488.1564 | E87: ='DNSP Inputs General'!R74*'PL Tariffs'!E28 -> 146367.9805 | F87: ='DNSP Inputs General'!S74*'PL Tariffs'!F28 -> 179787.7013 | G87: ='DNSP Inputs General'!T74*'PL Tariffs'!G28 -> 200276.7697 | H87: ='DNSP Inputs General'!U74*'PL Tariffs'!H28 -> 205071.4634 | J87: 29816.1 | K87: =D87/'Charges Summary'!D$4 -> 111263.5668 | L87: =E87/'Charges Summary'!E$4 -> 140686.0237 | M87: =F87/'Charges Summary'!F$4 -> 169421.0197 | N87: =G87/'Charges Summary'!G$4 -> 185029.2237 | O87: =H87/'Charges Summary'!H$4 -> 185745.1218
A88: ='DNSP Inputs General'!A$75 -> LED 275W-400W (L4) | C88: =IF('PL Tariffs'!C29=0,"",'DNSP Inputs General'!O75*'PL Tariffs'!C29) -> 1756.44 | D88: ='DNSP Inputs General'!Q75*'PL Tariffs'!D29 -> 6215.654493 | E88: ='DNSP Inputs General'!R75*'PL Tariffs'!E29 -> 7857.858844 | F88: ='DNSP Inputs General'!S75*'PL Tariffs'!F29 -> 9679.861292 | G88: ='DNSP Inputs General'!T75*'PL Tariffs'!G29 -> 10907.36821 | H88: ='DNSP Inputs General'!U75*'PL Tariffs'!H29 -> 10325.7135 | J88: 1756.44 | K88: =D88/'Charges Summary'!D$4 -> 6093.815522 | L88: =E88/'Charges Summary'!E$4 -> 7552.819353 | M88: =F88/'Charges Summary'!F$4 -> 9121.713882 | N88: =G88/'Charges Summary'!G$4 -> 10076.96437 | O88: =H88/'Charges Summary'!H$4 -> 9352.597769
A89: ='DNSP Inputs General'!A$76 -> Compact Fluorescent 32W | C89: =IF('PL Tariffs'!C30=0,"",'DNSP Inputs General'!O76*'PL Tariffs'!C30) -> 98150.13 | D89: ='DNSP Inputs General'!Q76*'PL Tariffs'!D30 -> 141522.7539 | E89: ='DNSP Inputs General'!R76*'PL Tariffs'!E30 -> 149658.4139 | F89: ='DNSP Inputs General'!S76*'PL Tariffs'!F30 -> 156814.4547 | G89: ='DNSP Inputs General'!T76*'PL Tariffs'!G30 -> 163408.6362 | H89: ='DNSP Inputs General'!U76*'PL Tariffs'!H30 -> 168891.053 | J89: 98150.13 | K89: =D89/'Charges Summary'!D$4 -> 138748.6314 | L89: =E89/'Charges Summary'!E$4 -> 143848.7236 | M89: =F89/'Charges Summary'!F$4 -> 147772.4262 | N89: =G89/'Charges Summary'!G$4 -> 150967.9487 | O89: =H89/'Charges Summary'!H$4 -> 152974.425
A90: ='DNSP Inputs General'!A$77 -> Compact Fluorescent 42W | C90: =IF('PL Tariffs'!C31=0,"",'DNSP Inputs General'!O77*'PL Tariffs'!C31) -> 60779.16 | D90: ='DNSP Inputs General'!Q77*'PL Tariffs'!D31 -> 90620.39149 | E90: ='DNSP Inputs General'!R77*'PL Tariffs'!E31 -> 95829.84847 | F90: ='DNSP Inputs General'!S77*'PL Tariffs'!F31 -> 100412.0319 | G90: ='DNSP Inputs General'!T77*'PL Tariffs'!G31 -> 104634.4434 | H90: ='DNSP Inputs General'!U77*'PL Tariffs'!H31 -> 108144.9656 | J90: 60779.16 | K90: =D90/'Charges Summary'!D$4 -> 88844.05479 | L90: =E90/'Charges Summary'!E$4 -> 92109.76533 | M90: =F90/'Charges Summary'!F$4 -> 94622.20561 | N90: =G90/'Charges Summary'!G$4 -> 96668.37484 | O90: =H90/'Charges Summary'!H$4 -> 97953.16942
A91: ='DNSP Inputs General'!A$78 -> Smart lighting L1 | C91: =IF('PL Tariffs'!C32=0,"",'DNSP Inputs General'!O78*'PL Tariffs'!C32) -> 0 | D91: ='DNSP Inputs General'!Q78*'PL Tariffs'!D32 -> 59.98039629 | E91: ='DNSP Inputs General'!R78*'PL Tariffs'!E32 -> 39179.83698 | F91: ='DNSP Inputs General'!S78*'PL Tariffs'!F32 -> 81595.54993 | G91: ='DNSP Inputs General'!T78*'PL Tariffs'!G32 -> 132332.1989 | H91: ='DNSP Inputs General'!U78*'PL Tariffs'!H32 -> 193759.8643 | J91: 0 | K91: =D91/'Charges Summary'!D$4 -> 58.80466335 | L91: =E91/'Charges Summary'!E$4 -> 37658.88861 | M91: =F91/'Charges Summary'!F$4 -> 76890.69482 | N91: =G91/'Charges Summary'!G$4 -> 122257.4344 | O91: =H91/'Charges Summary'!H$4 -> 175499.5502
A92: ='DNSP Inputs General'!A$79 -> Smart lighting L2 | C92: =IF('PL Tariffs'!C33=0,"",'DNSP Inputs General'!O79*'PL Tariffs'!C33) -> 0 | D92: ='DNSP Inputs General'!Q79*'PL Tariffs'!D33 -> 181.9597994 | E92: ='DNSP Inputs General'!R79*'PL Tariffs'!E33 -> 47512.33821 | F92: ='DNSP Inputs General'!S79*'PL Tariffs'!F33 -> 99055.49228 | G92: ='DNSP Inputs General'!T79*'PL Tariffs'!G33 -> 170472.644 | H92: ='DNSP Inputs General'!U79*'PL Tariffs'!H33 -> 260894.4557 | J92: 0 | K92: =D92/'Charges Summary'!D$4 -> 178.3930318 | L92: =E92/'Charges Summary'!E$4 -> 45667.92489 | M92: =F92/'Charges Summary'!F$4 -> 93343.88497 | N92: =G92/'Charges Summary'!G$4 -> 157494.1569 | O92: =H92/'Charges Summary'!H$4 -> 236307.2445
A93: ='DNSP Inputs General'!A$80 -> Smart lighting L4 | C93: =IF('PL Tariffs'!C34=0,"",'DNSP Inputs General'!O80*'PL Tariffs'!C34) -> 0 | D93: ='DNSP Inputs General'!Q80*'PL Tariffs'!D34 -> 66.67895339 | E93: ='DNSP Inputs General'!R80*'PL Tariffs'!E34 -> 2476.217536 | F93: ='DNSP Inputs General'!S80*'PL Tariffs'!F34 -> 5173.142314 | G93: ='DNSP Inputs General'!T80*'PL Tariffs'!G34 -> 8998.957878 | H93: ='DNSP Inputs General'!U80*'PL Tariffs'!H34 -> 12730.68967 | J93: 0 | K93: =D93/'Charges Summary'!D$4 -> 65.37191565 | L93: =E93/'Charges Summary'!E$4 -> 2380.091587 | M93: =F93/'Charges Summary'!F$4 -> 4874.855397 | N93: =G93/'Charges Summary'!G$4 -> 8313.845849 | O93: =H93/'Charges Summary'!H$4 -> 11530.92421
A95: Total Revenue | C95: =IF(SUM(C57:C93)=0,0,SUM(C57:C93)) -> 5214521.02 | D95: =IF(SUM(D57:D93)=0,0,SUM(D57:D93)) -> 6730570.942 | E95: 6911497.622 | F95: 7130736.978 | G95: 7430036.3 | H95: 7781840.648 | J95: =IF(SUM(J57:J93)=0,0,SUM(J57:J93)) -> 5214521.02 | K95: =IF(SUM(K57:K93)=0,0,SUM(K57:K93)) -> 6598638.603 | L95: 6643195.561 | M95: 6719573.816 | N95: 6864369.996 | O95: 7048464.542
A98: Public Lighting - O & M | D98: Forecast O & M - Nominal | K98: Forecast O & M - Real 2021 $
D99: =D$2 -> 2022-06-30 | E99: 2023-06-30 | F99: 2024-06-30 | G99: 2025-06-30 | H99: 2026-06-30 | K99: =K$2 -> 2022-06-30 | L99: 2023-06-30 | M99: 2024-06-30 | N99: 2025-06-30 | O99: 2026-06-30
A101: Unit cost
A102: ='DNSP Inputs General'!A$42 -> Mercury Vapour 80W | D102: =SUM('Charges Summary'!D25,'Charges Summary'!D8) -> 25.66326446 | E102: =SUM('Charges Summary'!E25,'Charges Summary'!E8) -> 26.24804532 | F102: =SUM('Charges Summary'!F25,'Charges Summary'!F8) -> 26.83705343 | G102: =SUM('Charges Summary'!G25,'Charges Summary'!G8) -> 27.45849906 | H102: =SUM('Charges Summary'!H25,'Charges Summary'!H8) -> 28.12262914 | K102: =D102/'Charges Summary'!D$4 -> 25.16021434 | L102: =E102/'Charges Summary'!E$4 -> 25.22910485 | M102: =F102/'Charges Summary'!F$4 -> 25.28961061 | N102: =G102/'Charges Summary'!G$4 -> 25.36801833 | O102: =H102/'Charges Summary'!H$4 -> 25.47229676
A103: ='DNSP Inputs General'!A$43 -> HP Sodium 150W | D103: =SUM('Charges Summary'!D49,'Charges Summary'!D8) -> 72.98832173 | E103: =SUM('Charges Summary'!E49,'Charges Summary'!E8) -> 74.76666097 | F103: =SUM('Charges Summary'!F49,'Charges Summary'!F8) -> 76.56032933 | G103: =SUM('Charges Summary'!G49,'Charges Summary'!G8) -> 78.46393964 | H103: =SUM('Charges Summary'!H49,'Charges Summary'!H8) -> 80.52750749 | K103: =D103/'Charges Summary'!D$4 -> 71.55760804 | L103: =E103/'Charges Summary'!E$4 -> 71.86424383 | M103: =F103/'Charges Summary'!F$4 -> 72.14580848 | N103: =G103/'Charges Summary'!G$4 -> 72.49029362 | O103: =H103/'Charges Summary'!H$4 -> 72.93843538
A104: ='DNSP Inputs General'!A$44 -> HP Sodium 250W | D104: =SUM('Charges Summary'!D65,'Charges Summary'!D8) -> 75.25680245 | E104: =SUM('Charges Summary'!E65,'Charges Summary'!E8) -> 77.08341417 | F104: =SUM('Charges Summary'!F65,'Charges Summary'!F8) -> 78.92596164 | G104: =SUM('Charges Summary'!G65,'Charges Summary'!G8) -> 80.88039618 | H104: =SUM('Charges Summary'!H65,'Charges Summary'!H8) -> 82.99709358 | K104: =D104/'Charges Summary'!D$4 -> 73.78162211 | L104: =E104/'Charges Summary'!E$4 -> 74.09106143 | M104: =F104/'Charges Summary'!F$4 -> 74.37503681 | N104: =G104/'Charges Summary'!G$4 -> 74.72277959 | O104: =H104/'Charges Summary'!H$4 -> 75.17528278
A106: ='DNSP Inputs General'!A$69 -> T5 2X14W | D106: =SUM('Charges Summary'!D83,'Charges Summary'!D8) -> 32.40524504 | E106: =SUM('Charges Summary'!E83,'Charges Summary'!E8) -> 33.16916122 | F106: =SUM('Charges Summary'!F83,'Charges Summary'!F8) -> 33.93839318 | G106: =SUM('Charges Summary'!G83,'Charges Summary'!G8) -> 34.75347906 | H106: =SUM('Charges Summary'!H83,'Charges Summary'!H8) -> 35.63234263 | K106: =D106/'Charges Summary'!D$4 -> 31.77003893 | L106: =E106/'Charges Summary'!E$4 -> 31.88154531 | M106: =F106/'Charges Summary'!F$4 -> 31.98148226 | N106: =G106/'Charges Summary'!G$4 -> 32.10761419 | O106: =H106/'Charges Summary'!H$4 -> 32.27427995
A107: ='DNSP Inputs General'!A$70 -> T5 2X24W | D107: =SUM('Charges Summary'!D99,'Charges Summary'!D8) -> 35.71889209 | E107: =SUM('Charges Summary'!E99,'Charges Summary'!E8) -> 36.56378593 | F107: =SUM('Charges Summary'!F99,'Charges Summary'!F8) -> 37.41478661 | G107: =SUM('Charges Summary'!G99,'Charges Summary'!G8) -> 38.31653515 | H107: =SUM('Charges Summary'!H99,'Charges Summary'!H8) -> 39.28951367 | K107: =D107/'Charges Summary'!D$4 -> 35.01873202 | L107: =E107/'Charges Summary'!E$4 -> 35.14439181 | M107: =F107/'Charges Summary'!F$4 -> 35.25742447 | N107: =G107/'Charges Summary'!G$4 -> 35.39940636 | O107: =H107/'Charges Summary'!H$4 -> 35.58679193
A108: ='DNSP Inputs General'!A$71 -> LED 18W | D108: =SUM('Charges Summary'!D115,'Charges Summary'!D8) -> 11.63572167 | E108: =SUM('Charges Summary'!E115,'Charges Summary'!E8) -> 11.89262279 | F108: =SUM('Charges Summary'!F115,'Charges Summary'!F8) -> 12.14986175 | G108: =SUM('Charges Summary'!G115,'Charges Summary'!G8) -> 12.42241061 | H108: =SUM('Charges Summary'!H115,'Charges Summary'!H8) -> 12.71225103 | K108: =D108/'Charges Summary'!D$4 -> 11.4076388 | L108: =E108/'Charges Summary'!E$4 -> 11.43095509 | M108: =F108/'Charges Summary'!F$4 -> 11.44929242 | N108: =G108/'Charges Summary'!G$4 -> 11.476663 | O108: =H108/'Charges Summary'!H$4 -> 11.51422327
A109: ='DNSP Inputs General'!A$72 -> LED 14W | D109: =SUM('Charges Summary'!D131,'Charges Summary'!D$8) -> 13.45449854 | E109: =SUM('Charges Summary'!E131,'Charges Summary'!E$8) -> 13.75426816 | F109: =SUM('Charges Summary'!F131,'Charges Summary'!F$8) -> 14.05486699 | G109: =SUM('Charges Summary'!G131,'Charges Summary'!G$8) -> 14.37308221 | H109: =SUM('Charges Summary'!H131,'Charges Summary'!H$8) -> 14.71202839 | K109: =D109/'Charges Summary'!D$4 -> 13.19076408 | L109: =E109/'Charges Summary'!E$4 -> 13.220332 | M109: =F109/'Charges Summary'!F$4 -> 13.24445377 | N109: =G109/'Charges Summary'!G$4 -> 13.27882534 | O109: =H109/'Charges Summary'!H$4 -> 13.32553764
A110: ='DNSP Inputs General'!A$73 -> LED 70W-125W (L1) | D110: =SUM('Charges Summary'!D147,'Charges Summary'!D$8) -> 22.23952447 | E110: =SUM('Charges Summary'!E147,'Charges Summary'!E$8) -> 22.77204443 | F110: =SUM('Charges Summary'!F147,'Charges Summary'!F$8) -> 23.30683621 | G110: =SUM('Charges Summary'!G147,'Charges Summary'!G$8) -> 23.87656547 | H110: =SUM('Charges Summary'!H147,'Charges Summary'!H$8) -> 24.4942349 | K110: =D110/'Charges Summary'!D$4 -> 21.80358634 | L110: =E110/'Charges Summary'!E$4 -> 21.88804117 | M110: =F110/'Charges Summary'!F$4 -> 21.96294813 | N110: =G110/'Charges Summary'!G$4 -> 22.05878585 | O110: =H110/'Charges Summary'!H$4 -> 22.1858496
A111: ='DNSP Inputs General'!A$74 -> LED 155W-250W (L2) | D111: =SUM('Charges Summary'!D163,'Charges Summary'!D$8) -> 22.23952447 | E111: =SUM('Charges Summary'!E163,'Charges Summary'!E$8) -> 22.77204443 | F111: =SUM('Charges Summary'!F163,'Charges Summary'!F$8) -> 23.30683621 | G111: =SUM('Charges Summary'!G163,'Charges Summary'!G$8) -> 23.87656547 | H111: =SUM('Charges Summary'!H163,'Charges Summary'!H$8) -> 24.4942349 | K111: =D111/'Charges Summary'!D$4 -> 21.80358634 | L111: =E111/'Charges Summary'!E$4 -> 21.88804117 | M111: =F111/'Charges Summary'!F$4 -> 21.96294813 | N111: =G111/'Charges Summary'!G$4 -> 22.05878585 | O111: =H111/'Charges Summary'!H$4 -> 22.1858496
A112: ='DNSP Inputs General'!A$75 -> LED 275W-400W (L4) | D112: =SUM('Charges Summary'!D179,'Charges Summary'!D$8) -> 22.23952447 | E112: =SUM('Charges Summary'!E179,'Charges Summary'!E$8) -> 22.77204443 | F112: =SUM('Charges Summary'!F179,'Charges Summary'!F$8) -> 23.30683621 | G112: =SUM('Charges Summary'!G179,'Charges Summary'!G$8) -> 23.87656547 | H112: =SUM('Charges Summary'!H179,'Charges Summary'!H$8) -> 24.4942349 | K112: =D112/'Charges Summary'!D$4 -> 21.80358634 | L112: =E112/'Charges Summary'!E$4 -> 21.88804117 | M112: =F112/'Charges Summary'!F$4 -> 21.96294813 | N112: =G112/'Charges Summary'!G$4 -> 22.05878585 | O112: =H112/'Charges Summary'!H$4 -> 22.1858496
A114: ='DNSP Inputs General'!A$41 -> Existing Lights
A115: ='DNSP Inputs General'!A$42 -> Mercury Vapour 80W | D115: =D102*'DNSP Inputs General'!Q42 -> 379452.2344 | E115: =E102*'DNSP Inputs General'!R42 -> 258732.4632 | F115: =F102*'DNSP Inputs General'!S42 -> 132269.2196 | G115: =G102*'DNSP Inputs General'!T42 -> 27.45849906 | H115: =H102*'DNSP Inputs General'!U42 -> 28.12262914 | K115: =D115/'Charges Summary'!D$4 -> 372014.2293 | L115: =E115/'Charges Summary'!E$4 -> 248688.5543 | M115: =F115/'Charges Summary'!F$4 -> 124642.4861 | N115: =G115/'Charges Summary'!G$4 -> 25.36801833 | O115: =H115/'Charges Summary'!H$4 -> 25.47229676
A116: ='DNSP Inputs General'!A$43 -> HP Sodium 150W | D116: =D103*'DNSP Inputs General'!Q43 -> 1054204.146 | E116: =E103*'DNSP Inputs General'!R43 -> 1044696.989 | F116: =F103*'DNSP Inputs General'!S43 -> 1034420.944 | G116: =G103*'DNSP Inputs General'!T43 -> 1024619.882 | H116: =H103*'DNSP Inputs General'!U43 -> 1015806.304 | K116: =D116/'Charges Summary'!D$4 -> 1033539.685 | L116: =E116/'Charges Summary'!E$4 -> 1004142.196 | M116: =F116/'Charges Summary'!F$4 -> 974775.5261 | N116: =G116/'Charges Summary'!G$4 -> 946613.1375 | O116: =H116/'Charges Summary'!H$4 -> 920074.702
A117: ='DNSP Inputs General'!A$44 -> HP Sodium 250W | D117: =D104*'DNSP Inputs General'!Q44 -> 508601.6985 | E117: =E104*'DNSP Inputs General'!R44 -> 501338.2881 | F117: =F104*'DNSP Inputs General'!S44 -> 493726.3774 | G117: =G104*'DNSP Inputs General'!T44 -> 486347.1944 | H117: =H104*'DNSP Inputs General'!U44 -> 479434.38 | K117: =D117/'Charges Summary'!D$4 -> 498632.1117 | L117: =E117/'Charges Summary'!E$4 -> 481876.5009 | M117: =F117/'Charges Summary'!F$4 -> 465257.7775 | N117: =G117/'Charges Summary'!G$4 -> 449320.4278 | O117: =H117/'Charges Summary'!H$4 -> 434251.5326
A118: ='DNSP Inputs General'!A$45 -> Mercury Vapour 50W | D118: =IF('DNSP Inputs General'!$B45='DNSP Inputs General'!$A$42,D$102,IF('DNSP Inputs General'!$B45='DNSP Inputs General'!$A$43,D$103,D$104))*'DNSP Inputs General'!$D45*'DNSP Inputs General'!Q45 -> 2152.294063 | E118: =IF('DNSP Inputs General'!$B45='DNSP Inputs General'!$A$42,E$102,IF('DNSP Inputs General'!$B45='DNSP Inputs General'!$A$43,E$103,E$104))*'DNSP Inputs General'!$D45*'DNSP Inputs General'!R45 -> 1467.558481 | F118: =IF('DNSP Inputs General'!$B45='DNSP Inputs General'!$A$42,F$102,IF('DNSP Inputs General'!$B45='DNSP Inputs General'!$A$43,F$103,F$104))*'DNSP Inputs General'!$D45*'DNSP Inputs General'!S45 -> 750.2453018 | G118: =IF('DNSP Inputs General'!$B45='DNSP Inputs General'!$A$42,G$102,IF('DNSP Inputs General'!$B45='DNSP Inputs General'!$A$43,G$103,G$104))*'DNSP Inputs General'!$D45*'DNSP Inputs General'!T45 -> 0 | H118: =IF('DNSP Inputs General'!$B45='DNSP Inputs General'!$A$42,H$102,IF('DNSP Inputs General'!$B45='DNSP Inputs General'!$A$43,H$103,H$104))*'DNSP Inputs General'!$D45*'DNSP Inputs General'!U45 -> 0 | K118: =D118/'Charges Summary'!D$4 -> 2110.104895 | L118: =E118/'Charges Summary'!E$4 -> 1410.588344 | M118: =F118/'Charges Summary'!F$4 -> 706.9856456 | N118: =G118/'Charges Summary'!G$4 -> 0 | O118: =H118/'Charges Summary'!H$4 -> 0
A119: ='DNSP Inputs General'!A$46 -> Mercury Vapour 125W | D119: =IF('DNSP Inputs General'!$B46='DNSP Inputs General'!$A$42,D$102,IF('DNSP Inputs General'!$B46='DNSP Inputs General'!$A$43,D$103,D$104))*'DNSP Inputs General'!$D46*'DNSP Inputs General'!Q46 -> 7964.311227 | E119: =IF('DNSP Inputs General'!$B46='DNSP Inputs General'!$A$42,E$102,IF('DNSP Inputs General'!$B46='DNSP Inputs General'!$A$43,E$103,E$104))*'DNSP Inputs General'!$D46*'DNSP Inputs General'!R46 -> 5430.527679 | F119: =IF('DNSP Inputs General'!$B46='DNSP Inputs General'!$A$42,F$102,IF('DNSP Inputs General'!$B46='DNSP Inputs General'!$A$43,F$103,F$104))*'DNSP Inputs General'!$D46*'DNSP Inputs General'!S46 -> 2776.194565 | G119: =IF('DNSP Inputs General'!$B46='DNSP Inputs General'!$A$42,G$102,IF('DNSP Inputs General'!$B46='DNSP Inputs General'!$A$43,G$103,G$104))*'DNSP Inputs General'!$D46*'DNSP Inputs General'!T46 -> 0 | H119: =IF('DNSP Inputs General'!$B46='DNSP Inputs General'!$A$42,H$102,IF('DNSP Inputs General'!$B46='DNSP Inputs General'!$A$43,H$103,H$104))*'DNSP Inputs General'!$D46*'DNSP Inputs General'!U46 -> 0 | K119: =D119/'Charges Summary'!D$4 -> 7808.195168 | L119: =E119/'Charges Summary'!E$4 -> 5219.716384 | M119: =F119/'Charges Summary'!F$4 -> 2616.117291 | N119: =G119/'Charges Summary'!G$4 -> 0 | O119: =H119/'Charges Summary'!H$4 -> 0
A120: ='DNSP Inputs General'!A$47 -> Mercury Vapour 250W | D120: =IF('DNSP Inputs General'!$B47='DNSP Inputs General'!$A$42,D$102,IF('DNSP Inputs General'!$B47='DNSP Inputs General'!$A$43,D$103,D$104))*'DNSP Inputs General'!$D47*'DNSP Inputs General'!Q47 -> 36416.84181 | E120: =IF('DNSP Inputs General'!$B47='DNSP Inputs General'!$A$42,E$102,IF('DNSP Inputs General'!$B47='DNSP Inputs General'!$A$43,E$103,E$104))*'DNSP Inputs General'!$D47*'DNSP Inputs General'!R47 -> 24867.1607 | F120: =IF('DNSP Inputs General'!$B47='DNSP Inputs General'!$A$42,F$102,IF('DNSP Inputs General'!$B47='DNSP Inputs General'!$A$43,F$103,F$104))*'DNSP Inputs General'!$D47*'DNSP Inputs General'!S47 -> 12730.78387 | G120: =IF('DNSP Inputs General'!$B47='DNSP Inputs General'!$A$42,G$102,IF('DNSP Inputs General'!$B47='DNSP Inputs General'!$A$43,G$103,G$104))*'DNSP Inputs General'!$D47*'DNSP Inputs General'!T47 -> 0 | H120: =IF('DNSP Inputs General'!$B47='DNSP Inputs General'!$A$42,H$102,IF('DNSP Inputs General'!$B47='DNSP Inputs General'!$A$43,H$103,H$104))*'DNSP Inputs General'!$D47*'DNSP Inputs General'!U47 -> 0 | K120: =D120/'Charges Summary'!D$4 -> 35703.00057 | L120: =E120/'Charges Summary'!E$4 -> 23901.82571 | M120: =F120/'Charges Summary'!F$4 -> 11996.71818 | N120: =G120/'Charges Summary'!G$4 -> 0 | O120: =H120/'Charges Summary'!H$4 -> 0
A121: ='DNSP Inputs General'!A$48 -> Mercury Vapour 400W | D121: =IF('DNSP Inputs General'!$B48='DNSP Inputs General'!$A$42,D$102,IF('DNSP Inputs General'!$B48='DNSP Inputs General'!$A$43,D$103,D$104))*'DNSP Inputs General'!$D48*'DNSP Inputs General'!Q48 -> 7136.602576 | E121: =IF('DNSP Inputs General'!$B48='DNSP Inputs General'!$A$42,E$102,IF('DNSP Inputs General'!$B48='DNSP Inputs General'!$A$43,E$103,E$104))*'DNSP Inputs General'!$D48*'DNSP Inputs General'!R48 -> 4873.213444 | F121: =IF('DNSP Inputs General'!$B48='DNSP Inputs General'!$A$42,F$102,IF('DNSP Inputs General'!$B48='DNSP Inputs General'!$A$43,F$103,F$104))*'DNSP Inputs General'!$D48*'DNSP Inputs General'!S48 -> 2494.849647 | G121: =IF('DNSP Inputs General'!$B48='DNSP Inputs General'!$A$42,G$102,IF('DNSP Inputs General'!$B48='DNSP Inputs General'!$A$43,G$103,G$104))*'DNSP Inputs General'!$D48*'DNSP Inputs General'!T48 -> 0 | H121: =IF('DNSP Inputs General'!$B48='DNSP Inputs General'!$A$42,H$102,IF('DNSP Inputs General'!$B48='DNSP Inputs General'!$A$43,H$103,H$104))*'DNSP Inputs General'!$D48*'DNSP Inputs General'!U48 -> 0 | K121: =D121/'Charges Summary'!D$4 -> 6996.711224 | L121: =E121/'Charges Summary'!E$4 -> 4684.036904 | M121: =F121/'Charges Summary'!F$4 -> 2350.994914 | N121: =G121/'Charges Summary'!G$4 -> 0 | O121: =H121/'Charges Summary'!H$4 -> 0
A122: ='DNSP Inputs General'!A$49 -> HP Sodium 100W | D122: =IF('DNSP Inputs General'!$B49='DNSP Inputs General'!$A$42,D$102,IF('DNSP Inputs General'!$B49='DNSP Inputs General'!$A$43,D$103,D$104))*'DNSP Inputs General'!$D49*'DNSP Inputs General'!Q49 -> 192563.2698 | E122: =IF('DNSP Inputs General'!$B49='DNSP Inputs General'!$A$42,E$102,IF('DNSP Inputs General'!$B49='DNSP Inputs General'!$A$43,E$103,E$104))*'DNSP Inputs General'!$D49*'DNSP Inputs General'!R49 -> 194768.4382 | F122: =IF('DNSP Inputs General'!$B49='DNSP Inputs General'!$A$42,F$102,IF('DNSP Inputs General'!$B49='DNSP Inputs General'!$A$43,F$103,F$104))*'DNSP Inputs General'!$D49*'DNSP Inputs General'!S49 -> 196894.742 | G122: =IF('DNSP Inputs General'!$B49='DNSP Inputs General'!$A$42,G$102,IF('DNSP Inputs General'!$B49='DNSP Inputs General'!$A$43,G$103,G$104))*'DNSP Inputs General'!$D49*'DNSP Inputs General'!T49 -> 199180.8264 | H122: =IF('DNSP Inputs General'!$B49='DNSP Inputs General'!$A$42,H$102,IF('DNSP Inputs General'!$B49='DNSP Inputs General'!$A$43,H$103,H$104))*'DNSP Inputs General'!$D49*'DNSP Inputs General'!U49 -> 201741.0233 | K122: =D122/'Charges Summary'!D$4 -> 188788.6535 | L122: =E122/'Charges Summary'!E$4 -> 187207.5916 | M122: =F122/'Charges Summary'!F$4 -> 185541.6567 | N122: =G122/'Charges Summary'!G$4 -> 184016.7171 | O122: =H122/'Charges Summary'!H$4 -> 182728.5489
A123: ='DNSP Inputs General'!A50 -> HP Sodium 400W | D123: =IF('DNSP Inputs General'!$B50='DNSP Inputs General'!$A$42,D$102,IF('DNSP Inputs General'!$B50='DNSP Inputs General'!$A$43,D$103,D$104))*'DNSP Inputs General'!$D50*'DNSP Inputs General'!Q50 -> 23051.08272 | E123: =IF('DNSP Inputs General'!$B50='DNSP Inputs General'!$A$42,E$102,IF('DNSP Inputs General'!$B50='DNSP Inputs General'!$A$43,E$103,E$104))*'DNSP Inputs General'!$D50*'DNSP Inputs General'!R50 -> 23247.52763 | F123: =IF('DNSP Inputs General'!$B50='DNSP Inputs General'!$A$42,F$102,IF('DNSP Inputs General'!$B50='DNSP Inputs General'!$A$43,F$103,F$104))*'DNSP Inputs General'!$D50*'DNSP Inputs General'!S50 -> 23424.11984 | G123: =IF('DNSP Inputs General'!$B50='DNSP Inputs General'!$A$42,G$102,IF('DNSP Inputs General'!$B50='DNSP Inputs General'!$A$43,G$103,G$104))*'DNSP Inputs General'!$D50*'DNSP Inputs General'!T50 -> 23607.98802 | H123: =IF('DNSP Inputs General'!$B50='DNSP Inputs General'!$A$42,H$102,IF('DNSP Inputs General'!$B50='DNSP Inputs General'!$A$43,H$103,H$104))*'DNSP Inputs General'!$D50*'DNSP Inputs General'!U50 -> 23811.24365 | K123: =D123/'Charges Summary'!D$4 -> 22599.23646 | L123: =E123/'Charges Summary'!E$4 -> 22345.06627 | M123: =F123/'Charges Summary'!F$4 -> 22073.46909 | N123: =G123/'Charges Summary'!G$4 -> 21810.65584 | O123: =H123/'Charges Summary'!H$4 -> 21567.22479
A124: ='DNSP Inputs General'!A51 -> Metal Halide 70W | D124: =IF('DNSP Inputs General'!$B51='DNSP Inputs General'!$A$42,D$102,IF('DNSP Inputs General'!$B51='DNSP Inputs General'!$A$43,D$103,D$104))*'DNSP Inputs General'!$D51*'DNSP Inputs General'!Q51 -> 2170.44294 | E124: =IF('DNSP Inputs General'!$B51='DNSP Inputs General'!$A$42,E$102,IF('DNSP Inputs General'!$B51='DNSP Inputs General'!$A$43,E$103,E$104))*'DNSP Inputs General'!$D51*'DNSP Inputs General'!R51 -> 1331.94009 | F124: =IF('DNSP Inputs General'!$B51='DNSP Inputs General'!$A$42,F$102,IF('DNSP Inputs General'!$B51='DNSP Inputs General'!$A$43,F$103,F$104))*'DNSP Inputs General'!$D51*'DNSP Inputs General'!S51 -> 453.9429754 | G124: =IF('DNSP Inputs General'!$B51='DNSP Inputs General'!$A$42,G$102,IF('DNSP Inputs General'!$B51='DNSP Inputs General'!$A$43,G$103,G$104))*'DNSP Inputs General'!$D51*'DNSP Inputs General'!T51 -> 0 | H124: =IF('DNSP Inputs General'!$B51='DNSP Inputs General'!$A$42,H$102,IF('DNSP Inputs General'!$B51='DNSP Inputs General'!$A$43,H$103,H$104))*'DNSP Inputs General'!$D51*'DNSP Inputs General'!U51 -> 0 | K124: =D124/'Charges Summary'!D$4 -> 2127.898018 | L124: =E124/'Charges Summary'!E$4 -> 1280.234615 | M124: =F124/'Charges Summary'!F$4 -> 427.7683136 | N124: =G124/'Charges Summary'!G$4 -> 0 | O124: =H124/'Charges Summary'!H$4 -> 0
A125: ='DNSP Inputs General'!A52 -> Metal Halide 100W | D125: =IF('DNSP Inputs General'!$B52='DNSP Inputs General'!$A$42,D$102,IF('DNSP Inputs General'!$B52='DNSP Inputs General'!$A$43,D$103,D$104))*'DNSP Inputs General'!$D52*'DNSP Inputs General'!Q52 -> 3703.310161 | E125: =IF('DNSP Inputs General'!$B52='DNSP Inputs General'!$A$42,E$102,IF('DNSP Inputs General'!$B52='DNSP Inputs General'!$A$43,E$103,E$104))*'DNSP Inputs General'!$D52*'DNSP Inputs General'!R52 -> 2276.124142 | F125: =IF('DNSP Inputs General'!$B52='DNSP Inputs General'!$A$42,F$102,IF('DNSP Inputs General'!$B52='DNSP Inputs General'!$A$43,F$103,F$104))*'DNSP Inputs General'!$D52*'DNSP Inputs General'!S52 -> 776.9096173 | G125: =IF('DNSP Inputs General'!$B52='DNSP Inputs General'!$A$42,G$102,IF('DNSP Inputs General'!$B52='DNSP Inputs General'!$A$43,G$103,G$104))*'DNSP Inputs General'!$D52*'DNSP Inputs General'!T52 -> 0 | H125: =IF('DNSP Inputs General'!$B52='DNSP Inputs General'!$A$42,H$102,IF('DNSP Inputs General'!$B52='DNSP Inputs General'!$A$43,H$103,H$104))*'DNSP Inputs General'!$D52*'DNSP Inputs General'!U52 -> 0 | K125: =D125/'Charges Summary'!D$4 -> 3630.718047 | L125: =E125/'Charges Summary'!E$4 -> 2187.765752 | M125: =F125/'Charges Summary'!F$4 -> 732.1124784 | N125: =G125/'Charges Summary'!G$4 -> 0 | O125: =H125/'Charges Summary'!H$4 -> 0
A126: ='DNSP Inputs General'!A53 -> Metal Halide 150W | D126: =IF('DNSP Inputs General'!$B53='DNSP Inputs General'!$A$42,D$102,IF('DNSP Inputs General'!$B53='DNSP Inputs General'!$A$43,D$103,D$104))*'DNSP Inputs General'!$D53*'DNSP Inputs General'!Q53 -> 4083.485156 | E126: =IF('DNSP Inputs General'!$B53='DNSP Inputs General'!$A$42,E$102,IF('DNSP Inputs General'!$B53='DNSP Inputs General'!$A$43,E$103,E$104))*'DNSP Inputs General'!$D53*'DNSP Inputs General'!R53 -> 2509.786851 | F126: =IF('DNSP Inputs General'!$B53='DNSP Inputs General'!$A$42,F$102,IF('DNSP Inputs General'!$B53='DNSP Inputs General'!$A$43,F$103,F$104))*'DNSP Inputs General'!$D53*'DNSP Inputs General'!S53 -> 856.6657267 | G126: =IF('DNSP Inputs General'!$B53='DNSP Inputs General'!$A$42,G$102,IF('DNSP Inputs General'!$B53='DNSP Inputs General'!$A$43,G$103,G$104))*'DNSP Inputs General'!$D53*'DNSP Inputs General'!T53 -> 0 | H126: =IF('DNSP Inputs General'!$B53='DNSP Inputs General'!$A$42,H$102,IF('DNSP Inputs General'!$B53='DNSP Inputs General'!$A$43,H$103,H$104))*'DNSP Inputs General'!$D53*'DNSP Inputs General'!U53 -> 0 | K126: =D126/'Charges Summary'!D$4 -> 4003.44087 | L126: =E126/'Charges Summary'!E$4 -> 2412.357752 | M126: =F126/'Charges Summary'!F$4 -> 807.2697961 | N126: =G126/'Charges Summary'!G$4 -> 0 | O126: =H126/'Charges Summary'!H$4 -> 0
A127: ='DNSP Inputs General'!A54 -> HP Sodium 50W | D127: =IF('DNSP Inputs General'!$B54='DNSP Inputs General'!$A$42,D$102,IF('DNSP Inputs General'!$B54='DNSP Inputs General'!$A$43,D$103,D$104))*'DNSP Inputs General'!$D54*'DNSP Inputs General'!Q54 -> 0 | E127: =IF('DNSP Inputs General'!$B54='DNSP Inputs General'!$A$42,E$102,IF('DNSP Inputs General'!$B54='DNSP Inputs General'!$A$43,E$103,E$104))*'DNSP Inputs General'!$D54*'DNSP Inputs General'!R54 -> 0 | F127: =IF('DNSP Inputs General'!$B54='DNSP Inputs General'!$A$42,F$102,IF('DNSP Inputs General'!$B54='DNSP Inputs General'!$A$43,F$103,F$104))*'DNSP Inputs General'!$D54*'DNSP Inputs General'!S54 -> 0 | G127: =IF('DNSP Inputs General'!$B54='DNSP Inputs General'!$A$42,G$102,IF('DNSP Inputs General'!$B54='DNSP Inputs General'!$A$43,G$103,G$104))*'DNSP Inputs General'!$D54*'DNSP Inputs General'!T54 -> 0 | H127: =IF('DNSP Inputs General'!$B54='DNSP Inputs General'!$A$42,H$102,IF('DNSP Inputs General'!$B54='DNSP Inputs General'!$A$43,H$103,H$104))*'DNSP Inputs General'!$D54*'DNSP Inputs General'!U54 -> 0 | K127: =D127/'Charges Summary'!D$4 -> 0 | L127: =E127/'Charges Summary'!E$4 -> 0 | M127: =F127/'Charges Summary'!F$4 -> 0 | N127: =G127/'Charges Summary'!G$4 -> 0 | O127: =H127/'Charges Summary'!H$4 -> 0
A139: ='DNSP Inputs General'!A$68 -> Energy Efficient Lights
A140: ='DNSP Inputs General'!A$69 -> T5 2X14W | D140: =SUM('Charges Summary'!D83,'Charges Summary'!D8)*'DNSP Inputs General'!$D69*'DNSP Inputs General'!Q69 -> 730039.3714 | E140: =SUM('Charges Summary'!E83,'Charges Summary'!E8)*'DNSP Inputs General'!$D69*'DNSP Inputs General'!R69 -> 747249.2054 | F140: =SUM('Charges Summary'!F83,'Charges Summary'!F8)*'DNSP Inputs General'!$D69*'DNSP Inputs General'!S69 -> 764578.7957 | G140: =SUM('Charges Summary'!G83,'Charges Summary'!G8)*'DNSP Inputs General'!$D69*'DNSP Inputs General'!T69 -> 782941.4028 | H140: =SUM('Charges Summary'!H83,'Charges Summary'!H8)*'DNSP Inputs General'!$D69*'DNSP Inputs General'!U69 -> 802740.8213 | K140: =D140/'Charges Summary'!D$4 -> 715729.1736 | L140: =E140/'Charges Summary'!E$4 -> 718241.2375 | M140: =F140/'Charges Summary'!F$4 -> 720492.6604 | N140: =G140/'Charges Summary'!G$4 -> 723334.215 | O140: =H140/'Charges Summary'!H$4 -> 727088.9333
A141: ='DNSP Inputs General'!A70 -> T5 2X24W | D141: =SUM('Charges Summary'!D99,'Charges Summary'!D8)*'DNSP Inputs General'!$D70*'DNSP Inputs General'!Q70 -> 63615.34681 | E141: =SUM('Charges Summary'!E99,'Charges Summary'!E8)*'DNSP Inputs General'!$D70*'DNSP Inputs General'!R70 -> 65120.10274 | F141: =SUM('Charges Summary'!F99,'Charges Summary'!F8)*'DNSP Inputs General'!$D70*'DNSP Inputs General'!S70 -> 66635.73496 | G141: =SUM('Charges Summary'!G99,'Charges Summary'!G8)*'DNSP Inputs General'!$D70*'DNSP Inputs General'!T70 -> 68241.74911 | H141: =SUM('Charges Summary'!H99,'Charges Summary'!H8)*'DNSP Inputs General'!$D70*'DNSP Inputs General'!U70 -> 69974.62384 | K141: =D141/'Charges Summary'!D$4 -> 62368.36173 | L141: =E141/'Charges Summary'!E$4 -> 62592.16181 | M141: =F141/'Charges Summary'!F$4 -> 62793.47299 | N141: =G141/'Charges Summary'!G$4 -> 63046.34273 | O141: =H141/'Charges Summary'!H$4 -> 63380.07643
A142: ='DNSP Inputs General'!A71 -> LED 18W | D142: =SUM('Charges Summary'!D115,'Charges Summary'!D8)*'DNSP Inputs General'!$D71*'DNSP Inputs General'!Q71 -> 450981.605 | E142: =SUM('Charges Summary'!E115,'Charges Summary'!E8)*'DNSP Inputs General'!$D71*'DNSP Inputs General'!R71 -> 548095.0929 | F142: =SUM('Charges Summary'!F115,'Charges Summary'!F8)*'DNSP Inputs General'!$D71*'DNSP Inputs General'!S71 -> 649770.6557 | G142: =SUM('Charges Summary'!G115,'Charges Summary'!G8)*'DNSP Inputs General'!$D71*'DNSP Inputs General'!T71 -> 756999.8101 | H142: =SUM('Charges Summary'!H115,'Charges Summary'!H8)*'DNSP Inputs General'!$D71*'DNSP Inputs General'!U71 -> 806962.142 | K142: =D142/'Charges Summary'!D$4 -> 442141.4845 | L142: =E142/'Charges Summary'!E$4 -> 526818.2219 | M142: =F142/'Charges Summary'!F$4 -> 612304.4361 | N142: =G142/'Charges Summary'!G$4 -> 699367.6173 | O142: =H142/'Charges Summary'!H$4 -> 730912.4284
A143: ='DNSP Inputs General'!A72 -> LED 14W | D143: =SUM('Charges Summary'!D131,'Charges Summary'!D$8)*'DNSP Inputs General'!$D72*'DNSP Inputs General'!Q72 -> 36759.26125 | E143: =SUM('Charges Summary'!E131,'Charges Summary'!E$8)*'DNSP Inputs General'!$D72*'DNSP Inputs General'!R72 -> 37578.26686 | F143: =SUM('Charges Summary'!F131,'Charges Summary'!F$8)*'DNSP Inputs General'!$D72*'DNSP Inputs General'!S72 -> 38399.53798 | G143: =SUM('Charges Summary'!G131,'Charges Summary'!G$8)*'DNSP Inputs General'!$D72*'DNSP Inputs General'!T72 -> 39268.93912 | H143: =SUM('Charges Summary'!H131,'Charges Summary'!H$8)*'DNSP Inputs General'!$D72*'DNSP Inputs General'!U72 -> 40194.97966 | K143: =D143/'Charges Summary'!D$4 -> 36038.70792 | L143: =E143/'Charges Summary'!E$4 -> 36119.49092 | M143: =F143/'Charges Summary'!F$4 -> 36185.3944 | N143: =G143/'Charges Summary'!G$4 -> 36279.30155 | O143: =H143/'Charges Summary'!H$4 -> 36406.92501
